Workbook

Sheet Intro
G1: ='SP AusNet record of changes'!$B$4 -> SP AusNet - PTRM - data as at 28-February-2013
G2: Electricity Transmission Network Service Provider
H3: Post-Tax Revenue Model
L4: Version: 2.0
L5: Date: February 2011
B8: Introduction | J8: Electricity Transmission Module
C14: This Post-Tax Revenue Model (PTRM) is used by the Australian Energy Regulator to determine the maximum allowed
C15: revenue for a transmission network service provider.
C17: Before using the PTRM, Excel’s iteration mode of calculation needs to be selected.
C18: To do so, select Options from the Tools menu in Excel, then select the Calculation tab.
C19: Make sure that Manual (rather than Automatic) is selected and tick the iteration box.
C21: To run the 'Fix_Te' and ‘Smooth’ macros manually, select Macro from the Tools menu, and then select Macros.
C22: To operate 'Fix_Te', highlight it and click on Run. To operate ‘Smooth’, highlight it and click on Run.
C25: Amendment record:
C27: Date | F27: Details of amendments
C28: February 2011 | F28: New opex row macro - Updated to reference row 247 of Input tab.
F29: Input tab - Inserted default rate of 30% in cell F253.
F30: Analysis tab - Updated formula in cell G38 to reference cell F253 of Input tab.
F31: Analysis tab - Updated formula in cell F75 to be in a consistent format with the formula in cells G75:BI75 (no impact on value).
F32: Analysis tab - Updated formula in row 102 to link with the length of regulatory control period, consistent with the format in other tabs (no impact on values).
F33: Equity raising cost-capex tab - Updated formula in column Q to sum to column P.
F34: Price path (nominal) tab - Updated label in cell B8 to remove reference to "m".
F35: Price path (real) tab - Updated label in cell B8 to remove reference to "m".

Sheet SP AusNet record of changes
B1: SP AusNet Transmission Revenue Reset
B2: Record of changes
B3: This label will appear at the top of each worksheet. Please update as required.
B4: SP AusNet - PTRM - data as at 28-February-2013
B7: SP AusNet modifications to the AER version 2.0 Feb 2011
B9: Headings on each sheet have been modified to access a label input on the sheet 'SP AusNet record of changes'.
B11: All changes are highlighted in grey.
B13: Columns S to X have been updated in 'Inbox' worksheet to accommodate Group 3 assets
B15: Extra worksheet 'SPI depreciation' has been added to reflect SPI method to calculate depreciation.
B17: Formula in spreadsheet 'Assets', row 75 has been modified to allow for the formula to pick up values from SPI depreciation method.

Sheet Input
E1: ='SP AusNet record of changes'!$B$4 -> SP AusNet - PTRM - data as at 28-February-2013
E2: ="Input Variables - PTRM "&Intro!L4 -> Input Variables - PTRM Version: 2.0 | G2: Input cells are in blue | K2: AER draft decision amendments
E5: ="Opening Regulatory Asset Base and Opening Tax Asset Base for "&Q7&" ($m Nominal)" -> Opening Regulatory Asset Base and Opening Tax Asset Base for 2014-15 ($m Nominal)
G6: Asset Class Name | J6: Opening Asset Value (Partially As Incurred) | K6: Opening Asset Value (As Commissioned) | L6: Average Remaining Life (Year) | M6: Standard Life (Year) | N6: Opening Tax Asset Value | O6: Average Tax Remaining Life (Year) | P6: Tax Standard Life (Year) | Q6: Base Financial Year | R6: Length of Regulatory Control Period (Year) | S6: Opening Asset Value Group 3 | T6: Average Remaining Life Group 3 (Year) | U6: Opening Tax Asset Value Group 3 | V6: Average Tax Remaining Life (Year) Group 3 | W6: Opening Tax Asset Value | X6: Average Tax Remaining Life (Year) | Y6: Opening RAB as incurred as per RFM | Z6: Opening RAB as commissioned as per RFM
E7: Asset Class 1 | G7: Secondary | J7: =+S7+Y7 -> 179.3046975 | K7: =+Z7+S7 -> 148.5771499 | M7: 15 | N7: =+U7+W7 -> 178.9826376 | O7: =IF(X7="n/a","n/a",X7*W7/(W7+U7)+V7*U7/(W7+U7)) -> 14.92156171 | P7: 12.5 | Q7: 2014-15 | R7: 3 | S7: 25.77145565 | T7: 9.780534696 | U7: 21.60169746 | V7: 28.05636162 | W7: 157.3809401 | X7: 13.11871332 | Y7: 153.5332419 | Z7: 122.8056942
E8: Asset Class 2 | G8: Switchgear | J8: =+S8+Y8 -> 592.8623827 | K8: 565.0759182 | M8: 45 | N8: =+U8+W8 -> 479.9979758 | O8: 28.77885035 | P8: 40 | S8: 64.3756252 | T8: 39.54815198 | U8: 53.21498575 | V8: 29.92017143 | W8: 426.78299 | X8: 28.63654058 | Y8: 528.4867575 | Z8: 500.700293
E9: Asset Class 3 | G9: Transformers | J9: 288.4163232 | K9: 249.0360169 | M9: 45 | N9: 229.410197 | O9: =IF(X9="n/a","n/a",X9*W9/(W9+U9)+V9*U9/(W9+U9)) -> 26.40029292 | P9: 40 | S9: 45.30347231 | T9: 39.29936125 | U9: 37.98358111 | V9: 29.90271626 | W9: 191.4266159 | X9: 25.70532905 | Y9: 243.1128509 | Z9: 203.7325446
E10: Asset Class 4 | G10: Reactive | J10: =+S10+Y10 -> 81.06846258 | K10: 76.35087277 | M10: 40 | N10: 58.74939835 | O10: 17.27326176 | P10: 40 | S10: 0.100727108 | T10: 35.82739726 | U10: 0.090028064 | V10: 30 | W10: 58.65937029 | X10: 17.25372927 | Y10: 80.96773547 | Z10: 76.25014566
E11: Asset Class 5 | G11: Towers and Conductor | J11: 1080.710591 | K11: 1071.990725 | M11: 60 | N11: 797.8895565 | O11: 26.04726725 | P11: 47.5 | S11: 3.97282449 | T11: 53.67781741 | U11: 3.296418187 | V11: 37.45097946 | W11: 794.5931383 | X11: 25.99995825 | Y11: 1076.737766 | Z11: 1068.017901
E12: Asset Class 6 | G12: Establishment | J12: 186.8867301 | K12: 157.9239162 | M12: 45 | N12: 131.7175156 | O12: 32.39222548 | P12: 40 | S12: 4.261026155 | T12: 39.3506248 | U12: 3.531804611 | V12: 27.14647155 | W12: 128.185711 | X12: 32.5367578 | Y12: 182.625704 | Z12: 153.6628901
E13: Asset Class 7 | G13: Communications | J13: 43.41770841 | K13: 24.80231943 | M13: 15 | N13: 30.16284534 | O13: 9.782955251 | P13: 12.5 | S13: 0.6223702402 | T13: 10.55451024 | U13: 0.5214485325 | V13: 22.0342806 | W13: 29.64139681 | X13: 9.567431142 | Y13: 42.79533817 | Z13: 24.17994919
E14: Asset Class 8 | G14: Inventory | J14: 8.616089924 | K14: 8.616089924 | M14: n/a | N14: 5.984124314 | O14: n/a | P14: n/a | W14: 5.984124314 | X14: n/a | Y14: 8.616089924 | Z14: 8.616089924
E15: Asset Class 9 | G15: IT | J15: 73.18771657 | K15: 58.40149138 | M15: 5 | N15: 38.86159393 | O15: 2.6486051 | P15: 3.5 | W15: 38.86159393 | X15: 2.6486051 | Y15: 73.18771657 | Z15: 58.40149138
E16: Asset Class 10 | G16: Vehicles | J16: 6.601366496 | K16: 4.840674759 | M16: 7 | N16: 3.811793827 | O16: 6.607223125 | P16: 8 | W16: 3.811793827 | X16: 6.607223125 | Y16: 6.601366496 | Z16: 4.840674759
E17: Asset Class 11 | G17: Other | J17: 36.38936461 | K17: 15.31517426 | M17: 10 | N17: 10.79866685 | O17: 7.05382248 | P17: 10 | W17: 10.79866685 | X17: 7.05382248 | Y17: 36.38936461 | Z17: 15.31517426
E18: Asset Class 12 | G18: Premises | J18: 3.232998276 | K18: 3.533074017 | M18: 10 | N18: 2.274681584 | O18: 13.55460188 | P18: 20 | W18: 2.274681584 | X18: 13.55460188 | Y18: 3.232998276 | Z18: 3.533074017
E19: Asset Class 13 | G19: Land | J19: 110.8055505 | K19: 111.0277074 | M19: n/a | N19: 82.228652 | O19: n/a | P19: n/a | W19: 82.228652 | X19: n/a | Y19: 110.8055505 | Z19: 111.0277074
E20: Asset Class 14 | G20: Easements | J20: 127.922405 | K20: 127.922405 | M20: n/a | N20: 94.584699 | O20: n/a | P20: n/a | W20: 94.584699 | X20: n/a | Y20: 127.922405 | Z20: 127.922405
E21: Asset Class 15 | G21: Equity raising costs (2003-08) | J21: 53.4 | K21: 53.4 | M21: =+'Standard asset life for ERC'!B40 -> 27.57070758 | N21: 53.4 | O21: 5 | P21: 5
E22: Asset Class 16 | J22: 0
E23: Asset Class 17 | J23: 0
E24: Asset Class 18 | J24: 0
E25: Asset Class 19 | J25: 0
E26: Asset Class 20 | J26: 0
E27: Asset Class 21 | J27: 0
E28: Asset Class 22 | J28: 0
E29: Asset Class 23 | J29: 0
E30: Asset Class 24 | J30: 0
E31: Asset Class 25 | J31: 0
E32: Asset Class 26 | J32: 0
E33: Asset Class 27 | J33: 0
E34: Asset Class 28 | J34: 0
E35: Asset Class 29 | J35: 0
E36: Asset Class 30 | J36: 0
E37: Total | J37: =+SUM(J7:J36) -> 2872.822387 | K37: =SUM(K7:K36) -> 2676.813535 | N37: =SUM(N7:N36) -> 2198.854338 | S37: =SUM(S7:S36) -> 144.4075012 | U37: =SUM(U7:U36) -> 120.2399637 | W37: =SUM(W7:W36) -> 2025.214374 | Y37: =SUM(Y7:Y36) -> 2675.014885 | Z37: =SUM(Z7:Z36) -> 2479.006034
E39: ="Forecast Capital Expenditure – As Incurred ($m Real "&CONCATENATE(LEFT(Q7, 4)-1 &"-" &IF(Q7>"2009-10",,"0") &RIGHT(Q7,2)-1)&")" -> Forecast Capital Expenditure – As Incurred ($m Real 2013-14)
E40: Year | G40: =Q7 -> 2014-15 | H40: =CONCATENATE(LEFT(G40, 4)+1 &"-" &IF(G40>"2007-08",,"0") &RIGHT(G40,2)+1) -> 2015-16 | I40: =CONCATENATE(LEFT(H40, 4)+1 &"-" &IF(H40>"2007-08",,"0") &RIGHT(H40,2)+1) -> 2016-17 | J40: 2017-18 | K40: 2018-19 | L40: 2019-20 | M40: 2020-21 | N40: 2021-22 | O40: 2022-23 | P40: 2023-24
E41: =Asset1 -> Secondary | G41: 16.41621817 | H41: 18.17603974 | I41: 22.82112891
E42: =Asset2 -> Switchgear | G42: 30.57441681 | H42: 31.25965403 | I42: 39.82359875
E43: =Asset3 -> Transformers | G43: 20.49825429 | H43: 22.43455957 | I43: 26.12124568
E44: =Asset4 -> Reactive | G44: 2.325687139 | H44: 1.181182855 | I44: 1.098596842
E45: =Asset5 -> Towers and Conductor | G45: 15.72773829 | H45: 16.90391807 | I45: 17.95872555
E46: =Asset6 -> Establishment | G46: 10.66005722 | H46: 10.933368 | I46: 10.87280173
E47: =Asset7 -> Communications | G47: 11.9242389 | H47: 11.30448439 | I47: 12.85402599
E48: =Asset8 -> Inventory | G48: 0 | H48: 0 | I48: 0
E49: =Asset9 -> IT | G49: 10.15113346 | H49: 10.10143094 | I49: 10.08068599
E50: =Asset10 -> Vehicles | G50: 1.822812002 | H50: 1.808098358 | I50: 1.242971748
E51: =Asset11 -> Other | G51: 2.765162488 | H51: 2.827281636 | I51: 2.874679489
E52: =Asset12 -> Premises | G52: 0.2043382992 | H52: 0.2055683995 | I52: 0.2071626767
E53: =Asset13 -> Land | G53: 0 | H53: 0 | I53: 0
E54: =Asset14 -> Easements | G54: 0 | H54: 0 | I54: 0
E55: =Asset15 -> Equity raising costs (2003-08)
E56: =Asset16 -> 0
E57: =Asset17 -> 0
E58: =Asset18 -> 0
E59: =Asset19 -> 0
E60: =Asset20 -> 0
E61: =Asset21 -> 0
E62: =Asset22 -> 0
E63: =Asset23 -> 0
E64: =Asset24 -> 0
E65: =Asset25 -> 0
E66: =Asset26 -> 0
E67: =Asset27 -> 0
E68: =Asset28 -> 0
E69: =Asset29 -> 0
E70: =Asset30 -> 0
E71: Total | G71: =SUM(G41:G70) -> 123.0700571 | H71: =SUM(H41:H70) -> 127.135586 | I71: 145.9556234 | J71: 0 | K71: 0 | L71: 0 | M71: 0 | N71: 0 | O71: 0 | P71: 0
Q72: =SUM(G71:P71) -> 396.1612664
E73: ="Forecast Asset Disposal – As Incurred ($m Real "&CONCATENATE(LEFT(Q7, 4)-1 &"-" &IF(Q7>"2009-10",,"0") &RIGHT(Q7,2)-1)&")" -> Forecast Asset Disposal – As Incurred ($m Real 2013-14)
E74: Year | G74: =G40 -> 2014-15 | H74: =H40 -> 2015-16 | I74: 2016-17 | J74: 2017-18 | K74: 2018-19 | L74: 2019-20 | M74: 2020-21 | N74: 2021-22 | O74: 2022-23 | P74: 2023-24
E75: =Asset1 -> Secondary
E76: =Asset2 -> Switchgear
E77: =Asset3 -> Transformers | G77: 0.303 | H77: 0.303 | I77: 0.303
E78: =Asset4 -> Reactive
E79: =Asset5 -> Towers and Conductor
E80: =Asset6 -> Establishment
E81: =Asset7 -> Communications
E82: =Asset8 -> Inventory
E83: =Asset9 -> IT
E84: =Asset10 -> Vehicles | G84: 0.089 | H84: 0.088 | I84: 0.06
E85: =Asset11 -> Other
E86: =Asset12 -> Premises
E87: =Asset13 -> Land
E88: =Asset14 -> Easements
E89: =Asset15 -> Equity raising costs (2003-08)
E90: =Asset16 -> 0
E91: =Asset17 -> 0
E92: =Asset18 -> 0
E93: =Asset19 -> 0
E94: =Asset20 -> 0
E95: =Asset21 -> 0
E96: =Asset22 -> 0
E97: =Asset23 -> 0
E98: =Asset24 -> 0
E99: =Asset25 -> 0
E100: =Asset26 -> 0
E101: =Asset26 -> 0
E102: =Asset27 -> 0
E103: =Asset29 -> 0
E104: =Asset30 -> 0
E105: Total | G105: =SUM(G75:G104) -> 0.392 | H105: =SUM(H75:H104) -> 0.391 | I105: 0.363 | J105: 0 | K105: 0 | L105: 0 | M105: 0 | N105: 0 | O105: 0 | P105: 0
Q106: =SUM(G105:P105) -> 1.146
E107: ="Forecast Net Capital Expenditure – As Incurred ($m Real "&CONCATENATE(LEFT(Q7, 4)-1 &"-" &IF(Q7>"2009-10",,"0") &RIGHT(Q7,2)-1)&")" -> Forecast Net Capital Expenditure – As Incurred ($m Real 2013-14)
E108: Year | G108: =G40 -> 2014-15 | H108: =H40 -> 2015-16 | I108: 2016-17 | J108: 2017-18 | K108: 2018-19 | L108: 2019-20 | M108: 2020-21 | N108: 2021-22 | O108: 2022-23 | P108: 2023-24
E109: =Asset1 -> Secondary | G109: =G41-G75 -> 16.41621817 | H109: 18.17603974 | I109: 22.82112891 | J109: 0 | K109: 0 | L109: 0 | M109: 0 | N109: 0 | O109: 0 | P109: 0
E110: =Asset2 -> Switchgear | G110: =G42-G76 -> 30.57441681 | H110: 31.25965403 | I110: 39.82359875 | J110: 0 | K110: 0 | L110: 0 | M110: 0 | N110: 0 | O110: 0 | P110: 0
E111: =Asset3 -> Transformers | G111: =G43-G77 -> 20.19525429 | H111: 22.13155957 | I111: 25.81824568 | J111: 0 | K111: 0 | L111: 0 | M111: 0 | N111: 0 | O111: 0 | P111: 0
E112: =Asset4 -> Reactive | G112: =G44-G78 -> 2.325687139 | H112: 1.181182855 | I112: 1.098596842 | J112: 0 | K112: 0 | L112: 0 | M112: 0 | N112: 0 | O112: 0 | P112: 0
E113: =Asset5 -> Towers and Conductor | G113: =G45-G79 -> 15.72773829 | H113: 16.90391807 | I113: 17.95872555 | J113: 0 | K113: 0 | L113: 0 | M113: 0 | N113: 0 | O113: 0 | P113: 0
E114: =Asset6 -> Establishment | G114: =G46-G80 -> 10.66005722 | H114: 10.933368 | I114: 10.87280173 | J114: 0 | K114: 0 | L114: 0 | M114: 0 | N114: 0 | O114: 0 | P114: 0
E115: =Asset7 -> Communications | G115: =G47-G81 -> 11.9242389 | H115: 11.30448439 | I115: 12.85402599 | J115: 0 | K115: 0 | L115: 0 | M115: 0 | N115: 0 | O115: 0 | P115: 0
E116: =Asset8 -> Inventory | G116: =G48-G82 -> 0 | H116: 0 | I116: 0 | J116: 0 | K116: 0 | L116: 0 | M116: 0 | N116: 0 | O116: 0 | P116: 0
E117: =Asset9 -> IT | G117: =G49-G83 -> 10.15113346 | H117: 10.10143094 | I117: 10.08068599 | J117: 0 | K117: 0 | L117: 0 | M117: 0 | N117: 0 | O117: 0 | P117: 0
E118: =Asset10 -> Vehicles | G118: =G50-G84 -> 1.733812002 | H118: 1.720098358 | I118: 1.182971748 | J118: 0 | K118: 0 | L118: 0 | M118: 0 | N118: 0 | O118: 0 | P118: 0
E119: =Asset11 -> Other | G119: =G51-G85 -> 2.765162488 | H119: 2.827281636 | I119: 2.874679489 | J119: 0 | K119: 0 | L119: 0 | M119: 0 | N119: 0 | O119: 0 | P119: 0
E120: =Asset12 -> Premises | G120: =G52-G86 -> 0.2043382992 | H120: 0.2055683995 | I120: 0.2071626767 | J120: 0 | K120: 0 | L120: 0 | M120: 0 | N120: 0 | O120: 0 | P120: 0
E121: =Asset13 -> Land | G121: =G53-G87 -> 0 | H121: 0 | I121: 0 | J121: 0 | K121: 0 | L121: 0 | M121: 0 | N121: 0 | O121: 0 | P121: 0
E122: =Asset14 -> Easements | G122: =G54-G88 -> 0 | H122: 0 | I122: 0 | J122: 0 | K122: 0 | L122: 0 | M122: 0 | N122: 0 | O122: 0 | P122: 0
E123: =Asset15 -> Equity raising costs (2003-08) | G123: =G55-G89 -> 0 | H123: 0 | I123: 0 | J123: 0 | K123: 0 | L123: 0 | M123: 0 | N123: 0 | O123: 0 | P123: 0
E124: =Asset16 -> 0 | G124: =G56-G90 -> 0 | H124: 0 | I124: 0 | J124: 0 | K124: 0 | L124: 0 | M124: 0 | N124: 0 | O124: 0 | P124: 0
E125: =Asset17 -> 0 | G125: =G57-G91 -> 0 | H125: 0 | I125: 0 | J125: 0 | K125: 0 | L125: 0 | M125: 0 | N125: 0 | O125: 0 | P125: 0
E126: =Asset18 -> 0 | G126: =G58-G92 -> 0 | H126: 0 | I126: 0 | J126: 0 | K126: 0 | L126: 0 | M126: 0 | N126: 0 | O126: 0 | P126: 0
E127: =Asset19 -> 0 | G127: =G59-G93 -> 0 | H127: 0 | I127: 0 | J127: 0 | K127: 0 | L127: 0 | M127: 0 | N127: 0 | O127: 0 | P127: 0
E128: =Asset20 -> 0 | G128: =G60-G94 -> 0 | H128: 0 | I128: 0 | J128: 0 | K128: 0 | L128: 0 | M128: 0 | N128: 0 | O128: 0 | P128: 0
E129: =Asset21 -> 0 | G129: =G61-G95 -> 0 | H129: 0 | I129: 0 | J129: 0 | K129: 0 | L129: 0 | M129: 0 | N129: 0 | O129: 0 | P129: 0
E130: =Asset22 -> 0 | G130: 0 | H130: 0 | I130: 0 | J130: 0 | K130: 0 | L130: 0 | M130: 0 | N130: 0 | O130: 0 | P130: 0
E131: =Asset23 -> 0 | G131: 0 | H131: 0 | I131: 0 | J131: 0 | K131: 0 | L131: 0 | M131: 0 | N131: 0 | O131: 0 | P131: 0
E132: =Asset24 -> 0 | G132: 0 | H132: 0 | I132: 0 | J132: 0 | K132: 0 | L132: 0 | M132: 0 | N132: 0 | O132: 0 | P132: 0
E133: =Asset25 -> 0 | G133: 0 | H133: 0 | I133: 0 | J133: 0 | K133: 0 | L133: 0 | M133: 0 | N133: 0 | O133: 0 | P133: 0
E134: =Asset26 -> 0 | G134: 0 | H134: 0 | I134: 0 | J134: 0 | K134: 0 | L134: 0 | M134: 0 | N134: 0 | O134: 0 | P134: 0
E135: =Asset27 -> 0 | G135: 0 | H135: 0 | I135: 0 | J135: 0 | K135: 0 | L135: 0 | M135: 0 | N135: 0 | O135: 0 | P135: 0
E136: =Asset28 -> 0 | G136: 0 | H136: 0 | I136: 0 | J136: 0 | K136: 0 | L136: 0 | M136: 0 | N136: 0 | O136: 0 | P136: 0
E137: =Asset29 -> 0 | G137: 0 | H137: 0 | I137: 0 | J137: 0 | K137: 0 | L137: 0 | M137: 0 | N137: 0 | O137: 0 | P137: 0
E138: =Asset30 -> 0 | G138: 0 | H138: 0 | I138: 0 | J138: 0 | K138: 0 | L138: 0 | M138: 0 | N138: 0 | O138: 0 | P138: 0
E139: Total | G139: =SUM(G109:G138) -> 122.6780571 | H139: =SUM(H109:H138) -> 126.744586 | I139: 145.5926234 | J139: 0 | K139: 0 | L139: 0 | M139: 0 | N139: 0 | O139: 0 | P139: 0
Q140: =SUM(G139:P139) -> 395.0152664
E141: ="Forecast Capital Expenditure – As Commissioned ($m Real "&CONCATENATE(LEFT(Q7, 4)-1 &"-" &IF(Q7>"2009-10",,"0") &RIGHT(Q7,2)-1)&")" -> Forecast Capital Expenditure – As Commissioned ($m Real 2013-14)
E142: Year | G142: =G40 -> 2014-15 | H142: =H40 -> 2015-16 | I142: 2016-17 | J142: 2017-18 | K142: 2018-19 | L142: 2019-20 | M142: 2020-21 | N142: 2021-22 | O142: 2022-23 | P142: 2023-24
E143: =Asset1 -> Secondary | G143: 15.83799237 | H143: 18.4372557 | I143: 21.53875569
E144: =Asset2 -> Switchgear | G144: 30.08828589 | H144: 34.01276734 | I144: 32.82969491
E145: =Asset3 -> Transformers | G145: 16.08172225 | H145: 19.33675271 | I145: 30.38467184
E146: =Asset4 -> Reactive | G146: 2.325687139 | H146: 1.181182855 | I146: 1.098596842
E147: =Asset5 -> Towers and Conductor | G147: 15.67961041 | H147: 17.00181572 | I147: 17.78219894
E148: =Asset6 -> Establishment | G148: 10.56371452 | H148: 11.14468842 | I148: 9.929831987
E149: =Asset7 -> Communications | G149: 11.78221791 | H149: 11.08610216 | I149: 13.15664034
E150: =Asset8 -> Inventory | G150: 0 | H150: 0 | I150: 0
E151: =Asset9 -> IT | G151: 10.15113346 | H151: 10.10143094 | I151: 10.08068599
E152: =Asset10 -> Vehicles | G152: 1.822812002 | H152: 1.808098358 | I152: 1.242971748
E153: =Asset11 -> Other | G153: 2.765162488 | H153: 2.827281636 | I153: 2.874679489
E154: =Asset12 -> Premises | G154: 0.2042366389 | H154: 0.2054657225 | I154: 0.207161958
E155: =Asset13 -> Land | G155: 0 | H155: 0 | I155: 0
E156: =Asset14 -> Easements | G156: 0 | H156: 0 | I156: 0
E157: =Asset15 -> Equity raising costs (2003-08)
E158: =Asset16 -> 0
E159: =Asset17 -> 0
E160: =Asset18 -> 0
E161: =Asset19 -> 0
E162: =Asset20 -> 0
E163: =Asset21 -> 0
E164: =Asset22 -> 0
E165: =Asset23 -> 0
E166: =Asset24 -> 0
E167: =Asset25 -> 0
E168: =Asset26 -> 0
E169: =Asset27 -> 0
E170: =Asset28 -> 0
E171: =Asset29 -> 0
E172: =Asset30 -> 0
E173: Total | G173: =SUM(G143:G172) -> 117.3025751 | H173: =SUM(H143:H172) -> 127.1428416 | I173: 141.1258897 | J173: 0 | K173: 0 | L173: 0 | M173: 0 | N173: 0 | O173: 0 | P173: 0
Q174: =SUM(G173:P173) -> 385.5713064
E175: ="Forecast Asset Disposal – As De-Commissioned ($m Real "&CONCATENATE(LEFT(Q7, 4)-1 &"-" &IF(Q7>"2009-10",,"0") &RIGHT(Q7,2)-1)&")" -> Forecast Asset Disposal – As De-Commissioned ($m Real 2013-14)
E176: Year | G176: =G40 -> 2014-15 | H176: =H40 -> 2015-16 | I176: 2016-17 | J176: 2017-18 | K176: 2018-19 | L176: 2019-20 | M176: 2020-21 | N176: 2021-22 | O176: 2022-23 | P176: 2023-24
E177: =Asset1 -> Secondary
E178: =Asset2 -> Switchgear
E179: =Asset3 -> Transformers | G179: 0.303 | H179: 0.303 | I179: 0.303
E180: =Asset4 -> Reactive
E181: =Asset5 -> Towers and Conductor
E182: =Asset6 -> Establishment
E183: =Asset7 -> Communications
E184: =Asset8 -> Inventory
E185: =Asset9 -> IT
E186: =Asset10 -> Vehicles | G186: 0.089 | H186: 0.088 | I186: 0.06
E187: =Asset11 -> Other
E188: =Asset12 -> Premises
E189: =Asset13 -> Land
E190: =Asset14 -> Easements
E191: =Asset15 -> Equity raising costs (2003-08)
E192: =Asset16 -> 0
E193: =Asset17 -> 0
E194: =Asset18 -> 0
E195: =Asset19 -> 0
E196: =Asset20 -> 0
E197: =Asset21 -> 0
E198: =Asset22 -> 0
E199: =Asset23 -> 0
E200: =Asset24 -> 0
E201: =Asset25 -> 0
E202: =Asset26 -> 0
E203: =Asset27 -> 0
... 76 more rows

Sheet WACC
B1: ='SP AusNet record of changes'!$B$4 -> SP AusNet - PTRM - data as at 28-February-2013
B2: ="Cost of Capital Parameters - PTRM "&Intro!L4 -> Cost of Capital Parameters - PTRM Version: 2.0
F6: Input Data & Calculated Inputs | G6: Basic Building Block Model
B7: Nominal Risk Free Rate | D7: Rf | F7: =Rf -> 0.03544173851
B8: Real Risk Free Rate | D8: Rrf | F8: =(1+F7)/(1+F9)-1 -> 0.01018706196
B9: Inflation Rate | D9: f | F9: =f -> 0.025
B10: Cost of Debt Margin | D10: DRP | F10: =Drp -> 0.03002140131
B11: Nominal Pre-tax Cost of Debt | D11: Rd | F11: =F7+F10 -> 0.06546313982
B12: Real Pre-tax Cost of Debt | D12: Rrd | F12: =(1+F11)/(1+F9)-1 -> 0.03947623397
B13: Market Risk Premium | D13: MRP | F13: =Mrp -> 0.065
B14: Corporate Tax Rate | D14: T | F14: =AVERAGE(Input!G257:P257) -> 0.3
B15: Effective Tax Rate for Equity (from relevant cashflows) | D15: Te | F15: 0.2214633834 | G15: =Analysis!$D$59 -> 0.2214633834
B16: Effective Tax Rate for Debt (effective debt shield) | D16: Td | F16: =Td -> 0.3 | G16: =Analysis!$D$69 -> 0.3
B17: Utilisation of Imputation (franking) Credits | D17: g | F17: =g -> 0.65
B18: Proportion of Equity Funding | D18: E/V | F18: =1-F19 -> 0.4
B19: Proportion of Debt Funding | D19: D/V | F19: =Dv -> 0.6
B20: Equity Beta | D20: βe | F20: =Be -> 0.8
B22: WACC Analysis
F24: Formula Approximation
B25: Post-tax Nominal Return on Equity (pre-imp) | F25: =F7+F20*(F13) -> 0.08744173851 | G25: =Analysis!$E$61 -> 0.08744173851
B26: Post-tax Real Return on Equity (pre-imp) | F26: =(1+F25)/(1+F9)-1 -> 0.06091876928 | G26: =Analysis!$E$65 -> 0.06091876928
B27: Nominal Vanilla WACC | F27: =F18*F25+F19*F11 -> 0.0742545793 | G27: =Analysis!$E$75 -> 0.0742545793
B28: Real Vanilla WACC | F28: =F18*F26+F19*F12 -> 0.04805324809 | G28: =Analysis!$E$76 -> 0.04805324809
B29: Post-tax Nominal WACC | F29: =F25*((1-F15)/(1-F15*(1-F17)))*F18+F11*F19*(1-F16) -> 0.05701321548 | G29: =Analysis!$E$72 -> 0.06875231622
B30: Post-tax Real WACC | F30: =(1+F29)/(1+F9)-1 -> 0.03123240535 | G30: =Analysis!$E$74 -> 0.04268518655
B31: Pre-tax Nominal WACC | F31: =F25*(1/(1-F15*(1-F17)))*F18+F11*F19 -> 0.07719350164 | G31: =Analysis!$E$71 -> 0.07719764913
B32: Pre-tax Real WACC | F32: =(1+F31)/(1+F9)-1 -> 0.05092048941 | G32: =Analysis!$E$73 -> 0.05092453574
B33: Nominal Tax Allowance | F33: =F31-F27 -> 0.002938922347 | G33: =G31-$F$27 -> 0.002943069835
B34: Real Tax Allowance | F34: =F32-F28 -> 0.002867241315 | G34: =G32-$F$28 -> 0.002871287644
F37: Numbers in White cells are calculated on this sheet from input parameters.
F38: Numbers in Orange cells are transferred from relevant sheets

Sheet Assets
B1: ='SP AusNet record of changes'!$B$4 -> SP AusNet - PTRM - data as at 28-February-2013 | N1: PTRM Depreciation
B2: ="Asset Roll Forward - PTRM "&Intro!L4 -> Asset Roll Forward - PTRM Version: 2.0 | N2: SPI Depreciation | O2: 2
F3: 0 | G3: =F3+1 -> 1 | H3: 2 | I3: 3 | J3: 4 | K3: 5 | L3: 6 | M3: 7 | N3: 8 | O3: 9 | P3: 10 | Q3: 11 | R3: 12 | S3: 13 | T3: 14 | U3: 15 | V3: 16 | W3: 17 | X3: 18 | Y3: 19 | Z3: 20 | AA3: 21 | AB3: 22 | AC3: 23 | AD3: 24 | AE3: 25 | AF3: 26 | AG3: 27 | AH3: 28 | AI3: 29 | AJ3: 30 | AK3: 31 | AL3: 32 | AM3: =AL3+1 -> 33 | AN3: 34 | AO3: 35 | AP3: 36 | AQ3: 37 | AR3: 38 | AS3: 39 | AT3: 40 | AU3: 41 | AV3: 42 | AW3: 43 | AX3: 44 | AY3: 45 | AZ3: 46 | BA3: 47 | BB3: 48 | BC3: 49 | BD3: 50 | BE3: 51 | BF3: 52 | BG3: 53 | BH3: 54 | BI3: 55
B4: Year | F4: =Input!F282 -> 2013-14 | G4: =Input!G282 -> 2014-15 | H4: =Input!H282 -> 2015-16 | I4: =Input!I282 -> 2016-17 | J4: =Input!J282 -> 2017-18 | K4: =Input!K282 -> 2018-19 | L4: =Input!L282 -> 2019-20 | M4: =Input!M282 -> 2020-21 | N4: =Input!N282 -> 2021-22 | O4: =Input!O282 -> 2022-23 | P4: =Input!P282 -> 2023-24 | Q4: =CONCATENATE(LEFT(P4, 4)+1 &"-" &IF(P4>"2007-08",,"0") &RIGHT(P4,2)+1) -> 2024-25 | R4: =CONCATENATE(LEFT(Q4, 4)+1 &"-" &IF(Q4>"2007-08",,"0") &RIGHT(Q4,2)+1) -> 2025-26 | S4: 2026-27 | T4: 2027-28 | U4: 2028-29 | V4: 2029-30 | W4: 2030-31 | X4: 2031-32 | Y4: 2032-33 | Z4: 2033-34 | AA4: 2034-35 | AB4: 2035-36 | AC4: 2036-37 | AD4: 2037-38 | AE4: 2038-39 | AF4: 2039-40 | AG4: 2040-41 | AH4: 2041-42 | AI4: 2042-43 | AJ4: 2043-44 | AK4: 2044-45 | AL4: 2045-46 | AM4: 2046-47 | AN4: 2047-48 | AO4: 2048-49 | AP4: 2049-50 | AQ4: 2050-51 | AR4: 2051-52 | AS4: 2052-53 | AT4: 2053-54 | AU4: 2054-55 | AV4: 2055-56 | AW4: 2056-57 | AX4: 2057-58 | AY4: 2058-59 | AZ4: 2059-60 | BA4: 2060-61 | BB4: 2061-62 | BC4: 2062-63 | BD4: 2063-64 | BE4: 2064-65 | BF4: 2065-66 | BG4: 2066-67 | BH4: 2067-68 | BI4: 2068-69
B6: Inflation Assumption (CPI % increase) | D6: =f -> 0.025 | G6: =$D$6 -> 0.025 | H6: =$D$6 -> 0.025 | I6: 0.025 | J6: 0.025 | K6: 0.025 | L6: 0.025 | M6: 0.025 | N6: 0.025 | O6: 0.025 | P6: 0.025 | Q6: 0.025 | R6: 0.025 | S6: 0.025 | T6: 0.025 | U6: 0.025 | V6: 0.025 | W6: 0.025 | X6: 0.025 | Y6: 0.025 | Z6: 0.025 | AA6: 0.025 | AB6: 0.025 | AC6: 0.025 | AD6: 0.025 | AE6: 0.025 | AF6: 0.025 | AG6: 0.025 | AH6: 0.025 | AI6: 0.025 | AJ6: 0.025 | AK6: 0.025 | AL6: 0.025 | AM6: 0.025 | AN6: 0.025 | AO6: 0.025 | AP6: 0.025 | AQ6: 0.025 | AR6: 0.025 | AS6: 0.025 | AT6: 0.025 | AU6: 0.025 | AV6: 0.025 | AW6: 0.025 | AX6: 0.025 | AY6: 0.025 | AZ6: 0.025 | BA6: 0.025 | BB6: 0.025 | BC6: 0.025 | BD6: 0.025 | BE6: 0.025 | BF6: 0.025 | BG6: 0.025 | BH6: 0.025 | BI6: 0.025
B7: Cumulative Inflation Index (CPI end period) | F7: 1 | G7: =F7*(1+G6) -> 1.025 | H7: 1.050625 | I7: 1.076890625 | J7: 1.103812891 | K7: 1.131408213 | L7: 1.159693418 | M7: 1.188685754 | N7: 1.218402898 | O7: 1.24886297 | P7: =O7*(1+P6) -> 1.280084544 | Q7: 1.312086658 | R7: 1.344888824 | S7: 1.378511045 | T7: 1.412973821 | U7: 1.448298166 | V7: 1.484505621 | W7: 1.521618261 | X7: 1.559658718 | Y7: 1.598650186 | Z7: 1.63861644 | AA7: 1.679581851 | AB7: 1.721571398 | AC7: 1.764610683 | AD7: 1.80872595 | AE7: 1.853944098 | AF7: 1.900292701 | AG7: 1.947800018 | AH7: 1.996495019 | AI7: 2.046407394 | AJ7: 2.097567579 | AK7: 2.150006769 | AL7: 2.203756938 | AM7: 2.258850861 | AN7: 2.315322133 | AO7: 2.373205186 | AP7: 2.432535316 | AQ7: 2.493348699 | AR7: 2.555682416 | AS7: 2.619574476 | AT7: 2.685063838 | AU7: 2.752190434 | AV7: 2.820995195 | AW7: 2.891520075 | AX7: 2.963808077 | AY7: 3.037903279 | AZ7: 3.113850861 | BA7: 3.191697132 | BB7: 3.271489561 | BC7: 3.3532768 | BD7: 3.43710872 | BE7: 3.523036438 | BF7: 3.611112349 | BG7: 3.701390157 | BH7: 3.793924911 | BI7: 3.888773034
B9: Opening Regulatory Asset Base (RAB) | F9: =RAB -> 2872.822387
B10: Real Net Capital Expenditure (capex) | G10: =SUM(G11:G40) -> 125.591013 | H10: =SUM(H11:H40) -> 129.7541005 | I10: 149.0496792 | J10: 0 | K10: 0 | L10: 0 | M10: 0 | N10: 0 | O10: 0 | P10: 0
C11: =Asset1 -> Secondary | G11: =Input!G109*(1+rvanilla)^0.5 -> 16.80601665 | H11: =Input!H109*(1+rvanilla)^0.5 -> 18.60762468 | I11: =Input!I109*(1+rvanilla)^0.5 -> 23.36301019 | J11: =Input!J109*(1+rvanilla)^0.5 -> 0 | K11: =Input!K109*(1+rvanilla)^0.5 -> 0 | L11: =Input!L109*(1+rvanilla)^0.5 -> 0 | M11: =Input!M109*(1+rvanilla)^0.5 -> 0 | N11: =Input!N109*(1+rvanilla)^0.5 -> 0 | O11: =Input!O109*(1+rvanilla)^0.5 -> 0 | P11: =Input!P109*(1+rvanilla)^0.5 -> 0
C12: =Asset2 -> Switchgear | G12: =Input!G110*(1+rvanilla)^0.5 -> 31.30039772 | H12: =Input!H110*(1+rvanilla)^0.5 -> 32.00190571 | I12: =Input!I110*(1+rvanilla)^0.5 -> 40.76919888 | J12: =Input!J110*(1+rvanilla)^0.5 -> 0 | K12: =Input!K110*(1+rvanilla)^0.5 -> 0 | L12: =Input!L110*(1+rvanilla)^0.5 -> 0 | M12: =Input!M110*(1+rvanilla)^0.5 -> 0 | N12: =Input!N110*(1+rvanilla)^0.5 -> 0 | O12: =Input!O110*(1+rvanilla)^0.5 -> 0 | P12: =Input!P110*(1+rvanilla)^0.5 -> 0
C13: =Asset3 -> Transformers | G13: =Input!G111*(1+rvanilla)^0.5 -> 20.67478492 | H13: =Input!H111*(1+rvanilla)^0.5 -> 22.65706722 | I13: =Input!I111*(1+rvanilla)^0.5 -> 26.43129265 | J13: =Input!J111*(1+rvanilla)^0.5 -> 0 | K13: =Input!K111*(1+rvanilla)^0.5 -> 0 | L13: =Input!L111*(1+rvanilla)^0.5 -> 0 | M13: =Input!M111*(1+rvanilla)^0.5 -> 0 | N13: =Input!N111*(1+rvanilla)^0.5 -> 0 | O13: =Input!O111*(1+rvanilla)^0.5 -> 0 | P13: =Input!P111*(1+rvanilla)^0.5 -> 0
C14: =Asset4 -> Reactive | G14: =Input!G112*(1+rvanilla)^0.5 -> 2.380909925 | H14: =Input!H112*(1+rvanilla)^0.5 -> 1.209229709 | I14: =Input!I112*(1+rvanilla)^0.5 -> 1.124682715 | J14: =Input!J112*(1+rvanilla)^0.5 -> 0 | K14: =Input!K112*(1+rvanilla)^0.5 -> 0 | L14: =Input!L112*(1+rvanilla)^0.5 -> 0 | M14: =Input!M112*(1+rvanilla)^0.5 -> 0 | N14: =Input!N112*(1+rvanilla)^0.5 -> 0 | O14: =Input!O112*(1+rvanilla)^0.5 -> 0 | P14: =Input!P112*(1+rvanilla)^0.5 -> 0
C15: =Asset5 -> Towers and Conductor | G15: =Input!G113*(1+rvanilla)^0.5 -> 16.101189 | H15: =Input!H113*(1+rvanilla)^0.5 -> 17.30529684 | I15: =Input!I113*(1+rvanilla)^0.5 -> 18.38515043 | J15: =Input!J113*(1+rvanilla)^0.5 -> 0 | K15: =Input!K113*(1+rvanilla)^0.5 -> 0 | L15: =Input!L113*(1+rvanilla)^0.5 -> 0 | M15: =Input!M113*(1+rvanilla)^0.5 -> 0 | N15: =Input!N113*(1+rvanilla)^0.5 -> 0 | O15: =Input!O113*(1+rvanilla)^0.5 -> 0 | P15: =Input!P113*(1+rvanilla)^0.5 -> 0
C16: =Asset6 -> Establishment | G16: =Input!G114*(1+rvanilla)^0.5 -> 10.91317728 | H16: =Input!H114*(1+rvanilla)^0.5 -> 11.19297774 | I16: =Input!I114*(1+rvanilla)^0.5 -> 11.13097334 | J16: =Input!J114*(1+rvanilla)^0.5 -> 0 | K16: =Input!K114*(1+rvanilla)^0.5 -> 0 | L16: =Input!L114*(1+rvanilla)^0.5 -> 0 | M16: =Input!M114*(1+rvanilla)^0.5 -> 0 | N16: =Input!N114*(1+rvanilla)^0.5 -> 0 | O16: =Input!O114*(1+rvanilla)^0.5 -> 0 | P16: =Input!P114*(1+rvanilla)^0.5 -> 0
C17: =Asset7 -> Communications | G17: =Input!G115*(1+rvanilla)^0.5 -> 12.20737659 | H17: =Input!H115*(1+rvanilla)^0.5 -> 11.57290618 | I17: =Input!I115*(1+rvanilla)^0.5 -> 13.15924122 | J17: =Input!J115*(1+rvanilla)^0.5 -> 0 | K17: =Input!K115*(1+rvanilla)^0.5 -> 0 | L17: =Input!L115*(1+rvanilla)^0.5 -> 0 | M17: =Input!M115*(1+rvanilla)^0.5 -> 0 | N17: =Input!N115*(1+rvanilla)^0.5 -> 0 | O17: =Input!O115*(1+rvanilla)^0.5 -> 0 | P17: =Input!P115*(1+rvanilla)^0.5 -> 0
C18: =Asset8 -> Inventory | G18: =Input!G116*(1+rvanilla)^0.5 -> 0 | H18: =Input!H116*(1+rvanilla)^0.5 -> 0 | I18: =Input!I116*(1+rvanilla)^0.5 -> 0 | J18: =Input!J116*(1+rvanilla)^0.5 -> 0 | K18: =Input!K116*(1+rvanilla)^0.5 -> 0 | L18: =Input!L116*(1+rvanilla)^0.5 -> 0 | M18: =Input!M116*(1+rvanilla)^0.5 -> 0 | N18: =Input!N116*(1+rvanilla)^0.5 -> 0 | O18: =Input!O116*(1+rvanilla)^0.5 -> 0 | P18: =Input!P116*(1+rvanilla)^0.5 -> 0
C19: =Asset9 -> IT | G19: =Input!G117*(1+rvanilla)^0.5 -> 10.39216927 | H19: =Input!H117*(1+rvanilla)^0.5 -> 10.34128657 | I19: =Input!I117*(1+rvanilla)^0.5 -> 10.32004904 | J19: =Input!J117*(1+rvanilla)^0.5 -> 0 | K19: =Input!K117*(1+rvanilla)^0.5 -> 0 | L19: =Input!L117*(1+rvanilla)^0.5 -> 0 | M19: =Input!M117*(1+rvanilla)^0.5 -> 0 | N19: =Input!N117*(1+rvanilla)^0.5 -> 0 | O19: =Input!O117*(1+rvanilla)^0.5 -> 0 | P19: =Input!P117*(1+rvanilla)^0.5 -> 0
C20: =Asset10 -> Vehicles | G20: =Input!G118*(1+rvanilla)^0.5 -> 1.774980879 | H20: =Input!H118*(1+rvanilla)^0.5 -> 1.760941609 | I20: =Input!I118*(1+rvanilla)^0.5 -> 1.211061079 | J20: =Input!J118*(1+rvanilla)^0.5 -> 0 | K20: =Input!K118*(1+rvanilla)^0.5 -> 0 | L20: =Input!L118*(1+rvanilla)^0.5 -> 0 | M20: =Input!M118*(1+rvanilla)^0.5 -> 0 | N20: =Input!N118*(1+rvanilla)^0.5 -> 0 | O20: =Input!O118*(1+rvanilla)^0.5 -> 0 | P20: =Input!P118*(1+rvanilla)^0.5 -> 0
C21: =Asset11 -> Other | G21: =Input!G119*(1+rvanilla)^0.5 -> 2.830820492 | H21: =Input!H119*(1+rvanilla)^0.5 -> 2.894414642 | I21: =Input!I119*(1+rvanilla)^0.5 -> 2.942937944 | J21: =Input!J119*(1+rvanilla)^0.5 -> 0 | K21: =Input!K119*(1+rvanilla)^0.5 -> 0 | L21: =Input!L119*(1+rvanilla)^0.5 -> 0 | M21: =Input!M119*(1+rvanilla)^0.5 -> 0 | N21: =Input!N119*(1+rvanilla)^0.5 -> 0 | O21: =Input!O119*(1+rvanilla)^0.5 -> 0 | P21: =Input!P119*(1+rvanilla)^0.5 -> 0
C22: =Asset12 -> Premises | G22: =Input!G120*(1+rvanilla)^0.5 -> 0.2091902546 | H22: =Input!H120*(1+rvanilla)^0.5 -> 0.2104495632 | I22: =Input!I120*(1+rvanilla)^0.5 -> 0.2120816961 | J22: =Input!J120*(1+rvanilla)^0.5 -> 0 | K22: =Input!K120*(1+rvanilla)^0.5 -> 0 | L22: =Input!L120*(1+rvanilla)^0.5 -> 0 | M22: =Input!M120*(1+rvanilla)^0.5 -> 0 | N22: =Input!N120*(1+rvanilla)^0.5 -> 0 | O22: =Input!O120*(1+rvanilla)^0.5 -> 0 | P22: =Input!P120*(1+rvanilla)^0.5 -> 0
C23: =Asset13 -> Land | G23: =Input!G121*(1+rvanilla)^0.5 -> 0 | H23: =Input!H121*(1+rvanilla)^0.5 -> 0 | I23: =Input!I121*(1+rvanilla)^0.5 -> 0 | J23: =Input!J121*(1+rvanilla)^0.5 -> 0 | K23: =Input!K121*(1+rvanilla)^0.5 -> 0 | L23: =Input!L121*(1+rvanilla)^0.5 -> 0 | M23: =Input!M121*(1+rvanilla)^0.5 -> 0 | N23: =Input!N121*(1+rvanilla)^0.5 -> 0 | O23: =Input!O121*(1+rvanilla)^0.5 -> 0 | P23: =Input!P121*(1+rvanilla)^0.5 -> 0
C24: =Asset14 -> Easements | G24: =Input!G122*(1+rvanilla)^0.5 -> 0 | H24: =Input!H122*(1+rvanilla)^0.5 -> 0 | I24: =Input!I122*(1+rvanilla)^0.5 -> 0 | J24: =Input!J122*(1+rvanilla)^0.5 -> 0 | K24: =Input!K122*(1+rvanilla)^0.5 -> 0 | L24: =Input!L122*(1+rvanilla)^0.5 -> 0 | M24: =Input!M122*(1+rvanilla)^0.5 -> 0 | N24: =Input!N122*(1+rvanilla)^0.5 -> 0 | O24: =Input!O122*(1+rvanilla)^0.5 -> 0 | P24: =Input!P122*(1+rvanilla)^0.5 -> 0
C25: =Asset15 -> Equity raising costs (2003-08) | G25: =Input!G123*(1+rvanilla)^0.5 -> 0 | H25: =Input!H123*(1+rvanilla)^0.5 -> 0 | I25: =Input!I123*(1+rvanilla)^0.5 -> 0 | J25: =Input!J123*(1+rvanilla)^0.5 -> 0 | K25: =Input!K123*(1+rvanilla)^0.5 -> 0 | L25: =Input!L123*(1+rvanilla)^0.5 -> 0 | M25: =Input!M123*(1+rvanilla)^0.5 -> 0 | N25: =Input!N123*(1+rvanilla)^0.5 -> 0 | O25: =Input!O123*(1+rvanilla)^0.5 -> 0 | P25: =Input!P123*(1+rvanilla)^0.5 -> 0
C26: =Asset16 -> 0 | G26: =Input!G124*(1+rvanilla)^0.5 -> 0 | H26: =Input!H124*(1+rvanilla)^0.5 -> 0 | I26: =Input!I124*(1+rvanilla)^0.5 -> 0 | J26: =Input!J124*(1+rvanilla)^0.5 -> 0 | K26: =Input!K124*(1+rvanilla)^0.5 -> 0 | L26: =Input!L124*(1+rvanilla)^0.5 -> 0 | M26: =Input!M124*(1+rvanilla)^0.5 -> 0 | N26: =Input!N124*(1+rvanilla)^0.5 -> 0 | O26: =Input!O124*(1+rvanilla)^0.5 -> 0 | P26: =Input!P124*(1+rvanilla)^0.5 -> 0
C27: =Asset17 -> 0 | G27: =Input!G125*(1+rvanilla)^0.5 -> 0 | H27: =Input!H125*(1+rvanilla)^0.5 -> 0 | I27: =Input!I125*(1+rvanilla)^0.5 -> 0 | J27: =Input!J125*(1+rvanilla)^0.5 -> 0 | K27: =Input!K125*(1+rvanilla)^0.5 -> 0 | L27: =Input!L125*(1+rvanilla)^0.5 -> 0 | M27: =Input!M125*(1+rvanilla)^0.5 -> 0 | N27: =Input!N125*(1+rvanilla)^0.5 -> 0 | O27: =Input!O125*(1+rvanilla)^0.5 -> 0 | P27: =Input!P125*(1+rvanilla)^0.5 -> 0
C28: =Asset18 -> 0 | G28: =Input!G126*(1+rvanilla)^0.5 -> 0 | H28: =Input!H126*(1+rvanilla)^0.5 -> 0 | I28: =Input!I126*(1+rvanilla)^0.5 -> 0 | J28: =Input!J126*(1+rvanilla)^0.5 -> 0 | K28: =Input!K126*(1+rvanilla)^0.5 -> 0 | L28: =Input!L126*(1+rvanilla)^0.5 -> 0 | M28: =Input!M126*(1+rvanilla)^0.5 -> 0 | N28: =Input!N126*(1+rvanilla)^0.5 -> 0 | O28: =Input!O126*(1+rvanilla)^0.5 -> 0 | P28: =Input!P126*(1+rvanilla)^0.5 -> 0
C29: =Asset19 -> 0 | G29: =Input!G127*(1+rvanilla)^0.5 -> 0 | H29: =Input!H127*(1+rvanilla)^0.5 -> 0 | I29: =Input!I127*(1+rvanilla)^0.5 -> 0 | J29: =Input!J127*(1+rvanilla)^0.5 -> 0 | K29: =Input!K127*(1+rvanilla)^0.5 -> 0 | L29: =Input!L127*(1+rvanilla)^0.5 -> 0 | M29: =Input!M127*(1+rvanilla)^0.5 -> 0 | N29: =Input!N127*(1+rvanilla)^0.5 -> 0 | O29: =Input!O127*(1+rvanilla)^0.5 -> 0 | P29: =Input!P127*(1+rvanilla)^0.5 -> 0
C30: =Asset20 -> 0 | G30: =Input!G128*(1+rvanilla)^0.5 -> 0 | H30: =Input!H128*(1+rvanilla)^0.5 -> 0 | I30: =Input!I128*(1+rvanilla)^0.5 -> 0 | J30: =Input!J128*(1+rvanilla)^0.5 -> 0 | K30: =Input!K128*(1+rvanilla)^0.5 -> 0 | L30: =Input!L128*(1+rvanilla)^0.5 -> 0 | M30: =Input!M128*(1+rvanilla)^0.5 -> 0 | N30: =Input!N128*(1+rvanilla)^0.5 -> 0 | O30: =Input!O128*(1+rvanilla)^0.5 -> 0 | P30: =Input!P128*(1+rvanilla)^0.5 -> 0
C31: =Asset21 -> 0 | G31: =Input!G129*(1+rvanilla)^0.5 -> 0 | H31: =Input!H129*(1+rvanilla)^0.5 -> 0 | I31: =Input!I129*(1+rvanilla)^0.5 -> 0 | J31: =Input!J129*(1+rvanilla)^0.5 -> 0 | K31: =Input!K129*(1+rvanilla)^0.5 -> 0 | L31: =Input!L129*(1+rvanilla)^0.5 -> 0 | M31: =Input!M129*(1+rvanilla)^0.5 -> 0 | N31: =Input!N129*(1+rvanilla)^0.5 -> 0 | O31: =Input!O129*(1+rvanilla)^0.5 -> 0 | P31: =Input!P129*(1+rvanilla)^0.5 -> 0
C32: =Asset22 -> 0 | G32: =Input!G130*(1+rvanilla)^0.5 -> 0 | H32: =Input!H130*(1+rvanilla)^0.5 -> 0 | I32: =Input!I130*(1+rvanilla)^0.5 -> 0 | J32: =Input!J130*(1+rvanilla)^0.5 -> 0 | K32: =Input!K130*(1+rvanilla)^0.5 -> 0 | L32: =Input!L130*(1+rvanilla)^0.5 -> 0 | M32: =Input!M130*(1+rvanilla)^0.5 -> 0 | N32: =Input!N130*(1+rvanilla)^0.5 -> 0 | O32: =Input!O130*(1+rvanilla)^0.5 -> 0 | P32: =Input!P130*(1+rvanilla)^0.5 -> 0
C33: =Asset23 -> 0 | G33: =Input!G131*(1+rvanilla)^0.5 -> 0 | H33: =Input!H131*(1+rvanilla)^0.5 -> 0 | I33: =Input!I131*(1+rvanilla)^0.5 -> 0 | J33: =Input!J131*(1+rvanilla)^0.5 -> 0 | K33: =Input!K131*(1+rvanilla)^0.5 -> 0 | L33: =Input!L131*(1+rvanilla)^0.5 -> 0 | M33: =Input!M131*(1+rvanilla)^0.5 -> 0 | N33: =Input!N131*(1+rvanilla)^0.5 -> 0 | O33: =Input!O131*(1+rvanilla)^0.5 -> 0 | P33: =Input!P131*(1+rvanilla)^0.5 -> 0
C34: =Asset24 -> 0 | G34: =Input!G132*(1+rvanilla)^0.5 -> 0 | H34: =Input!H132*(1+rvanilla)^0.5 -> 0 | I34: =Input!I132*(1+rvanilla)^0.5 -> 0 | J34: =Input!J132*(1+rvanilla)^0.5 -> 0 | K34: =Input!K132*(1+rvanilla)^0.5 -> 0 | L34: =Input!L132*(1+rvanilla)^0.5 -> 0 | M34: =Input!M132*(1+rvanilla)^0.5 -> 0 | N34: =Input!N132*(1+rvanilla)^0.5 -> 0 | O34: =Input!O132*(1+rvanilla)^0.5 -> 0 | P34: =Input!P132*(1+rvanilla)^0.5 -> 0
C35: =Asset25 -> 0 | G35: =Input!G133*(1+rvanilla)^0.5 -> 0 | H35: =Input!H133*(1+rvanilla)^0.5 -> 0 | I35: =Input!I133*(1+rvanilla)^0.5 -> 0 | J35: =Input!J133*(1+rvanilla)^0.5 -> 0 | K35: =Input!K133*(1+rvanilla)^0.5 -> 0 | L35: =Input!L133*(1+rvanilla)^0.5 -> 0 | M35: =Input!M133*(1+rvanilla)^0.5 -> 0 | N35: =Input!N133*(1+rvanilla)^0.5 -> 0 | O35: =Input!O133*(1+rvanilla)^0.5 -> 0 | P35: =Input!P133*(1+rvanilla)^0.5 -> 0
C36: =Asset26 -> 0 | G36: =Input!G134*(1+rvanilla)^0.5 -> 0 | H36: =Input!H134*(1+rvanilla)^0.5 -> 0 | I36: =Input!I134*(1+rvanilla)^0.5 -> 0 | J36: =Input!J134*(1+rvanilla)^0.5 -> 0 | K36: =Input!K134*(1+rvanilla)^0.5 -> 0 | L36: =Input!L134*(1+rvanilla)^0.5 -> 0 | M36: =Input!M134*(1+rvanilla)^0.5 -> 0 | N36: =Input!N134*(1+rvanilla)^0.5 -> 0 | O36: =Input!O134*(1+rvanilla)^0.5 -> 0 | P36: =Input!P134*(1+rvanilla)^0.5 -> 0
C37: =Asset27 -> 0 | G37: =Input!G135*(1+rvanilla)^0.5 -> 0 | H37: =Input!H135*(1+rvanilla)^0.5 -> 0 | I37: =Input!I135*(1+rvanilla)^0.5 -> 0 | J37: =Input!J135*(1+rvanilla)^0.5 -> 0 | K37: =Input!K135*(1+rvanilla)^0.5 -> 0 | L37: =Input!L135*(1+rvanilla)^0.5 -> 0 | M37: =Input!M135*(1+rvanilla)^0.5 -> 0 | N37: =Input!N135*(1+rvanilla)^0.5 -> 0 | O37: =Input!O135*(1+rvanilla)^0.5 -> 0 | P37: =Input!P135*(1+rvanilla)^0.5 -> 0
C38: =Asset28 -> 0 | G38: =Input!G136*(1+rvanilla)^0.5 -> 0 | H38: =Input!H136*(1+rvanilla)^0.5 -> 0 | I38: =Input!I136*(1+rvanilla)^0.5 -> 0 | J38: =Input!J136*(1+rvanilla)^0.5 -> 0 | K38: =Input!K136*(1+rvanilla)^0.5 -> 0 | L38: =Input!L136*(1+rvanilla)^0.5 -> 0 | M38: =Input!M136*(1+rvanilla)^0.5 -> 0 | N38: =Input!N136*(1+rvanilla)^0.5 -> 0 | O38: =Input!O136*(1+rvanilla)^0.5 -> 0 | P38: =Input!P136*(1+rvanilla)^0.5 -> 0
C39: =Asset29 -> 0 | G39: =Input!G137*(1+rvanilla)^0.5 -> 0 | H39: =Input!H137*(1+rvanilla)^0.5 -> 0 | I39: =Input!I137*(1+rvanilla)^0.5 -> 0 | J39: =Input!J137*(1+rvanilla)^0.5 -> 0 | K39: =Input!K137*(1+rvanilla)^0.5 -> 0 | L39: =Input!L137*(1+rvanilla)^0.5 -> 0 | M39: =Input!M137*(1+rvanilla)^0.5 -> 0 | N39: =Input!N137*(1+rvanilla)^0.5 -> 0 | O39: =Input!O137*(1+rvanilla)^0.5 -> 0 | P39: =Input!P137*(1+rvanilla)^0.5 -> 0
C40: =Asset30 -> 0 | G40: =Input!G138*(1+rvanilla)^0.5 -> 0 | H40: =Input!H138*(1+rvanilla)^0.5 -> 0 | I40: =Input!I138*(1+rvanilla)^0.5 -> 0 | J40: =Input!J138*(1+rvanilla)^0.5 -> 0 | K40: =Input!K138*(1+rvanilla)^0.5 -> 0 | L40: =Input!L138*(1+rvanilla)^0.5 -> 0 | M40: =Input!M138*(1+rvanilla)^0.5 -> 0 | N40: =Input!N138*(1+rvanilla)^0.5 -> 0 | O40: =Input!O138*(1+rvanilla)^0.5 -> 0 | P40: =Input!P138*(1+rvanilla)^0.5 -> 0
B41: Nominal Net Capex | G41: =SUM(G42:G71) -> 128.7307883 | H41: =SUM(H42:H71) -> 136.3229018 | I41: 160.5102022 | J41: 0 | K41: 0 | L41: 0 | M41: 0 | N41: 0 | O41: 0 | P41: 0
C42: =Asset1 -> Secondary | G42: =G11*G$7 -> 17.22616706 | H42: =H11*H$7 -> 19.54963568 | I42: 25.15940664 | J42: 0 | K42: 0 | L42: 0 | M42: 0 | N42: 0 | O42: 0 | P42: 0
C43: =Asset2 -> Switchgear | G43: =G12*G$7 -> 32.08290766 | H43: =H12*H$7 -> 33.62200218 | I43: 43.90396807 | J43: 0 | K43: 0 | L43: 0 | M43: 0 | N43: 0 | O43: 0 | P43: 0
C44: =Asset3 -> Transformers | G44: =G13*G$7 -> 21.19165454 | H44: 23.80408124 | I44: 28.46361126 | J44: 0 | K44: =K13*K$7 -> 0 | L44: 0 | M44: 0 | N44: 0 | O44: 0 | P44: 0
C45: =Asset4 -> Reactive | G45: 2.440432673 | H45: 1.270446963 | I45: 1.211160272 | J45: 0 | K45: 0 | L45: 0 | M45: 0 | N45: 0 | O45: 0 | P45: 0
C46: =Asset5 -> Towers and Conductor | G46: 16.50371873 | H46: 18.1813775 | I46: 19.79879613 | J46: 0 | K46: 0 | L46: 0 | M46: 0 | N46: 0 | O46: 0 | P46: 0
C47: =Asset6 -> Establishment | G47: 11.18600671 | H47: =H16*H$7 -> 11.75962224 | I47: 11.98684084 | J47: 0 | K47: 0 | L47: 0 | M47: 0 | N47: 0 | O47: 0 | P47: 0
C48: =Asset7 -> Communications | G48: 12.512561 | H48: 12.15878456 | I48: 14.1710635 | J48: 0 | K48: 0 | L48: 0 | M48: 0 | N48: 0 | O48: 0 | P48: 0
C49: =Asset8 -> Inventory | G49: 0 | H49: 0 | I49: 0 | J49: 0 | K49: 0 | L49: 0 | M49: 0 | N49: 0 | O49: 0 | P49: 0
C50: =Asset9 -> IT | G50: 10.6519735 | H50: 10.86481421 | I50: 11.11356406 | J50: 0 | K50: 0 | L50: 0 | M50: 0 | N50: 0 | O50: 0 | P50: 0
C51: =Asset10 -> Vehicles | G51: 1.819355401 | H51: 1.850089278 | I51: 1.304180322 | J51: 0 | K51: 0 | L51: 0 | M51: 0 | N51: 0 | O51: 0 | P51: 0
C52: =Asset11 -> Other | G52: 2.901591004 | H52: 3.040944383 | I52: 3.169222282 | J52: 0 | K52: 0 | L52: 0 | M52: 0 | N52: 0 | O52: 0 | P52: 0
C53: =Asset12 -> Premises | G53: 0.2144200109 | H53: 0.2211035723 | I53: 0.2283887903 | J53: 0 | K53: 0 | L53: 0 | M53: 0 | N53: 0 | O53: 0 | P53: 0
C54: =Asset13 -> Land | G54: 0 | H54: 0 | I54: 0 | J54: 0 | K54: 0 | L54: 0 | M54: 0 | N54: 0 | O54: 0 | P54: 0
C55: =Asset14 -> Easements | G55: 0 | H55: 0 | I55: 0 | J55: 0 | K55: 0 | L55: 0 | M55: 0 | N55: 0 | O55: 0 | P55: 0
C56: =Asset15 -> Equity raising costs (2003-08) | G56: 0 | H56: 0 | I56: 0 | J56: 0 | K56: 0 | L56: 0 | M56: 0 | N56: 0 | O56: 0 | P56: 0
C57: =Asset16 -> 0 | G57: 0 | H57: 0 | I57: 0 | J57: 0 | K57: 0 | L57: 0 | M57: 0 | N57: 0 | O57: 0 | P57: 0
C58: =Asset17 -> 0 | G58: 0 | H58: 0 | I58: 0 | J58: 0 | K58: 0 | L58: 0 | M58: 0 | N58: 0 | O58: 0 | P58: 0
C59: =Asset18 -> 0 | G59: 0 | H59: 0 | I59: 0 | J59: 0 | K59: 0 | L59: 0 | M59: 0 | N59: 0 | O59: 0 | P59: 0
C60: =Asset19 -> 0 | G60: 0 | H60: 0 | I60: 0 | J60: 0 | K60: 0 | L60: 0 | M60: 0 | N60: 0 | O60: 0 | P60: 0
C61: =Asset20 -> 0 | G61: 0 | H61: 0 | I61: 0 | J61: 0 | K61: 0 | L61: 0 | M61: 0 | N61: 0 | O61: 0 | P61: 0
C62: =Asset21 -> 0 | G62: =G31*G$7 -> 0 | H62: 0 | I62: 0 | J62: 0 | K62: 0 | L62: 0 | M62: 0 | N62: 0 | O62: 0 | P62: 0
C63: =Asset22 -> 0 | G63: =G32*G$7 -> 0 | H63: 0 | I63: 0 | J63: 0 | K63: 0 | L63: 0 | M63: 0 | N63: 0 | O63: 0 | P63: 0
C64: =Asset23 -> 0 | G64: =G33*G$7 -> 0 | H64: 0 | I64: 0 | J64: 0 | K64: 0 | L64: 0 | M64: 0 | N64: 0 | O64: 0 | P64: 0
C65: =Asset24 -> 0 | G65: =G34*G$7 -> 0 | H65: 0 | I65: 0 | J65: 0 | K65: 0 | L65: 0 | M65: 0 | N65: 0 | O65: 0 | P65: 0
C66: =Asset25 -> 0 | G66: =G35*G$7 -> 0 | H66: 0 | I66: 0 | J66: 0 | K66: 0 | L66: 0 | M66: 0 | N66: 0 | O66: 0 | P66: 0
C67: =Asset26 -> 0 | G67: =G36*G$7 -> 0 | H67: 0 | I67: 0 | J67: 0 | K67: 0 | L67: 0 | M67: 0 | N67: 0 | O67: 0 | P67: 0
C68: =Asset27 -> 0 | G68: =G37*G$7 -> 0 | H68: 0 | I68: 0 | J68: 0 | K68: 0 | L68: 0 | M68: 0 | N68: 0 | O68: 0 | P68: 0
C69: =Asset28 -> 0 | G69: =G38*G$7 -> 0 | H69: 0 | I69: 0 | J69: 0 | K69: 0 | L69: 0 | M69: 0 | N69: 0 | O69: 0 | P69: 0
C70: =Asset29 -> 0 | G70: =G39*G$7 -> 0 | H70: 0 | I70: 0 | J70: 0 | K70: 0 | L70: 0 | M70: 0 | N70: 0 | O70: 0 | P70: 0
C71: =Asset30 -> 0 | G71: =G40*G$7 -> 0 | H71: 0 | I71: 0 | J71: 0 | K71: 0 | L71: 0 | M71: 0 | N71: 0 | O71: 0 | P71: 0
B73: ="Asset Values ($m Real "&F4&")" -> Asset Values ($m Real 2013-14)
B75: Real Straight-line Depreciation | G75: =IF($O$2=1,G88+G101+G114+G127+G140+G153+G166+G179+G192+G205+G218+G231+G244+G257+G270+G283+G296+G309+G322+G335+G348+G361+G374+G387+G400+G413+G426+G439+G452+G465,'SPI Depreciation'!R676/1000) -> 143.8518358 | H75: =IF($O$2=1,H88+H101+H114+H127+H140+H153+H166+H179+H192+H205+H218+H231+H244+H257+H270+H283+H296+H309+H322+H335+H348+H361+H374+H387+H400+H413+H426+H439+H452+H465,'SPI Depreciation'!S676/1000) -> 145.8089893 | I75: =IF($O$2=1,I88+I101+I114+I127+I140+I153+I166+I179+I192+I205+I218+I231+I244+I257+I270+I283+I296+I309+I322+I335+I348+I361+I374+I387+I400+I413+I426+I439+I452+I465,'SPI Depreciation'!T676/1000) -> 148.6627273 | J75: =IF($O$2=1,J88+J101+J114+J127+J140+J153+J166+J179+J192+J205+J218+J231+J244+J257+J270+J283+J296+J309+J322+J335+J348+J361+J374+J387+J400+J413+J426+J439+J452+J465,'SPI Depreciation'!U676/1000) -> 149.6464287 | K75: =IF($O$2=1,K88+K101+K114+K127+K140+K153+K166+K179+K192+K205+K218+K231+K244+K257+K270+K283+K296+K309+K322+K335+K348+K361+K374+K387+K400+K413+K426+K439+K452+K465,'SPI Depreciation'!V676/1000) -> 135.6306403 | L75: =IF($O$2=1,L88+L101+L114+L127+L140+L153+L166+L179+L192+L205+L218+L231+L244+L257+L270+L283+L296+L309+L322+L335+L348+L361+L374+L387+L400+L413+L426+L439+L452+L465,'SPI Depreciation'!W676/1000) -> 129.7479222 | M75: =IF($O$2=1,M88+M101+M114+M127+M140+M153+M166+M179+M192+M205+M218+M231+M244+M257+M270+M283+M296+M309+M322+M335+M348+M361+M374+M387+M400+M413+M426+M439+M452+M465,'SPI Depreciation'!X676/1000) -> 120.331 | N75: =IF($O$2=1,N88+N101+N114+N127+N140+N153+N166+N179+N192+N205+N218+N231+N244+N257+N270+N283+N296+N309+N322+N335+N348+N361+N374+N387+N400+N413+N426+N439+N452+N465,'SPI Depreciation'!Y676/1000) -> 102.2701524 | O75: =IF($O$2=1,O88+O101+O114+O127+O140+O153+O166+O179+O192+O205+O218+O231+O244+O257+O270+O283+O296+O309+O322+O335+O348+O361+O374+O387+O400+O413+O426+O439+O452+O465,'SPI Depreciation'!Z676/1000) -> 97.81289153 | P75: =IF($O$2=1,P88+P101+P114+P127+P140+P153+P166+P179+P192+P205+P218+P231+P244+P257+P270+P283+P296+P309+P322+P335+P348+P361+P374+P387+P400+P413+P426+P439+P452+P465,'SPI Depreciation'!AA676/1000) -> 95.10433016 | Q75: =IF($O$2=1,Q88+Q101+Q114+Q127+Q140+Q153+Q166+Q179+Q192+Q205+Q218+Q231+Q244+Q257+Q270+Q283+Q296+Q309+Q322+Q335+Q348+Q361+Q374+Q387+Q400+Q413+Q426+Q439+Q452+Q465,'SPI Depreciation'!AB676/1000) -> 92.05279682 | R75: =IF($O$2=1,R88+R101+R114+R127+R140+R153+R166+R179+R192+R205+R218+R231+R244+R257+R270+R283+R296+R309+R322+R335+R348+R361+R374+R387+R400+R413+R426+R439+R452+R465,'SPI Depreciation'!AC676/1000) -> 91.33196555 | S75: =IF($O$2=1,S88+S101+S114+S127+S140+S153+S166+S179+S192+S205+S218+S231+S244+S257+S270+S283+S296+S309+S322+S335+S348+S361+S374+S387+S400+S413+S426+S439+S452+S465,'SPI Depreciation'!AD676/1000) -> 88.19614439 | T75: =IF($O$2=1,T88+T101+T114+T127+T140+T153+T166+T179+T192+T205+T218+T231+T244+T257+T270+T283+T296+T309+T322+T335+T348+T361+T374+T387+T400+T413+T426+T439+T452+T465,'SPI Depreciation'!AE676/1000) -> 83.13992828 | U75: =IF($O$2=1,U88+U101+U114+U127+U140+U153+U166+U179+U192+U205+U218+U231+U244+U257+U270+U283+U296+U309+U322+U335+U348+U361+U374+U387+U400+U413+U426+U439+U452+U465,'SPI Depreciation'!AF676/1000) -> 80.73681269 | V75: =IF($O$2=1,V88+V101+V114+V127+V140+V153+V166+V179+V192+V205+V218+V231+V244+V257+V270+V283+V296+V309+V322+V335+V348+V361+V374+V387+V400+V413+V426+V439+V452+V465,'SPI Depreciation'!AG676/1000) -> 78.9934335 | W75: =IF($O$2=1,W88+W101+W114+W127+W140+W153+W166+W179+W192+W205+W218+W231+W244+W257+W270+W283+W296+W309+W322+W335+W348+W361+W374+W387+W400+W413+W426+W439+W452+W465,'SPI Depreciation'!AH676/1000) -> 77.10836387 | X75: =IF($O$2=1,X88+X101+X114+X127+X140+X153+X166+X179+X192+X205+X218+X231+X244+X257+X270+X283+X296+X309+X322+X335+X348+X361+X374+X387+X400+X413+X426+X439+X452+X465,'SPI Depreciation'!AI676/1000) -> 75.0934051 | Y75: =IF($O$2=1,Y88+Y101+Y114+Y127+Y140+Y153+Y166+Y179+Y192+Y205+Y218+Y231+Y244+Y257+Y270+Y283+Y296+Y309+Y322+Y335+Y348+Y361+Y374+Y387+Y400+Y413+Y426+Y439+Y452+Y465,'SPI Depreciation'!AJ676/1000) -> 72.72545653 | Z75: =IF($O$2=1,Z88+Z101+Z114+Z127+Z140+Z153+Z166+Z179+Z192+Z205+Z218+Z231+Z244+Z257+Z270+Z283+Z296+Z309+Z322+Z335+Z348+Z361+Z374+Z387+Z400+Z413+Z426+Z439+Z452+Z465,'SPI Depreciation'!AK676/1000) -> 72.72545653 | AA75: =IF($O$2=1,AA88+AA101+AA114+AA127+AA140+AA153+AA166+AA179+AA192+AA205+AA218+AA231+AA244+AA257+AA270+AA283+AA296+AA309+AA322+AA335+AA348+AA361+AA374+AA387+AA400+AA413+AA426+AA439+AA452+AA465,'SPI Depreciation'!AL676/1000) -> 72.72545653 | AB75: =IF($O$2=1,AB88+AB101+AB114+AB127+AB140+AB153+AB166+AB179+AB192+AB205+AB218+AB231+AB244+AB257+AB270+AB283+AB296+AB309+AB322+AB335+AB348+AB361+AB374+AB387+AB400+AB413+AB426+AB439+AB452+AB465,'SPI Depreciation'!AM676/1000) -> 62.38881484 | AC75: =IF($O$2=1,AC88+AC101+AC114+AC127+AC140+AC153+AC166+AC179+AC192+AC205+AC218+AC231+AC244+AC257+AC270+AC283+AC296+AC309+AC322+AC335+AC348+AC361+AC374+AC387+AC400+AC413+AC426+AC439+AC452+AC465,'SPI Depreciation'!AN676/1000) -> 31.37888975 | AD75: =IF($O$2=1,AD88+AD101+AD114+AD127+AD140+AD153+AD166+AD179+AD192+AD205+AD218+AD231+AD244+AD257+AD270+AD283+AD296+AD309+AD322+AD335+AD348+AD361+AD374+AD387+AD400+AD413+AD426+AD439+AD452+AD465,'SPI Depreciation'!AO676/1000) -> 31.37888975 | AE75: =IF($O$2=1,AE88+AE101+AE114+AE127+AE140+AE153+AE166+AE179+AE192+AE205+AE218+AE231+AE244+AE257+AE270+AE283+AE296+AE309+AE322+AE335+AE348+AE361+AE374+AE387+AE400+AE413+AE426+AE439+AE452+AE465,'SPI Depreciation'!AP676/1000) -> 31.37888975 | AF75: =IF($O$2=1,AF88+AF101+AF114+AF127+AF140+AF153+AF166+AF179+AF192+AF205+AF218+AF231+AF244+AF257+AF270+AF283+AF296+AF309+AF322+AF335+AF348+AF361+AF374+AF387+AF400+AF413+AF426+AF439+AF452+AF465,'SPI Depreciation'!AQ676/1000) -> 31.37888975 | AG75: =IF($O$2=1,AG88+AG101+AG114+AG127+AG140+AG153+AG166+AG179+AG192+AG205+AG218+AG231+AG244+AG257+AG270+AG283+AG296+AG309+AG322+AG335+AG348+AG361+AG374+AG387+AG400+AG413+AG426+AG439+AG452+AG465,'SPI Depreciation'!AR676/1000) -> 31.37888975 | AH75: =IF($O$2=1,AH88+AH101+AH114+AH127+AH140+AH153+AH166+AH179+AH192+AH205+AH218+AH231+AH244+AH257+AH270+AH283+AH296+AH309+AH322+AH335+AH348+AH361+AH374+AH387+AH400+AH413+AH426+AH439+AH452+AH465,'SPI Depreciation'!AS676/1000) -> 30.54741978 | AI75: =IF($O$2=1,AI88+AI101+AI114+AI127+AI140+AI153+AI166+AI179+AI192+AI205+AI218+AI231+AI244+AI257+AI270+AI283+AI296+AI309+AI322+AI335+AI348+AI361+AI374+AI387+AI400+AI413+AI426+AI439+AI452+AI465,'SPI Depreciation'!AT676/1000) -> 29.44205153 | AJ75: =IF($O$2=1,AJ88+AJ101+AJ114+AJ127+AJ140+AJ153+AJ166+AJ179+AJ192+AJ205+AJ218+AJ231+AJ244+AJ257+AJ270+AJ283+AJ296+AJ309+AJ322+AJ335+AJ348+AJ361+AJ374+AJ387+AJ400+AJ413+AJ426+AJ439+AJ452+AJ465,'SPI Depreciation'!AU676/1000) -> 29.44205153 | AK75: =IF($O$2=1,AK88+AK101+AK114+AK127+AK140+AK153+AK166+AK179+AK192+AK205+AK218+AK231+AK244+AK257+AK270+AK283+AK296+AK309+AK322+AK335+AK348+AK361+AK374+AK387+AK400+AK413+AK426+AK439+AK452+AK465,'SPI Depreciation'!AV676/1000) -> 29.41615445 | AL75: =IF($O$2=1,AL88+AL101+AL114+AL127+AL140+AL153+AL166+AL179+AL192+AL205+AL218+AL231+AL244+AL257+AL270+AL283+AL296+AL309+AL322+AL335+AL348+AL361+AL374+AL387+AL400+AL413+AL426+AL439+AL452+AL465,'SPI Depreciation'!AW676/1000) -> 29.00995855 | AM75: =IF($O$2=1,AM88+AM101+AM114+AM127+AM140+AM153+AM166+AM179+AM192+AM205+AM218+AM231+AM244+AM257+AM270+AM283+AM296+AM309+AM322+AM335+AM348+AM361+AM374+AM387+AM400+AM413+AM426+AM439+AM452+AM465,'SPI Depreciation'!AX676/1000) -> 28.82401469 | AN75: =IF($O$2=1,AN88+AN101+AN114+AN127+AN140+AN153+AN166+AN179+AN192+AN205+AN218+AN231+AN244+AN257+AN270+AN283+AN296+AN309+AN322+AN335+AN348+AN361+AN374+AN387+AN400+AN413+AN426+AN439+AN452+AN465,'SPI Depreciation'!AY676/1000) -> 28.87915631 | AO75: =IF($O$2=1,AO88+AO101+AO114+AO127+AO140+AO153+AO166+AO179+AO192+AO205+AO218+AO231+AO244+AO257+AO270+AO283+AO296+AO309+AO322+AO335+AO348+AO361+AO374+AO387+AO400+AO413+AO426+AO439+AO452+AO465,'SPI Depreciation'!AZ676/1000) -> 28.61161652 | AP75: =IF($O$2=1,AP88+AP101+AP114+AP127+AP140+AP153+AP166+AP179+AP192+AP205+AP218+AP231+AP244+AP257+AP270+AP283+AP296+AP309+AP322+AP335+AP348+AP361+AP374+AP387+AP400+AP413+AP426+AP439+AP452+AP465,'SPI Depreciation'!BA676/1000) -> 28.05968454 | AQ75: =IF($O$2=1,AQ88+AQ101+AQ114+AQ127+AQ140+AQ153+AQ166+AQ179+AQ192+AQ205+AQ218+AQ231+AQ244+AQ257+AQ270+AQ283+AQ296+AQ309+AQ322+AQ335+AQ348+AQ361+AQ374+AQ387+AQ400+AQ413+AQ426+AQ439+AQ452+AQ465,'SPI Depreciation'!BB676/1000) -> 25.89475139 | AR75: =IF($O$2=1,AR88+AR101+AR114+AR127+AR140+AR153+AR166+AR179+AR192+AR205+AR218+AR231+AR244+AR257+AR270+AR283+AR296+AR309+AR322+AR335+AR348+AR361+AR374+AR387+AR400+AR413+AR426+AR439+AR452+AR465,'SPI Depreciation'!BC676/1000) -> 23.79786235 | AS75: =IF($O$2=1,AS88+AS101+AS114+AS127+AS140+AS153+AS166+AS179+AS192+AS205+AS218+AS231+AS244+AS257+AS270+AS283+AS296+AS309+AS322+AS335+AS348+AS361+AS374+AS387+AS400+AS413+AS426+AS439+AS452+AS465,'SPI Depreciation'!BD676/1000) -> 21.5527065 | AT75: =IF($O$2=1,AT88+AT101+AT114+AT127+AT140+AT153+AT166+AT179+AT192+AT205+AT218+AT231+AT244+AT257+AT270+AT283+AT296+AT309+AT322+AT335+AT348+AT361+AT374+AT387+AT400+AT413+AT426+AT439+AT452+AT465,'SPI Depreciation'!BE676/1000) -> 17.88411886 | AU75: =IF($O$2=1,AU88+AU101+AU114+AU127+AU140+AU153+AU166+AU179+AU192+AU205+AU218+AU231+AU244+AU257+AU270+AU283+AU296+AU309+AU322+AU335+AU348+AU361+AU374+AU387+AU400+AU413+AU426+AU439+AU452+AU465,'SPI Depreciation'!BF676/1000) -> 15.96372205 | AV75: =IF($O$2=1,AV88+AV101+AV114+AV127+AV140+AV153+AV166+AV179+AV192+AV205+AV218+AV231+AV244+AV257+AV270+AV283+AV296+AV309+AV322+AV335+AV348+AV361+AV374+AV387+AV400+AV413+AV426+AV439+AV452+AV465,'SPI Depreciation'!BG676/1000) -> 14.79259316 | AW75: =IF($O$2=1,AW88+AW101+AW114+AW127+AW140+AW153+AW166+AW179+AW192+AW205+AW218+AW231+AW244+AW257+AW270+AW283+AW296+AW309+AW322+AW335+AW348+AW361+AW374+AW387+AW400+AW413+AW426+AW439+AW452+AW465,'SPI Depreciation'!BH676/1000) -> 13.09727992 | AX75: =IF($O$2=1,AX88+AX101+AX114+AX127+AX140+AX153+AX166+AX179+AX192+AX205+AX218+AX231+AX244+AX257+AX270+AX283+AX296+AX309+AX322+AX335+AX348+AX361+AX374+AX387+AX400+AX413+AX426+AX439+AX452+AX465,'SPI Depreciation'!BI676/1000) -> 11.91209044 | AY75: =IF($O$2=1,AY88+AY101+AY114+AY127+AY140+AY153+AY166+AY179+AY192+AY205+AY218+AY231+AY244+AY257+AY270+AY283+AY296+AY309+AY322+AY335+AY348+AY361+AY374+AY387+AY400+AY413+AY426+AY439+AY452+AY465,'SPI Depreciation'!BJ676/1000) -> 10.49350524 | AZ75: =IF($O$2=1,AZ88+AZ101+AZ114+AZ127+AZ140+AZ153+AZ166+AZ179+AZ192+AZ205+AZ218+AZ231+AZ244+AZ257+AZ270+AZ283+AZ296+AZ309+AZ322+AZ335+AZ348+AZ361+AZ374+AZ387+AZ400+AZ413+AZ426+AZ439+AZ452+AZ465,'SPI Depreciation'!BK676/1000) -> 8.495728347 | BA75: =IF($O$2=1,BA88+BA101+BA114+BA127+BA140+BA153+BA166+BA179+BA192+BA205+BA218+BA231+BA244+BA257+BA270+BA283+BA296+BA309+BA322+BA335+BA348+BA361+BA374+BA387+BA400+BA413+BA426+BA439+BA452+BA465,'SPI Depreciation'!BL676/1000) -> 7.21193603 | BB75: =IF($O$2=1,BB88+BB101+BB114+BB127+BB140+BB153+BB166+BB179+BB192+BB205+BB218+BB231+BB244+BB257+BB270+BB283+BB296+BB309+BB322+BB335+BB348+BB361+BB374+BB387+BB400+BB413+BB426+BB439+BB452+BB465,'SPI Depreciation'!BM676/1000) -> 5.751593571 | BC75: =IF($O$2=1,BC88+BC101+BC114+BC127+BC140+BC153+BC166+BC179+BC192+BC205+BC218+BC231+BC244+BC257+BC270+BC283+BC296+BC309+BC322+BC335+BC348+BC361+BC374+BC387+BC400+BC413+BC426+BC439+BC452+BC465,'SPI Depreciation'!BN676/1000) -> 4.056238649 | BD75: =IF($O$2=1,BD88+BD101+BD114+BD127+BD140+BD153+BD166+BD179+BD192+BD205+BD218+BD231+BD244+BD257+BD270+BD283+BD296+BD309+BD322+BD335+BD348+BD361+BD374+BD387+BD400+BD413+BD426+BD439+BD452+BD465,'SPI Depreciation'!BO676/1000) -> 3.660242447 | BE75: =IF($O$2=1,BE88+BE101+BE114+BE127+BE140+BE153+BE166+BE179+BE192+BE205+BE218+BE231+BE244+BE257+BE270+BE283+BE296+BE309+BE322+BE335+BE348+BE361+BE374+BE387+BE400+BE413+BE426+BE439+BE452+BE465,'SPI Depreciation'!BP676/1000) -> 3.356104547 | BF75: =IF($O$2=1,BF88+BF101+BF114+BF127+BF140+BF153+BF166+BF179+BF192+BF205+BF218+BF231+BF244+BF257+BF270+BF283+BF296+BF309+BF322+BF335+BF348+BF361+BF374+BF387+BF400+BF413+BF426+BF439+BF452+BF465,'SPI Depreciation'!BQ676/1000) -> 3.028250031 | BG75: =IF($O$2=1,BG88+BG101+BG114+BG127+BG140+BG153+BG166+BG179+BG192+BG205+BG218+BG231+BG244+BG257+BG270+BG283+BG296+BG309+BG322+BG335+BG348+BG361+BG374+BG387+BG400+BG413+BG426+BG439+BG452+BG465,'SPI Depreciation'!BR676/1000) -> 2.893971747 | BH75: =IF($O$2=1,BH88+BH101+BH114+BH127+BH140+BH153+BH166+BH179+BH192+BH205+BH218+BH231+BH244+BH257+BH270+BH283+BH296+BH309+BH322+BH335+BH348+BH361+BH374+BH387+BH400+BH413+BH426+BH439+BH452+BH465,'SPI Depreciation'!BS676/1000) -> 2.858444004 | BI75: =IF($O$2=1,BI88+BI101+BI114+BI127+BI140+BI153+BI166+BI179+BI192+BI205+BI218+BI231+BI244+BI257+BI270+BI283+BI296+BI309+BI322+BI335+BI348+BI361+BI374+BI387+BI400+BI413+BI426+BI439+BI452+BI465,'SPI Depreciation'!BT676/1000) -> 2.759888252
B76: =C88 -> Secondary | D76: Initial Asset Base | G76: =IF(G$3>A1remlife,A1acvalue-SUM($F76:F76),IF(A1remlife="N/A","n/a",A1acvalue/A1remlife)) -> 148.5771499 | H76: =IF(H$3>A1remlife,A1acvalue-SUM($F76:G76),IF(A1remlife="N/A","n/a",A1acvalue/A1remlife)) -> 0 | I76: =IF(I$3>A1remlife,A1acvalue-SUM($F76:H76),IF(A1remlife="N/A","n/a",A1acvalue/A1remlife)) -> 0 | J76: =IF(J$3>A1remlife,A1acvalue-SUM($F76:I76),IF(A1remlife="N/A","n/a",A1acvalue/A1remlife)) -> 0 | K76: =IF(K$3>A1remlife,A1acvalue-SUM($F76:J76),IF(A1remlife="N/A","n/a",A1acvalue/A1remlife)) -> 0 | L76: =IF(L$3>A1remlife,A1acvalue-SUM($F76:K76),IF(A1remlife="N/A","n/a",A1acvalue/A1remlife)) -> 0 | M76: =IF(M$3>A1remlife,A1acvalue-SUM($F76:L76),IF(A1remlife="N/A","n/a",A1acvalue/A1remlife)) -> 0 | N76: =IF(N$3>A1remlife,A1acvalue-SUM($F76:M76),IF(A1remlife="N/A","n/a",A1acvalue/A1remlife)) -> 0 | O76: =IF(O$3>A1remlife,A1acvalue-SUM($F76:N76),IF(A1remlife="N/A","n/a",A1acvalue/A1remlife)) -> 0 | P76: =IF(P$3>A1remlife,A1acvalue-SUM($F76:O76),IF(A1remlife="N/A","n/a",A1acvalue/A1remlife)) -> 0 | Q76: =IF(Q$3>A1remlife,A1acvalue-SUM($F76:P76),IF(A1remlife="N/A","n/a",A1acvalue/A1remlife)) -> 0 | R76: =IF(R$3>A1remlife,A1acvalue-SUM($F76:Q76),IF(A1remlife="N/A","n/a",A1acvalue/A1remlife)) -> 0 | S76: =IF(S$3>A1remlife,A1acvalue-SUM($F76:R76),IF(A1remlife="N/A","n/a",A1acvalue/A1remlife)) -> 0 | T76: =IF(T$3>A1remlife,A1acvalue-SUM($F76:S76),IF(A1remlife="N/A","n/a",A1acvalue/A1remlife)) -> 0 | U76: =IF(U$3>A1remlife,A1acvalue-SUM($F76:T76),IF(A1remlife="N/A","n/a",A1acvalue/A1remlife)) -> 0 | V76: =IF(V$3>A1remlife,A1acvalue-SUM($F76:U76),IF(A1remlife="N/A","n/a",A1acvalue/A1remlife)) -> 0 | W76: =IF(W$3>A1remlife,A1acvalue-SUM($F76:V76),IF(A1remlife="N/A","n/a",A1acvalue/A1remlife)) -> 0 | X76: =IF(X$3>A1remlife,A1acvalue-SUM($F76:W76),IF(A1remlife="N/A","n/a",A1acvalue/A1remlife)) -> 0 | Y76: =IF(Y$3>A1remlife,A1acvalue-SUM($F76:X76),IF(A1remlife="N/A","n/a",A1acvalue/A1remlife)) -> 0 | Z76: =IF(Z$3>A1remlife,A1acvalue-SUM($F76:Y76),IF(A1remlife="N/A","n/a",A1acvalue/A1remlife)) -> 0 | AA76: =IF(AA$3>A1remlife,A1acvalue-SUM($F76:Z76),IF(A1remlife="N/A","n/a",A1acvalue/A1remlife)) -> 0 | AB76: =IF(AB$3>A1remlife,A1acvalue-SUM($F76:AA76),IF(A1remlife="N/A","n/a",A1acvalue/A1remlife)) -> 0 | AC76: =IF(AC$3>A1remlife,A1acvalue-SUM($F76:AB76),IF(A1remlife="N/A","n/a",A1acvalue/A1remlife)) -> 0 | AD76: =IF(AD$3>A1remlife,A1acvalue-SUM($F76:AC76),IF(A1remlife="N/A","n/a",A1acvalue/A1remlife)) -> 0 | AE76: =IF(AE$3>A1remlife,A1acvalue-SUM($F76:AD76),IF(A1remlife="N/A","n/a",A1acvalue/A1remlife)) -> 0 | AF76: =IF(AF$3>A1remlife,A1acvalue-SUM($F76:AE76),IF(A1remlife="N/A","n/a",A1acvalue/A1remlife)) -> 0 | AG76: =IF(AG$3>A1remlife,A1acvalue-SUM($F76:AF76),IF(A1remlife="N/A","n/a",A1acvalue/A1remlife)) -> 0 | AH76: =IF(AH$3>A1remlife,A1acvalue-SUM($F76:AG76),IF(A1remlife="N/A","n/a",A1acvalue/A1remlife)) -> 0 | AI76: =IF(AI$3>A1remlife,A1acvalue-SUM($F76:AH76),IF(A1remlife="N/A","n/a",A1acvalue/A1remlife)) -> 0 | AJ76: =IF(AJ$3>A1remlife,A1acvalue-SUM($F76:AI76),IF(A1remlife="N/A","n/a",A1acvalue/A1remlife)) -> 0 | AK76: =IF(AK$3>A1remlife,A1acvalue-SUM($F76:AJ76),IF(A1remlife="N/A","n/a",A1acvalue/A1remlife)) -> 0 | AL76: =IF(AL$3>A1remlife,A1acvalue-SUM($F76:AK76),IF(A1remlife="N/A","n/a",A1acvalue/A1remlife)) -> 0 | AM76: =IF(AM$3>A1remlife,A1acvalue-SUM($F76:AL76),IF(A1remlife="N/A","n/a",A1acvalue/A1remlife)) -> 0 | AN76: =IF(AN$3>A1remlife,A1acvalue-SUM($F76:AM76),IF(A1remlife="N/A","n/a",A1acvalue/A1remlife)) -> 0 | AO76: =IF(AO$3>A1remlife,A1acvalue-SUM($F76:AN76),IF(A1remlife="N/A","n/a",A1acvalue/A1remlife)) -> 0 | AP76: =IF(AP$3>A1remlife,A1acvalue-SUM($F76:AO76),IF(A1remlife="N/A","n/a",A1acvalue/A1remlife)) -> 0 | AQ76: =IF(AQ$3>A1remlife,A1acvalue-SUM($F76:AP76),IF(A1remlife="N/A","n/a",A1acvalue/A1remlife)) -> 0 | AR76: =IF(AR$3>A1remlife,A1acvalue-SUM($F76:AQ76),IF(A1remlife="N/A","n/a",A1acvalue/A1remlife)) -> 0 | AS76: =IF(AS$3>A1remlife,A1acvalue-SUM($F76:AR76),IF(A1remlife="N/A","n/a",A1acvalue/A1remlife)) -> 0 | AT76: =IF(AT$3>A1remlife,A1acvalue-SUM($F76:AS76),IF(A1remlife="N/A","n/a",A1acvalue/A1remlife)) -> 0 | AU76: =IF(AU$3>A1remlife,A1acvalue-SUM($F76:AT76),IF(A1remlife="N/A","n/a",A1acvalue/A1remlife)) -> 0 | AV76: =IF(AV$3>A1remlife,A1acvalue-SUM($F76:AU76),IF(A1remlife="N/A","n/a",A1acvalue/A1remlife)) -> 0 | AW76: =IF(AW$3>A1remlife,A1acvalue-SUM($F76:AV76),IF(A1remlife="N/A","n/a",A1acvalue/A1remlife)) -> 0 | AX76: =IF(AX$3>A1remlife,A1acvalue-SUM($F76:AW76),IF(A1remlife="N/A","n/a",A1acvalue/A1remlife)) -> 0 | AY76: =IF(AY$3>A1remlife,A1acvalue-SUM($F76:AX76),IF(A1remlife="N/A","n/a",A1acvalue/A1remlife)) -> 0 | AZ76: =IF(AZ$3>A1remlife,A1acvalue-SUM($F76:AY76),IF(A1remlife="N/A","n/a",A1acvalue/A1remlife)) -> 0 | BA76: =IF(BA$3>A1remlife,A1acvalue-SUM($F76:AZ76),IF(A1remlife="N/A","n/a",A1acvalue/A1remlife)) -> 0 | BB76: =IF(BB$3>A1remlife,A1acvalue-SUM($F76:BA76),IF(A1remlife="N/A","n/a",A1acvalue/A1remlife)) -> 0 | BC76: =IF(BC$3>A1remlife,A1acvalue-SUM($F76:BB76),IF(A1remlife="N/A","n/a",A1acvalue/A1remlife)) -> 0 | BD76: =IF(BD$3>A1remlife,A1acvalue-SUM($F76:BC76),IF(A1remlife="N/A","n/a",A1acvalue/A1remlife)) -> 0 | BE76: =IF(BE$3>A1remlife,A1acvalue-SUM($F76:BD76),IF(A1remlife="N/A","n/a",A1acvalue/A1remlife)) -> 0 | BF76: =IF(BF$3>A1remlife,A1acvalue-SUM($F76:BE76),IF(A1remlife="N/A","n/a",A1acvalue/A1remlife)) -> 0 | BG76: =IF(BG$3>A1remlife,A1acvalue-SUM($F76:BF76),IF(A1remlife="N/A","n/a",A1acvalue/A1remlife)) -> 0 | BH76: =IF(BH$3>A1remlife,A1acvalue-SUM($F76:BG76),IF(A1remlife="N/A","n/a",A1acvalue/A1remlife)) -> 0 | BI76: =IF(BI$3>A1remlife,A1acvalue-SUM($F76:BH76),IF(A1remlife="N/A","n/a",A1acvalue/A1remlife)) -> 0
D77: Capex in year | E77: 0
E78: 1 | H78: =IF(A1stdlife="n/a","n/a",IF(H$3>(A1stdlife+$E78),(Input!$G$211*(1+rvanilla)^0.5)-SUM($G78:G78),(Input!$G$211*(1+rvanilla)^0.5)/A1stdlife)) -> 1.080937402 | I78: =IF(A1stdlife="n/a","n/a",IF(I$3>(A1stdlife+$E78),(Input!$G$211*(1+rvanilla)^0.5)-SUM($G78:H78),(Input!$G$211*(1+rvanilla)^0.5)/A1stdlife)) -> 1.080937402 | J78: =IF(A1stdlife="n/a","n/a",IF(J$3>(A1stdlife+$E78),(Input!$G$211*(1+rvanilla)^0.5)-SUM($G78:I78),(Input!$G$211*(1+rvanilla)^0.5)/A1stdlife)) -> 1.080937402 | K78: =IF(A1stdlife="n/a","n/a",IF(K$3>(A1stdlife+$E78),(Input!$G$211*(1+rvanilla)^0.5)-SUM($G78:J78),(Input!$G$211*(1+rvanilla)^0.5)/A1stdlife)) -> 1.080937402 | L78: =IF(A1stdlife="n/a","n/a",IF(L$3>(A1stdlife+$E78),(Input!$G$211*(1+rvanilla)^0.5)-SUM($G78:K78),(Input!$G$211*(1+rvanilla)^0.5)/A1stdlife)) -> 1.080937402 | M78: =IF(A1stdlife="n/a","n/a",IF(M$3>(A1stdlife+$E78),(Input!$G$211*(1+rvanilla)^0.5)-SUM($G78:L78),(Input!$G$211*(1+rvanilla)^0.5)/A1stdlife)) -> 1.080937402 | N78: =IF(A1stdlife="n/a","n/a",IF(N$3>(A1stdlife+$E78),(Input!$G$211*(1+rvanilla)^0.5)-SUM($G78:M78),(Input!$G$211*(1+rvanilla)^0.5)/A1stdlife)) -> 1.080937402 | O78: =IF(A1stdlife="n/a","n/a",IF(O$3>(A1stdlife+$E78),(Input!$G$211*(1+rvanilla)^0.5)-SUM($G78:N78),(Input!$G$211*(1+rvanilla)^0.5)/A1stdlife)) -> 1.080937402 | P78: =IF(A1stdlife="n/a","n/a",IF(P$3>(A1stdlife+$E78),(Input!$G$211*(1+rvanilla)^0.5)-SUM($G78:O78),(Input!$G$211*(1+rvanilla)^0.5)/A1stdlife)) -> 1.080937402 | Q78: =IF(A1stdlife="n/a","n/a",IF(Q$3>(A1stdlife+$E78),(Input!$G$211*(1+rvanilla)^0.5)-SUM($G78:P78),(Input!$G$211*(1+rvanilla)^0.5)/A1stdlife)) -> 1.080937402 | R78: =IF(A1stdlife="n/a","n/a",IF(R$3>(A1stdlife+$E78),(Input!$G$211*(1+rvanilla)^0.5)-SUM($G78:Q78),(Input!$G$211*(1+rvanilla)^0.5)/A1stdlife)) -> 1.080937402 | S78: =IF(A1stdlife="n/a","n/a",IF(S$3>(A1stdlife+$E78),(Input!$G$211*(1+rvanilla)^0.5)-SUM($G78:R78),(Input!$G$211*(1+rvanilla)^0.5)/A1stdlife)) -> 1.080937402 | T78: =IF(A1stdlife="n/a","n/a",IF(T$3>(A1stdlife+$E78),(Input!$G$211*(1+rvanilla)^0.5)-SUM($G78:S78),(Input!$G$211*(1+rvanilla)^0.5)/A1stdlife)) -> 1.080937402 | U78: =IF(A1stdlife="n/a","n/a",IF(U$3>(A1stdlife+$E78),(Input!$G$211*(1+rvanilla)^0.5)-SUM($G78:T78),(Input!$G$211*(1+rvanilla)^0.5)/A1stdlife)) -> 1.080937402 | V78: =IF(A1stdlife="n/a","n/a",IF(V$3>(A1stdlife+$E78),(Input!$G$211*(1+rvanilla)^0.5)-SUM($G78:U78),(Input!$G$211*(1+rvanilla)^0.5)/A1stdlife)) -> 1.080937402 | W78: =IF(A1stdlife="n/a","n/a",IF(W$3>(A1stdlife+$E78),(Input!$G$211*(1+rvanilla)^0.5)-SUM($G78:V78),(Input!$G$211*(1+rvanilla)^0.5)/A1stdlife)) -> 0 | X78: =IF(A1stdlife="n/a","n/a",IF(X$3>(A1stdlife+$E78),(Input!$G$211*(1+rvanilla)^0.5)-SUM($G78:W78),(Input!$G$211*(1+rvanilla)^0.5)/A1stdlife)) -> 0 | Y78: =IF(A1stdlife="n/a","n/a",IF(Y$3>(A1stdlife+$E78),(Input!$G$211*(1+rvanilla)^0.5)-SUM($G78:X78),(Input!$G$211*(1+rvanilla)^0.5)/A1stdlife)) -> 0 | Z78: =IF(A1stdlife="n/a","n/a",IF(Z$3>(A1stdlife+$E78),(Input!$G$211*(1+rvanilla)^0.5)-SUM($G78:Y78),(Input!$G$211*(1+rvanilla)^0.5)/A1stdlife)) -> 0 | AA78: =IF(A1stdlife="n/a","n/a",IF(AA$3>(A1stdlife+$E78),(Input!$G$211*(1+rvanilla)^0.5)-SUM($G78:Z78),(Input!$G$211*(1+rvanilla)^0.5)/A1stdlife)) -> 0 | AB78: =IF(A1stdlife="n/a","n/a",IF(AB$3>(A1stdlife+$E78),(Input!$G$211*(1+rvanilla)^0.5)-SUM($G78:AA78),(Input!$G$211*(1+rvanilla)^0.5)/A1stdlife)) -> 0 | AC78: =IF(A1stdlife="n/a","n/a",IF(AC$3>(A1stdlife+$E78),(Input!$G$211*(1+rvanilla)^0.5)-SUM($G78:AB78),(Input!$G$211*(1+rvanilla)^0.5)/A1stdlife)) -> 0 | AD78: =IF(A1stdlife="n/a","n/a",IF(AD$3>(A1stdlife+$E78),(Input!$G$211*(1+rvanilla)^0.5)-SUM($G78:AC78),(Input!$G$211*(1+rvanilla)^0.5)/A1stdlife)) -> 0 | AE78: =IF(A1stdlife="n/a","n/a",IF(AE$3>(A1stdlife+$E78),(Input!$G$211*(1+rvanilla)^0.5)-SUM($G78:AD78),(Input!$G$211*(1+rvanilla)^0.5)/A1stdlife)) -> 0 | AF78: =IF(A1stdlife="n/a","n/a",IF(AF$3>(A1stdlife+$E78),(Input!$G$211*(1+rvanilla)^0.5)-SUM($G78:AE78),(Input!$G$211*(1+rvanilla)^0.5)/A1stdlife)) -> 0 | AG78: =IF(A1stdlife="n/a","n/a",IF(AG$3>(A1stdlife+$E78),(Input!$G$211*(1+rvanilla)^0.5)-SUM($G78:AF78),(Input!$G$211*(1+rvanilla)^0.5)/A1stdlife)) -> 0 | AH78: =IF(A1stdlife="n/a","n/a",IF(AH$3>(A1stdlife+$E78),(Input!$G$211*(1+rvanilla)^0.5)-SUM($G78:AG78),(Input!$G$211*(1+rvanilla)^0.5)/A1stdlife)) -> 0 | AI78: =IF(A1stdlife="n/a","n/a",IF(AI$3>(A1stdlife+$E78),(Input!$G$211*(1+rvanilla)^0.5)-SUM($G78:AH78),(Input!$G$211*(1+rvanilla)^0.5)/A1stdlife)) -> 0 | AJ78: =IF(A1stdlife="n/a","n/a",IF(AJ$3>(A1stdlife+$E78),(Input!$G$211*(1+rvanilla)^0.5)-SUM($G78:AI78),(Input!$G$211*(1+rvanilla)^0.5)/A1stdlife)) -> 0 | AK78: =IF(A1stdlife="n/a","n/a",IF(AK$3>(A1stdlife+$E78),(Input!$G$211*(1+rvanilla)^0.5)-SUM($G78:AJ78),(Input!$G$211*(1+rvanilla)^0.5)/A1stdlife)) -> 0 | AL78: =IF(A1stdlife="n/a","n/a",IF(AL$3>(A1stdlife+$E78),(Input!$G$211*(1+rvanilla)^0.5)-SUM($G78:AK78),(Input!$G$211*(1+rvanilla)^0.5)/A1stdlife)) -> 0 | AM78: =IF(A1stdlife="n/a","n/a",IF(AM$3>(A1stdlife+$E78),(Input!$G$211*(1+rvanilla)^0.5)-SUM($G78:AL78),(Input!$G$211*(1+rvanilla)^0.5)/A1stdlife)) -> 0 | AN78: =IF(A1stdlife="n/a","n/a",IF(AN$3>(A1stdlife+$E78),(Input!$G$211*(1+rvanilla)^0.5)-SUM($G78:AM78),(Input!$G$211*(1+rvanilla)^0.5)/A1stdlife)) -> 0 | AO78: =IF(A1stdlife="n/a","n/a",IF(AO$3>(A1stdlife+$E78),(Input!$G$211*(1+rvanilla)^0.5)-SUM($G78:AN78),(Input!$G$211*(1+rvanilla)^0.5)/A1stdlife)) -> 0 | AP78: =IF(A1stdlife="n/a","n/a",IF(AP$3>(A1stdlife+$E78),(Input!$G$211*(1+rvanilla)^0.5)-SUM($G78:AO78),(Input!$G$211*(1+rvanilla)^0.5)/A1stdlife)) -> 0 | AQ78: =IF(A1stdlife="n/a","n/a",IF(AQ$3>(A1stdlife+$E78),(Input!$G$211*(1+rvanilla)^0.5)-SUM($G78:AP78),(Input!$G$211*(1+rvanilla)^0.5)/A1stdlife)) -> 0 | AR78: =IF(A1stdlife="n/a","n/a",IF(AR$3>(A1stdlife+$E78),(Input!$G$211*(1+rvanilla)^0.5)-SUM($G78:AQ78),(Input!$G$211*(1+rvanilla)^0.5)/A1stdlife)) -> 0 | AS78: =IF(A1stdlife="n/a","n/a",IF(AS$3>(A1stdlife+$E78),(Input!$G$211*(1+rvanilla)^0.5)-SUM($G78:AR78),(Input!$G$211*(1+rvanilla)^0.5)/A1stdlife)) -> 0 | AT78: =IF(A1stdlife="n/a","n/a",IF(AT$3>(A1stdlife+$E78),(Input!$G$211*(1+rvanilla)^0.5)-SUM($G78:AS78),(Input!$G$211*(1+rvanilla)^0.5)/A1stdlife)) -> 0 | AU78: =IF(A1stdlife="n/a","n/a",IF(AU$3>(A1stdlife+$E78),(Input!$G$211*(1+rvanilla)^0.5)-SUM($G78:AT78),(Input!$G$211*(1+rvanilla)^0.5)/A1stdlife)) -> 0 | AV78: =IF(A1stdlife="n/a","n/a",IF(AV$3>(A1stdlife+$E78),(Input!$G$211*(1+rvanilla)^0.5)-SUM($G78:AU78),(Input!$G$211*(1+rvanilla)^0.5)/A1stdlife)) -> 0 | AW78: =IF(A1stdlife="n/a","n/a",IF(AW$3>(A1stdlife+$E78),(Input!$G$211*(1+rvanilla)^0.5)-SUM($G78:AV78),(Input!$G$211*(1+rvanilla)^0.5)/A1stdlife)) -> 0 | AX78: =IF(A1stdlife="n/a","n/a",IF(AX$3>(A1stdlife+$E78),(Input!$G$211*(1+rvanilla)^0.5)-SUM($G78:AW78),(Input!$G$211*(1+rvanilla)^0.5)/A1stdlife)) -> 0 | AY78: =IF(A1stdlife="n/a","n/a",IF(AY$3>(A1stdlife+$E78),(Input!$G$211*(1+rvanilla)^0.5)-SUM($G78:AX78),(Input!$G$211*(1+rvanilla)^0.5)/A1stdlife)) -> 0 | AZ78: =IF(A1stdlife="n/a","n/a",IF(AZ$3>(A1stdlife+$E78),(Input!$G$211*(1+rvanilla)^0.5)-SUM($G78:AY78),(Input!$G$211*(1+rvanilla)^0.5)/A1stdlife)) -> 0 | BA78: =IF(A1stdlife="n/a","n/a",IF(BA$3>(A1stdlife+$E78),(Input!$G$211*(1+rvanilla)^0.5)-SUM($G78:AZ78),(Input!$G$211*(1+rvanilla)^0.5)/A1stdlife)) -> 0 | BB78: =IF(A1stdlife="n/a","n/a",IF(BB$3>(A1stdlife+$E78),(Input!$G$211*(1+rvanilla)^0.5)-SUM($G78:BA78),(Input!$G$211*(1+rvanilla)^0.5)/A1stdlife)) -> 0 | BC78: =IF(A1stdlife="n/a","n/a",IF(BC$3>(A1stdlife+$E78),(Input!$G$211*(1+rvanilla)^0.5)-SUM($G78:BB78),(Input!$G$211*(1+rvanilla)^0.5)/A1stdlife)) -> 0 | BD78: =IF(A1stdlife="n/a","n/a",IF(BD$3>(A1stdlife+$E78),(Input!$G$211*(1+rvanilla)^0.5)-SUM($G78:BC78),(Input!$G$211*(1+rvanilla)^0.5)/A1stdlife)) -> 0 | BE78: =IF(A1stdlife="n/a","n/a",IF(BE$3>(A1stdlife+$E78),(Input!$G$211*(1+rvanilla)^0.5)-SUM($G78:BD78),(Input!$G$211*(1+rvanilla)^0.5)/A1stdlife)) -> 0 | BF78: =IF(A1stdlife="n/a","n/a",IF(BF$3>(A1stdlife+$E78),(Input!$G$211*(1+rvanilla)^0.5)-SUM($G78:BE78),(Input!$G$211*(1+rvanilla)^0.5)/A1stdlife)) -> 0 | BG78: =IF(A1stdlife="n/a","n/a",IF(BG$3>(A1stdlife+$E78),(Input!$G$211*(1+rvanilla)^0.5)-SUM($G78:BF78),(Input!$G$211*(1+rvanilla)^0.5)/A1stdlife)) -> 0 | BH78: =IF(A1stdlife="n/a","n/a",IF(BH$3>(A1stdlife+$E78),(Input!$G$211*(1+rvanilla)^0.5)-SUM($G78:BG78),(Input!$G$211*(1+rvanilla)^0.5)/A1stdlife)) -> 0 | BI78: =IF(A1stdlife="n/a","n/a",IF(BI$3>(A1stdlife+$E78),(Input!$G$211*(1+rvanilla)^0.5)-SUM($G78:BH78),(Input!$G$211*(1+rvanilla)^0.5)/A1stdlife)) -> 0
E79: 2 | I79: =IF(A1stdlife="n/a","n/a",IF(I$3>(A1stdlife+$E79),(Input!$H$211*(1+rvanilla)^0.5)-SUM($H79:H79),(Input!$H$211*(1+rvanilla)^0.5)/A1stdlife)) -> 1.258336209 | J79: =IF(A1stdlife="n/a","n/a",IF(J$3>(A1stdlife+$E79),(Input!$H$211*(1+rvanilla)^0.5)-SUM($H79:I79),(Input!$H$211*(1+rvanilla)^0.5)/A1stdlife)) -> 1.258336209 | K79: =IF(A1stdlife="n/a","n/a",IF(K$3>(A1stdlife+$E79),(Input!$H$211*(1+rvanilla)^0.5)-SUM($H79:J79),(Input!$H$211*(1+rvanilla)^0.5)/A1stdlife)) -> 1.258336209 | L79: =IF(A1stdlife="n/a","n/a",IF(L$3>(A1stdlife+$E79),(Input!$H$211*(1+rvanilla)^0.5)-SUM($H79:K79),(Input!$H$211*(1+rvanilla)^0.5)/A1stdlife)) -> 1.258336209 | M79: =IF(A1stdlife="n/a","n/a",IF(M$3>(A1stdlife+$E79),(Input!$H$211*(1+rvanilla)^0.5)-SUM($H79:L79),(Input!$H$211*(1+rvanilla)^0.5)/A1stdlife)) -> 1.258336209 | N79: =IF(A1stdlife="n/a","n/a",IF(N$3>(A1stdlife+$E79),(Input!$H$211*(1+rvanilla)^0.5)-SUM($H79:M79),(Input!$H$211*(1+rvanilla)^0.5)/A1stdlife)) -> 1.258336209 | O79: =IF(A1stdlife="n/a","n/a",IF(O$3>(A1stdlife+$E79),(Input!$H$211*(1+rvanilla)^0.5)-SUM($H79:N79),(Input!$H$211*(1+rvanilla)^0.5)/A1stdlife)) -> 1.258336209 | P79: =IF(A1stdlife="n/a","n/a",IF(P$3>(A1stdlife+$E79),(Input!$H$211*(1+rvanilla)^0.5)-SUM($H79:O79),(Input!$H$211*(1+rvanilla)^0.5)/A1stdlife)) -> 1.258336209 | Q79: =IF(A1stdlife="n/a","n/a",IF(Q$3>(A1stdlife+$E79),(Input!$H$211*(1+rvanilla)^0.5)-SUM($H79:P79),(Input!$H$211*(1+rvanilla)^0.5)/A1stdlife)) -> 1.258336209 | R79: =IF(A1stdlife="n/a","n/a",IF(R$3>(A1stdlife+$E79),(Input!$H$211*(1+rvanilla)^0.5)-SUM($H79:Q79),(Input!$H$211*(1+rvanilla)^0.5)/A1stdlife)) -> 1.258336209 | S79: =IF(A1stdlife="n/a","n/a",IF(S$3>(A1stdlife+$E79),(Input!$H$211*(1+rvanilla)^0.5)-SUM($H79:R79),(Input!$H$211*(1+rvanilla)^0.5)/A1stdlife)) -> 1.258336209 | T79: =IF(A1stdlife="n/a","n/a",IF(T$3>(A1stdlife+$E79),(Input!$H$211*(1+rvanilla)^0.5)-SUM($H79:S79),(Input!$H$211*(1+rvanilla)^0.5)/A1stdlife)) -> 1.258336209 | U79: =IF(A1stdlife="n/a","n/a",IF(U$3>(A1stdlife+$E79),(Input!$H$211*(1+rvanilla)^0.5)-SUM($H79:T79),(Input!$H$211*(1+rvanilla)^0.5)/A1stdlife)) -> 1.258336209 | V79: =IF(A1stdlife="n/a","n/a",IF(V$3>(A1stdlife+$E79),(Input!$H$211*(1+rvanilla)^0.5)-SUM($H79:U79),(Input!$H$211*(1+rvanilla)^0.5)/A1stdlife)) -> 1.258336209 | W79: =IF(A1stdlife="n/a","n/a",IF(W$3>(A1stdlife+$E79),(Input!$H$211*(1+rvanilla)^0.5)-SUM($H79:V79),(Input!$H$211*(1+rvanilla)^0.5)/A1stdlife)) -> 1.258336209 | X79: =IF(A1stdlife="n/a","n/a",IF(X$3>(A1stdlife+$E79),(Input!$H$211*(1+rvanilla)^0.5)-SUM($H79:W79),(Input!$H$211*(1+rvanilla)^0.5)/A1stdlife)) -> 0 | Y79: =IF(A1stdlife="n/a","n/a",IF(Y$3>(A1stdlife+$E79),(Input!$H$211*(1+rvanilla)^0.5)-SUM($H79:X79),(Input!$H$211*(1+rvanilla)^0.5)/A1stdlife)) -> 0 | Z79: =IF(A1stdlife="n/a","n/a",IF(Z$3>(A1stdlife+$E79),(Input!$H$211*(1+rvanilla)^0.5)-SUM($H79:Y79),(Input!$H$211*(1+rvanilla)^0.5)/A1stdlife)) -> 0 | AA79: =IF(A1stdlife="n/a","n/a",IF(AA$3>(A1stdlife+$E79),(Input!$H$211*(1+rvanilla)^0.5)-SUM($H79:Z79),(Input!$H$211*(1+rvanilla)^0.5)/A1stdlife)) -> 0 | AB79: =IF(A1stdlife="n/a","n/a",IF(AB$3>(A1stdlife+$E79),(Input!$H$211*(1+rvanilla)^0.5)-SUM($H79:AA79),(Input!$H$211*(1+rvanilla)^0.5)/A1stdlife)) -> 0 | AC79: =IF(A1stdlife="n/a","n/a",IF(AC$3>(A1stdlife+$E79),(Input!$H$211*(1+rvanilla)^0.5)-SUM($H79:AB79),(Input!$H$211*(1+rvanilla)^0.5)/A1stdlife)) -> 0 | AD79: =IF(A1stdlife="n/a","n/a",IF(AD$3>(A1stdlife+$E79),(Input!$H$211*(1+rvanilla)^0.5)-SUM($H79:AC79),(Input!$H$211*(1+rvanilla)^0.5)/A1stdlife)) -> 0 | AE79: =IF(A1stdlife="n/a","n/a",IF(AE$3>(A1stdlife+$E79),(Input!$H$211*(1+rvanilla)^0.5)-SUM($H79:AD79),(Input!$H$211*(1+rvanilla)^0.5)/A1stdlife)) -> 0 | AF79: =IF(A1stdlife="n/a","n/a",IF(AF$3>(A1stdlife+$E79),(Input!$H$211*(1+rvanilla)^0.5)-SUM($H79:AE79),(Input!$H$211*(1+rvanilla)^0.5)/A1stdlife)) -> 0 | AG79: =IF(A1stdlife="n/a","n/a",IF(AG$3>(A1stdlife+$E79),(Input!$H$211*(1+rvanilla)^0.5)-SUM($H79:AF79),(Input!$H$211*(1+rvanilla)^0.5)/A1stdlife)) -> 0 | AH79: =IF(A1stdlife="n/a","n/a",IF(AH$3>(A1stdlife+$E79),(Input!$H$211*(1+rvanilla)^0.5)-SUM($H79:AG79),(Input!$H$211*(1+rvanilla)^0.5)/A1stdlife)) -> 0 | AI79: =IF(A1stdlife="n/a","n/a",IF(AI$3>(A1stdlife+$E79),(Input!$H$211*(1+rvanilla)^0.5)-SUM($H79:AH79),(Input!$H$211*(1+rvanilla)^0.5)/A1stdlife)) -> 0 | AJ79: =IF(A1stdlife="n/a","n/a",IF(AJ$3>(A1stdlife+$E79),(Input!$H$211*(1+rvanilla)^0.5)-SUM($H79:AI79),(Input!$H$211*(1+rvanilla)^0.5)/A1stdlife)) -> 0 | AK79: =IF(A1stdlife="n/a","n/a",IF(AK$3>(A1stdlife+$E79),(Input!$H$211*(1+rvanilla)^0.5)-SUM($H79:AJ79),(Input!$H$211*(1+rvanilla)^0.5)/A1stdlife)) -> 0 | AL79: =IF(A1stdlife="n/a","n/a",IF(AL$3>(A1stdlife+$E79),(Input!$H$211*(1+rvanilla)^0.5)-SUM($H79:AK79),(Input!$H$211*(1+rvanilla)^0.5)/A1stdlife)) -> 0 | AM79: =IF(A1stdlife="n/a","n/a",IF(AM$3>(A1stdlife+$E79),(Input!$H$211*(1+rvanilla)^0.5)-SUM($H79:AL79),(Input!$H$211*(1+rvanilla)^0.5)/A1stdlife)) -> 0 | AN79: =IF(A1stdlife="n/a","n/a",IF(AN$3>(A1stdlife+$E79),(Input!$H$211*(1+rvanilla)^0.5)-SUM($H79:AM79),(Input!$H$211*(1+rvanilla)^0.5)/A1stdlife)) -> 0 | AO79: =IF(A1stdlife="n/a","n/a",IF(AO$3>(A1stdlife+$E79),(Input!$H$211*(1+rvanilla)^0.5)-SUM($H79:AN79),(Input!$H$211*(1+rvanilla)^0.5)/A1stdlife)) -> 0 | AP79: =IF(A1stdlife="n/a","n/a",IF(AP$3>(A1stdlife+$E79),(Input!$H$211*(1+rvanilla)^0.5)-SUM($H79:AO79),(Input!$H$211*(1+rvanilla)^0.5)/A1stdlife)) -> 0 | AQ79: =IF(A1stdlife="n/a","n/a",IF(AQ$3>(A1stdlife+$E79),(Input!$H$211*(1+rvanilla)^0.5)-SUM($H79:AP79),(Input!$H$211*(1+rvanilla)^0.5)/A1stdlife)) -> 0 | AR79: =IF(A1stdlife="n/a","n/a",IF(AR$3>(A1stdlife+$E79),(Input!$H$211*(1+rvanilla)^0.5)-SUM($H79:AQ79),(Input!$H$211*(1+rvanilla)^0.5)/A1stdlife)) -> 0 | AS79: =IF(A1stdlife="n/a","n/a",IF(AS$3>(A1stdlife+$E79),(Input!$H$211*(1+rvanilla)^0.5)-SUM($H79:AR79),(Input!$H$211*(1+rvanilla)^0.5)/A1stdlife)) -> 0 | AT79: =IF(A1stdlife="n/a","n/a",IF(AT$3>(A1stdlife+$E79),(Input!$H$211*(1+rvanilla)^0.5)-SUM($H79:AS79),(Input!$H$211*(1+rvanilla)^0.5)/A1stdlife)) -> 0 | AU79: =IF(A1stdlife="n/a","n/a",IF(AU$3>(A1stdlife+$E79),(Input!$H$211*(1+rvanilla)^0.5)-SUM($H79:AT79),(Input!$H$211*(1+rvanilla)^0.5)/A1stdlife)) -> 0 | AV79: =IF(A1stdlife="n/a","n/a",IF(AV$3>(A1stdlife+$E79),(Input!$H$211*(1+rvanilla)^0.5)-SUM($H79:AU79),(Input!$H$211*(1+rvanilla)^0.5)/A1stdlife)) -> 0 | AW79: =IF(A1stdlife="n/a","n/a",IF(AW$3>(A1stdlife+$E79),(Input!$H$211*(1+rvanilla)^0.5)-SUM($H79:AV79),(Input!$H$211*(1+rvanilla)^0.5)/A1stdlife)) -> 0 | AX79: =IF(A1stdlife="n/a","n/a",IF(AX$3>(A1stdlife+$E79),(Input!$H$211*(1+rvanilla)^0.5)-SUM($H79:AW79),(Input!$H$211*(1+rvanilla)^0.5)/A1stdlife)) -> 0 | AY79: =IF(A1stdlife="n/a","n/a",IF(AY$3>(A1stdlife+$E79),(Input!$H$211*(1+rvanilla)^0.5)-SUM($H79:AX79),(Input!$H$211*(1+rvanilla)^0.5)/A1stdlife)) -> 0 | AZ79: =IF(A1stdlife="n/a","n/a",IF(AZ$3>(A1stdlife+$E79),(Input!$H$211*(1+rvanilla)^0.5)-SUM($H79:AY79),(Input!$H$211*(1+rvanilla)^0.5)/A1stdlife)) -> 0 | BA79: =IF(A1stdlife="n/a","n/a",IF(BA$3>(A1stdlife+$E79),(Input!$H$211*(1+rvanilla)^0.5)-SUM($H79:AZ79),(Input!$H$211*(1+rvanilla)^0.5)/A1stdlife)) -> 0 | BB79: =IF(A1stdlife="n/a","n/a",IF(BB$3>(A1stdlife+$E79),(Input!$H$211*(1+rvanilla)^0.5)-SUM($H79:BA79),(Input!$H$211*(1+rvanilla)^0.5)/A1stdlife)) -> 0 | BC79: =IF(A1stdlife="n/a","n/a",IF(BC$3>(A1stdlife+$E79),(Input!$H$211*(1+rvanilla)^0.5)-SUM($H79:BB79),(Input!$H$211*(1+rvanilla)^0.5)/A1stdlife)) -> 0 | BD79: =IF(A1stdlife="n/a","n/a",IF(BD$3>(A1stdlife+$E79),(Input!$H$211*(1+rvanilla)^0.5)-SUM($H79:BC79),(Input!$H$211*(1+rvanilla)^0.5)/A1stdlife)) -> 0 | BE79: =IF(A1stdlife="n/a","n/a",IF(BE$3>(A1stdlife+$E79),(Input!$H$211*(1+rvanilla)^0.5)-SUM($H79:BD79),(Input!$H$211*(1+rvanilla)^0.5)/A1stdlife)) -> 0 | BF79: =IF(A1stdlife="n/a","n/a",IF(BF$3>(A1stdlife+$E79),(Input!$H$211*(1+rvanilla)^0.5)-SUM($H79:BE79),(Input!$H$211*(1+rvanilla)^0.5)/A1stdlife)) -> 0 | BG79: =IF(A1stdlife="n/a","n/a",IF(BG$3>(A1stdlife+$E79),(Input!$H$211*(1+rvanilla)^0.5)-SUM($H79:BF79),(Input!$H$211*(1+rvanilla)^0.5)/A1stdlife)) -> 0 | BH79: =IF(A1stdlife="n/a","n/a",IF(BH$3>(A1stdlife+$E79),(Input!$H$211*(1+rvanilla)^0.5)-SUM($H79:BG79),(Input!$H$211*(1+rvanilla)^0.5)/A1stdlife)) -> 0 | BI79: =IF(A1stdlife="n/a","n/a",IF(BI$3>(A1stdlife+$E79),(Input!$H$211*(1+rvanilla)^0.5)-SUM($H79:BH79),(Input!$H$211*(1+rvanilla)^0.5)/A1stdlife)) -> 0
E80: 3 | J80: =IF(A1stdlife="n/a","n/a",IF(J$3>(A1stdlife+$E80),(Input!$I$211*(1+rvanilla)^0.5)-SUM($I80:I80),(Input!$I$211*(1+rvanilla)^0.5)/A1stdlife)) -> 1.470012492 | K80: =IF(A1stdlife="n/a","n/a",IF(K$3>(A1stdlife+$E80),(Input!$I$211*(1+rvanilla)^0.5)-SUM($I80:J80),(Input!$I$211*(1+rvanilla)^0.5)/A1stdlife)) -> 1.470012492 | L80: =IF(A1stdlife="n/a","n/a",IF(L$3>(A1stdlife+$E80),(Input!$I$211*(1+rvanilla)^0.5)-SUM($I80:K80),(Input!$I$211*(1+rvanilla)^0.5)/A1stdlife)) -> 1.470012492 | M80: =IF(A1stdlife="n/a","n/a",IF(M$3>(A1stdlife+$E80),(Input!$I$211*(1+rvanilla)^0.5)-SUM($I80:L80),(Input!$I$211*(1+rvanilla)^0.5)/A1stdlife)) -> 1.470012492 | N80: =IF(A1stdlife="n/a","n/a",IF(N$3>(A1stdlife+$E80),(Input!$I$211*(1+rvanilla)^0.5)-SUM($I80:M80),(Input!$I$211*(1+rvanilla)^0.5)/A1stdlife)) -> 1.470012492 | O80: =IF(A1stdlife="n/a","n/a",IF(O$3>(A1stdlife+$E80),(Input!$I$211*(1+rvanilla)^0.5)-SUM($I80:N80),(Input!$I$211*(1+rvanilla)^0.5)/A1stdlife)) -> 1.470012492 | P80: =IF(A1stdlife="n/a","n/a",IF(P$3>(A1stdlife+$E80),(Input!$I$211*(1+rvanilla)^0.5)-SUM($I80:O80),(Input!$I$211*(1+rvanilla)^0.5)/A1stdlife)) -> 1.470012492 | Q80: =IF(A1stdlife="n/a","n/a",IF(Q$3>(A1stdlife+$E80),(Input!$I$211*(1+rvanilla)^0.5)-SUM($I80:P80),(Input!$I$211*(1+rvanilla)^0.5)/A1stdlife)) -> 1.470012492 | R80: =IF(A1stdlife="n/a","n/a",IF(R$3>(A1stdlife+$E80),(Input!$I$211*(1+rvanilla)^0.5)-SUM($I80:Q80),(Input!$I$211*(1+rvanilla)^0.5)/A1stdlife)) -> 1.470012492 | S80: =IF(A1stdlife="n/a","n/a",IF(S$3>(A1stdlife+$E80),(Input!$I$211*(1+rvanilla)^0.5)-SUM($I80:R80),(Input!$I$211*(1+rvanilla)^0.5)/A1stdlife)) -> 1.470012492 | T80: =IF(A1stdlife="n/a","n/a",IF(T$3>(A1stdlife+$E80),(Input!$I$211*(1+rvanilla)^0.5)-SUM($I80:S80),(Input!$I$211*(1+rvanilla)^0.5)/A1stdlife)) -> 1.470012492 | U80: =IF(A1stdlife="n/a","n/a",IF(U$3>(A1stdlife+$E80),(Input!$I$211*(1+rvanilla)^0.5)-SUM($I80:T80),(Input!$I$211*(1+rvanilla)^0.5)/A1stdlife)) -> 1.470012492 | V80: =IF(A1stdlife="n/a","n/a",IF(V$3>(A1stdlife+$E80),(Input!$I$211*(1+rvanilla)^0.5)-SUM($I80:U80),(Input!$I$211*(1+rvanilla)^0.5)/A1stdlife)) -> 1.470012492 | W80: =IF(A1stdlife="n/a","n/a",IF(W$3>(A1stdlife+$E80),(Input!$I$211*(1+rvanilla)^0.5)-SUM($I80:V80),(Input!$I$211*(1+rvanilla)^0.5)/A1stdlife)) -> 1.470012492 | X80: =IF(A1stdlife="n/a","n/a",IF(X$3>(A1stdlife+$E80),(Input!$I$211*(1+rvanilla)^0.5)-SUM($I80:W80),(Input!$I$211*(1+rvanilla)^0.5)/A1stdlife)) -> 1.470012492 | Y80: =IF(A1stdlife="n/a","n/a",IF(Y$3>(A1stdlife+$E80),(Input!$I$211*(1+rvanilla)^0.5)-SUM($I80:X80),(Input!$I$211*(1+rvanilla)^0.5)/A1stdlife)) -> -7.105427358e-15 | Z80: =IF(A1stdlife="n/a","n/a",IF(Z$3>(A1stdlife+$E80),(Input!$I$211*(1+rvanilla)^0.5)-SUM($I80:Y80),(Input!$I$211*(1+rvanilla)^0.5)/A1stdlife)) -> 0 | AA80: =IF(A1stdlife="n/a","n/a",IF(AA$3>(A1stdlife+$E80),(Input!$I$211*(1+rvanilla)^0.5)-SUM($I80:Z80),(Input!$I$211*(1+rvanilla)^0.5)/A1stdlife)) -> 0 | AB80: =IF(A1stdlife="n/a","n/a",IF(AB$3>(A1stdlife+$E80),(Input!$I$211*(1+rvanilla)^0.5)-SUM($I80:AA80),(Input!$I$211*(1+rvanilla)^0.5)/A1stdlife)) -> 0 | AC80: =IF(A1stdlife="n/a","n/a",IF(AC$3>(A1stdlife+$E80),(Input!$I$211*(1+rvanilla)^0.5)-SUM($I80:AB80),(Input!$I$211*(1+rvanilla)^0.5)/A1stdlife)) -> 0 | AD80: =IF(A1stdlife="n/a","n/a",IF(AD$3>(A1stdlife+$E80),(Input!$I$211*(1+rvanilla)^0.5)-SUM($I80:AC80),(Input!$I$211*(1+rvanilla)^0.5)/A1stdlife)) -> 0 | AE80: =IF(A1stdlife="n/a","n/a",IF(AE$3>(A1stdlife+$E80),(Input!$I$211*(1+rvanilla)^0.5)-SUM($I80:AD80),(Input!$I$211*(1+rvanilla)^0.5)/A1stdlife)) -> 0 | AF80: =IF(A1stdlife="n/a","n/a",IF(AF$3>(A1stdlife+$E80),(Input!$I$211*(1+rvanilla)^0.5)-SUM($I80:AE80),(Input!$I$211*(1+rvanilla)^0.5)/A1stdlife)) -> 0 | AG80: =IF(A1stdlife="n/a","n/a",IF(AG$3>(A1stdlife+$E80),(Input!$I$211*(1+rvanilla)^0.5)-SUM($I80:AF80),(Input!$I$211*(1+rvanilla)^0.5)/A1stdlife)) -> 0 | AH80: =IF(A1stdlife="n/a","n/a",IF(AH$3>(A1stdlife+$E80),(Input!$I$211*(1+rvanilla)^0.5)-SUM($I80:AG80),(Input!$I$211*(1+rvanilla)^0.5)/A1stdlife)) -> 0 | AI80: =IF(A1stdlife="n/a","n/a",IF(AI$3>(A1stdlife+$E80),(Input!$I$211*(1+rvanilla)^0.5)-SUM($I80:AH80),(Input!$I$211*(1+rvanilla)^0.5)/A1stdlife)) -> 0 | AJ80: =IF(A1stdlife="n/a","n/a",IF(AJ$3>(A1stdlife+$E80),(Input!$I$211*(1+rvanilla)^0.5)-SUM($I80:AI80),(Input!$I$211*(1+rvanilla)^0.5)/A1stdlife)) -> 0 | AK80: =IF(A1stdlife="n/a","n/a",IF(AK$3>(A1stdlife+$E80),(Input!$I$211*(1+rvanilla)^0.5)-SUM($I80:AJ80),(Input!$I$211*(1+rvanilla)^0.5)/A1stdlife)) -> 0 | AL80: =IF(A1stdlife="n/a","n/a",IF(AL$3>(A1stdlife+$E80),(Input!$I$211*(1+rvanilla)^0.5)-SUM($I80:AK80),(Input!$I$211*(1+rvanilla)^0.5)/A1stdlife)) -> 0 | AM80: =IF(A1stdlife="n/a","n/a",IF(AM$3>(A1stdlife+$E80),(Input!$I$211*(1+rvanilla)^0.5)-SUM($I80:AL80),(Input!$I$211*(1+rvanilla)^0.5)/A1stdlife)) -> 0 | AN80: =IF(A1stdlife="n/a","n/a",IF(AN$3>(A1stdlife+$E80),(Input!$I$211*(1+rvanilla)^0.5)-SUM($I80:AM80),(Input!$I$211*(1+rvanilla)^0.5)/A1stdlife)) -> 0 | AO80: =IF(A1stdlife="n/a","n/a",IF(AO$3>(A1stdlife+$E80),(Input!$I$211*(1+rvanilla)^0.5)-SUM($I80:AN80),(Input!$I$211*(1+rvanilla)^0.5)/A1stdlife)) -> 0 | AP80: =IF(A1stdlife="n/a","n/a",IF(AP$3>(A1stdlife+$E80),(Input!$I$211*(1+rvanilla)^0.5)-SUM($I80:AO80),(Input!$I$211*(1+rvanilla)^0.5)/A1stdlife)) -> 0 | AQ80: =IF(A1stdlife="n/a","n/a",IF(AQ$3>(A1stdlife+$E80),(Input!$I$211*(1+rvanilla)^0.5)-SUM($I80:AP80),(Input!$I$211*(1+rvanilla)^0.5)/A1stdlife)) -> 0 | AR80: =IF(A1stdlife="n/a","n/a",IF(AR$3>(A1stdlife+$E80),(Input!$I$211*(1+rvanilla)^0.5)-SUM($I80:AQ80),(Input!$I$211*(1+rvanilla)^0.5)/A1stdlife)) -> 0 | AS80: =IF(A1stdlife="n/a","n/a",IF(AS$3>(A1stdlife+$E80),(Input!$I$211*(1+rvanilla)^0.5)-SUM($I80:AR80),(Input!$I$211*(1+rvanilla)^0.5)/A1stdlife)) -> 0 | AT80: =IF(A1stdlife="n/a","n/a",IF(AT$3>(A1stdlife+$E80),(Input!$I$211*(1+rvanilla)^0.5)-SUM($I80:AS80),(Input!$I$211*(1+rvanilla)^0.5)/A1stdlife)) -> 0 | AU80: =IF(A1stdlife="n/a","n/a",IF(AU$3>(A1stdlife+$E80),(Input!$I$211*(1+rvanilla)^0.5)-SUM($I80:AT80),(Input!$I$211*(1+rvanilla)^0.5)/A1stdlife)) -> 0 | AV80: =IF(A1stdlife="n/a","n/a",IF(AV$3>(A1stdlife+$E80),(Input!$I$211*(1+rvanilla)^0.5)-SUM($I80:AU80),(Input!$I$211*(1+rvanilla)^0.5)/A1stdlife)) -> 0 | AW80: =IF(A1stdlife="n/a","n/a",IF(AW$3>(A1stdlife+$E80),(Input!$I$211*(1+rvanilla)^0.5)-SUM($I80:AV80),(Input!$I$211*(1+rvanilla)^0.5)/A1stdlife)) -> 0 | AX80: =IF(A1stdlife="n/a","n/a",IF(AX$3>(A1stdlife+$E80),(Input!$I$211*(1+rvanilla)^0.5)-SUM($I80:AW80),(Input!$I$211*(1+rvanilla)^0.5)/A1stdlife)) -> 0 | AY80: =IF(A1stdlife="n/a","n/a",IF(AY$3>(A1stdlife+$E80),(Input!$I$211*(1+rvanilla)^0.5)-SUM($I80:AX80),(Input!$I$211*(1+rvanilla)^0.5)/A1stdlife)) -> 0 | AZ80: =IF(A1stdlife="n/a","n/a",IF(AZ$3>(A1stdlife+$E80),(Input!$I$211*(1+rvanilla)^0.5)-SUM($I80:AY80),(Input!$I$211*(1+rvanilla)^0.5)/A1stdlife)) -> 0 | BA80: =IF(A1stdlife="n/a","n/a",IF(BA$3>(A1stdlife+$E80),(Input!$I$211*(1+rvanilla)^0.5)-SUM($I80:AZ80),(Input!$I$211*(1+rvanilla)^0.5)/A1stdlife)) -> 0 | BB80: =IF(A1stdlife="n/a","n/a",IF(BB$3>(A1stdlife+$E80),(Input!$I$211*(1+rvanilla)^0.5)-SUM($I80:BA80),(Input!$I$211*(1+rvanilla)^0.5)/A1stdlife)) -> 0 | BC80: =IF(A1stdlife="n/a","n/a",IF(BC$3>(A1stdlife+$E80),(Input!$I$211*(1+rvanilla)^0.5)-SUM($I80:BB80),(Input!$I$211*(1+rvanilla)^0.5)/A1stdlife)) -> 0 | BD80: =IF(A1stdlife="n/a","n/a",IF(BD$3>(A1stdlife+$E80),(Input!$I$211*(1+rvanilla)^0.5)-SUM($I80:BC80),(Input!$I$211*(1+rvanilla)^0.5)/A1stdlife)) -> 0 | BE80: =IF(A1stdlife="n/a","n/a",IF(BE$3>(A1stdlife+$E80),(Input!$I$211*(1+rvanilla)^0.5)-SUM($I80:BD80),(Input!$I$211*(1+rvanilla)^0.5)/A1stdlife)) -> 0 | BF80: =IF(A1stdlife="n/a","n/a",IF(BF$3>(A1stdlife+$E80),(Input!$I$211*(1+rvanilla)^0.5)-SUM($I80:BE80),(Input!$I$211*(1+rvanilla)^0.5)/A1stdlife)) -> 0 | BG80: =IF(A1stdlife="n/a","n/a",IF(BG$3>(A1stdlife+$E80),(Input!$I$211*(1+rvanilla)^0.5)-SUM($I80:BF80),(Input!$I$211*(1+rvanilla)^0.5)/A1stdlife)) -> 0 | BH80: =IF(A1stdlife="n/a","n/a",IF(BH$3>(A1stdlife+$E80),(Input!$I$211*(1+rvanilla)^0.5)-SUM($I80:BG80),(Input!$I$211*(1+rvanilla)^0.5)/A1stdlife)) -> 0 | BI80: =IF(A1stdlife="n/a","n/a",IF(BI$3>(A1stdlife+$E80),(Input!$I$211*(1+rvanilla)^0.5)-SUM($I80:BH80),(Input!$I$211*(1+rvanilla)^0.5)/A1stdlife)) -> 0
E81: 4 | K81: =IF(A1stdlife="n/a","n/a",IF(K$3>(A1stdlife+$E81),(Input!$J$211*(1+rvanilla)^0.5)-SUM($J81:J81),(Input!$J$211*(1+rvanilla)^0.5)/A1stdlife)) -> 0 | L81: =IF(A1stdlife="n/a","n/a",IF(L$3>(A1stdlife+$E81),(Input!$J$211*(1+rvanilla)^0.5)-SUM($J81:K81),(Input!$J$211*(1+rvanilla)^0.5)/A1stdlife)) -> 0 | M81: =IF(A1stdlife="n/a","n/a",IF(M$3>(A1stdlife+$E81),(Input!$J$211*(1+rvanilla)^0.5)-SUM($J81:L81),(Input!$J$211*(1+rvanilla)^0.5)/A1stdlife)) -> 0 | N81: =IF(A1stdlife="n/a","n/a",IF(N$3>(A1stdlife+$E81),(Input!$J$211*(1+rvanilla)^0.5)-SUM($J81:M81),(Input!$J$211*(1+rvanilla)^0.5)/A1stdlife)) -> 0 | O81: =IF(A1stdlife="n/a","n/a",IF(O$3>(A1stdlife+$E81),(Input!$J$211*(1+rvanilla)^0.5)-SUM($J81:N81),(Input!$J$211*(1+rvanilla)^0.5)/A1stdlife)) -> 0 | P81: =IF(A1stdlife="n/a","n/a",IF(P$3>(A1stdlife+$E81),(Input!$J$211*(1+rvanilla)^0.5)-SUM($J81:O81),(Input!$J$211*(1+rvanilla)^0.5)/A1stdlife)) -> 0 | Q81: =IF(A1stdlife="n/a","n/a",IF(Q$3>(A1stdlife+$E81),(Input!$J$211*(1+rvanilla)^0.5)-SUM($J81:P81),(Input!$J$211*(1+rvanilla)^0.5)/A1stdlife)) -> 0 | R81: =IF(A1stdlife="n/a","n/a",IF(R$3>(A1stdlife+$E81),(Input!$J$211*(1+rvanilla)^0.5)-SUM($J81:Q81),(Input!$J$211*(1+rvanilla)^0.5)/A1stdlife)) -> 0 | S81: =IF(A1stdlife="n/a","n/a",IF(S$3>(A1stdlife+$E81),(Input!$J$211*(1+rvanilla)^0.5)-SUM($J81:R81),(Input!$J$211*(1+rvanilla)^0.5)/A1stdlife)) -> 0 | T81: =IF(A1stdlife="n/a","n/a",IF(T$3>(A1stdlife+$E81),(Input!$J$211*(1+rvanilla)^0.5)-SUM($J81:S81),(Input!$J$211*(1+rvanilla)^0.5)/A1stdlife)) -> 0 | U81: =IF(A1stdlife="n/a","n/a",IF(U$3>(A1stdlife+$E81),(Input!$J$211*(1+rvanilla)^0.5)-SUM($J81:T81),(Input!$J$211*(1+rvanilla)^0.5)/A1stdlife)) -> 0 | V81: =IF(A1stdlife="n/a","n/a",IF(V$3>(A1stdlife+$E81),(Input!$J$211*(1+rvanilla)^0.5)-SUM($J81:U81),(Input!$J$211*(1+rvanilla)^0.5)/A1stdlife)) -> 0 | W81: =IF(A1stdlife="n/a","n/a",IF(W$3>(A1stdlife+$E81),(Input!$J$211*(1+rvanilla)^0.5)-SUM($J81:V81),(Input!$J$211*(1+rvanilla)^0.5)/A1stdlife)) -> 0 | X81: =IF(A1stdlife="n/a","n/a",IF(X$3>(A1stdlife+$E81),(Input!$J$211*(1+rvanilla)^0.5)-SUM($J81:W81),(Input!$J$211*(1+rvanilla)^0.5)/A1stdlife)) -> 0 | Y81: =IF(A1stdlife="n/a","n/a",IF(Y$3>(A1stdlife+$E81),(Input!$J$211*(1+rvanilla)^0.5)-SUM($J81:X81),(Input!$J$211*(1+rvanilla)^0.5)/A1stdlife)) -> 0 | Z81: =IF(A1stdlife="n/a","n/a",IF(Z$3>(A1stdlife+$E81),(Input!$J$211*(1+rvanilla)^0.5)-SUM($J81:Y81),(Input!$J$211*(1+rvanilla)^0.5)/A1stdlife)) -> 0 | AA81: =IF(A1stdlife="n/a","n/a",IF(AA$3>(A1stdlife+$E81),(Input!$J$211*(1+rvanilla)^0.5)-SUM($J81:Z81),(Input!$J$211*(1+rvanilla)^0.5)/A1stdlife)) -> 0 | AB81: =IF(A1stdlife="n/a","n/a",IF(AB$3>(A1stdlife+$E81),(Input!$J$211*(1+rvanilla)^0.5)-SUM($J81:AA81),(Input!$J$211*(1+rvanilla)^0.5)/A1stdlife)) -> 0 | AC81: =IF(A1stdlife="n/a","n/a",IF(AC$3>(A1stdlife+$E81),(Input!$J$211*(1+rvanilla)^0.5)-SUM($J81:AB81),(Input!$J$211*(1+rvanilla)^0.5)/A1stdlife)) -> 0 | AD81: =IF(A1stdlife="n/a","n/a",IF(AD$3>(A1stdlife+$E81),(Input!$J$211*(1+rvanilla)^0.5)-SUM($J81:AC81),(Input!$J$211*(1+rvanilla)^0.5)/A1stdlife)) -> 0 | AE81: =IF(A1stdlife="n/a","n/a",IF(AE$3>(A1stdlife+$E81),(Input!$J$211*(1+rvanilla)^0.5)-SUM($J81:AD81),(Input!$J$211*(1+rvanilla)^0.5)/A1stdlife)) -> 0 | AF81: =IF(A1stdlife="n/a","n/a",IF(AF$3>(A1stdlife+$E81),(Input!$J$211*(1+rvanilla)^0.5)-SUM($J81:AE81),(Input!$J$211*(1+rvanilla)^0.5)/A1stdlife)) -> 0 | AG81: =IF(A1stdlife="n/a","n/a",IF(AG$3>(A1stdlife+$E81),(Input!$J$211*(1+rvanilla)^0.5)-SUM($J81:AF81),(Input!$J$211*(1+rvanilla)^0.5)/A1stdlife)) -> 0 | AH81: =IF(A1stdlife="n/a","n/a",IF(AH$3>(A1stdlife+$E81),(Input!$J$211*(1+rvanilla)^0.5)-SUM($J81:AG81),(Input!$J$211*(1+rvanilla)^0.5)/A1stdlife)) -> 0 | AI81: =IF(A1stdlife="n/a","n/a",IF(AI$3>(A1stdlife+$E81),(Input!$J$211*(1+rvanilla)^0.5)-SUM($J81:AH81),(Input!$J$211*(1+rvanilla)^0.5)/A1stdlife)) -> 0 | AJ81: =IF(A1stdlife="n/a","n/a",IF(AJ$3>(A1stdlife+$E81),(Input!$J$211*(1+rvanilla)^0.5)-SUM($J81:AI81),(Input!$J$211*(1+rvanilla)^0.5)/A1stdlife)) -> 0 | AK81: =IF(A1stdlife="n/a","n/a",IF(AK$3>(A1stdlife+$E81),(Input!$J$211*(1+rvanilla)^0.5)-SUM($J81:AJ81),(Input!$J$211*(1+rvanilla)^0.5)/A1stdlife)) -> 0 | AL81: =IF(A1stdlife="n/a","n/a",IF(AL$3>(A1stdlife+$E81),(Input!$J$211*(1+rvanilla)^0.5)-SUM($J81:AK81),(Input!$J$211*(1+rvanilla)^0.5)/A1stdlife)) -> 0 | AM81: =IF(A1stdlife="n/a","n/a",IF(AM$3>(A1stdlife+$E81),(Input!$J$211*(1+rvanilla)^0.5)-SUM($J81:AL81),(Input!$J$211*(1+rvanilla)^0.5)/A1stdlife)) -> 0 | AN81: =IF(A1stdlife="n/a","n/a",IF(AN$3>(A1stdlife+$E81),(Input!$J$211*(1+rvanilla)^0.5)-SUM($J81:AM81),(Input!$J$211*(1+rvanilla)^0.5)/A1stdlife)) -> 0 | AO81: =IF(A1stdlife="n/a","n/a",IF(AO$3>(A1stdlife+$E81),(Input!$J$211*(1+rvanilla)^0.5)-SUM($J81:AN81),(Input!$J$211*(1+rvanilla)^0.5)/A1stdlife)) -> 0 | AP81: =IF(A1stdlife="n/a","n/a",IF(AP$3>(A1stdlife+$E81),(Input!$J$211*(1+rvanilla)^0.5)-SUM($J81:AO81),(Input!$J$211*(1+rvanilla)^0.5)/A1stdlife)) -> 0 | AQ81: =IF(A1stdlife="n/a","n/a",IF(AQ$3>(A1stdlife+$E81),(Input!$J$211*(1+rvanilla)^0.5)-SUM($J81:AP81),(Input!$J$211*(1+rvanilla)^0.5)/A1stdlife)) -> 0 | AR81: =IF(A1stdlife="n/a","n/a",IF(AR$3>(A1stdlife+$E81),(Input!$J$211*(1+rvanilla)^0.5)-SUM($J81:AQ81),(Input!$J$211*(1+rvanilla)^0.5)/A1stdlife)) -> 0 | AS81: =IF(A1stdlife="n/a","n/a",IF(AS$3>(A1stdlife+$E81),(Input!$J$211*(1+rvanilla)^0.5)-SUM($J81:AR81),(Input!$J$211*(1+rvanilla)^0.5)/A1stdlife)) -> 0 | AT81: =IF(A1stdlife="n/a","n/a",IF(AT$3>(A1stdlife+$E81),(Input!$J$211*(1+rvanilla)^0.5)-SUM($J81:AS81),(Input!$J$211*(1+rvanilla)^0.5)/A1stdlife)) -> 0 | AU81: =IF(A1stdlife="n/a","n/a",IF(AU$3>(A1stdlife+$E81),(Input!$J$211*(1+rvanilla)^0.5)-SUM($J81:AT81),(Input!$J$211*(1+rvanilla)^0.5)/A1stdlife)) -> 0 | AV81: =IF(A1stdlife="n/a","n/a",IF(AV$3>(A1stdlife+$E81),(Input!$J$211*(1+rvanilla)^0.5)-SUM($J81:AU81),(Input!$J$211*(1+rvanilla)^0.5)/A1stdlife)) -> 0 | AW81: =IF(A1stdlife="n/a","n/a",IF(AW$3>(A1stdlife+$E81),(Input!$J$211*(1+rvanilla)^0.5)-SUM($J81:AV81),(Input!$J$211*(1+rvanilla)^0.5)/A1stdlife)) -> 0 | AX81: =IF(A1stdlife="n/a","n/a",IF(AX$3>(A1stdlife+$E81),(Input!$J$211*(1+rvanilla)^0.5)-SUM($J81:AW81),(Input!$J$211*(1+rvanilla)^0.5)/A1stdlife)) -> 0 | AY81: =IF(A1stdlife="n/a","n/a",IF(AY$3>(A1stdlife+$E81),(Input!$J$211*(1+rvanilla)^0.5)-SUM($J81:AX81),(Input!$J$211*(1+rvanilla)^0.5)/A1stdlife)) -> 0 | AZ81: =IF(A1stdlife="n/a","n/a",IF(AZ$3>(A1stdlife+$E81),(Input!$J$211*(1+rvanilla)^0.5)-SUM($J81:AY81),(Input!$J$211*(1+rvanilla)^0.5)/A1stdlife)) -> 0 | BA81: =IF(A1stdlife="n/a","n/a",IF(BA$3>(A1stdlife+$E81),(Input!$J$211*(1+rvanilla)^0.5)-SUM($J81:AZ81),(Input!$J$211*(1+rvanilla)^0.5)/A1stdlife)) -> 0 | BB81: =IF(A1stdlife="n/a","n/a",IF(BB$3>(A1stdlife+$E81),(Input!$J$211*(1+rvanilla)^0.5)-SUM($J81:BA81),(Input!$J$211*(1+rvanilla)^0.5)/A1stdlife)) -> 0 | BC81: =IF(A1stdlife="n/a","n/a",IF(BC$3>(A1stdlife+$E81),(Input!$J$211*(1+rvanilla)^0.5)-SUM($J81:BB81),(Input!$J$211*(1+rvanilla)^0.5)/A1stdlife)) -> 0 | BD81: =IF(A1stdlife="n/a","n/a",IF(BD$3>(A1stdlife+$E81),(Input!$J$211*(1+rvanilla)^0.5)-SUM($J81:BC81),(Input!$J$211*(1+rvanilla)^0.5)/A1stdlife)) -> 0 | BE81: =IF(A1stdlife="n/a","n/a",IF(BE$3>(A1stdlife+$E81),(Input!$J$211*(1+rvanilla)^0.5)-SUM($J81:BD81),(Input!$J$211*(1+rvanilla)^0.5)/A1stdlife)) -> 0 | BF81: =IF(A1stdlife="n/a","n/a",IF(BF$3>(A1stdlife+$E81),(Input!$J$211*(1+rvanilla)^0.5)-SUM($J81:BE81),(Input!$J$211*(1+rvanilla)^0.5)/A1stdlife)) -> 0 | BG81: =IF(A1stdlife="n/a","n/a",IF(BG$3>(A1stdlife+$E81),(Input!$J$211*(1+rvanilla)^0.5)-SUM($J81:BF81),(Input!$J$211*(1+rvanilla)^0.5)/A1stdlife)) -> 0 | BH81: =IF(A1stdlife="n/a","n/a",IF(BH$3>(A1stdlife+$E81),(Input!$J$211*(1+rvanilla)^0.5)-SUM($J81:BG81),(Input!$J$211*(1+rvanilla)^0.5)/A1stdlife)) -> 0 | BI81: =IF(A1stdlife="n/a","n/a",IF(BI$3>(A1stdlife+$E81),(Input!$J$211*(1+rvanilla)^0.5)-SUM($J81:BH81),(Input!$J$211*(1+rvanilla)^0.5)/A1stdlife)) -> 0
E82: 5 | L82: =IF(A1stdlife="n/a","n/a",IF(L$3>(A1stdlife+$E82),(Input!$K$211*(1+rvanilla)^0.5)-SUM($K82:K82),(Input!$K$211*(1+rvanilla)^0.5)/A1stdlife)) -> 0 | M82: =IF(A1stdlife="n/a","n/a",IF(M$3>(A1stdlife+$E82),(Input!$K$211*(1+rvanilla)^0.5)-SUM($K82:L82),(Input!$K$211*(1+rvanilla)^0.5)/A1stdlife)) -> 0 | N82: =IF(A1stdlife="n/a","n/a",IF(N$3>(A1stdlife+$E82),(Input!$K$211*(1+rvanilla)^0.5)-SUM($K82:M82),(Input!$K$211*(1+rvanilla)^0.5)/A1stdlife)) -> 0 | O82: =IF(A1stdlife="n/a","n/a",IF(O$3>(A1stdlife+$E82),(Input!$K$211*(1+rvanilla)^0.5)-SUM($K82:N82),(Input!$K$211*(1+rvanilla)^0.5)/A1stdlife)) -> 0 | P82: =IF(A1stdlife="n/a","n/a",IF(P$3>(A1stdlife+$E82),(Input!$K$211*(1+rvanilla)^0.5)-SUM($K82:O82),(Input!$K$211*(1+rvanilla)^0.5)/A1stdlife)) -> 0 | Q82: =IF(A1stdlife="n/a","n/a",IF(Q$3>(A1stdlife+$E82),(Input!$K$211*(1+rvanilla)^0.5)-SUM($K82:P82),(Input!$K$211*(1+rvanilla)^0.5)/A1stdlife)) -> 0 | R82: =IF(A1stdlife="n/a","n/a",IF(R$3>(A1stdlife+$E82),(Input!$K$211*(1+rvanilla)^0.5)-SUM($K82:Q82),(Input!$K$211*(1+rvanilla)^0.5)/A1stdlife)) -> 0 | S82: =IF(A1stdlife="n/a","n/a",IF(S$3>(A1stdlife+$E82),(Input!$K$211*(1+rvanilla)^0.5)-SUM($K82:R82),(Input!$K$211*(1+rvanilla)^0.5)/A1stdlife)) -> 0 | T82: =IF(A1stdlife="n/a","n/a",IF(T$3>(A1stdlife+$E82),(Input!$K$211*(1+rvanilla)^0.5)-SUM($K82:S82),(Input!$K$211*(1+rvanilla)^0.5)/A1stdlife)) -> 0 | U82: =IF(A1stdlife="n/a","n/a",IF(U$3>(A1stdlife+$E82),(Input!$K$211*(1+rvanilla)^0.5)-SUM($K82:T82),(Input!$K$211*(1+rvanilla)^0.5)/A1stdlife)) -> 0 | V82: =IF(A1stdlife="n/a","n/a",IF(V$3>(A1stdlife+$E82),(Input!$K$211*(1+rvanilla)^0.5)-SUM($K82:U82),(Input!$K$211*(1+rvanilla)^0.5)/A1stdlife)) -> 0 | W82: =IF(A1stdlife="n/a","n/a",IF(W$3>(A1stdlife+$E82),(Input!$K$211*(1+rvanilla)^0.5)-SUM($K82:V82),(Input!$K$211*(1+rvanilla)^0.5)/A1stdlife)) -> 0 | X82: =IF(A1stdlife="n/a","n/a",IF(X$3>(A1stdlife+$E82),(Input!$K$211*(1+rvanilla)^0.5)-SUM($K82:W82),(Input!$K$211*(1+rvanilla)^0.5)/A1stdlife)) -> 0 | Y82: =IF(A1stdlife="n/a","n/a",IF(Y$3>(A1stdlife+$E82),(Input!$K$211*(1+rvanilla)^0.5)-SUM($K82:X82),(Input!$K$211*(1+rvanilla)^0.5)/A1stdlife)) -> 0 | Z82: =IF(A1stdlife="n/a","n/a",IF(Z$3>(A1stdlife+$E82),(Input!$K$211*(1+rvanilla)^0.5)-SUM($K82:Y82),(Input!$K$211*(1+rvanilla)^0.5)/A1stdlife)) -> 0 | AA82: =IF(A1stdlife="n/a","n/a",IF(AA$3>(A1stdlife+$E82),(Input!$K$211*(1+rvanilla)^0.5)-SUM($K82:Z82),(Input!$K$211*(1+rvanilla)^0.5)/A1stdlife)) -> 0 | AB82: =IF(A1stdlife="n/a","n/a",IF(AB$3>(A1stdlife+$E82),(Input!$K$211*(1+rvanilla)^0.5)-SUM($K82:AA82),(Input!$K$211*(1+rvanilla)^0.5)/A1stdlife)) -> 0 | AC82: =IF(A1stdlife="n/a","n/a",IF(AC$3>(A1stdlife+$E82),(Input!$K$211*(1+rvanilla)^0.5)-SUM($K82:AB82),(Input!$K$211*(1+rvanilla)^0.5)/A1stdlife)) -> 0 | AD82: =IF(A1stdlife="n/a","n/a",IF(AD$3>(A1stdlife+$E82),(Input!$K$211*(1+rvanilla)^0.5)-SUM($K82:AC82),(Input!$K$211*(1+rvanilla)^0.5)/A1stdlife)) -> 0 | AE82: =IF(A1stdlife="n/a","n/a",IF(AE$3>(A1stdlife+$E82),(Input!$K$211*(1+rvanilla)^0.5)-SUM($K82:AD82),(Input!$K$211*(1+rvanilla)^0.5)/A1stdlife)) -> 0 | AF82: =IF(A1stdlife="n/a","n/a",IF(AF$3>(A1stdlife+$E82),(Input!$K$211*(1+rvanilla)^0.5)-SUM($K82:AE82),(Input!$K$211*(1+rvanilla)^0.5)/A1stdlife)) -> 0 | AG82: =IF(A1stdlife="n/a","n/a",IF(AG$3>(A1stdlife+$E82),(Input!$K$211*(1+rvanilla)^0.5)-SUM($K82:AF82),(Input!$K$211*(1+rvanilla)^0.5)/A1stdlife)) -> 0 | AH82: =IF(A1stdlife="n/a","n/a",IF(AH$3>(A1stdlife+$E82),(Input!$K$211*(1+rvanilla)^0.5)-SUM($K82:AG82),(Input!$K$211*(1+rvanilla)^0.5)/A1stdlife)) -> 0 | AI82: =IF(A1stdlife="n/a","n/a",IF(AI$3>(A1stdlife+$E82),(Input!$K$211*(1+rvanilla)^0.5)-SUM($K82:AH82),(Input!$K$211*(1+rvanilla)^0.5)/A1stdlife)) -> 0 | AJ82: =IF(A1stdlife="n/a","n/a",IF(AJ$3>(A1stdlife+$E82),(Input!$K$211*(1+rvanilla)^0.5)-SUM($K82:AI82),(Input!$K$211*(1+rvanilla)^0.5)/A1stdlife)) -> 0 | AK82: =IF(A1stdlife="n/a","n/a",IF(AK$3>(A1stdlife+$E82),(Input!$K$211*(1+rvanilla)^0.5)-SUM($K82:AJ82),(Input!$K$211*(1+rvanilla)^0.5)/A1stdlife)) -> 0 | AL82: =IF(A1stdlife="n/a","n/a",IF(AL$3>(A1stdlife+$E82),(Input!$K$211*(1+rvanilla)^0.5)-SUM($K82:AK82),(Input!$K$211*(1+rvanilla)^0.5)/A1stdlife)) -> 0 | AM82: =IF(A1stdlife="n/a","n/a",IF(AM$3>(A1stdlife+$E82),(Input!$K$211*(1+rvanilla)^0.5)-SUM($K82:AL82),(Input!$K$211*(1+rvanilla)^0.5)/A1stdlife)) -> 0 | AN82: =IF(A1stdlife="n/a","n/a",IF(AN$3>(A1stdlife+$E82),(Input!$K$211*(1+rvanilla)^0.5)-SUM($K82:AM82),(Input!$K$211*(1+rvanilla)^0.5)/A1stdlife)) -> 0 | AO82: =IF(A1stdlife="n/a","n/a",IF(AO$3>(A1stdlife+$E82),(Input!$K$211*(1+rvanilla)^0.5)-SUM($K82:AN82),(Input!$K$211*(1+rvanilla)^0.5)/A1stdlife)) -> 0 | AP82: =IF(A1stdlife="n/a","n/a",IF(AP$3>(A1stdlife+$E82),(Input!$K$211*(1+rvanilla)^0.5)-SUM($K82:AO82),(Input!$K$211*(1+rvanilla)^0.5)/A1stdlife)) -> 0 | AQ82: =IF(A1stdlife="n/a","n/a",IF(AQ$3>(A1stdlife+$E82),(Input!$K$211*(1+rvanilla)^0.5)-SUM($K82:AP82),(Input!$K$211*(1+rvanilla)^0.5)/A1stdlife)) -> 0 | AR82: =IF(A1stdlife="n/a","n/a",IF(AR$3>(A1stdlife+$E82),(Input!$K$211*(1+rvanilla)^0.5)-SUM($K82:AQ82),(Input!$K$211*(1+rvanilla)^0.5)/A1stdlife)) -> 0 | AS82: =IF(A1stdlife="n/a","n/a",IF(AS$3>(A1stdlife+$E82),(Input!$K$211*(1+rvanilla)^0.5)-SUM($K82:AR82),(Input!$K$211*(1+rvanilla)^0.5)/A1stdlife)) -> 0 | AT82: =IF(A1stdlife="n/a","n/a",IF(AT$3>(A1stdlife+$E82),(Input!$K$211*(1+rvanilla)^0.5)-SUM($K82:AS82),(Input!$K$211*(1+rvanilla)^0.5)/A1stdlife)) -> 0 | AU82: =IF(A1stdlife="n/a","n/a",IF(AU$3>(A1stdlife+$E82),(Input!$K$211*(1+rvanilla)^0.5)-SUM($K82:AT82),(Input!$K$211*(1+rvanilla)^0.5)/A1stdlife)) -> 0 | AV82: =IF(A1stdlife="n/a","n/a",IF(AV$3>(A1stdlife+$E82),(Input!$K$211*(1+rvanilla)^0.5)-SUM($K82:AU82),(Input!$K$211*(1+rvanilla)^0.5)/A1stdlife)) -> 0 | AW82: =IF(A1stdlife="n/a","n/a",IF(AW$3>(A1stdlife+$E82),(Input!$K$211*(1+rvanilla)^0.5)-SUM($K82:AV82),(Input!$K$211*(1+rvanilla)^0.5)/A1stdlife)) -> 0 | AX82: =IF(A1stdlife="n/a","n/a",IF(AX$3>(A1stdlife+$E82),(Input!$K$211*(1+rvanilla)^0.5)-SUM($K82:AW82),(Input!$K$211*(1+rvanilla)^0.5)/A1stdlife)) -> 0 | AY82: =IF(A1stdlife="n/a","n/a",IF(AY$3>(A1stdlife+$E82),(Input!$K$211*(1+rvanilla)^0.5)-SUM($K82:AX82),(Input!$K$211*(1+rvanilla)^0.5)/A1stdlife)) -> 0 | AZ82: =IF(A1stdlife="n/a","n/a",IF(AZ$3>(A1stdlife+$E82),(Input!$K$211*(1+rvanilla)^0.5)-SUM($K82:AY82),(Input!$K$211*(1+rvanilla)^0.5)/A1stdlife)) -> 0 | BA82: =IF(A1stdlife="n/a","n/a",IF(BA$3>(A1stdlife+$E82),(Input!$K$211*(1+rvanilla)^0.5)-SUM($K82:AZ82),(Input!$K$211*(1+rvanilla)^0.5)/A1stdlife)) -> 0 | BB82: =IF(A1stdlife="n/a","n/a",IF(BB$3>(A1stdlife+$E82),(Input!$K$211*(1+rvanilla)^0.5)-SUM($K82:BA82),(Input!$K$211*(1+rvanilla)^0.5)/A1stdlife)) -> 0 | BC82: =IF(A1stdlife="n/a","n/a",IF(BC$3>(A1stdlife+$E82),(Input!$K$211*(1+rvanilla)^0.5)-SUM($K82:BB82),(Input!$K$211*(1+rvanilla)^0.5)/A1stdlife)) -> 0 | BD82: =IF(A1stdlife="n/a","n/a",IF(BD$3>(A1stdlife+$E82),(Input!$K$211*(1+rvanilla)^0.5)-SUM($K82:BC82),(Input!$K$211*(1+rvanilla)^0.5)/A1stdlife)) -> 0 | BE82: =IF(A1stdlife="n/a","n/a",IF(BE$3>(A1stdlife+$E82),(Input!$K$211*(1+rvanilla)^0.5)-SUM($K82:BD82),(Input!$K$211*(1+rvanilla)^0.5)/A1stdlife)) -> 0 | BF82: =IF(A1stdlife="n/a","n/a",IF(BF$3>(A1stdlife+$E82),(Input!$K$211*(1+rvanilla)^0.5)-SUM($K82:BE82),(Input!$K$211*(1+rvanilla)^0.5)/A1stdlife)) -> 0 | BG82: =IF(A1stdlife="n/a","n/a",IF(BG$3>(A1stdlife+$E82),(Input!$K$211*(1+rvanilla)^0.5)-SUM($K82:BF82),(Input!$K$211*(1+rvanilla)^0.5)/A1stdlife)) -> 0 | BH82: =IF(A1stdlife="n/a","n/a",IF(BH$3>(A1stdlife+$E82),(Input!$K$211*(1+rvanilla)^0.5)-SUM($K82:BG82),(Input!$K$211*(1+rvanilla)^0.5)/A1stdlife)) -> 0 | BI82: =IF(A1stdlife="n/a","n/a",IF(BI$3>(A1stdlife+$E82),(Input!$K$211*(1+rvanilla)^0.5)-SUM($K82:BH82),(Input!$K$211*(1+rvanilla)^0.5)/A1stdlife)) -> 0
E83: 6 | M83: =IF(A1stdlife="n/a","n/a",IF(M$3>(A1stdlife+$E83),(Input!$L$211*(1+rvanilla)^0.5)-SUM($L83:L83),(Input!$L$211*(1+rvanilla)^0.5)/A1stdlife)) -> 0 | N83: =IF(A1stdlife="n/a","n/a",IF(N$3>(A1stdlife+$E83),(Input!$L$211*(1+rvanilla)^0.5)-SUM($L83:M83),(Input!$L$211*(1+rvanilla)^0.5)/A1stdlife)) -> 0 | O83: =IF(A1stdlife="n/a","n/a",IF(O$3>(A1stdlife+$E83),(Input!$L$211*(1+rvanilla)^0.5)-SUM($L83:N83),(Input!$L$211*(1+rvanilla)^0.5)/A1stdlife)) -> 0 | P83: =IF(A1stdlife="n/a","n/a",IF(P$3>(A1stdlife+$E83),(Input!$L$211*(1+rvanilla)^0.5)-SUM($L83:O83),(Input!$L$211*(1+rvanilla)^0.5)/A1stdlife)) -> 0 | Q83: =IF(A1stdlife="n/a","n/a",IF(Q$3>(A1stdlife+$E83),(Input!$L$211*(1+rvanilla)^0.5)-SUM($L83:P83),(Input!$L$211*(1+rvanilla)^0.5)/A1stdlife)) -> 0 | R83: =IF(A1stdlife="n/a","n/a",IF(R$3>(A1stdlife+$E83),(Input!$L$211*(1+rvanilla)^0.5)-SUM($L83:Q83),(Input!$L$211*(1+rvanilla)^0.5)/A1stdlife)) -> 0 | S83: =IF(A1stdlife="n/a","n/a",IF(S$3>(A1stdlife+$E83),(Input!$L$211*(1+rvanilla)^0.5)-SUM($L83:R83),(Input!$L$211*(1+rvanilla)^0.5)/A1stdlife)) -> 0 | T83: =IF(A1stdlife="n/a","n/a",IF(T$3>(A1stdlife+$E83),(Input!$L$211*(1+rvanilla)^0.5)-SUM($L83:S83),(Input!$L$211*(1+rvanilla)^0.5)/A1stdlife)) -> 0 | U83: =IF(A1stdlife="n/a","n/a",IF(U$3>(A1stdlife+$E83),(Input!$L$211*(1+rvanilla)^0.5)-SUM($L83:T83),(Input!$L$211*(1+rvanilla)^0.5)/A1stdlife)) -> 0 | V83: =IF(A1stdlife="n/a","n/a",IF(V$3>(A1stdlife+$E83),(Input!$L$211*(1+rvanilla)^0.5)-SUM($L83:U83),(Input!$L$211*(1+rvanilla)^0.5)/A1stdlife)) -> 0 | W83: =IF(A1stdlife="n/a","n/a",IF(W$3>(A1stdlife+$E83),(Input!$L$211*(1+rvanilla)^0.5)-SUM($L83:V83),(Input!$L$211*(1+rvanilla)^0.5)/A1stdlife)) -> 0 | X83: =IF(A1stdlife="n/a","n/a",IF(X$3>(A1stdlife+$E83),(Input!$L$211*(1+rvanilla)^0.5)-SUM($L83:W83),(Input!$L$211*(1+rvanilla)^0.5)/A1stdlife)) -> 0 | Y83: =IF(A1stdlife="n/a","n/a",IF(Y$3>(A1stdlife+$E83),(Input!$L$211*(1+rvanilla)^0.5)-SUM($L83:X83),(Input!$L$211*(1+rvanilla)^0.5)/A1stdlife)) -> 0 | Z83: =IF(A1stdlife="n/a","n/a",IF(Z$3>(A1stdlife+$E83),(Input!$L$211*(1+rvanilla)^0.5)-SUM($L83:Y83),(Input!$L$211*(1+rvanilla)^0.5)/A1stdlife)) -> 0 | AA83: =IF(A1stdlife="n/a","n/a",IF(AA$3>(A1stdlife+$E83),(Input!$L$211*(1+rvanilla)^0.5)-SUM($L83:Z83),(Input!$L$211*(1+rvanilla)^0.5)/A1stdlife)) -> 0 | AB83: =IF(A1stdlife="n/a","n/a",IF(AB$3>(A1stdlife+$E83),(Input!$L$211*(1+rvanilla)^0.5)-SUM($L83:AA83),(Input!$L$211*(1+rvanilla)^0.5)/A1stdlife)) -> 0 | AC83: =IF(A1stdlife="n/a","n/a",IF(AC$3>(A1stdlife+$E83),(Input!$L$211*(1+rvanilla)^0.5)-SUM($L83:AB83),(Input!$L$211*(1+rvanilla)^0.5)/A1stdlife)) -> 0 | AD83: =IF(A1stdlife="n/a","n/a",IF(AD$3>(A1stdlife+$E83),(Input!$L$211*(1+rvanilla)^0.5)-SUM($L83:AC83),(Input!$L$211*(1+rvanilla)^0.5)/A1stdlife)) -> 0 | AE83: =IF(A1stdlife="n/a","n/a",IF(AE$3>(A1stdlife+$E83),(Input!$L$211*(1+rvanilla)^0.5)-SUM($L83:AD83),(Input!$L$211*(1+rvanilla)^0.5)/A1stdlife)) -> 0 | AF83: =IF(A1stdlife="n/a","n/a",IF(AF$3>(A1stdlife+$E83),(Input!$L$211*(1+rvanilla)^0.5)-SUM($L83:AE83),(Input!$L$211*(1+rvanilla)^0.5)/A1stdlife)) -> 0 | AG83: =IF(A1stdlife="n/a","n/a",IF(AG$3>(A1stdlife+$E83),(Input!$L$211*(1+rvanilla)^0.5)-SUM($L83:AF83),(Input!$L$211*(1+rvanilla)^0.5)/A1stdlife)) -> 0 | AH83: =IF(A1stdlife="n/a","n/a",IF(AH$3>(A1stdlife+$E83),(Input!$L$211*(1+rvanilla)^0.5)-SUM($L83:AG83),(Input!$L$211*(1+rvanilla)^0.5)/A1stdlife)) -> 0 | AI83: =IF(A1stdlife="n/a","n/a",IF(AI$3>(A1stdlife+$E83),(Input!$L$211*(1+rvanilla)^0.5)-SUM($L83:AH83),(Input!$L$211*(1+rvanilla)^0.5)/A1stdlife)) -> 0 | AJ83: =IF(A1stdlife="n/a","n/a",IF(AJ$3>(A1stdlife+$E83),(Input!$L$211*(1+rvanilla)^0.5)-SUM($L83:AI83),(Input!$L$211*(1+rvanilla)^0.5)/A1stdlife)) -> 0 | AK83: =IF(A1stdlife="n/a","n/a",IF(AK$3>(A1stdlife+$E83),(Input!$L$211*(1+rvanilla)^0.5)-SUM($L83:AJ83),(Input!$L$211*(1+rvanilla)^0.5)/A1stdlife)) -> 0 | AL83: =IF(A1stdlife="n/a","n/a",IF(AL$3>(A1stdlife+$E83),(Input!$L$211*(1+rvanilla)^0.5)-SUM($L83:AK83),(Input!$L$211*(1+rvanilla)^0.5)/A1stdlife)) -> 0 | AM83: =IF(A1stdlife="n/a","n/a",IF(AM$3>(A1stdlife+$E83),(Input!$L$211*(1+rvanilla)^0.5)-SUM($L83:AL83),(Input!$L$211*(1+rvanilla)^0.5)/A1stdlife)) -> 0 | AN83: =IF(A1stdlife="n/a","n/a",IF(AN$3>(A1stdlife+$E83),(Input!$L$211*(1+rvanilla)^0.5)-SUM($L83:AM83),(Input!$L$211*(1+rvanilla)^0.5)/A1stdlife)) -> 0 | AO83: =IF(A1stdlife="n/a","n/a",IF(AO$3>(A1stdlife+$E83),(Input!$L$211*(1+rvanilla)^0.5)-SUM($L83:AN83),(Input!$L$211*(1+rvanilla)^0.5)/A1stdlife)) -> 0 | AP83: =IF(A1stdlife="n/a","n/a",IF(AP$3>(A1stdlife+$E83),(Input!$L$211*(1+rvanilla)^0.5)-SUM($L83:AO83),(Input!$L$211*(1+rvanilla)^0.5)/A1stdlife)) -> 0 | AQ83: =IF(A1stdlife="n/a","n/a",IF(AQ$3>(A1stdlife+$E83),(Input!$L$211*(1+rvanilla)^0.5)-SUM($L83:AP83),(Input!$L$211*(1+rvanilla)^0.5)/A1stdlife)) -> 0 | AR83: =IF(A1stdlife="n/a","n/a",IF(AR$3>(A1stdlife+$E83),(Input!$L$211*(1+rvanilla)^0.5)-SUM($L83:AQ83),(Input!$L$211*(1+rvanilla)^0.5)/A1stdlife)) -> 0 | AS83: =IF(A1stdlife="n/a","n/a",IF(AS$3>(A1stdlife+$E83),(Input!$L$211*(1+rvanilla)^0.5)-SUM($L83:AR83),(Input!$L$211*(1+rvanilla)^0.5)/A1stdlife)) -> 0 | AT83: =IF(A1stdlife="n/a","n/a",IF(AT$3>(A1stdlife+$E83),(Input!$L$211*(1+rvanilla)^0.5)-SUM($L83:AS83),(Input!$L$211*(1+rvanilla)^0.5)/A1stdlife)) -> 0 | AU83: =IF(A1stdlife="n/a","n/a",IF(AU$3>(A1stdlife+$E83),(Input!$L$211*(1+rvanilla)^0.5)-SUM($L83:AT83),(Input!$L$211*(1+rvanilla)^0.5)/A1stdlife)) -> 0 | AV83: =IF(A1stdlife="n/a","n/a",IF(AV$3>(A1stdlife+$E83),(Input!$L$211*(1+rvanilla)^0.5)-SUM($L83:AU83),(Input!$L$211*(1+rvanilla)^0.5)/A1stdlife)) -> 0 | AW83: =IF(A1stdlife="n/a","n/a",IF(AW$3>(A1stdlife+$E83),(Input!$L$211*(1+rvanilla)^0.5)-SUM($L83:AV83),(Input!$L$211*(1+rvanilla)^0.5)/A1stdlife)) -> 0 | AX83: =IF(A1stdlife="n/a","n/a",IF(AX$3>(A1stdlife+$E83),(Input!$L$211*(1+rvanilla)^0.5)-SUM($L83:AW83),(Input!$L$211*(1+rvanilla)^0.5)/A1stdlife)) -> 0 | AY83: =IF(A1stdlife="n/a","n/a",IF(AY$3>(A1stdlife+$E83),(Input!$L$211*(1+rvanilla)^0.5)-SUM($L83:AX83),(Input!$L$211*(1+rvanilla)^0.5)/A1stdlife)) -> 0 | AZ83: =IF(A1stdlife="n/a","n/a",IF(AZ$3>(A1stdlife+$E83),(Input!$L$211*(1+rvanilla)^0.5)-SUM($L83:AY83),(Input!$L$211*(1+rvanilla)^0.5)/A1stdlife)) -> 0 | BA83: =IF(A1stdlife="n/a","n/a",IF(BA$3>(A1stdlife+$E83),(Input!$L$211*(1+rvanilla)^0.5)-SUM($L83:AZ83),(Input!$L$211*(1+rvanilla)^0.5)/A1stdlife)) -> 0 | BB83: =IF(A1stdlife="n/a","n/a",IF(BB$3>(A1stdlife+$E83),(Input!$L$211*(1+rvanilla)^0.5)-SUM($L83:BA83),(Input!$L$211*(1+rvanilla)^0.5)/A1stdlife)) -> 0 | BC83: =IF(A1stdlife="n/a","n/a",IF(BC$3>(A1stdlife+$E83),(Input!$L$211*(1+rvanilla)^0.5)-SUM($L83:BB83),(Input!$L$211*(1+rvanilla)^0.5)/A1stdlife)) -> 0 | BD83: =IF(A1stdlife="n/a","n/a",IF(BD$3>(A1stdlife+$E83),(Input!$L$211*(1+rvanilla)^0.5)-SUM($L83:BC83),(Input!$L$211*(1+rvanilla)^0.5)/A1stdlife)) -> 0 | BE83: =IF(A1stdlife="n/a","n/a",IF(BE$3>(A1stdlife+$E83),(Input!$L$211*(1+rvanilla)^0.5)-SUM($L83:BD83),(Input!$L$211*(1+rvanilla)^0.5)/A1stdlife)) -> 0 | BF83: =IF(A1stdlife="n/a","n/a",IF(BF$3>(A1stdlife+$E83),(Input!$L$211*(1+rvanilla)^0.5)-SUM($L83:BE83),(Input!$L$211*(1+rvanilla)^0.5)/A1stdlife)) -> 0 | BG83: =IF(A1stdlife="n/a","n/a",IF(BG$3>(A1stdlife+$E83),(Input!$L$211*(1+rvanilla)^0.5)-SUM($L83:BF83),(Input!$L$211*(1+rvanilla)^0.5)/A1stdlife)) -> 0 | BH83: =IF(A1stdlife="n/a","n/a",IF(BH$3>(A1stdlife+$E83),(Input!$L$211*(1+rvanilla)^0.5)-SUM($L83:BG83),(Input!$L$211*(1+rvanilla)^0.5)/A1stdlife)) -> 0 | BI83: =IF(A1stdlife="n/a","n/a",IF(BI$3>(A1stdlife+$E83),(Input!$L$211*(1+rvanilla)^0.5)-SUM($L83:BH83),(Input!$L$211*(1+rvanilla)^0.5)/A1stdlife)) -> 0
E84: 7 | N84: =IF(A1stdlife="n/a","n/a",IF(N$3>(A1stdlife+$E84),(Input!$M$211*(1+rvanilla)^0.5)-SUM($M84:M84),(Input!$M$211*(1+rvanilla)^0.5)/A1stdlife)) -> 0 | O84: =IF(A1stdlife="n/a","n/a",IF(O$3>(A1stdlife+$E84),(Input!$M$211*(1+rvanilla)^0.5)-SUM($M84:N84),(Input!$M$211*(1+rvanilla)^0.5)/A1stdlife)) -> 0 | P84: =IF(A1stdlife="n/a","n/a",IF(P$3>(A1stdlife+$E84),(Input!$M$211*(1+rvanilla)^0.5)-SUM($M84:O84),(Input!$M$211*(1+rvanilla)^0.5)/A1stdlife)) -> 0 | Q84: =IF(A1stdlife="n/a","n/a",IF(Q$3>(A1stdlife+$E84),(Input!$M$211*(1+rvanilla)^0.5)-SUM($M84:P84),(Input!$M$211*(1+rvanilla)^0.5)/A1stdlife)) -> 0 | R84: =IF(A1stdlife="n/a","n/a",IF(R$3>(A1stdlife+$E84),(Input!$M$211*(1+rvanilla)^0.5)-SUM($M84:Q84),(Input!$M$211*(1+rvanilla)^0.5)/A1stdlife)) -> 0 | S84: =IF(A1stdlife="n/a","n/a",IF(S$3>(A1stdlife+$E84),(Input!$M$211*(1+rvanilla)^0.5)-SUM($M84:R84),(Input!$M$211*(1+rvanilla)^0.5)/A1stdlife)) -> 0 | T84: =IF(A1stdlife="n/a","n/a",IF(T$3>(A1stdlife+$E84),(Input!$M$211*(1+rvanilla)^0.5)-SUM($M84:S84),(Input!$M$211*(1+rvanilla)^0.5)/A1stdlife)) -> 0 | U84: =IF(A1stdlife="n/a","n/a",IF(U$3>(A1stdlife+$E84),(Input!$M$211*(1+rvanilla)^0.5)-SUM($M84:T84),(Input!$M$211*(1+rvanilla)^0.5)/A1stdlife)) -> 0 | V84: =IF(A1stdlife="n/a","n/a",IF(V$3>(A1stdlife+$E84),(Input!$M$211*(1+rvanilla)^0.5)-SUM($M84:U84),(Input!$M$211*(1+rvanilla)^0.5)/A1stdlife)) -> 0 | W84: =IF(A1stdlife="n/a","n/a",IF(W$3>(A1stdlife+$E84),(Input!$M$211*(1+rvanilla)^0.5)-SUM($M84:V84),(Input!$M$211*(1+rvanilla)^0.5)/A1stdlife)) -> 0 | X84: =IF(A1stdlife="n/a","n/a",IF(X$3>(A1stdlife+$E84),(Input!$M$211*(1+rvanilla)^0.5)-SUM($M84:W84),(Input!$M$211*(1+rvanilla)^0.5)/A1stdlife)) -> 0 | Y84: =IF(A1stdlife="n/a","n/a",IF(Y$3>(A1stdlife+$E84),(Input!$M$211*(1+rvanilla)^0.5)-SUM($M84:X84),(Input!$M$211*(1+rvanilla)^0.5)/A1stdlife)) -> 0 | Z84: =IF(A1stdlife="n/a","n/a",IF(Z$3>(A1stdlife+$E84),(Input!$M$211*(1+rvanilla)^0.5)-SUM($M84:Y84),(Input!$M$211*(1+rvanilla)^0.5)/A1stdlife)) -> 0 | AA84: =IF(A1stdlife="n/a","n/a",IF(AA$3>(A1stdlife+$E84),(Input!$M$211*(1+rvanilla)^0.5)-SUM($M84:Z84),(Input!$M$211*(1+rvanilla)^0.5)/A1stdlife)) -> 0 | AB84: =IF(A1stdlife="n/a","n/a",IF(AB$3>(A1stdlife+$E84),(Input!$M$211*(1+rvanilla)^0.5)-SUM($M84:AA84),(Input!$M$211*(1+rvanilla)^0.5)/A1stdlife)) -> 0 | AC84: =IF(A1stdlife="n/a","n/a",IF(AC$3>(A1stdlife+$E84),(Input!$M$211*(1+rvanilla)^0.5)-SUM($M84:AB84),(Input!$M$211*(1+rvanilla)^0.5)/A1stdlife)) -> 0 | AD84: =IF(A1stdlife="n/a","n/a",IF(AD$3>(A1stdlife+$E84),(Input!$M$211*(1+rvanilla)^0.5)-SUM($M84:AC84),(Input!$M$211*(1+rvanilla)^0.5)/A1stdlife)) -> 0 | AE84: =IF(A1stdlife="n/a","n/a",IF(AE$3>(A1stdlife+$E84),(Input!$M$211*(1+rvanilla)^0.5)-SUM($M84:AD84),(Input!$M$211*(1+rvanilla)^0.5)/A1stdlife)) -> 0 | AF84: =IF(A1stdlife="n/a","n/a",IF(AF$3>(A1stdlife+$E84),(Input!$M$211*(1+rvanilla)^0.5)-SUM($M84:AE84),(Input!$M$211*(1+rvanilla)^0.5)/A1stdlife)) -> 0 | AG84: =IF(A1stdlife="n/a","n/a",IF(AG$3>(A1stdlife+$E84),(Input!$M$211*(1+rvanilla)^0.5)-SUM($M84:AF84),(Input!$M$211*(1+rvanilla)^0.5)/A1stdlife)) -> 0 | AH84: =IF(A1stdlife="n/a","n/a",IF(AH$3>(A1stdlife+$E84),(Input!$M$211*(1+rvanilla)^0.5)-SUM($M84:AG84),(Input!$M$211*(1+rvanilla)^0.5)/A1stdlife)) -> 0 | AI84: =IF(A1stdlife="n/a","n/a",IF(AI$3>(A1stdlife+$E84),(Input!$M$211*(1+rvanilla)^0.5)-SUM($M84:AH84),(Input!$M$211*(1+rvanilla)^0.5)/A1stdlife)) -> 0 | AJ84: =IF(A1stdlife="n/a","n/a",IF(AJ$3>(A1stdlife+$E84),(Input!$M$211*(1+rvanilla)^0.5)-SUM($M84:AI84),(Input!$M$211*(1+rvanilla)^0.5)/A1stdlife)) -> 0 | AK84: =IF(A1stdlife="n/a","n/a",IF(AK$3>(A1stdlife+$E84),(Input!$M$211*(1+rvanilla)^0.5)-SUM($M84:AJ84),(Input!$M$211*(1+rvanilla)^0.5)/A1stdlife)) -> 0 | AL84: =IF(A1stdlife="n/a","n/a",IF(AL$3>(A1stdlife+$E84),(Input!$M$211*(1+rvanilla)^0.5)-SUM($M84:AK84),(Input!$M$211*(1+rvanilla)^0.5)/A1stdlife)) -> 0 | AM84: =IF(A1stdlife="n/a","n/a",IF(AM$3>(A1stdlife+$E84),(Input!$M$211*(1+rvanilla)^0.5)-SUM($M84:AL84),(Input!$M$211*(1+rvanilla)^0.5)/A1stdlife)) -> 0 | AN84: =IF(A1stdlife="n/a","n/a",IF(AN$3>(A1stdlife+$E84),(Input!$M$211*(1+rvanilla)^0.5)-SUM($M84:AM84),(Input!$M$211*(1+rvanilla)^0.5)/A1stdlife)) -> 0 | AO84: =IF(A1stdlife="n/a","n/a",IF(AO$3>(A1stdlife+$E84),(Input!$M$211*(1+rvanilla)^0.5)-SUM($M84:AN84),(Input!$M$211*(1+rvanilla)^0.5)/A1stdlife)) -> 0 | AP84: =IF(A1stdlife="n/a","n/a",IF(AP$3>(A1stdlife+$E84),(Input!$M$211*(1+rvanilla)^0.5)-SUM($M84:AO84),(Input!$M$211*(1+rvanilla)^0.5)/A1stdlife)) -> 0 | AQ84: =IF(A1stdlife="n/a","n/a",IF(AQ$3>(A1stdlife+$E84),(Input!$M$211*(1+rvanilla)^0.5)-SUM($M84:AP84),(Input!$M$211*(1+rvanilla)^0.5)/A1stdlife)) -> 0 | AR84: =IF(A1stdlife="n/a","n/a",IF(AR$3>(A1stdlife+$E84),(Input!$M$211*(1+rvanilla)^0.5)-SUM($M84:AQ84),(Input!$M$211*(1+rvanilla)^0.5)/A1stdlife)) -> 0 | AS84: =IF(A1stdlife="n/a","n/a",IF(AS$3>(A1stdlife+$E84),(Input!$M$211*(1+rvanilla)^0.5)-SUM($M84:AR84),(Input!$M$211*(1+rvanilla)^0.5)/A1stdlife)) -> 0 | AT84: =IF(A1stdlife="n/a","n/a",IF(AT$3>(A1stdlife+$E84),(Input!$M$211*(1+rvanilla)^0.5)-SUM($M84:AS84),(Input!$M$211*(1+rvanilla)^0.5)/A1stdlife)) -> 0 | AU84: =IF(A1stdlife="n/a","n/a",IF(AU$3>(A1stdlife+$E84),(Input!$M$211*(1+rvanilla)^0.5)-SUM($M84:AT84),(Input!$M$211*(1+rvanilla)^0.5)/A1stdlife)) -> 0 | AV84: =IF(A1stdlife="n/a","n/a",IF(AV$3>(A1stdlife+$E84),(Input!$M$211*(1+rvanilla)^0.5)-SUM($M84:AU84),(Input!$M$211*(1+rvanilla)^0.5)/A1stdlife)) -> 0 | AW84: =IF(A1stdlife="n/a","n/a",IF(AW$3>(A1stdlife+$E84),(Input!$M$211*(1+rvanilla)^0.5)-SUM($M84:AV84),(Input!$M$211*(1+rvanilla)^0.5)/A1stdlife)) -> 0 | AX84: =IF(A1stdlife="n/a","n/a",IF(AX$3>(A1stdlife+$E84),(Input!$M$211*(1+rvanilla)^0.5)-SUM($M84:AW84),(Input!$M$211*(1+rvanilla)^0.5)/A1stdlife)) -> 0 | AY84: =IF(A1stdlife="n/a","n/a",IF(AY$3>(A1stdlife+$E84),(Input!$M$211*(1+rvanilla)^0.5)-SUM($M84:AX84),(Input!$M$211*(1+rvanilla)^0.5)/A1stdlife)) -> 0 | AZ84: =IF(A1stdlife="n/a","n/a",IF(AZ$3>(A1stdlife+$E84),(Input!$M$211*(1+rvanilla)^0.5)-SUM($M84:AY84),(Input!$M$211*(1+rvanilla)^0.5)/A1stdlife)) -> 0 | BA84: =IF(A1stdlife="n/a","n/a",IF(BA$3>(A1stdlife+$E84),(Input!$M$211*(1+rvanilla)^0.5)-SUM($M84:AZ84),(Input!$M$211*(1+rvanilla)^0.5)/A1stdlife)) -> 0 | BB84: =IF(A1stdlife="n/a","n/a",IF(BB$3>(A1stdlife+$E84),(Input!$M$211*(1+rvanilla)^0.5)-SUM($M84:BA84),(Input!$M$211*(1+rvanilla)^0.5)/A1stdlife)) -> 0 | BC84: =IF(A1stdlife="n/a","n/a",IF(BC$3>(A1stdlife+$E84),(Input!$M$211*(1+rvanilla)^0.5)-SUM($M84:BB84),(Input!$M$211*(1+rvanilla)^0.5)/A1stdlife)) -> 0 | BD84: =IF(A1stdlife="n/a","n/a",IF(BD$3>(A1stdlife+$E84),(Input!$M$211*(1+rvanilla)^0.5)-SUM($M84:BC84),(Input!$M$211*(1+rvanilla)^0.5)/A1stdlife)) -> 0 | BE84: =IF(A1stdlife="n/a","n/a",IF(BE$3>(A1stdlife+$E84),(Input!$M$211*(1+rvanilla)^0.5)-SUM($M84:BD84),(Input!$M$211*(1+rvanilla)^0.5)/A1stdlife)) -> 0 | BF84: =IF(A1stdlife="n/a","n/a",IF(BF$3>(A1stdlife+$E84),(Input!$M$211*(1+rvanilla)^0.5)-SUM($M84:BE84),(Input!$M$211*(1+rvanilla)^0.5)/A1stdlife)) -> 0 | BG84: =IF(A1stdlife="n/a","n/a",IF(BG$3>(A1stdlife+$E84),(Input!$M$211*(1+rvanilla)^0.5)-SUM($M84:BF84),(Input!$M$211*(1+rvanilla)^0.5)/A1stdlife)) -> 0 | BH84: =IF(A1stdlife="n/a","n/a",IF(BH$3>(A1stdlife+$E84),(Input!$M$211*(1+rvanilla)^0.5)-SUM($M84:BG84),(Input!$M$211*(1+rvanilla)^0.5)/A1stdlife)) -> 0 | BI84: =IF(A1stdlife="n/a","n/a",IF(BI$3>(A1stdlife+$E84),(Input!$M$211*(1+rvanilla)^0.5)-SUM($M84:BH84),(Input!$M$211*(1+rvanilla)^0.5)/A1stdlife)) -> 0
E85: 8 | O85: =IF(A1stdlife="n/a","n/a",IF(O$3>(A1stdlife+$E85),(Input!$N$211*(1+rvanilla)^0.5)-SUM($N85:N85),(Input!$N$211*(1+rvanilla)^0.5)/A1stdlife)) -> 0 | P85: =IF(A1stdlife="n/a","n/a",IF(P$3>(A1stdlife+$E85),(Input!$N$211*(1+rvanilla)^0.5)-SUM($N85:O85),(Input!$N$211*(1+rvanilla)^0.5)/A1stdlife)) -> 0 | Q85: =IF(A1stdlife="n/a","n/a",IF(Q$3>(A1stdlife+$E85),(Input!$N$211*(1+rvanilla)^0.5)-SUM($N85:P85),(Input!$N$211*(1+rvanilla)^0.5)/A1stdlife)) -> 0 | R85: =IF(A1stdlife="n/a","n/a",IF(R$3>(A1stdlife+$E85),(Input!$N$211*(1+rvanilla)^0.5)-SUM($N85:Q85),(Input!$N$211*(1+rvanilla)^0.5)/A1stdlife)) -> 0 | S85: =IF(A1stdlife="n/a","n/a",IF(S$3>(A1stdlife+$E85),(Input!$N$211*(1+rvanilla)^0.5)-SUM($N85:R85),(Input!$N$211*(1+rvanilla)^0.5)/A1stdlife)) -> 0 | T85: =IF(A1stdlife="n/a","n/a",IF(T$3>(A1stdlife+$E85),(Input!$N$211*(1+rvanilla)^0.5)-SUM($N85:S85),(Input!$N$211*(1+rvanilla)^0.5)/A1stdlife)) -> 0 | U85: =IF(A1stdlife="n/a","n/a",IF(U$3>(A1stdlife+$E85),(Input!$N$211*(1+rvanilla)^0.5)-SUM($N85:T85),(Input!$N$211*(1+rvanilla)^0.5)/A1stdlife)) -> 0 | V85: =IF(A1stdlife="n/a","n/a",IF(V$3>(A1stdlife+$E85),(Input!$N$211*(1+rvanilla)^0.5)-SUM($N85:U85),(Input!$N$211*(1+rvanilla)^0.5)/A1stdlife)) -> 0 | W85: =IF(A1stdlife="n/a","n/a",IF(W$3>(A1stdlife+$E85),(Input!$N$211*(1+rvanilla)^0.5)-SUM($N85:V85),(Input!$N$211*(1+rvanilla)^0.5)/A1stdlife)) -> 0 | X85: =IF(A1stdlife="n/a","n/a",IF(X$3>(A1stdlife+$E85),(Input!$N$211*(1+rvanilla)^0.5)-SUM($N85:W85),(Input!$N$211*(1+rvanilla)^0.5)/A1stdlife)) -> 0 | Y85: =IF(A1stdlife="n/a","n/a",IF(Y$3>(A1stdlife+$E85),(Input!$N$211*(1+rvanilla)^0.5)-SUM($N85:X85),(Input!$N$211*(1+rvanilla)^0.5)/A1stdlife)) -> 0 | Z85: =IF(A1stdlife="n/a","n/a",IF(Z$3>(A1stdlife+$E85),(Input!$N$211*(1+rvanilla)^0.5)-SUM($N85:Y85),(Input!$N$211*(1+rvanilla)^0.5)/A1stdlife)) -> 0 | AA85: =IF(A1stdlife="n/a","n/a",IF(AA$3>(A1stdlife+$E85),(Input!$N$211*(1+rvanilla)^0.5)-SUM($N85:Z85),(Input!$N$211*(1+rvanilla)^0.5)/A1stdlife)) -> 0 | AB85: =IF(A1stdlife="n/a","n/a",IF(AB$3>(A1stdlife+$E85),(Input!$N$211*(1+rvanilla)^0.5)-SUM($N85:AA85),(Input!$N$211*(1+rvanilla)^0.5)/A1stdlife)) -> 0 | AC85: =IF(A1stdlife="n/a","n/a",IF(AC$3>(A1stdlife+$E85),(Input!$N$211*(1+rvanilla)^0.5)-SUM($N85:AB85),(Input!$N$211*(1+rvanilla)^0.5)/A1stdlife)) -> 0 | AD85: =IF(A1stdlife="n/a","n/a",IF(AD$3>(A1stdlife+$E85),(Input!$N$211*(1+rvanilla)^0.5)-SUM($N85:AC85),(Input!$N$211*(1+rvanilla)^0.5)/A1stdlife)) -> 0 | AE85: =IF(A1stdlife="n/a","n/a",IF(AE$3>(A1stdlife+$E85),(Input!$N$211*(1+rvanilla)^0.5)-SUM($N85:AD85),(Input!$N$211*(1+rvanilla)^0.5)/A1stdlife)) -> 0 | AF85: =IF(A1stdlife="n/a","n/a",IF(AF$3>(A1stdlife+$E85),(Input!$N$211*(1+rvanilla)^0.5)-SUM($N85:AE85),(Input!$N$211*(1+rvanilla)^0.5)/A1stdlife)) -> 0 | AG85: =IF(A1stdlife="n/a","n/a",IF(AG$3>(A1stdlife+$E85),(Input!$N$211*(1+rvanilla)^0.5)-SUM($N85:AF85),(Input!$N$211*(1+rvanilla)^0.5)/A1stdlife)) -> 0 | AH85: =IF(A1stdlife="n/a","n/a",IF(AH$3>(A1stdlife+$E85),(Input!$N$211*(1+rvanilla)^0.5)-SUM($N85:AG85),(Input!$N$211*(1+rvanilla)^0.5)/A1stdlife)) -> 0 | AI85: =IF(A1stdlife="n/a","n/a",IF(AI$3>(A1stdlife+$E85),(Input!$N$211*(1+rvanilla)^0.5)-SUM($N85:AH85),(Input!$N$211*(1+rvanilla)^0.5)/A1stdlife)) -> 0 | AJ85: =IF(A1stdlife="n/a","n/a",IF(AJ$3>(A1stdlife+$E85),(Input!$N$211*(1+rvanilla)^0.5)-SUM($N85:AI85),(Input!$N$211*(1+rvanilla)^0.5)/A1stdlife)) -> 0 | AK85: =IF(A1stdlife="n/a","n/a",IF(AK$3>(A1stdlife+$E85),(Input!$N$211*(1+rvanilla)^0.5)-SUM($N85:AJ85),(Input!$N$211*(1+rvanilla)^0.5)/A1stdlife)) -> 0 | AL85: =IF(A1stdlife="n/a","n/a",IF(AL$3>(A1stdlife+$E85),(Input!$N$211*(1+rvanilla)^0.5)-SUM($N85:AK85),(Input!$N$211*(1+rvanilla)^0.5)/A1stdlife)) -> 0 | AM85: =IF(A1stdlife="n/a","n/a",IF(AM$3>(A1stdlife+$E85),(Input!$N$211*(1+rvanilla)^0.5)-SUM($N85:AL85),(Input!$N$211*(1+rvanilla)^0.5)/A1stdlife)) -> 0 | AN85: =IF(A1stdlife="n/a","n/a",IF(AN$3>(A1stdlife+$E85),(Input!$N$211*(1+rvanilla)^0.5)-SUM($N85:AM85),(Input!$N$211*(1+rvanilla)^0.5)/A1stdlife)) -> 0 | AO85: =IF(A1stdlife="n/a","n/a",IF(AO$3>(A1stdlife+$E85),(Input!$N$211*(1+rvanilla)^0.5)-SUM($N85:AN85),(Input!$N$211*(1+rvanilla)^0.5)/A1stdlife)) -> 0 | AP85: =IF(A1stdlife="n/a","n/a",IF(AP$3>(A1stdlife+$E85),(Input!$N$211*(1+rvanilla)^0.5)-SUM($N85:AO85),(Input!$N$211*(1+rvanilla)^0.5)/A1stdlife)) -> 0 | AQ85: =IF(A1stdlife="n/a","n/a",IF(AQ$3>(A1stdlife+$E85),(Input!$N$211*(1+rvanilla)^0.5)-SUM($N85:AP85),(Input!$N$211*(1+rvanilla)^0.5)/A1stdlife)) -> 0 | AR85: =IF(A1stdlife="n/a","n/a",IF(AR$3>(A1stdlife+$E85),(Input!$N$211*(1+rvanilla)^0.5)-SUM($N85:AQ85),(Input!$N$211*(1+rvanilla)^0.5)/A1stdlife)) -> 0 | AS85: =IF(A1stdlife="n/a","n/a",IF(AS$3>(A1stdlife+$E85),(Input!$N$211*(1+rvanilla)^0.5)-SUM($N85:AR85),(Input!$N$211*(1+rvanilla)^0.5)/A1stdlife)) -> 0 | AT85: =IF(A1stdlife="n/a","n/a",IF(AT$3>(A1stdlife+$E85),(Input!$N$211*(1+rvanilla)^0.5)-SUM($N85:AS85),(Input!$N$211*(1+rvanilla)^0.5)/A1stdlife)) -> 0 | AU85: =IF(A1stdlife="n/a","n/a",IF(AU$3>(A1stdlife+$E85),(Input!$N$211*(1+rvanilla)^0.5)-SUM($N85:AT85),(Input!$N$211*(1+rvanilla)^0.5)/A1stdlife)) -> 0 | AV85: =IF(A1stdlife="n/a","n/a",IF(AV$3>(A1stdlife+$E85),(Input!$N$211*(1+rvanilla)^0.5)-SUM($N85:AU85),(Input!$N$211*(1+rvanilla)^0.5)/A1stdlife)) -> 0 | AW85: =IF(A1stdlife="n/a","n/a",IF(AW$3>(A1stdlife+$E85),(Input!$N$211*(1+rvanilla)^0.5)-SUM($N85:AV85),(Input!$N$211*(1+rvanilla)^0.5)/A1stdlife)) -> 0 | AX85: =IF(A1stdlife="n/a","n/a",IF(AX$3>(A1stdlife+$E85),(Input!$N$211*(1+rvanilla)^0.5)-SUM($N85:AW85),(Input!$N$211*(1+rvanilla)^0.5)/A1stdlife)) -> 0 | AY85: =IF(A1stdlife="n/a","n/a",IF(AY$3>(A1stdlife+$E85),(Input!$N$211*(1+rvanilla)^0.5)-SUM($N85:AX85),(Input!$N$211*(1+rvanilla)^0.5)/A1stdlife)) -> 0 | AZ85: =IF(A1stdlife="n/a","n/a",IF(AZ$3>(A1stdlife+$E85),(Input!$N$211*(1+rvanilla)^0.5)-SUM($N85:AY85),(Input!$N$211*(1+rvanilla)^0.5)/A1stdlife)) -> 0 | BA85: =IF(A1stdlife="n/a","n/a",IF(BA$3>(A1stdlife+$E85),(Input!$N$211*(1+rvanilla)^0.5)-SUM($N85:AZ85),(Input!$N$211*(1+rvanilla)^0.5)/A1stdlife)) -> 0 | BB85: =IF(A1stdlife="n/a","n/a",IF(BB$3>(A1stdlife+$E85),(Input!$N$211*(1+rvanilla)^0.5)-SUM($N85:BA85),(Input!$N$211*(1+rvanilla)^0.5)/A1stdlife)) -> 0 | BC85: =IF(A1stdlife="n/a","n/a",IF(BC$3>(A1stdlife+$E85),(Input!$N$211*(1+rvanilla)^0.5)-SUM($N85:BB85),(Input!$N$211*(1+rvanilla)^0.5)/A1stdlife)) -> 0 | BD85: =IF(A1stdlife="n/a","n/a",IF(BD$3>(A1stdlife+$E85),(Input!$N$211*(1+rvanilla)^0.5)-SUM($N85:BC85),(Input!$N$211*(1+rvanilla)^0.5)/A1stdlife)) -> 0 | BE85: =IF(A1stdlife="n/a","n/a",IF(BE$3>(A1stdlife+$E85),(Input!$N$211*(1+rvanilla)^0.5)-SUM($N85:BD85),(Input!$N$211*(1+rvanilla)^0.5)/A1stdlife)) -> 0 | BF85: =IF(A1stdlife="n/a","n/a",IF(BF$3>(A1stdlife+$E85),(Input!$N$211*(1+rvanilla)^0.5)-SUM($N85:BE85),(Input!$N$211*(1+rvanilla)^0.5)/A1stdlife)) -> 0 | BG85: =IF(A1stdlife="n/a","n/a",IF(BG$3>(A1stdlife+$E85),(Input!$N$211*(1+rvanilla)^0.5)-SUM($N85:BF85),(Input!$N$211*(1+rvanilla)^0.5)/A1stdlife)) -> 0 | BH85: =IF(A1stdlife="n/a","n/a",IF(BH$3>(A1stdlife+$E85),(Input!$N$211*(1+rvanilla)^0.5)-SUM($N85:BG85),(Input!$N$211*(1+rvanilla)^0.5)/A1stdlife)) -> 0 | BI85: =IF(A1stdlife="n/a","n/a",IF(BI$3>(A1stdlife+$E85),(Input!$N$211*(1+rvanilla)^0.5)-SUM($N85:BH85),(Input!$N$211*(1+rvanilla)^0.5)/A1stdlife)) -> 0
E86: 9 | P86: =IF(A1stdlife="n/a","n/a",IF(P$3>(A1stdlife+$E86),(Input!$O$211*(1+rvanilla)^0.5)-SUM($O86:O86),(Input!$O$211*(1+rvanilla)^0.5)/A1stdlife)) -> 0 | Q86: =IF(A1stdlife="n/a","n/a",IF(Q$3>(A1stdlife+$E86),(Input!$O$211*(1+rvanilla)^0.5)-SUM($O86:P86),(Input!$O$211*(1+rvanilla)^0.5)/A1stdlife)) -> 0 | R86: =IF(A1stdlife="n/a","n/a",IF(R$3>(A1stdlife+$E86),(Input!$O$211*(1+rvanilla)^0.5)-SUM($O86:Q86),(Input!$O$211*(1+rvanilla)^0.5)/A1stdlife)) -> 0 | S86: =IF(A1stdlife="n/a","n/a",IF(S$3>(A1stdlife+$E86),(Input!$O$211*(1+rvanilla)^0.5)-SUM($O86:R86),(Input!$O$211*(1+rvanilla)^0.5)/A1stdlife)) -> 0 | T86: =IF(A1stdlife="n/a","n/a",IF(T$3>(A1stdlife+$E86),(Input!$O$211*(1+rvanilla)^0.5)-SUM($O86:S86),(Input!$O$211*(1+rvanilla)^0.5)/A1stdlife)) -> 0 | U86: =IF(A1stdlife="n/a","n/a",IF(U$3>(A1stdlife+$E86),(Input!$O$211*(1+rvanilla)^0.5)-SUM($O86:T86),(Input!$O$211*(1+rvanilla)^0.5)/A1stdlife)) -> 0 | V86: =IF(A1stdlife="n/a","n/a",IF(V$3>(A1stdlife+$E86),(Input!$O$211*(1+rvanilla)^0.5)-SUM($O86:U86),(Input!$O$211*(1+rvanilla)^0.5)/A1stdlife)) -> 0 | W86: =IF(A1stdlife="n/a","n/a",IF(W$3>(A1stdlife+$E86),(Input!$O$211*(1+rvanilla)^0.5)-SUM($O86:V86),(Input!$O$211*(1+rvanilla)^0.5)/A1stdlife)) -> 0 | X86: =IF(A1stdlife="n/a","n/a",IF(X$3>(A1stdlife+$E86),(Input!$O$211*(1+rvanilla)^0.5)-SUM($O86:W86),(Input!$O$211*(1+rvanilla)^0.5)/A1stdlife)) -> 0 | Y86: =IF(A1stdlife="n/a","n/a",IF(Y$3>(A1stdlife+$E86),(Input!$O$211*(1+rvanilla)^0.5)-SUM($O86:X86),(Input!$O$211*(1+rvanilla)^0.5)/A1stdlife)) -> 0 | Z86: =IF(A1stdlife="n/a","n/a",IF(Z$3>(A1stdlife+$E86),(Input!$O$211*(1+rvanilla)^0.5)-SUM($O86:Y86),(Input!$O$211*(1+rvanilla)^0.5)/A1stdlife)) -> 0 | AA86: =IF(A1stdlife="n/a","n/a",IF(AA$3>(A1stdlife+$E86),(Input!$O$211*(1+rvanilla)^0.5)-SUM($O86:Z86),(Input!$O$211*(1+rvanilla)^0.5)/A1stdlife)) -> 0 | AB86: =IF(A1stdlife="n/a","n/a",IF(AB$3>(A1stdlife+$E86),(Input!$O$211*(1+rvanilla)^0.5)-SUM($O86:AA86),(Input!$O$211*(1+rvanilla)^0.5)/A1stdlife)) -> 0 | AC86: =IF(A1stdlife="n/a","n/a",IF(AC$3>(A1stdlife+$E86),(Input!$O$211*(1+rvanilla)^0.5)-SUM($O86:AB86),(Input!$O$211*(1+rvanilla)^0.5)/A1stdlife)) -> 0 | AD86: =IF(A1stdlife="n/a","n/a",IF(AD$3>(A1stdlife+$E86),(Input!$O$211*(1+rvanilla)^0.5)-SUM($O86:AC86),(Input!$O$211*(1+rvanilla)^0.5)/A1stdlife)) -> 0 | AE86: =IF(A1stdlife="n/a","n/a",IF(AE$3>(A1stdlife+$E86),(Input!$O$211*(1+rvanilla)^0.5)-SUM($O86:AD86),(Input!$O$211*(1+rvanilla)^0.5)/A1stdlife)) -> 0 | AF86: =IF(A1stdlife="n/a","n/a",IF(AF$3>(A1stdlife+$E86),(Input!$O$211*(1+rvanilla)^0.5)-SUM($O86:AE86),(Input!$O$211*(1+rvanilla)^0.5)/A1stdlife)) -> 0 | AG86: =IF(A1stdlife="n/a","n/a",IF(AG$3>(A1stdlife+$E86),(Input!$O$211*(1+rvanilla)^0.5)-SUM($O86:AF86),(Input!$O$211*(1+rvanilla)^0.5)/A1stdlife)) -> 0 | AH86: =IF(A1stdlife="n/a","n/a",IF(AH$3>(A1stdlife+$E86),(Input!$O$211*(1+rvanilla)^0.5)-SUM($O86:AG86),(Input!$O$211*(1+rvanilla)^0.5)/A1stdlife)) -> 0 | AI86: =IF(A1stdlife="n/a","n/a",IF(AI$3>(A1stdlife+$E86),(Input!$O$211*(1+rvanilla)^0.5)-SUM($O86:AH86),(Input!$O$211*(1+rvanilla)^0.5)/A1stdlife)) -> 0 | AJ86: =IF(A1stdlife="n/a","n/a",IF(AJ$3>(A1stdlife+$E86),(Input!$O$211*(1+rvanilla)^0.5)-SUM($O86:AI86),(Input!$O$211*(1+rvanilla)^0.5)/A1stdlife)) -> 0 | AK86: =IF(A1stdlife="n/a","n/a",IF(AK$3>(A1stdlife+$E86),(Input!$O$211*(1+rvanilla)^0.5)-SUM($O86:AJ86),(Input!$O$211*(1+rvanilla)^0.5)/A1stdlife)) -> 0 | AL86: =IF(A1stdlife="n/a","n/a",IF(AL$3>(A1stdlife+$E86),(Input!$O$211*(1+rvanilla)^0.5)-SUM($O86:AK86),(Input!$O$211*(1+rvanilla)^0.5)/A1stdlife)) -> 0 | AM86: =IF(A1stdlife="n/a","n/a",IF(AM$3>(A1stdlife+$E86),(Input!$O$211*(1+rvanilla)^0.5)-SUM($O86:AL86),(Input!$O$211*(1+rvanilla)^0.5)/A1stdlife)) -> 0 | AN86: =IF(A1stdlife="n/a","n/a",IF(AN$3>(A1stdlife+$E86),(Input!$O$211*(1+rvanilla)^0.5)-SUM($O86:AM86),(Input!$O$211*(1+rvanilla)^0.5)/A1stdlife)) -> 0 | AO86: =IF(A1stdlife="n/a","n/a",IF(AO$3>(A1stdlife+$E86),(Input!$O$211*(1+rvanilla)^0.5)-SUM($O86:AN86),(Input!$O$211*(1+rvanilla)^0.5)/A1stdlife)) -> 0 | AP86: =IF(A1stdlife="n/a","n/a",IF(AP$3>(A1stdlife+$E86),(Input!$O$211*(1+rvanilla)^0.5)-SUM($O86:AO86),(Input!$O$211*(1+rvanilla)^0.5)/A1stdlife)) -> 0 | AQ86: =IF(A1stdlife="n/a","n/a",IF(AQ$3>(A1stdlife+$E86),(Input!$O$211*(1+rvanilla)^0.5)-SUM($O86:AP86),(Input!$O$211*(1+rvanilla)^0.5)/A1stdlife)) -> 0 | AR86: =IF(A1stdlife="n/a","n/a",IF(AR$3>(A1stdlife+$E86),(Input!$O$211*(1+rvanilla)^0.5)-SUM($O86:AQ86),(Input!$O$211*(1+rvanilla)^0.5)/A1stdlife)) -> 0 | AS86: =IF(A1stdlife="n/a","n/a",IF(AS$3>(A1stdlife+$E86),(Input!$O$211*(1+rvanilla)^0.5)-SUM($O86:AR86),(Input!$O$211*(1+rvanilla)^0.5)/A1stdlife)) -> 0 | AT86: =IF(A1stdlife="n/a","n/a",IF(AT$3>(A1stdlife+$E86),(Input!$O$211*(1+rvanilla)^0.5)-SUM($O86:AS86),(Input!$O$211*(1+rvanilla)^0.5)/A1stdlife)) -> 0 | AU86: =IF(A1stdlife="n/a","n/a",IF(AU$3>(A1stdlife+$E86),(Input!$O$211*(1+rvanilla)^0.5)-SUM($O86:AT86),(Input!$O$211*(1+rvanilla)^0.5)/A1stdlife)) -> 0 | AV86: =IF(A1stdlife="n/a","n/a",IF(AV$3>(A1stdlife+$E86),(Input!$O$211*(1+rvanilla)^0.5)-SUM($O86:AU86),(Input!$O$211*(1+rvanilla)^0.5)/A1stdlife)) -> 0 | AW86: =IF(A1stdlife="n/a","n/a",IF(AW$3>(A1stdlife+$E86),(Input!$O$211*(1+rvanilla)^0.5)-SUM($O86:AV86),(Input!$O$211*(1+rvanilla)^0.5)/A1stdlife)) -> 0 | AX86: =IF(A1stdlife="n/a","n/a",IF(AX$3>(A1stdlife+$E86),(Input!$O$211*(1+rvanilla)^0.5)-SUM($O86:AW86),(Input!$O$211*(1+rvanilla)^0.5)/A1stdlife)) -> 0 | AY86: =IF(A1stdlife="n/a","n/a",IF(AY$3>(A1stdlife+$E86),(Input!$O$211*(1+rvanilla)^0.5)-SUM($O86:AX86),(Input!$O$211*(1+rvanilla)^0.5)/A1stdlife)) -> 0 | AZ86: =IF(A1stdlife="n/a","n/a",IF(AZ$3>(A1stdlife+$E86),(Input!$O$211*(1+rvanilla)^0.5)-SUM($O86:AY86),(Input!$O$211*(1+rvanilla)^0.5)/A1stdlife)) -> 0 | BA86: =IF(A1stdlife="n/a","n/a",IF(BA$3>(A1stdlife+$E86),(Input!$O$211*(1+rvanilla)^0.5)-SUM($O86:AZ86),(Input!$O$211*(1+rvanilla)^0.5)/A1stdlife)) -> 0 | BB86: =IF(A1stdlife="n/a","n/a",IF(BB$3>(A1stdlife+$E86),(Input!$O$211*(1+rvanilla)^0.5)-SUM($O86:BA86),(Input!$O$211*(1+rvanilla)^0.5)/A1stdlife)) -> 0 | BC86: =IF(A1stdlife="n/a","n/a",IF(BC$3>(A1stdlife+$E86),(Input!$O$211*(1+rvanilla)^0.5)-SUM($O86:BB86),(Input!$O$211*(1+rvanilla)^0.5)/A1stdlife)) -> 0 | BD86: =IF(A1stdlife="n/a","n/a",IF(BD$3>(A1stdlife+$E86),(Input!$O$211*(1+rvanilla)^0.5)-SUM($O86:BC86),(Input!$O$211*(1+rvanilla)^0.5)/A1stdlife)) -> 0 | BE86: =IF(A1stdlife="n/a","n/a",IF(BE$3>(A1stdlife+$E86),(Input!$O$211*(1+rvanilla)^0.5)-SUM($O86:BD86),(Input!$O$211*(1+rvanilla)^0.5)/A1stdlife)) -> 0 | BF86: =IF(A1stdlife="n/a","n/a",IF(BF$3>(A1stdlife+$E86),(Input!$O$211*(1+rvanilla)^0.5)-SUM($O86:BE86),(Input!$O$211*(1+rvanilla)^0.5)/A1stdlife)) -> 0 | BG86: =IF(A1stdlife="n/a","n/a",IF(BG$3>(A1stdlife+$E86),(Input!$O$211*(1+rvanilla)^0.5)-SUM($O86:BF86),(Input!$O$211*(1+rvanilla)^0.5)/A1stdlife)) -> 0 | BH86: =IF(A1stdlife="n/a","n/a",IF(BH$3>(A1stdlife+$E86),(Input!$O$211*(1+rvanilla)^0.5)-SUM($O86:BG86),(Input!$O$211*(1+rvanilla)^0.5)/A1stdlife)) -> 0 | BI86: =IF(A1stdlife="n/a","n/a",IF(BI$3>(A1stdlife+$E86),(Input!$O$211*(1+rvanilla)^0.5)-SUM($O86:BH86),(Input!$O$211*(1+rvanilla)^0.5)/A1stdlife)) -> 0
E87: 10 | Q87: =IF(A1stdlife="n/a","n/a",IF(Q$3>(A1stdlife+$E87),(Input!$P$211*(1+rvanilla)^0.5)-SUM($P87:P87),(Input!$P$211*(1+rvanilla)^0.5)/A1stdlife)) -> 0 | R87: =IF(A1stdlife="n/a","n/a",IF(R$3>(A1stdlife+$E87),(Input!$P$211*(1+rvanilla)^0.5)-SUM($P87:Q87),(Input!$P$211*(1+rvanilla)^0.5)/A1stdlife)) -> 0 | S87: =IF(A1stdlife="n/a","n/a",IF(S$3>(A1stdlife+$E87),(Input!$P$211*(1+rvanilla)^0.5)-SUM($P87:R87),(Input!$P$211*(1+rvanilla)^0.5)/A1stdlife)) -> 0 | T87: =IF(A1stdlife="n/a","n/a",IF(T$3>(A1stdlife+$E87),(Input!$P$211*(1+rvanilla)^0.5)-SUM($P87:S87),(Input!$P$211*(1+rvanilla)^0.5)/A1stdlife)) -> 0 | U87: =IF(A1stdlife="n/a","n/a",IF(U$3>(A1stdlife+$E87),(Input!$P$211*(1+rvanilla)^0.5)-SUM($P87:T87),(Input!$P$211*(1+rvanilla)^0.5)/A1stdlife)) -> 0 | V87: =IF(A1stdlife="n/a","n/a",IF(V$3>(A1stdlife+$E87),(Input!$P$211*(1+rvanilla)^0.5)-SUM($P87:U87),(Input!$P$211*(1+rvanilla)^0.5)/A1stdlife)) -> 0 | W87: =IF(A1stdlife="n/a","n/a",IF(W$3>(A1stdlife+$E87),(Input!$P$211*(1+rvanilla)^0.5)-SUM($P87:V87),(Input!$P$211*(1+rvanilla)^0.5)/A1stdlife)) -> 0 | X87: =IF(A1stdlife="n/a","n/a",IF(X$3>(A1stdlife+$E87),(Input!$P$211*(1+rvanilla)^0.5)-SUM($P87:W87),(Input!$P$211*(1+rvanilla)^0.5)/A1stdlife)) -> 0 | Y87: =IF(A1stdlife="n/a","n/a",IF(Y$3>(A1stdlife+$E87),(Input!$P$211*(1+rvanilla)^0.5)-SUM($P87:X87),(Input!$P$211*(1+rvanilla)^0.5)/A1stdlife)) -> 0 | Z87: =IF(A1stdlife="n/a","n/a",IF(Z$3>(A1stdlife+$E87),(Input!$P$211*(1+rvanilla)^0.5)-SUM($P87:Y87),(Input!$P$211*(1+rvanilla)^0.5)/A1stdlife)) -> 0 | AA87: =IF(A1stdlife="n/a","n/a",IF(AA$3>(A1stdlife+$E87),(Input!$P$211*(1+rvanilla)^0.5)-SUM($P87:Z87),(Input!$P$211*(1+rvanilla)^0.5)/A1stdlife)) -> 0 | AB87: =IF(A1stdlife="n/a","n/a",IF(AB$3>(A1stdlife+$E87),(Input!$P$211*(1+rvanilla)^0.5)-SUM($P87:AA87),(Input!$P$211*(1+rvanilla)^0.5)/A1stdlife)) -> 0 | AC87: =IF(A1stdlife="n/a","n/a",IF(AC$3>(A1stdlife+$E87),(Input!$P$211*(1+rvanilla)^0.5)-SUM($P87:AB87),(Input!$P$211*(1+rvanilla)^0.5)/A1stdlife)) -> 0 | AD87: =IF(A1stdlife="n/a","n/a",IF(AD$3>(A1stdlife+$E87),(Input!$P$211*(1+rvanilla)^0.5)-SUM($P87:AC87),(Input!$P$211*(1+rvanilla)^0.5)/A1stdlife)) -> 0 | AE87: =IF(A1stdlife="n/a","n/a",IF(AE$3>(A1stdlife+$E87),(Input!$P$211*(1+rvanilla)^0.5)-SUM($P87:AD87),(Input!$P$211*(1+rvanilla)^0.5)/A1stdlife)) -> 0 | AF87: =IF(A1stdlife="n/a","n/a",IF(AF$3>(A1stdlife+$E87),(Input!$P$211*(1+rvanilla)^0.5)-SUM($P87:AE87),(Input!$P$211*(1+rvanilla)^0.5)/A1stdlife)) -> 0 | AG87: =IF(A1stdlife="n/a","n/a",IF(AG$3>(A1stdlife+$E87),(Input!$P$211*(1+rvanilla)^0.5)-SUM($P87:AF87),(Input!$P$211*(1+rvanilla)^0.5)/A1stdlife)) -> 0 | AH87: =IF(A1stdlife="n/a","n/a",IF(AH$3>(A1stdlife+$E87),(Input!$P$211*(1+rvanilla)^0.5)-SUM($P87:AG87),(Input!$P$211*(1+rvanilla)^0.5)/A1stdlife)) -> 0 | AI87: =IF(A1stdlife="n/a","n/a",IF(AI$3>(A1stdlife+$E87),(Input!$P$211*(1+rvanilla)^0.5)-SUM($P87:AH87),(Input!$P$211*(1+rvanilla)^0.5)/A1stdlife)) -> 0 | AJ87: =IF(A1stdlife="n/a","n/a",IF(AJ$3>(A1stdlife+$E87),(Input!$P$211*(1+rvanilla)^0.5)-SUM($P87:AI87),(Input!$P$211*(1+rvanilla)^0.5)/A1stdlife)) -> 0 | AK87: =IF(A1stdlife="n/a","n/a",IF(AK$3>(A1stdlife+$E87),(Input!$P$211*(1+rvanilla)^0.5)-SUM($P87:AJ87),(Input!$P$211*(1+rvanilla)^0.5)/A1stdlife)) -> 0 | AL87: =IF(A1stdlife="n/a","n/a",IF(AL$3>(A1stdlife+$E87),(Input!$P$211*(1+rvanilla)^0.5)-SUM($P87:AK87),(Input!$P$211*(1+rvanilla)^0.5)/A1stdlife)) -> 0 | AM87: =IF(A1stdlife="n/a","n/a",IF(AM$3>(A1stdlife+$E87),(Input!$P$211*(1+rvanilla)^0.5)-SUM($P87:AL87),(Input!$P$211*(1+rvanilla)^0.5)/A1stdlife)) -> 0 | AN87: =IF(A1stdlife="n/a","n/a",IF(AN$3>(A1stdlife+$E87),(Input!$P$211*(1+rvanilla)^0.5)-SUM($P87:AM87),(Input!$P$211*(1+rvanilla)^0.5)/A1stdlife)) -> 0 | AO87: =IF(A1stdlife="n/a","n/a",IF(AO$3>(A1stdlife+$E87),(Input!$P$211*(1+rvanilla)^0.5)-SUM($P87:AN87),(Input!$P$211*(1+rvanilla)^0.5)/A1stdlife)) -> 0 | AP87: =IF(A1stdlife="n/a","n/a",IF(AP$3>(A1stdlife+$E87),(Input!$P$211*(1+rvanilla)^0.5)-SUM($P87:AO87),(Input!$P$211*(1+rvanilla)^0.5)/A1stdlife)) -> 0 | AQ87: =IF(A1stdlife="n/a","n/a",IF(AQ$3>(A1stdlife+$E87),(Input!$P$211*(1+rvanilla)^0.5)-SUM($P87:AP87),(Input!$P$211*(1+rvanilla)^0.5)/A1stdlife)) -> 0 | AR87: =IF(A1stdlife="n/a","n/a",IF(AR$3>(A1stdlife+$E87),(Input!$P$211*(1+rvanilla)^0.5)-SUM($P87:AQ87),(Input!$P$211*(1+rvanilla)^0.5)/A1stdlife)) -> 0 | AS87: =IF(A1stdlife="n/a","n/a",IF(AS$3>(A1stdlife+$E87),(Input!$P$211*(1+rvanilla)^0.5)-SUM($P87:AR87),(Input!$P$211*(1+rvanilla)^0.5)/A1stdlife)) -> 0 | AT87: =IF(A1stdlife="n/a","n/a",IF(AT$3>(A1stdlife+$E87),(Input!$P$211*(1+rvanilla)^0.5)-SUM($P87:AS87),(Input!$P$211*(1+rvanilla)^0.5)/A1stdlife)) -> 0 | AU87: =IF(A1stdlife="n/a","n/a",IF(AU$3>(A1stdlife+$E87),(Input!$P$211*(1+rvanilla)^0.5)-SUM($P87:AT87),(Input!$P$211*(1+rvanilla)^0.5)/A1stdlife)) -> 0 | AV87: =IF(A1stdlife="n/a","n/a",IF(AV$3>(A1stdlife+$E87),(Input!$P$211*(1+rvanilla)^0.5)-SUM($P87:AU87),(Input!$P$211*(1+rvanilla)^0.5)/A1stdlife)) -> 0 | AW87: =IF(A1stdlife="n/a","n/a",IF(AW$3>(A1stdlife+$E87),(Input!$P$211*(1+rvanilla)^0.5)-SUM($P87:AV87),(Input!$P$211*(1+rvanilla)^0.5)/A1stdlife)) -> 0 | AX87: =IF(A1stdlife="n/a","n/a",IF(AX$3>(A1stdlife+$E87),(Input!$P$211*(1+rvanilla)^0.5)-SUM($P87:AW87),(Input!$P$211*(1+rvanilla)^0.5)/A1stdlife)) -> 0 | AY87: =IF(A1stdlife="n/a","n/a",IF(AY$3>(A1stdlife+$E87),(Input!$P$211*(1+rvanilla)^0.5)-SUM($P87:AX87),(Input!$P$211*(1+rvanilla)^0.5)/A1stdlife)) -> 0 | AZ87: =IF(A1stdlife="n/a","n/a",IF(AZ$3>(A1stdlife+$E87),(Input!$P$211*(1+rvanilla)^0.5)-SUM($P87:AY87),(Input!$P$211*(1+rvanilla)^0.5)/A1stdlife)) -> 0 | BA87: =IF(A1stdlife="n/a","n/a",IF(BA$3>(A1stdlife+$E87),(Input!$P$211*(1+rvanilla)^0.5)-SUM($P87:AZ87),(Input!$P$211*(1+rvanilla)^0.5)/A1stdlife)) -> 0 | BB87: =IF(A1stdlife="n/a","n/a",IF(BB$3>(A1stdlife+$E87),(Input!$P$211*(1+rvanilla)^0.5)-SUM($P87:BA87),(Input!$P$211*(1+rvanilla)^0.5)/A1stdlife)) -> 0 | BC87: =IF(A1stdlife="n/a","n/a",IF(BC$3>(A1stdlife+$E87),(Input!$P$211*(1+rvanilla)^0.5)-SUM($P87:BB87),(Input!$P$211*(1+rvanilla)^0.5)/A1stdlife)) -> 0 | BD87: =IF(A1stdlife="n/a","n/a",IF(BD$3>(A1stdlife+$E87),(Input!$P$211*(1+rvanilla)^0.5)-SUM($P87:BC87),(Input!$P$211*(1+rvanilla)^0.5)/A1stdlife)) -> 0 | BE87: =IF(A1stdlife="n/a","n/a",IF(BE$3>(A1stdlife+$E87),(Input!$P$211*(1+rvanilla)^0.5)-SUM($P87:BD87),(Input!$P$211*(1+rvanilla)^0.5)/A1stdlife)) -> 0 | BF87: =IF(A1stdlife="n/a","n/a",IF(BF$3>(A1stdlife+$E87),(Input!$P$211*(1+rvanilla)^0.5)-SUM($P87:BE87),(Input!$P$211*(1+rvanilla)^0.5)/A1stdlife)) -> 0 | BG87: =IF(A1stdlife="n/a","n/a",IF(BG$3>(A1stdlife+$E87),(Input!$P$211*(1+rvanilla)^0.5)-SUM($P87:BF87),(Input!$P$211*(1+rvanilla)^0.5)/A1stdlife)) -> 0 | BH87: =IF(A1stdlife="n/a","n/a",IF(BH$3>(A1stdlife+$E87),(Input!$P$211*(1+rvanilla)^0.5)-SUM($P87:BG87),(Input!$P$211*(1+rvanilla)^0.5)/A1stdlife)) -> 0 | BI87: =IF(A1stdlife="n/a","n/a",IF(BI$3>(A1stdlife+$E87),(Input!$P$211*(1+rvanilla)^0.5)-SUM($P87:BH87),(Input!$P$211*(1+rvanilla)^0.5)/A1stdlife)) -> 0
C88: =Asset1 -> Secondary | G88: =SUM(G76:G87) -> 148.5771499 | H88: =SUM(H76:H87) -> 1.080937402 | I88: 2.339273611 | J88: 3.809286103 | K88: 3.809286103 | L88: 3.809286103 | M88: 3.809286103 | N88: 3.809286103 | O88: 3.809286103 | P88: 3.809286103 | Q88: 3.809286103 | R88: 3.809286103 | S88: 3.809286103 | T88: 3.809286103 | U88: 3.809286103 | V88: 3.809286103 | W88: 2.728348701 | X88: 1.470012492 | Y88: -7.105427358e-15 | Z88: 0 | AA88: 0 | AB88: 0 | AC88: 0 | AD88: 0 | AE88: 0 | AF88: 0 | AG88: 0 | AH88: 0 | AI88: 0 | AJ88: 0 | AK88: 0 | AL88: 0 | AM88: 0 | AN88: 0 | AO88: 0 | AP88: 0 | AQ88: 0 | AR88: 0 | AS88: 0 | AT88: 0 | AU88: 0 | AV88: 0 | AW88: 0 | AX88: 0 | AY88: 0 | AZ88: 0 | BA88: 0 | BB88: 0 | BC88: 0 | BD88: 0 | BE88: 0 | BF88: 0 | BG88: 0 | BH88: 0 | BI88: 0
B89: =C101 -> Switchgear | D89: Initial Asset Base | G89: =IF(G$3>A2remlife,A2acvalue-SUM($F89:F89),IF(A2remlife="N/A","n/a",A2acvalue/A2remlife)) -> 565.0759182 | H89: =IF(H$3>A2remlife,A2acvalue-SUM($F89:G89),IF(A2remlife="N/A","n/a",A2acvalue/A2remlife)) -> 0 | I89: =IF(I$3>A2remlife,A2acvalue-SUM($F89:H89),IF(A2remlife="N/A","n/a",A2acvalue/A2remlife)) -> 0 | J89: =IF(J$3>A2remlife,A2acvalue-SUM($F89:I89),IF(A2remlife="N/A","n/a",A2acvalue/A2remlife)) -> 0 | K89: =IF(K$3>A2remlife,A2acvalue-SUM($F89:J89),IF(A2remlife="N/A","n/a",A2acvalue/A2remlife)) -> 0 | L89: =IF(L$3>A2remlife,A2acvalue-SUM($F89:K89),IF(A2remlife="N/A","n/a",A2acvalue/A2remlife)) -> 0 | M89: =IF(M$3>A2remlife,A2acvalue-SUM($F89:L89),IF(A2remlife="N/A","n/a",A2acvalue/A2remlife)) -> 0 | N89: =IF(N$3>A2remlife,A2acvalue-SUM($F89:M89),IF(A2remlife="N/A","n/a",A2acvalue/A2remlife)) -> 0 | O89: =IF(O$3>A2remlife,A2acvalue-SUM($F89:N89),IF(A2remlife="N/A","n/a",A2acvalue/A2remlife)) -> 0 | P89: =IF(P$3>A2remlife,A2acvalue-SUM($F89:O89),IF(A2remlife="N/A","n/a",A2acvalue/A2remlife)) -> 0 | Q89: =IF(Q$3>A2remlife,A2acvalue-SUM($F89:P89),IF(A2remlife="N/A","n/a",A2acvalue/A2remlife)) -> 0 | R89: =IF(R$3>A2remlife,A2acvalue-SUM($F89:Q89),IF(A2remlife="N/A","n/a",A2acvalue/A2remlife)) -> 0 | S89: =IF(S$3>A2remlife,A2acvalue-SUM($F89:R89),IF(A2remlife="N/A","n/a",A2acvalue/A2remlife)) -> 0 | T89: =IF(T$3>A2remlife,A2acvalue-SUM($F89:S89),IF(A2remlife="N/A","n/a",A2acvalue/A2remlife)) -> 0 | U89: =IF(U$3>A2remlife,A2acvalue-SUM($F89:T89),IF(A2remlife="N/A","n/a",A2acvalue/A2remlife)) -> 0 | V89: =IF(V$3>A2remlife,A2acvalue-SUM($F89:U89),IF(A2remlife="N/A","n/a",A2acvalue/A2remlife)) -> 0 | W89: =IF(W$3>A2remlife,A2acvalue-SUM($F89:V89),IF(A2remlife="N/A","n/a",A2acvalue/A2remlife)) -> 0 | X89: =IF(X$3>A2remlife,A2acvalue-SUM($F89:W89),IF(A2remlife="N/A","n/a",A2acvalue/A2remlife)) -> 0 | Y89: =IF(Y$3>A2remlife,A2acvalue-SUM($F89:X89),IF(A2remlife="N/A","n/a",A2acvalue/A2remlife)) -> 0 | Z89: =IF(Z$3>A2remlife,A2acvalue-SUM($F89:Y89),IF(A2remlife="N/A","n/a",A2acvalue/A2remlife)) -> 0 | AA89: =IF(AA$3>A2remlife,A2acvalue-SUM($F89:Z89),IF(A2remlife="N/A","n/a",A2acvalue/A2remlife)) -> 0 | AB89: =IF(AB$3>A2remlife,A2acvalue-SUM($F89:AA89),IF(A2remlife="N/A","n/a",A2acvalue/A2remlife)) -> 0 | AC89: =IF(AC$3>A2remlife,A2acvalue-SUM($F89:AB89),IF(A2remlife="N/A","n/a",A2acvalue/A2remlife)) -> 0 | AD89: =IF(AD$3>A2remlife,A2acvalue-SUM($F89:AC89),IF(A2remlife="N/A","n/a",A2acvalue/A2remlife)) -> 0 | AE89: =IF(AE$3>A2remlife,A2acvalue-SUM($F89:AD89),IF(A2remlife="N/A","n/a",A2acvalue/A2remlife)) -> 0 | AF89: =IF(AF$3>A2remlife,A2acvalue-SUM($F89:AE89),IF(A2remlife="N/A","n/a",A2acvalue/A2remlife)) -> 0 | AG89: =IF(AG$3>A2remlife,A2acvalue-SUM($F89:AF89),IF(A2remlife="N/A","n/a",A2acvalue/A2remlife)) -> 0 | AH89: =IF(AH$3>A2remlife,A2acvalue-SUM($F89:AG89),IF(A2remlife="N/A","n/a",A2acvalue/A2remlife)) -> 0 | AI89: =IF(AI$3>A2remlife,A2acvalue-SUM($F89:AH89),IF(A2remlife="N/A","n/a",A2acvalue/A2remlife)) -> 0 | AJ89: =IF(AJ$3>A2remlife,A2acvalue-SUM($F89:AI89),IF(A2remlife="N/A","n/a",A2acvalue/A2remlife)) -> 0 | AK89: =IF(AK$3>A2remlife,A2acvalue-SUM($F89:AJ89),IF(A2remlife="N/A","n/a",A2acvalue/A2remlife)) -> 0 | AL89: =IF(AL$3>A2remlife,A2acvalue-SUM($F89:AK89),IF(A2remlife="N/A","n/a",A2acvalue/A2remlife)) -> 0 | AM89: =IF(AM$3>A2remlife,A2acvalue-SUM($F89:AL89),IF(A2remlife="N/A","n/a",A2acvalue/A2remlife)) -> 0 | AN89: =IF(AN$3>A2remlife,A2acvalue-SUM($F89:AM89),IF(A2remlife="N/A","n/a",A2acvalue/A2remlife)) -> 0 | AO89: =IF(AO$3>A2remlife,A2acvalue-SUM($F89:AN89),IF(A2remlife="N/A","n/a",A2acvalue/A2remlife)) -> 0 | AP89: =IF(AP$3>A2remlife,A2acvalue-SUM($F89:AO89),IF(A2remlife="N/A","n/a",A2acvalue/A2remlife)) -> 0 | AQ89: =IF(AQ$3>A2remlife,A2acvalue-SUM($F89:AP89),IF(A2remlife="N/A","n/a",A2acvalue/A2remlife)) -> 0 | AR89: =IF(AR$3>A2remlife,A2acvalue-SUM($F89:AQ89),IF(A2remlife="N/A","n/a",A2acvalue/A2remlife)) -> 0 | AS89: =IF(AS$3>A2remlife,A2acvalue-SUM($F89:AR89),IF(A2remlife="N/A","n/a",A2acvalue/A2remlife)) -> 0 | AT89: =IF(AT$3>A2remlife,A2acvalue-SUM($F89:AS89),IF(A2remlife="N/A","n/a",A2acvalue/A2remlife)) -> 0 | AU89: =IF(AU$3>A2remlife,A2acvalue-SUM($F89:AT89),IF(A2remlife="N/A","n/a",A2acvalue/A2remlife)) -> 0 | AV89: =IF(AV$3>A2remlife,A2acvalue-SUM($F89:AU89),IF(A2remlife="N/A","n/a",A2acvalue/A2remlife)) -> 0 | AW89: =IF(AW$3>A2remlife,A2acvalue-SUM($F89:AV89),IF(A2remlife="N/A","n/a",A2acvalue/A2remlife)) -> 0 | AX89: =IF(AX$3>A2remlife,A2acvalue-SUM($F89:AW89),IF(A2remlife="N/A","n/a",A2acvalue/A2remlife)) -> 0 | AY89: =IF(AY$3>A2remlife,A2acvalue-SUM($F89:AX89),IF(A2remlife="N/A","n/a",A2acvalue/A2remlife)) -> 0 | AZ89: =IF(AZ$3>A2remlife,A2acvalue-SUM($F89:AY89),IF(A2remlife="N/A","n/a",A2acvalue/A2remlife)) -> 0 | BA89: =IF(BA$3>A2remlife,A2acvalue-SUM($F89:AZ89),IF(A2remlife="N/A","n/a",A2acvalue/A2remlife)) -> 0 | BB89: =IF(BB$3>A2remlife,A2acvalue-SUM($F89:BA89),IF(A2remlife="N/A","n/a",A2acvalue/A2remlife)) -> 0 | BC89: =IF(BC$3>A2remlife,A2acvalue-SUM($F89:BB89),IF(A2remlife="N/A","n/a",A2acvalue/A2remlife)) -> 0 | BD89: =IF(BD$3>A2remlife,A2acvalue-SUM($F89:BC89),IF(A2remlife="N/A","n/a",A2acvalue/A2remlife)) -> 0 | BE89: =IF(BE$3>A2remlife,A2acvalue-SUM($F89:BD89),IF(A2remlife="N/A","n/a",A2acvalue/A2remlife)) -> 0 | BF89: =IF(BF$3>A2remlife,A2acvalue-SUM($F89:BE89),IF(A2remlife="N/A","n/a",A2acvalue/A2remlife)) -> 0 | BG89: =IF(BG$3>A2remlife,A2acvalue-SUM($F89:BF89),IF(A2remlife="N/A","n/a",A2acvalue/A2remlife)) -> 0 | BH89: =IF(BH$3>A2remlife,A2acvalue-SUM($F89:BG89),IF(A2remlife="N/A","n/a",A2acvalue/A2remlife)) -> 0 | BI89: =IF(BI$3>A2remlife,A2acvalue-SUM($F89:BH89),IF(A2remlife="N/A","n/a",A2acvalue/A2remlife)) -> 0
D90: Capex in year | E90: 0
E91: 1 | H91: =IF(A2stdlife="n/a","n/a",IF(H$3>(A2stdlife+$E91),(Input!$G$212*(1+rvanilla)^0.5)-SUM($G91:G91),(Input!$G$212*(1+rvanilla)^0.5)/A2stdlife)) -> 0.6845049724 | I91: =IF(A2stdlife="n/a","n/a",IF(I$3>(A2stdlife+$E91),(Input!$G$212*(1+rvanilla)^0.5)-SUM($G91:H91),(Input!$G$212*(1+rvanilla)^0.5)/A2stdlife)) -> 0.6845049724 | J91: =IF(A2stdlife="n/a","n/a",IF(J$3>(A2stdlife+$E91),(Input!$G$212*(1+rvanilla)^0.5)-SUM($G91:I91),(Input!$G$212*(1+rvanilla)^0.5)/A2stdlife)) -> 0.6845049724 | K91: =IF(A2stdlife="n/a","n/a",IF(K$3>(A2stdlife+$E91),(Input!$G$212*(1+rvanilla)^0.5)-SUM($G91:J91),(Input!$G$212*(1+rvanilla)^0.5)/A2stdlife)) -> 0.6845049724 | L91: =IF(A2stdlife="n/a","n/a",IF(L$3>(A2stdlife+$E91),(Input!$G$212*(1+rvanilla)^0.5)-SUM($G91:K91),(Input!$G$212*(1+rvanilla)^0.5)/A2stdlife)) -> 0.6845049724 | M91: =IF(A2stdlife="n/a","n/a",IF(M$3>(A2stdlife+$E91),(Input!$G$212*(1+rvanilla)^0.5)-SUM($G91:L91),(Input!$G$212*(1+rvanilla)^0.5)/A2stdlife)) -> 0.6845049724 | N91: =IF(A2stdlife="n/a","n/a",IF(N$3>(A2stdlife+$E91),(Input!$G$212*(1+rvanilla)^0.5)-SUM($G91:M91),(Input!$G$212*(1+rvanilla)^0.5)/A2stdlife)) -> 0.6845049724 | O91: =IF(A2stdlife="n/a","n/a",IF(O$3>(A2stdlife+$E91),(Input!$G$212*(1+rvanilla)^0.5)-SUM($G91:N91),(Input!$G$212*(1+rvanilla)^0.5)/A2stdlife)) -> 0.6845049724 | P91: =IF(A2stdlife="n/a","n/a",IF(P$3>(A2stdlife+$E91),(Input!$G$212*(1+rvanilla)^0.5)-SUM($G91:O91),(Input!$G$212*(1+rvanilla)^0.5)/A2stdlife)) -> 0.6845049724 | Q91: =IF(A2stdlife="n/a","n/a",IF(Q$3>(A2stdlife+$E91),(Input!$G$212*(1+rvanilla)^0.5)-SUM($G91:P91),(Input!$G$212*(1+rvanilla)^0.5)/A2stdlife)) -> 0.6845049724 | R91: =IF(A2stdlife="n/a","n/a",IF(R$3>(A2stdlife+$E91),(Input!$G$212*(1+rvanilla)^0.5)-SUM($G91:Q91),(Input!$G$212*(1+rvanilla)^0.5)/A2stdlife)) -> 0.6845049724 | S91: =IF(A2stdlife="n/a","n/a",IF(S$3>(A2stdlife+$E91),(Input!$G$212*(1+rvanilla)^0.5)-SUM($G91:R91),(Input!$G$212*(1+rvanilla)^0.5)/A2stdlife)) -> 0.6845049724 | T91: =IF(A2stdlife="n/a","n/a",IF(T$3>(A2stdlife+$E91),(Input!$G$212*(1+rvanilla)^0.5)-SUM($G91:S91),(Input!$G$212*(1+rvanilla)^0.5)/A2stdlife)) -> 0.6845049724 | U91: =IF(A2stdlife="n/a","n/a",IF(U$3>(A2stdlife+$E91),(Input!$G$212*(1+rvanilla)^0.5)-SUM($G91:T91),(Input!$G$212*(1+rvanilla)^0.5)/A2stdlife)) -> 0.6845049724 | V91: =IF(A2stdlife="n/a","n/a",IF(V$3>(A2stdlife+$E91),(Input!$G$212*(1+rvanilla)^0.5)-SUM($G91:U91),(Input!$G$212*(1+rvanilla)^0.5)/A2stdlife)) -> 0.6845049724 | W91: =IF(A2stdlife="n/a","n/a",IF(W$3>(A2stdlife+$E91),(Input!$G$212*(1+rvanilla)^0.5)-SUM($G91:V91),(Input!$G$212*(1+rvanilla)^0.5)/A2stdlife)) -> 0.6845049724 | X91: =IF(A2stdlife="n/a","n/a",IF(X$3>(A2stdlife+$E91),(Input!$G$212*(1+rvanilla)^0.5)-SUM($G91:W91),(Input!$G$212*(1+rvanilla)^0.5)/A2stdlife)) -> 0.6845049724 | Y91: =IF(A2stdlife="n/a","n/a",IF(Y$3>(A2stdlife+$E91),(Input!$G$212*(1+rvanilla)^0.5)-SUM($G91:X91),(Input!$G$212*(1+rvanilla)^0.5)/A2stdlife)) -> 0.6845049724 | Z91: =IF(A2stdlife="n/a","n/a",IF(Z$3>(A2stdlife+$E91),(Input!$G$212*(1+rvanilla)^0.5)-SUM($G91:Y91),(Input!$G$212*(1+rvanilla)^0.5)/A2stdlife)) -> 0.6845049724 | AA91: =IF(A2stdlife="n/a","n/a",IF(AA$3>(A2stdlife+$E91),(Input!$G$212*(1+rvanilla)^0.5)-SUM($G91:Z91),(Input!$G$212*(1+rvanilla)^0.5)/A2stdlife)) -> 0.6845049724 | AB91: =IF(A2stdlife="n/a","n/a",IF(AB$3>(A2stdlife+$E91),(Input!$G$212*(1+rvanilla)^0.5)-SUM($G91:AA91),(Input!$G$212*(1+rvanilla)^0.5)/A2stdlife)) -> 0.6845049724 | AC91: =IF(A2stdlife="n/a","n/a",IF(AC$3>(A2stdlife+$E91),(Input!$G$212*(1+rvanilla)^0.5)-SUM($G91:AB91),(Input!$G$212*(1+rvanilla)^0.5)/A2stdlife)) -> 0.6845049724 | AD91: =IF(A2stdlife="n/a","n/a",IF(AD$3>(A2stdlife+$E91),(Input!$G$212*(1+rvanilla)^0.5)-SUM($G91:AC91),(Input!$G$212*(1+rvanilla)^0.5)/A2stdlife)) -> 0.6845049724 | AE91: =IF(A2stdlife="n/a","n/a",IF(AE$3>(A2stdlife+$E91),(Input!$G$212*(1+rvanilla)^0.5)-SUM($G91:AD91),(Input!$G$212*(1+rvanilla)^0.5)/A2stdlife)) -> 0.6845049724 | AF91: =IF(A2stdlife="n/a","n/a",IF(AF$3>(A2stdlife+$E91),(Input!$G$212*(1+rvanilla)^0.5)-SUM($G91:AE91),(Input!$G$212*(1+rvanilla)^0.5)/A2stdlife)) -> 0.6845049724 | AG91: =IF(A2stdlife="n/a","n/a",IF(AG$3>(A2stdlife+$E91),(Input!$G$212*(1+rvanilla)^0.5)-SUM($G91:AF91),(Input!$G$212*(1+rvanilla)^0.5)/A2stdlife)) -> 0.6845049724 | AH91: =IF(A2stdlife="n/a","n/a",IF(AH$3>(A2stdlife+$E91),(Input!$G$212*(1+rvanilla)^0.5)-SUM($G91:AG91),(Input!$G$212*(1+rvanilla)^0.5)/A2stdlife)) -> 0.6845049724 | AI91: =IF(A2stdlife="n/a","n/a",IF(AI$3>(A2stdlife+$E91),(Input!$G$212*(1+rvanilla)^0.5)-SUM($G91:AH91),(Input!$G$212*(1+rvanilla)^0.5)/A2stdlife)) -> 0.6845049724 | AJ91: =IF(A2stdlife="n/a","n/a",IF(AJ$3>(A2stdlife+$E91),(Input!$G$212*(1+rvanilla)^0.5)-SUM($G91:AI91),(Input!$G$212*(1+rvanilla)^0.5)/A2stdlife)) -> 0.6845049724 | AK91: =IF(A2stdlife="n/a","n/a",IF(AK$3>(A2stdlife+$E91),(Input!$G$212*(1+rvanilla)^0.5)-SUM($G91:AJ91),(Input!$G$212*(1+rvanilla)^0.5)/A2stdlife)) -> 0.6845049724 | AL91: =IF(A2stdlife="n/a","n/a",IF(AL$3>(A2stdlife+$E91),(Input!$G$212*(1+rvanilla)^0.5)-SUM($G91:AK91),(Input!$G$212*(1+rvanilla)^0.5)/A2stdlife)) -> 0.6845049724 | AM91: =IF(A2stdlife="n/a","n/a",IF(AM$3>(A2stdlife+$E91),(Input!$G$212*(1+rvanilla)^0.5)-SUM($G91:AL91),(Input!$G$212*(1+rvanilla)^0.5)/A2stdlife)) -> 0.6845049724 | AN91: =IF(A2stdlife="n/a","n/a",IF(AN$3>(A2stdlife+$E91),(Input!$G$212*(1+rvanilla)^0.5)-SUM($G91:AM91),(Input!$G$212*(1+rvanilla)^0.5)/A2stdlife)) -> 0.6845049724 | AO91: =IF(A2stdlife="n/a","n/a",IF(AO$3>(A2stdlife+$E91),(Input!$G$212*(1+rvanilla)^0.5)-SUM($G91:AN91),(Input!$G$212*(1+rvanilla)^0.5)/A2stdlife)) -> 0.6845049724 | AP91: =IF(A2stdlife="n/a","n/a",IF(AP$3>(A2stdlife+$E91),(Input!$G$212*(1+rvanilla)^0.5)-SUM($G91:AO91),(Input!$G$212*(1+rvanilla)^0.5)/A2stdlife)) -> 0.6845049724 | AQ91: =IF(A2stdlife="n/a","n/a",IF(AQ$3>(A2stdlife+$E91),(Input!$G$212*(1+rvanilla)^0.5)-SUM($G91:AP91),(Input!$G$212*(1+rvanilla)^0.5)/A2stdlife)) -> 0.6845049724 | AR91: =IF(A2stdlife="n/a","n/a",IF(AR$3>(A2stdlife+$E91),(Input!$G$212*(1+rvanilla)^0.5)-SUM($G91:AQ91),(Input!$G$212*(1+rvanilla)^0.5)/A2stdlife)) -> 0.6845049724 | AS91: =IF(A2stdlife="n/a","n/a",IF(AS$3>(A2stdlife+$E91),(Input!$G$212*(1+rvanilla)^0.5)-SUM($G91:AR91),(Input!$G$212*(1+rvanilla)^0.5)/A2stdlife)) -> 0.6845049724 | AT91: =IF(A2stdlife="n/a","n/a",IF(AT$3>(A2stdlife+$E91),(Input!$G$212*(1+rvanilla)^0.5)-SUM($G91:AS91),(Input!$G$212*(1+rvanilla)^0.5)/A2stdlife)) -> 0.6845049724 | AU91: =IF(A2stdlife="n/a","n/a",IF(AU$3>(A2stdlife+$E91),(Input!$G$212*(1+rvanilla)^0.5)-SUM($G91:AT91),(Input!$G$212*(1+rvanilla)^0.5)/A2stdlife)) -> 0.6845049724 | AV91: =IF(A2stdlife="n/a","n/a",IF(AV$3>(A2stdlife+$E91),(Input!$G$212*(1+rvanilla)^0.5)-SUM($G91:AU91),(Input!$G$212*(1+rvanilla)^0.5)/A2stdlife)) -> 0.6845049724 | AW91: =IF(A2stdlife="n/a","n/a",IF(AW$3>(A2stdlife+$E91),(Input!$G$212*(1+rvanilla)^0.5)-SUM($G91:AV91),(Input!$G$212*(1+rvanilla)^0.5)/A2stdlife)) -> 0.6845049724 | AX91: =IF(A2stdlife="n/a","n/a",IF(AX$3>(A2stdlife+$E91),(Input!$G$212*(1+rvanilla)^0.5)-SUM($G91:AW91),(Input!$G$212*(1+rvanilla)^0.5)/A2stdlife)) -> 0.6845049724 | AY91: =IF(A2stdlife="n/a","n/a",IF(AY$3>(A2stdlife+$E91),(Input!$G$212*(1+rvanilla)^0.5)-SUM($G91:AX91),(Input!$G$212*(1+rvanilla)^0.5)/A2stdlife)) -> 0.6845049724 | AZ91: =IF(A2stdlife="n/a","n/a",IF(AZ$3>(A2stdlife+$E91),(Input!$G$212*(1+rvanilla)^0.5)-SUM($G91:AY91),(Input!$G$212*(1+rvanilla)^0.5)/A2stdlife)) -> 0.6845049724 | BA91: =IF(A2stdlife="n/a","n/a",IF(BA$3>(A2stdlife+$E91),(Input!$G$212*(1+rvanilla)^0.5)-SUM($G91:AZ91),(Input!$G$212*(1+rvanilla)^0.5)/A2stdlife)) -> 3.552713679e-15 | BB91: =IF(A2stdlife="n/a","n/a",IF(BB$3>(A2stdlife+$E91),(Input!$G$212*(1+rvanilla)^0.5)-SUM($G91:BA91),(Input!$G$212*(1+rvanilla)^0.5)/A2stdlife)) -> 0 | BC91: =IF(A2stdlife="n/a","n/a",IF(BC$3>(A2stdlife+$E91),(Input!$G$212*(1+rvanilla)^0.5)-SUM($G91:BB91),(Input!$G$212*(1+rvanilla)^0.5)/A2stdlife)) -> 0 | BD91: =IF(A2stdlife="n/a","n/a",IF(BD$3>(A2stdlife+$E91),(Input!$G$212*(1+rvanilla)^0.5)-SUM($G91:BC91),(Input!$G$212*(1+rvanilla)^0.5)/A2stdlife)) -> 0 | BE91: =IF(A2stdlife="n/a","n/a",IF(BE$3>(A2stdlife+$E91),(Input!$G$212*(1+rvanilla)^0.5)-SUM($G91:BD91),(Input!$G$212*(1+rvanilla)^0.5)/A2stdlife)) -> 0 | BF91: =IF(A2stdlife="n/a","n/a",IF(BF$3>(A2stdlife+$E91),(Input!$G$212*(1+rvanilla)^0.5)-SUM($G91:BE91),(Input!$G$212*(1+rvanilla)^0.5)/A2stdlife)) -> 0 | BG91: =IF(A2stdlife="n/a","n/a",IF(BG$3>(A2stdlife+$E91),(Input!$G$212*(1+rvanilla)^0.5)-SUM($G91:BF91),(Input!$G$212*(1+rvanilla)^0.5)/A2stdlife)) -> 0 | BH91: =IF(A2stdlife="n/a","n/a",IF(BH$3>(A2stdlife+$E91),(Input!$G$212*(1+rvanilla)^0.5)-SUM($G91:BG91),(Input!$G$212*(1+rvanilla)^0.5)/A2stdlife)) -> 0 | BI91: =IF(A2stdlife="n/a","n/a",IF(BI$3>(A2stdlife+$E91),(Input!$G$212*(1+rvanilla)^0.5)-SUM($G91:BH91),(Input!$G$212*(1+rvanilla)^0.5)/A2stdlife)) -> 0
E92: 2 | I92: =IF(A2stdlife="n/a","n/a",IF(I$3>(A2stdlife+$E92),(Input!$H$212*(1+rvanilla)^0.5)-SUM($H92:H92),(Input!$H$212*(1+rvanilla)^0.5)/A2stdlife)) -> 0.7737864649 | J92: =IF(A2stdlife="n/a","n/a",IF(J$3>(A2stdlife+$E92),(Input!$H$212*(1+rvanilla)^0.5)-SUM($H92:I92),(Input!$H$212*(1+rvanilla)^0.5)/A2stdlife)) -> 0.7737864649 | K92: =IF(A2stdlife="n/a","n/a",IF(K$3>(A2stdlife+$E92),(Input!$H$212*(1+rvanilla)^0.5)-SUM($H92:J92),(Input!$H$212*(1+rvanilla)^0.5)/A2stdlife)) -> 0.7737864649 | L92: =IF(A2stdlife="n/a","n/a",IF(L$3>(A2stdlife+$E92),(Input!$H$212*(1+rvanilla)^0.5)-SUM($H92:K92),(Input!$H$212*(1+rvanilla)^0.5)/A2stdlife)) -> 0.7737864649 | M92: =IF(A2stdlife="n/a","n/a",IF(M$3>(A2stdlife+$E92),(Input!$H$212*(1+rvanilla)^0.5)-SUM($H92:L92),(Input!$H$212*(1+rvanilla)^0.5)/A2stdlife)) -> 0.7737864649 | N92: =IF(A2stdlife="n/a","n/a",IF(N$3>(A2stdlife+$E92),(Input!$H$212*(1+rvanilla)^0.5)-SUM($H92:M92),(Input!$H$212*(1+rvanilla)^0.5)/A2stdlife)) -> 0.7737864649 | O92: =IF(A2stdlife="n/a","n/a",IF(O$3>(A2stdlife+$E92),(Input!$H$212*(1+rvanilla)^0.5)-SUM($H92:N92),(Input!$H$212*(1+rvanilla)^0.5)/A2stdlife)) -> 0.7737864649 | P92: =IF(A2stdlife="n/a","n/a",IF(P$3>(A2stdlife+$E92),(Input!$H$212*(1+rvanilla)^0.5)-SUM($H92:O92),(Input!$H$212*(1+rvanilla)^0.5)/A2stdlife)) -> 0.7737864649 | Q92: =IF(A2stdlife="n/a","n/a",IF(Q$3>(A2stdlife+$E92),(Input!$H$212*(1+rvanilla)^0.5)-SUM($H92:P92),(Input!$H$212*(1+rvanilla)^0.5)/A2stdlife)) -> 0.7737864649 | R92: =IF(A2stdlife="n/a","n/a",IF(R$3>(A2stdlife+$E92),(Input!$H$212*(1+rvanilla)^0.5)-SUM($H92:Q92),(Input!$H$212*(1+rvanilla)^0.5)/A2stdlife)) -> 0.7737864649 | S92: =IF(A2stdlife="n/a","n/a",IF(S$3>(A2stdlife+$E92),(Input!$H$212*(1+rvanilla)^0.5)-SUM($H92:R92),(Input!$H$212*(1+rvanilla)^0.5)/A2stdlife)) -> 0.7737864649 | T92: =IF(A2stdlife="n/a","n/a",IF(T$3>(A2stdlife+$E92),(Input!$H$212*(1+rvanilla)^0.5)-SUM($H92:S92),(Input!$H$212*(1+rvanilla)^0.5)/A2stdlife)) -> 0.7737864649 | U92: =IF(A2stdlife="n/a","n/a",IF(U$3>(A2stdlife+$E92),(Input!$H$212*(1+rvanilla)^0.5)-SUM($H92:T92),(Input!$H$212*(1+rvanilla)^0.5)/A2stdlife)) -> 0.7737864649 | V92: =IF(A2stdlife="n/a","n/a",IF(V$3>(A2stdlife+$E92),(Input!$H$212*(1+rvanilla)^0.5)-SUM($H92:U92),(Input!$H$212*(1+rvanilla)^0.5)/A2stdlife)) -> 0.7737864649 | W92: =IF(A2stdlife="n/a","n/a",IF(W$3>(A2stdlife+$E92),(Input!$H$212*(1+rvanilla)^0.5)-SUM($H92:V92),(Input!$H$212*(1+rvanilla)^0.5)/A2stdlife)) -> 0.7737864649 | X92: =IF(A2stdlife="n/a","n/a",IF(X$3>(A2stdlife+$E92),(Input!$H$212*(1+rvanilla)^0.5)-SUM($H92:W92),(Input!$H$212*(1+rvanilla)^0.5)/A2stdlife)) -> 0.7737864649 | Y92: =IF(A2stdlife="n/a","n/a",IF(Y$3>(A2stdlife+$E92),(Input!$H$212*(1+rvanilla)^0.5)-SUM($H92:X92),(Input!$H$212*(1+rvanilla)^0.5)/A2stdlife)) -> 0.7737864649 | Z92: =IF(A2stdlife="n/a","n/a",IF(Z$3>(A2stdlife+$E92),(Input!$H$212*(1+rvanilla)^0.5)-SUM($H92:Y92),(Input!$H$212*(1+rvanilla)^0.5)/A2stdlife)) -> 0.7737864649 | AA92: =IF(A2stdlife="n/a","n/a",IF(AA$3>(A2stdlife+$E92),(Input!$H$212*(1+rvanilla)^0.5)-SUM($H92:Z92),(Input!$H$212*(1+rvanilla)^0.5)/A2stdlife)) -> 0.7737864649 | AB92: =IF(A2stdlife="n/a","n/a",IF(AB$3>(A2stdlife+$E92),(Input!$H$212*(1+rvanilla)^0.5)-SUM($H92:AA92),(Input!$H$212*(1+rvanilla)^0.5)/A2stdlife)) -> 0.7737864649 | AC92: =IF(A2stdlife="n/a","n/a",IF(AC$3>(A2stdlife+$E92),(Input!$H$212*(1+rvanilla)^0.5)-SUM($H92:AB92),(Input!$H$212*(1+rvanilla)^0.5)/A2stdlife)) -> 0.7737864649 | AD92: =IF(A2stdlife="n/a","n/a",IF(AD$3>(A2stdlife+$E92),(Input!$H$212*(1+rvanilla)^0.5)-SUM($H92:AC92),(Input!$H$212*(1+rvanilla)^0.5)/A2stdlife)) -> 0.7737864649 | AE92: =IF(A2stdlife="n/a","n/a",IF(AE$3>(A2stdlife+$E92),(Input!$H$212*(1+rvanilla)^0.5)-SUM($H92:AD92),(Input!$H$212*(1+rvanilla)^0.5)/A2stdlife)) -> 0.7737864649 | AF92: =IF(A2stdlife="n/a","n/a",IF(AF$3>(A2stdlife+$E92),(Input!$H$212*(1+rvanilla)^0.5)-SUM($H92:AE92),(Input!$H$212*(1+rvanilla)^0.5)/A2stdlife)) -> 0.7737864649 | AG92: =IF(A2stdlife="n/a","n/a",IF(AG$3>(A2stdlife+$E92),(Input!$H$212*(1+rvanilla)^0.5)-SUM($H92:AF92),(Input!$H$212*(1+rvanilla)^0.5)/A2stdlife)) -> 0.7737864649 | AH92: =IF(A2stdlife="n/a","n/a",IF(AH$3>(A2stdlife+$E92),(Input!$H$212*(1+rvanilla)^0.5)-SUM($H92:AG92),(Input!$H$212*(1+rvanilla)^0.5)/A2stdlife)) -> 0.7737864649 | AI92: =IF(A2stdlife="n/a","n/a",IF(AI$3>(A2stdlife+$E92),(Input!$H$212*(1+rvanilla)^0.5)-SUM($H92:AH92),(Input!$H$212*(1+rvanilla)^0.5)/A2stdlife)) -> 0.7737864649 | AJ92: =IF(A2stdlife="n/a","n/a",IF(AJ$3>(A2stdlife+$E92),(Input!$H$212*(1+rvanilla)^0.5)-SUM($H92:AI92),(Input!$H$212*(1+rvanilla)^0.5)/A2stdlife)) -> 0.7737864649 | AK92: =IF(A2stdlife="n/a","n/a",IF(AK$3>(A2stdlife+$E92),(Input!$H$212*(1+rvanilla)^0.5)-SUM($H92:AJ92),(Input!$H$212*(1+rvanilla)^0.5)/A2stdlife)) -> 0.7737864649 | AL92: =IF(A2stdlife="n/a","n/a",IF(AL$3>(A2stdlife+$E92),(Input!$H$212*(1+rvanilla)^0.5)-SUM($H92:AK92),(Input!$H$212*(1+rvanilla)^0.5)/A2stdlife)) -> 0.7737864649 | AM92: =IF(A2stdlife="n/a","n/a",IF(AM$3>(A2stdlife+$E92),(Input!$H$212*(1+rvanilla)^0.5)-SUM($H92:AL92),(Input!$H$212*(1+rvanilla)^0.5)/A2stdlife)) -> 0.7737864649 | AN92: =IF(A2stdlife="n/a","n/a",IF(AN$3>(A2stdlife+$E92),(Input!$H$212*(1+rvanilla)^0.5)-SUM($H92:AM92),(Input!$H$212*(1+rvanilla)^0.5)/A2stdlife)) -> 0.7737864649 | AO92: =IF(A2stdlife="n/a","n/a",IF(AO$3>(A2stdlife+$E92),(Input!$H$212*(1+rvanilla)^0.5)-SUM($H92:AN92),(Input!$H$212*(1+rvanilla)^0.5)/A2stdlife)) -> 0.7737864649 | AP92: =IF(A2stdlife="n/a","n/a",IF(AP$3>(A2stdlife+$E92),(Input!$H$212*(1+rvanilla)^0.5)-SUM($H92:AO92),(Input!$H$212*(1+rvanilla)^0.5)/A2stdlife)) -> 0.7737864649 | AQ92: =IF(A2stdlife="n/a","n/a",IF(AQ$3>(A2stdlife+$E92),(Input!$H$212*(1+rvanilla)^0.5)-SUM($H92:AP92),(Input!$H$212*(1+rvanilla)^0.5)/A2stdlife)) -> 0.7737864649 | AR92: =IF(A2stdlife="n/a","n/a",IF(AR$3>(A2stdlife+$E92),(Input!$H$212*(1+rvanilla)^0.5)-SUM($H92:AQ92),(Input!$H$212*(1+rvanilla)^0.5)/A2stdlife)) -> 0.7737864649 | AS92: =IF(A2stdlife="n/a","n/a",IF(AS$3>(A2stdlife+$E92),(Input!$H$212*(1+rvanilla)^0.5)-SUM($H92:AR92),(Input!$H$212*(1+rvanilla)^0.5)/A2stdlife)) -> 0.7737864649 | AT92: =IF(A2stdlife="n/a","n/a",IF(AT$3>(A2stdlife+$E92),(Input!$H$212*(1+rvanilla)^0.5)-SUM($H92:AS92),(Input!$H$212*(1+rvanilla)^0.5)/A2stdlife)) -> 0.7737864649 | AU92: =IF(A2stdlife="n/a","n/a",IF(AU$3>(A2stdlife+$E92),(Input!$H$212*(1+rvanilla)^0.5)-SUM($H92:AT92),(Input!$H$212*(1+rvanilla)^0.5)/A2stdlife)) -> 0.7737864649 | AV92: =IF(A2stdlife="n/a","n/a",IF(AV$3>(A2stdlife+$E92),(Input!$H$212*(1+rvanilla)^0.5)-SUM($H92:AU92),(Input!$H$212*(1+rvanilla)^0.5)/A2stdlife)) -> 0.7737864649 | AW92: =IF(A2stdlife="n/a","n/a",IF(AW$3>(A2stdlife+$E92),(Input!$H$212*(1+rvanilla)^0.5)-SUM($H92:AV92),(Input!$H$212*(1+rvanilla)^0.5)/A2stdlife)) -> 0.7737864649 | AX92: =IF(A2stdlife="n/a","n/a",IF(AX$3>(A2stdlife+$E92),(Input!$H$212*(1+rvanilla)^0.5)-SUM($H92:AW92),(Input!$H$212*(1+rvanilla)^0.5)/A2stdlife)) -> 0.7737864649 | AY92: =IF(A2stdlife="n/a","n/a",IF(AY$3>(A2stdlife+$E92),(Input!$H$212*(1+rvanilla)^0.5)-SUM($H92:AX92),(Input!$H$212*(1+rvanilla)^0.5)/A2stdlife)) -> 0.7737864649 | AZ92: =IF(A2stdlife="n/a","n/a",IF(AZ$3>(A2stdlife+$E92),(Input!$H$212*(1+rvanilla)^0.5)-SUM($H92:AY92),(Input!$H$212*(1+rvanilla)^0.5)/A2stdlife)) -> 0.7737864649 | BA92: =IF(A2stdlife="n/a","n/a",IF(BA$3>(A2stdlife+$E92),(Input!$H$212*(1+rvanilla)^0.5)-SUM($H92:AZ92),(Input!$H$212*(1+rvanilla)^0.5)/A2stdlife)) -> 0.7737864649 | BB92: =IF(A2stdlife="n/a","n/a",IF(BB$3>(A2stdlife+$E92),(Input!$H$212*(1+rvanilla)^0.5)-SUM($H92:BA92),(Input!$H$212*(1+rvanilla)^0.5)/A2stdlife)) -> 1.421085472e-14 | BC92: =IF(A2stdlife="n/a","n/a",IF(BC$3>(A2stdlife+$E92),(Input!$H$212*(1+rvanilla)^0.5)-SUM($H92:BB92),(Input!$H$212*(1+rvanilla)^0.5)/A2stdlife)) -> 0 | BD92: =IF(A2stdlife="n/a","n/a",IF(BD$3>(A2stdlife+$E92),(Input!$H$212*(1+rvanilla)^0.5)-SUM($H92:BC92),(Input!$H$212*(1+rvanilla)^0.5)/A2stdlife)) -> 0 | BE92: =IF(A2stdlife="n/a","n/a",IF(BE$3>(A2stdlife+$E92),(Input!$H$212*(1+rvanilla)^0.5)-SUM($H92:BD92),(Input!$H$212*(1+rvanilla)^0.5)/A2stdlife)) -> 0 | BF92: =IF(A2stdlife="n/a","n/a",IF(BF$3>(A2stdlife+$E92),(Input!$H$212*(1+rvanilla)^0.5)-SUM($H92:BE92),(Input!$H$212*(1+rvanilla)^0.5)/A2stdlife)) -> 0 | BG92: =IF(A2stdlife="n/a","n/a",IF(BG$3>(A2stdlife+$E92),(Input!$H$212*(1+rvanilla)^0.5)-SUM($H92:BF92),(Input!$H$212*(1+rvanilla)^0.5)/A2stdlife)) -> 0 | BH92: =IF(A2stdlife="n/a","n/a",IF(BH$3>(A2stdlife+$E92),(Input!$H$212*(1+rvanilla)^0.5)-SUM($H92:BG92),(Input!$H$212*(1+rvanilla)^0.5)/A2stdlife)) -> 0 | BI92: =IF(A2stdlife="n/a","n/a",IF(BI$3>(A2stdlife+$E92),(Input!$H$212*(1+rvanilla)^0.5)-SUM($H92:BH92),(Input!$H$212*(1+rvanilla)^0.5)/A2stdlife)) -> 0
E93: 3 | J93: =IF(A2stdlife="n/a","n/a",IF(J$3>(A2stdlife+$E93),(Input!$I$212*(1+rvanilla)^0.5)-SUM($I93:I93),(Input!$I$212*(1+rvanilla)^0.5)/A2stdlife)) -> 0.7468717059 | K93: =IF(A2stdlife="n/a","n/a",IF(K$3>(A2stdlife+$E93),(Input!$I$212*(1+rvanilla)^0.5)-SUM($I93:J93),(Input!$I$212*(1+rvanilla)^0.5)/A2stdlife)) -> 0.7468717059 | L93: =IF(A2stdlife="n/a","n/a",IF(L$3>(A2stdlife+$E93),(Input!$I$212*(1+rvanilla)^0.5)-SUM($I93:K93),(Input!$I$212*(1+rvanilla)^0.5)/A2stdlife)) -> 0.7468717059 | M93: =IF(A2stdlife="n/a","n/a",IF(M$3>(A2stdlife+$E93),(Input!$I$212*(1+rvanilla)^0.5)-SUM($I93:L93),(Input!$I$212*(1+rvanilla)^0.5)/A2stdlife)) -> 0.7468717059 | N93: =IF(A2stdlife="n/a","n/a",IF(N$3>(A2stdlife+$E93),(Input!$I$212*(1+rvanilla)^0.5)-SUM($I93:M93),(Input!$I$212*(1+rvanilla)^0.5)/A2stdlife)) -> 0.7468717059 | O93: =IF(A2stdlife="n/a","n/a",IF(O$3>(A2stdlife+$E93),(Input!$I$212*(1+rvanilla)^0.5)-SUM($I93:N93),(Input!$I$212*(1+rvanilla)^0.5)/A2stdlife)) -> 0.7468717059 | P93: =IF(A2stdlife="n/a","n/a",IF(P$3>(A2stdlife+$E93),(Input!$I$212*(1+rvanilla)^0.5)-SUM($I93:O93),(Input!$I$212*(1+rvanilla)^0.5)/A2stdlife)) -> 0.7468717059 | Q93: =IF(A2stdlife="n/a","n/a",IF(Q$3>(A2stdlife+$E93),(Input!$I$212*(1+rvanilla)^0.5)-SUM($I93:P93),(Input!$I$212*(1+rvanilla)^0.5)/A2stdlife)) -> 0.7468717059 | R93: =IF(A2stdlife="n/a","n/a",IF(R$3>(A2stdlife+$E93),(Input!$I$212*(1+rvanilla)^0.5)-SUM($I93:Q93),(Input!$I$212*(1+rvanilla)^0.5)/A2stdlife)) -> 0.7468717059 | S93: =IF(A2stdlife="n/a","n/a",IF(S$3>(A2stdlife+$E93),(Input!$I$212*(1+rvanilla)^0.5)-SUM($I93:R93),(Input!$I$212*(1+rvanilla)^0.5)/A2stdlife)) -> 0.7468717059 | T93: =IF(A2stdlife="n/a","n/a",IF(T$3>(A2stdlife+$E93),(Input!$I$212*(1+rvanilla)^0.5)-SUM($I93:S93),(Input!$I$212*(1+rvanilla)^0.5)/A2stdlife)) -> 0.7468717059 | U93: =IF(A2stdlife="n/a","n/a",IF(U$3>(A2stdlife+$E93),(Input!$I$212*(1+rvanilla)^0.5)-SUM($I93:T93),(Input!$I$212*(1+rvanilla)^0.5)/A2stdlife)) -> 0.7468717059 | V93: =IF(A2stdlife="n/a","n/a",IF(V$3>(A2stdlife+$E93),(Input!$I$212*(1+rvanilla)^0.5)-SUM($I93:U93),(Input!$I$212*(1+rvanilla)^0.5)/A2stdlife)) -> 0.7468717059 | W93: =IF(A2stdlife="n/a","n/a",IF(W$3>(A2stdlife+$E93),(Input!$I$212*(1+rvanilla)^0.5)-SUM($I93:V93),(Input!$I$212*(1+rvanilla)^0.5)/A2stdlife)) -> 0.7468717059 | X93: =IF(A2stdlife="n/a","n/a",IF(X$3>(A2stdlife+$E93),(Input!$I$212*(1+rvanilla)^0.5)-SUM($I93:W93),(Input!$I$212*(1+rvanilla)^0.5)/A2stdlife)) -> 0.7468717059 | Y93: =IF(A2stdlife="n/a","n/a",IF(Y$3>(A2stdlife+$E93),(Input!$I$212*(1+rvanilla)^0.5)-SUM($I93:X93),(Input!$I$212*(1+rvanilla)^0.5)/A2stdlife)) -> 0.7468717059 | Z93: =IF(A2stdlife="n/a","n/a",IF(Z$3>(A2stdlife+$E93),(Input!$I$212*(1+rvanilla)^0.5)-SUM($I93:Y93),(Input!$I$212*(1+rvanilla)^0.5)/A2stdlife)) -> 0.7468717059 | AA93: =IF(A2stdlife="n/a","n/a",IF(AA$3>(A2stdlife+$E93),(Input!$I$212*(1+rvanilla)^0.5)-SUM($I93:Z93),(Input!$I$212*(1+rvanilla)^0.5)/A2stdlife)) -> 0.7468717059 | AB93: =IF(A2stdlife="n/a","n/a",IF(AB$3>(A2stdlife+$E93),(Input!$I$212*(1+rvanilla)^0.5)-SUM($I93:AA93),(Input!$I$212*(1+rvanilla)^0.5)/A2stdlife)) -> 0.7468717059 | AC93: =IF(A2stdlife="n/a","n/a",IF(AC$3>(A2stdlife+$E93),(Input!$I$212*(1+rvanilla)^0.5)-SUM($I93:AB93),(Input!$I$212*(1+rvanilla)^0.5)/A2stdlife)) -> 0.7468717059 | AD93: =IF(A2stdlife="n/a","n/a",IF(AD$3>(A2stdlife+$E93),(Input!$I$212*(1+rvanilla)^0.5)-SUM($I93:AC93),(Input!$I$212*(1+rvanilla)^0.5)/A2stdlife)) -> 0.7468717059 | AE93: =IF(A2stdlife="n/a","n/a",IF(AE$3>(A2stdlife+$E93),(Input!$I$212*(1+rvanilla)^0.5)-SUM($I93:AD93),(Input!$I$212*(1+rvanilla)^0.5)/A2stdlife)) -> 0.7468717059 | AF93: =IF(A2stdlife="n/a","n/a",IF(AF$3>(A2stdlife+$E93),(Input!$I$212*(1+rvanilla)^0.5)-SUM($I93:AE93),(Input!$I$212*(1+rvanilla)^0.5)/A2stdlife)) -> 0.7468717059 | AG93: =IF(A2stdlife="n/a","n/a",IF(AG$3>(A2stdlife+$E93),(Input!$I$212*(1+rvanilla)^0.5)-SUM($I93:AF93),(Input!$I$212*(1+rvanilla)^0.5)/A2stdlife)) -> 0.7468717059 | AH93: =IF(A2stdlife="n/a","n/a",IF(AH$3>(A2stdlife+$E93),(Input!$I$212*(1+rvanilla)^0.5)-SUM($I93:AG93),(Input!$I$212*(1+rvanilla)^0.5)/A2stdlife)) -> 0.7468717059 | AI93: =IF(A2stdlife="n/a","n/a",IF(AI$3>(A2stdlife+$E93),(Input!$I$212*(1+rvanilla)^0.5)-SUM($I93:AH93),(Input!$I$212*(1+rvanilla)^0.5)/A2stdlife)) -> 0.7468717059 | AJ93: =IF(A2stdlife="n/a","n/a",IF(AJ$3>(A2stdlife+$E93),(Input!$I$212*(1+rvanilla)^0.5)-SUM($I93:AI93),(Input!$I$212*(1+rvanilla)^0.5)/A2stdlife)) -> 0.7468717059 | AK93: =IF(A2stdlife="n/a","n/a",IF(AK$3>(A2stdlife+$E93),(Input!$I$212*(1+rvanilla)^0.5)-SUM($I93:AJ93),(Input!$I$212*(1+rvanilla)^0.5)/A2stdlife)) -> 0.7468717059 | AL93: =IF(A2stdlife="n/a","n/a",IF(AL$3>(A2stdlife+$E93),(Input!$I$212*(1+rvanilla)^0.5)-SUM($I93:AK93),(Input!$I$212*(1+rvanilla)^0.5)/A2stdlife)) -> 0.7468717059 | AM93: =IF(A2stdlife="n/a","n/a",IF(AM$3>(A2stdlife+$E93),(Input!$I$212*(1+rvanilla)^0.5)-SUM($I93:AL93),(Input!$I$212*(1+rvanilla)^0.5)/A2stdlife)) -> 0.7468717059 | AN93: =IF(A2stdlife="n/a","n/a",IF(AN$3>(A2stdlife+$E93),(Input!$I$212*(1+rvanilla)^0.5)-SUM($I93:AM93),(Input!$I$212*(1+rvanilla)^0.5)/A2stdlife)) -> 0.7468717059 | AO93: =IF(A2stdlife="n/a","n/a",IF(AO$3>(A2stdlife+$E93),(Input!$I$212*(1+rvanilla)^0.5)-SUM($I93:AN93),(Input!$I$212*(1+rvanilla)^0.5)/A2stdlife)) -> 0.7468717059 | AP93: =IF(A2stdlife="n/a","n/a",IF(AP$3>(A2stdlife+$E93),(Input!$I$212*(1+rvanilla)^0.5)-SUM($I93:AO93),(Input!$I$212*(1+rvanilla)^0.5)/A2stdlife)) -> 0.7468717059 | AQ93: =IF(A2stdlife="n/a","n/a",IF(AQ$3>(A2stdlife+$E93),(Input!$I$212*(1+rvanilla)^0.5)-SUM($I93:AP93),(Input!$I$212*(1+rvanilla)^0.5)/A2stdlife)) -> 0.7468717059 | AR93: =IF(A2stdlife="n/a","n/a",IF(AR$3>(A2stdlife+$E93),(Input!$I$212*(1+rvanilla)^0.5)-SUM($I93:AQ93),(Input!$I$212*(1+rvanilla)^0.5)/A2stdlife)) -> 0.7468717059 | AS93: =IF(A2stdlife="n/a","n/a",IF(AS$3>(A2stdlife+$E93),(Input!$I$212*(1+rvanilla)^0.5)-SUM($I93:AR93),(Input!$I$212*(1+rvanilla)^0.5)/A2stdlife)) -> 0.7468717059 | AT93: =IF(A2stdlife="n/a","n/a",IF(AT$3>(A2stdlife+$E93),(Input!$I$212*(1+rvanilla)^0.5)-SUM($I93:AS93),(Input!$I$212*(1+rvanilla)^0.5)/A2stdlife)) -> 0.7468717059 | AU93: =IF(A2stdlife="n/a","n/a",IF(AU$3>(A2stdlife+$E93),(Input!$I$212*(1+rvanilla)^0.5)-SUM($I93:AT93),(Input!$I$212*(1+rvanilla)^0.5)/A2stdlife)) -> 0.7468717059 | AV93: =IF(A2stdlife="n/a","n/a",IF(AV$3>(A2stdlife+$E93),(Input!$I$212*(1+rvanilla)^0.5)-SUM($I93:AU93),(Input!$I$212*(1+rvanilla)^0.5)/A2stdlife)) -> 0.7468717059 | AW93: =IF(A2stdlife="n/a","n/a",IF(AW$3>(A2stdlife+$E93),(Input!$I$212*(1+rvanilla)^0.5)-SUM($I93:AV93),(Input!$I$212*(1+rvanilla)^0.5)/A2stdlife)) -> 0.7468717059 | AX93: =IF(A2stdlife="n/a","n/a",IF(AX$3>(A2stdlife+$E93),(Input!$I$212*(1+rvanilla)^0.5)-SUM($I93:AW93),(Input!$I$212*(1+rvanilla)^0.5)/A2stdlife)) -> 0.7468717059 | AY93: =IF(A2stdlife="n/a","n/a",IF(AY$3>(A2stdlife+$E93),(Input!$I$212*(1+rvanilla)^0.5)-SUM($I93:AX93),(Input!$I$212*(1+rvanilla)^0.5)/A2stdlife)) -> 0.7468717059 | AZ93: =IF(A2stdlife="n/a","n/a",IF(AZ$3>(A2stdlife+$E93),(Input!$I$212*(1+rvanilla)^0.5)-SUM($I93:AY93),(Input!$I$212*(1+rvanilla)^0.5)/A2stdlife)) -> 0.7468717059 | BA93: =IF(A2stdlife="n/a","n/a",IF(BA$3>(A2stdlife+$E93),(Input!$I$212*(1+rvanilla)^0.5)-SUM($I93:AZ93),(Input!$I$212*(1+rvanilla)^0.5)/A2stdlife)) -> 0.7468717059 | BB93: =IF(A2stdlife="n/a","n/a",IF(BB$3>(A2stdlife+$E93),(Input!$I$212*(1+rvanilla)^0.5)-SUM($I93:BA93),(Input!$I$212*(1+rvanilla)^0.5)/A2stdlife)) -> 0.7468717059 | BC93: =IF(A2stdlife="n/a","n/a",IF(BC$3>(A2stdlife+$E93),(Input!$I$212*(1+rvanilla)^0.5)-SUM($I93:BB93),(Input!$I$212*(1+rvanilla)^0.5)/A2stdlife)) -> -2.842170943e-14 | BD93: =IF(A2stdlife="n/a","n/a",IF(BD$3>(A2stdlife+$E93),(Input!$I$212*(1+rvanilla)^0.5)-SUM($I93:BC93),(Input!$I$212*(1+rvanilla)^0.5)/A2stdlife)) -> 0 | BE93: =IF(A2stdlife="n/a","n/a",IF(BE$3>(A2stdlife+$E93),(Input!$I$212*(1+rvanilla)^0.5)-SUM($I93:BD93),(Input!$I$212*(1+rvanilla)^0.5)/A2stdlife)) -> 0 | BF93: =IF(A2stdlife="n/a","n/a",IF(BF$3>(A2stdlife+$E93),(Input!$I$212*(1+rvanilla)^0.5)-SUM($I93:BE93),(Input!$I$212*(1+rvanilla)^0.5)/A2stdlife)) -> 0 | BG93: =IF(A2stdlife="n/a","n/a",IF(BG$3>(A2stdlife+$E93),(Input!$I$212*(1+rvanilla)^0.5)-SUM($I93:BF93),(Input!$I$212*(1+rvanilla)^0.5)/A2stdlife)) -> 0 | BH93: =IF(A2stdlife="n/a","n/a",IF(BH$3>(A2stdlife+$E93),(Input!$I$212*(1+rvanilla)^0.5)-SUM($I93:BG93),(Input!$I$212*(1+rvanilla)^0.5)/A2stdlife)) -> 0 | BI93: =IF(A2stdlife="n/a","n/a",IF(BI$3>(A2stdlife+$E93),(Input!$I$212*(1+rvanilla)^0.5)-SUM($I93:BH93),(Input!$I$212*(1+rvanilla)^0.5)/A2stdlife)) -> 0
E94: 4 | K94: =IF(A2stdlife="n/a","n/a",IF(K$3>(A2stdlife+$E94),(Input!$J$212*(1+rvanilla)^0.5)-SUM($J94:J94),(Input!$J$212*(1+rvanilla)^0.5)/A2stdlife)) -> 0 | L94: =IF(A2stdlife="n/a","n/a",IF(L$3>(A2stdlife+$E94),(Input!$J$212*(1+rvanilla)^0.5)-SUM($J94:K94),(Input!$J$212*(1+rvanilla)^0.5)/A2stdlife)) -> 0 | M94: =IF(A2stdlife="n/a","n/a",IF(M$3>(A2stdlife+$E94),(Input!$J$212*(1+rvanilla)^0.5)-SUM($J94:L94),(Input!$J$212*(1+rvanilla)^0.5)/A2stdlife)) -> 0 | N94: =IF(A2stdlife="n/a","n/a",IF(N$3>(A2stdlife+$E94),(Input!$J$212*(1+rvanilla)^0.5)-SUM($J94:M94),(Input!$J$212*(1+rvanilla)^0.5)/A2stdlife)) -> 0 | O94: =IF(A2stdlife="n/a","n/a",IF(O$3>(A2stdlife+$E94),(Input!$J$212*(1+rvanilla)^0.5)-SUM($J94:N94),(Input!$J$212*(1+rvanilla)^0.5)/A2stdlife)) -> 0 | P94: =IF(A2stdlife="n/a","n/a",IF(P$3>(A2stdlife+$E94),(Input!$J$212*(1+rvanilla)^0.5)-SUM($J94:O94),(Input!$J$212*(1+rvanilla)^0.5)/A2stdlife)) -> 0 | Q94: =IF(A2stdlife="n/a","n/a",IF(Q$3>(A2stdlife+$E94),(Input!$J$212*(1+rvanilla)^0.5)-SUM($J94:P94),(Input!$J$212*(1+rvanilla)^0.5)/A2stdlife)) -> 0 | R94: =IF(A2stdlife="n/a","n/a",IF(R$3>(A2stdlife+$E94),(Input!$J$212*(1+rvanilla)^0.5)-SUM($J94:Q94),(Input!$J$212*(1+rvanilla)^0.5)/A2stdlife)) -> 0 | S94: =IF(A2stdlife="n/a","n/a",IF(S$3>(A2stdlife+$E94),(Input!$J$212*(1+rvanilla)^0.5)-SUM($J94:R94),(Input!$J$212*(1+rvanilla)^0.5)/A2stdlife)) -> 0 | T94: =IF(A2stdlife="n/a","n/a",IF(T$3>(A2stdlife+$E94),(Input!$J$212*(1+rvanilla)^0.5)-SUM($J94:S94),(Input!$J$212*(1+rvanilla)^0.5)/A2stdlife)) -> 0 | U94: =IF(A2stdlife="n/a","n/a",IF(U$3>(A2stdlife+$E94),(Input!$J$212*(1+rvanilla)^0.5)-SUM($J94:T94),(Input!$J$212*(1+rvanilla)^0.5)/A2stdlife)) -> 0 | V94: =IF(A2stdlife="n/a","n/a",IF(V$3>(A2stdlife+$E94),(Input!$J$212*(1+rvanilla)^0.5)-SUM($J94:U94),(Input!$J$212*(1+rvanilla)^0.5)/A2stdlife)) -> 0 | W94: =IF(A2stdlife="n/a","n/a",IF(W$3>(A2stdlife+$E94),(Input!$J$212*(1+rvanilla)^0.5)-SUM($J94:V94),(Input!$J$212*(1+rvanilla)^0.5)/A2stdlife)) -> 0 | X94: =IF(A2stdlife="n/a","n/a",IF(X$3>(A2stdlife+$E94),(Input!$J$212*(1+rvanilla)^0.5)-SUM($J94:W94),(Input!$J$212*(1+rvanilla)^0.5)/A2stdlife)) -> 0 | Y94: =IF(A2stdlife="n/a","n/a",IF(Y$3>(A2stdlife+$E94),(Input!$J$212*(1+rvanilla)^0.5)-SUM($J94:X94),(Input!$J$212*(1+rvanilla)^0.5)/A2stdlife)) -> 0 | Z94: =IF(A2stdlife="n/a","n/a",IF(Z$3>(A2stdlife+$E94),(Input!$J$212*(1+rvanilla)^0.5)-SUM($J94:Y94),(Input!$J$212*(1+rvanilla)^0.5)/A2stdlife)) -> 0 | AA94: =IF(A2stdlife="n/a","n/a",IF(AA$3>(A2stdlife+$E94),(Input!$J$212*(1+rvanilla)^0.5)-SUM($J94:Z94),(Input!$J$212*(1+rvanilla)^0.5)/A2stdlife)) -> 0 | AB94: =IF(A2stdlife="n/a","n/a",IF(AB$3>(A2stdlife+$E94),(Input!$J$212*(1+rvanilla)^0.5)-SUM($J94:AA94),(Input!$J$212*(1+rvanilla)^0.5)/A2stdlife)) -> 0 | AC94: =IF(A2stdlife="n/a","n/a",IF(AC$3>(A2stdlife+$E94),(Input!$J$212*(1+rvanilla)^0.5)-SUM($J94:AB94),(Input!$J$212*(1+rvanilla)^0.5)/A2stdlife)) -> 0 | AD94: =IF(A2stdlife="n/a","n/a",IF(AD$3>(A2stdlife+$E94),(Input!$J$212*(1+rvanilla)^0.5)-SUM($J94:AC94),(Input!$J$212*(1+rvanilla)^0.5)/A2stdlife)) -> 0 | AE94: =IF(A2stdlife="n/a","n/a",IF(AE$3>(A2stdlife+$E94),(Input!$J$212*(1+rvanilla)^0.5)-SUM($J94:AD94),(Input!$J$212*(1+rvanilla)^0.5)/A2stdlife)) -> 0 | AF94: =IF(A2stdlife="n/a","n/a",IF(AF$3>(A2stdlife+$E94),(Input!$J$212*(1+rvanilla)^0.5)-SUM($J94:AE94),(Input!$J$212*(1+rvanilla)^0.5)/A2stdlife)) -> 0 | AG94: =IF(A2stdlife="n/a","n/a",IF(AG$3>(A2stdlife+$E94),(Input!$J$212*(1+rvanilla)^0.5)-SUM($J94:AF94),(Input!$J$212*(1+rvanilla)^0.5)/A2stdlife)) -> 0 | AH94: =IF(A2stdlife="n/a","n/a",IF(AH$3>(A2stdlife+$E94),(Input!$J$212*(1+rvanilla)^0.5)-SUM($J94:AG94),(Input!$J$212*(1+rvanilla)^0.5)/A2stdlife)) -> 0 | AI94: =IF(A2stdlife="n/a","n/a",IF(AI$3>(A2stdlife+$E94),(Input!$J$212*(1+rvanilla)^0.5)-SUM($J94:AH94),(Input!$J$212*(1+rvanilla)^0.5)/A2stdlife)) -> 0 | AJ94: =IF(A2stdlife="n/a","n/a",IF(AJ$3>(A2stdlife+$E94),(Input!$J$212*(1+rvanilla)^0.5)-SUM($J94:AI94),(Input!$J$212*(1+rvanilla)^0.5)/A2stdlife)) -> 0 | AK94: =IF(A2stdlife="n/a","n/a",IF(AK$3>(A2stdlife+$E94),(Input!$J$212*(1+rvanilla)^0.5)-SUM($J94:AJ94),(Input!$J$212*(1+rvanilla)^0.5)/A2stdlife)) -> 0 | AL94: =IF(A2stdlife="n/a","n/a",IF(AL$3>(A2stdlife+$E94),(Input!$J$212*(1+rvanilla)^0.5)-SUM($J94:AK94),(Input!$J$212*(1+rvanilla)^0.5)/A2stdlife)) -> 0 | AM94: =IF(A2stdlife="n/a","n/a",IF(AM$3>(A2stdlife+$E94),(Input!$J$212*(1+rvanilla)^0.5)-SUM($J94:AL94),(Input!$J$212*(1+rvanilla)^0.5)/A2stdlife)) -> 0 | AN94: =IF(A2stdlife="n/a","n/a",IF(AN$3>(A2stdlife+$E94),(Input!$J$212*(1+rvanilla)^0.5)-SUM($J94:AM94),(Input!$J$212*(1+rvanilla)^0.5)/A2stdlife)) -> 0 | AO94: =IF(A2stdlife="n/a","n/a",IF(AO$3>(A2stdlife+$E94),(Input!$J$212*(1+rvanilla)^0.5)-SUM($J94:AN94),(Input!$J$212*(1+rvanilla)^0.5)/A2stdlife)) -> 0 | AP94: =IF(A2stdlife="n/a","n/a",IF(AP$3>(A2stdlife+$E94),(Input!$J$212*(1+rvanilla)^0.5)-SUM($J94:AO94),(Input!$J$212*(1+rvanilla)^0.5)/A2stdlife)) -> 0 | AQ94: =IF(A2stdlife="n/a","n/a",IF(AQ$3>(A2stdlife+$E94),(Input!$J$212*(1+rvanilla)^0.5)-SUM($J94:AP94),(Input!$J$212*(1+rvanilla)^0.5)/A2stdlife)) -> 0 | AR94: =IF(A2stdlife="n/a","n/a",IF(AR$3>(A2stdlife+$E94),(Input!$J$212*(1+rvanilla)^0.5)-SUM($J94:AQ94),(Input!$J$212*(1+rvanilla)^0.5)/A2stdlife)) -> 0 | AS94: =IF(A2stdlife="n/a","n/a",IF(AS$3>(A2stdlife+$E94),(Input!$J$212*(1+rvanilla)^0.5)-SUM($J94:AR94),(Input!$J$212*(1+rvanilla)^0.5)/A2stdlife)) -> 0 | AT94: =IF(A2stdlife="n/a","n/a",IF(AT$3>(A2stdlife+$E94),(Input!$J$212*(1+rvanilla)^0.5)-SUM($J94:AS94),(Input!$J$212*(1+rvanilla)^0.5)/A2stdlife)) -> 0 | AU94: =IF(A2stdlife="n/a","n/a",IF(AU$3>(A2stdlife+$E94),(Input!$J$212*(1+rvanilla)^0.5)-SUM($J94:AT94),(Input!$J$212*(1+rvanilla)^0.5)/A2stdlife)) -> 0 | AV94: =IF(A2stdlife="n/a","n/a",IF(AV$3>(A2stdlife+$E94),(Input!$J$212*(1+rvanilla)^0.5)-SUM($J94:AU94),(Input!$J$212*(1+rvanilla)^0.5)/A2stdlife)) -> 0 | AW94: =IF(A2stdlife="n/a","n/a",IF(AW$3>(A2stdlife+$E94),(Input!$J$212*(1+rvanilla)^0.5)-SUM($J94:AV94),(Input!$J$212*(1+rvanilla)^0.5)/A2stdlife)) -> 0 | AX94: =IF(A2stdlife="n/a","n/a",IF(AX$3>(A2stdlife+$E94),(Input!$J$212*(1+rvanilla)^0.5)-SUM($J94:AW94),(Input!$J$212*(1+rvanilla)^0.5)/A2stdlife)) -> 0 | AY94: =IF(A2stdlife="n/a","n/a",IF(AY$3>(A2stdlife+$E94),(Input!$J$212*(1+rvanilla)^0.5)-SUM($J94:AX94),(Input!$J$212*(1+rvanilla)^0.5)/A2stdlife)) -> 0 | AZ94: =IF(A2stdlife="n/a","n/a",IF(AZ$3>(A2stdlife+$E94),(Input!$J$212*(1+rvanilla)^0.5)-SUM($J94:AY94),(Input!$J$212*(1+rvanilla)^0.5)/A2stdlife)) -> 0 | BA94: =IF(A2stdlife="n/a","n/a",IF(BA$3>(A2stdlife+$E94),(Input!$J$212*(1+rvanilla)^0.5)-SUM($J94:AZ94),(Input!$J$212*(1+rvanilla)^0.5)/A2stdlife)) -> 0 | BB94: =IF(A2stdlife="n/a","n/a",IF(BB$3>(A2stdlife+$E94),(Input!$J$212*(1+rvanilla)^0.5)-SUM($J94:BA94),(Input!$J$212*(1+rvanilla)^0.5)/A2stdlife)) -> 0 | BC94: =IF(A2stdlife="n/a","n/a",IF(BC$3>(A2stdlife+$E94),(Input!$J$212*(1+rvanilla)^0.5)-SUM($J94:BB94),(Input!$J$212*(1+rvanilla)^0.5)/A2stdlife)) -> 0 | BD94: =IF(A2stdlife="n/a","n/a",IF(BD$3>(A2stdlife+$E94),(Input!$J$212*(1+rvanilla)^0.5)-SUM($J94:BC94),(Input!$J$212*(1+rvanilla)^0.5)/A2stdlife)) -> 0 | BE94: =IF(A2stdlife="n/a","n/a",IF(BE$3>(A2stdlife+$E94),(Input!$J$212*(1+rvanilla)^0.5)-SUM($J94:BD94),(Input!$J$212*(1+rvanilla)^0.5)/A2stdlife)) -> 0 | BF94: =IF(A2stdlife="n/a","n/a",IF(BF$3>(A2stdlife+$E94),(Input!$J$212*(1+rvanilla)^0.5)-SUM($J94:BE94),(Input!$J$212*(1+rvanilla)^0.5)/A2stdlife)) -> 0 | BG94: =IF(A2stdlife="n/a","n/a",IF(BG$3>(A2stdlife+$E94),(Input!$J$212*(1+rvanilla)^0.5)-SUM($J94:BF94),(Input!$J$212*(1+rvanilla)^0.5)/A2stdlife)) -> 0 | BH94: =IF(A2stdlife="n/a","n/a",IF(BH$3>(A2stdlife+$E94),(Input!$J$212*(1+rvanilla)^0.5)-SUM($J94:BG94),(Input!$J$212*(1+rvanilla)^0.5)/A2stdlife)) -> 0 | BI94: =IF(A2stdlife="n/a","n/a",IF(BI$3>(A2stdlife+$E94),(Input!$J$212*(1+rvanilla)^0.5)-SUM($J94:BH94),(Input!$J$212*(1+rvanilla)^0.5)/A2stdlife)) -> 0
E95: 5 | L95: =IF(A2stdlife="n/a","n/a",IF(L$3>(A2stdlife+$E95),(Input!$K$212*(1+rvanilla)^0.5)-SUM($K95:K95),(Input!$K$212*(1+rvanilla)^0.5)/A2stdlife)) -> 0 | M95: =IF(A2stdlife="n/a","n/a",IF(M$3>(A2stdlife+$E95),(Input!$K$212*(1+rvanilla)^0.5)-SUM($K95:L95),(Input!$K$212*(1+rvanilla)^0.5)/A2stdlife)) -> 0 | N95: =IF(A2stdlife="n/a","n/a",IF(N$3>(A2stdlife+$E95),(Input!$K$212*(1+rvanilla)^0.5)-SUM($K95:M95),(Input!$K$212*(1+rvanilla)^0.5)/A2stdlife)) -> 0 | O95: =IF(A2stdlife="n/a","n/a",IF(O$3>(A2stdlife+$E95),(Input!$K$212*(1+rvanilla)^0.5)-SUM($K95:N95),(Input!$K$212*(1+rvanilla)^0.5)/A2stdlife)) -> 0 | P95: =IF(A2stdlife="n/a","n/a",IF(P$3>(A2stdlife+$E95),(Input!$K$212*(1+rvanilla)^0.5)-SUM($K95:O95),(Input!$K$212*(1+rvanilla)^0.5)/A2stdlife)) -> 0 | Q95: =IF(A2stdlife="n/a","n/a",IF(Q$3>(A2stdlife+$E95),(Input!$K$212*(1+rvanilla)^0.5)-SUM($K95:P95),(Input!$K$212*(1+rvanilla)^0.5)/A2stdlife)) -> 0 | R95: =IF(A2stdlife="n/a","n/a",IF(R$3>(A2stdlife+$E95),(Input!$K$212*(1+rvanilla)^0.5)-SUM($K95:Q95),(Input!$K$212*(1+rvanilla)^0.5)/A2stdlife)) -> 0 | S95: =IF(A2stdlife="n/a","n/a",IF(S$3>(A2stdlife+$E95),(Input!$K$212*(1+rvanilla)^0.5)-SUM($K95:R95),(Input!$K$212*(1+rvanilla)^0.5)/A2stdlife)) -> 0 | T95: =IF(A2stdlife="n/a","n/a",IF(T$3>(A2stdlife+$E95),(Input!$K$212*(1+rvanilla)^0.5)-SUM($K95:S95),(Input!$K$212*(1+rvanilla)^0.5)/A2stdlife)) -> 0 | U95: =IF(A2stdlife="n/a","n/a",IF(U$3>(A2stdlife+$E95),(Input!$K$212*(1+rvanilla)^0.5)-SUM($K95:T95),(Input!$K$212*(1+rvanilla)^0.5)/A2stdlife)) -> 0 | V95: =IF(A2stdlife="n/a","n/a",IF(V$3>(A2stdlife+$E95),(Input!$K$212*(1+rvanilla)^0.5)-SUM($K95:U95),(Input!$K$212*(1+rvanilla)^0.5)/A2stdlife)) -> 0 | W95: =IF(A2stdlife="n/a","n/a",IF(W$3>(A2stdlife+$E95),(Input!$K$212*(1+rvanilla)^0.5)-SUM($K95:V95),(Input!$K$212*(1+rvanilla)^0.5)/A2stdlife)) -> 0 | X95: =IF(A2stdlife="n/a","n/a",IF(X$3>(A2stdlife+$E95),(Input!$K$212*(1+rvanilla)^0.5)-SUM($K95:W95),(Input!$K$212*(1+rvanilla)^0.5)/A2stdlife)) -> 0 | Y95: =IF(A2stdlife="n/a","n/a",IF(Y$3>(A2stdlife+$E95),(Input!$K$212*(1+rvanilla)^0.5)-SUM($K95:X95),(Input!$K$212*(1+rvanilla)^0.5)/A2stdlife)) -> 0 | Z95: =IF(A2stdlife="n/a","n/a",IF(Z$3>(A2stdlife+$E95),(Input!$K$212*(1+rvanilla)^0.5)-SUM($K95:Y95),(Input!$K$212*(1+rvanilla)^0.5)/A2stdlife)) -> 0 | AA95: =IF(A2stdlife="n/a","n/a",IF(AA$3>(A2stdlife+$E95),(Input!$K$212*(1+rvanilla)^0.5)-SUM($K95:Z95),(Input!$K$212*(1+rvanilla)^0.5)/A2stdlife)) -> 0 | AB95: =IF(A2stdlife="n/a","n/a",IF(AB$3>(A2stdlife+$E95),(Input!$K$212*(1+rvanilla)^0.5)-SUM($K95:AA95),(Input!$K$212*(1+rvanilla)^0.5)/A2stdlife)) -> 0 | AC95: =IF(A2stdlife="n/a","n/a",IF(AC$3>(A2stdlife+$E95),(Input!$K$212*(1+rvanilla)^0.5)-SUM($K95:AB95),(Input!$K$212*(1+rvanilla)^0.5)/A2stdlife)) -> 0 | AD95: =IF(A2stdlife="n/a","n/a",IF(AD$3>(A2stdlife+$E95),(Input!$K$212*(1+rvanilla)^0.5)-SUM($K95:AC95),(Input!$K$212*(1+rvanilla)^0.5)/A2stdlife)) -> 0 | AE95: =IF(A2stdlife="n/a","n/a",IF(AE$3>(A2stdlife+$E95),(Input!$K$212*(1+rvanilla)^0.5)-SUM($K95:AD95),(Input!$K$212*(1+rvanilla)^0.5)/A2stdlife)) -> 0 | AF95: =IF(A2stdlife="n/a","n/a",IF(AF$3>(A2stdlife+$E95),(Input!$K$212*(1+rvanilla)^0.5)-SUM($K95:AE95),(Input!$K$212*(1+rvanilla)^0.5)/A2stdlife)) -> 0 | AG95: =IF(A2stdlife="n/a","n/a",IF(AG$3>(A2stdlife+$E95),(Input!$K$212*(1+rvanilla)^0.5)-SUM($K95:AF95),(Input!$K$212*(1+rvanilla)^0.5)/A2stdlife)) -> 0 | AH95: =IF(A2stdlife="n/a","n/a",IF(AH$3>(A2stdlife+$E95),(Input!$K$212*(1+rvanilla)^0.5)-SUM($K95:AG95),(Input!$K$212*(1+rvanilla)^0.5)/A2stdlife)) -> 0 | AI95: =IF(A2stdlife="n/a","n/a",IF(AI$3>(A2stdlife+$E95),(Input!$K$212*(1+rvanilla)^0.5)-SUM($K95:AH95),(Input!$K$212*(1+rvanilla)^0.5)/A2stdlife)) -> 0 | AJ95: =IF(A2stdlife="n/a","n/a",IF(AJ$3>(A2stdlife+$E95),(Input!$K$212*(1+rvanilla)^0.5)-SUM($K95:AI95),(Input!$K$212*(1+rvanilla)^0.5)/A2stdlife)) -> 0 | AK95: =IF(A2stdlife="n/a","n/a",IF(AK$3>(A2stdlife+$E95),(Input!$K$212*(1+rvanilla)^0.5)-SUM($K95:AJ95),(Input!$K$212*(1+rvanilla)^0.5)/A2stdlife)) -> 0 | AL95: =IF(A2stdlife="n/a","n/a",IF(AL$3>(A2stdlife+$E95),(Input!$K$212*(1+rvanilla)^0.5)-SUM($K95:AK95),(Input!$K$212*(1+rvanilla)^0.5)/A2stdlife)) -> 0 | AM95: =IF(A2stdlife="n/a","n/a",IF(AM$3>(A2stdlife+$E95),(Input!$K$212*(1+rvanilla)^0.5)-SUM($K95:AL95),(Input!$K$212*(1+rvanilla)^0.5)/A2stdlife)) -> 0 | AN95: =IF(A2stdlife="n/a","n/a",IF(AN$3>(A2stdlife+$E95),(Input!$K$212*(1+rvanilla)^0.5)-SUM($K95:AM95),(Input!$K$212*(1+rvanilla)^0.5)/A2stdlife)) -> 0 | AO95: =IF(A2stdlife="n/a","n/a",IF(AO$3>(A2stdlife+$E95),(Input!$K$212*(1+rvanilla)^0.5)-SUM($K95:AN95),(Input!$K$212*(1+rvanilla)^0.5)/A2stdlife)) -> 0 | AP95: =IF(A2stdlife="n/a","n/a",IF(AP$3>(A2stdlife+$E95),(Input!$K$212*(1+rvanilla)^0.5)-SUM($K95:AO95),(Input!$K$212*(1+rvanilla)^0.5)/A2stdlife)) -> 0 | AQ95: =IF(A2stdlife="n/a","n/a",IF(AQ$3>(A2stdlife+$E95),(Input!$K$212*(1+rvanilla)^0.5)-SUM($K95:AP95),(Input!$K$212*(1+rvanilla)^0.5)/A2stdlife)) -> 0 | AR95: =IF(A2stdlife="n/a","n/a",IF(AR$3>(A2stdlife+$E95),(Input!$K$212*(1+rvanilla)^0.5)-SUM($K95:AQ95),(Input!$K$212*(1+rvanilla)^0.5)/A2stdlife)) -> 0 | AS95: =IF(A2stdlife="n/a","n/a",IF(AS$3>(A2stdlife+$E95),(Input!$K$212*(1+rvanilla)^0.5)-SUM($K95:AR95),(Input!$K$212*(1+rvanilla)^0.5)/A2stdlife)) -> 0 | AT95: =IF(A2stdlife="n/a","n/a",IF(AT$3>(A2stdlife+$E95),(Input!$K$212*(1+rvanilla)^0.5)-SUM($K95:AS95),(Input!$K$212*(1+rvanilla)^0.5)/A2stdlife)) -> 0 | AU95: =IF(A2stdlife="n/a","n/a",IF(AU$3>(A2stdlife+$E95),(Input!$K$212*(1+rvanilla)^0.5)-SUM($K95:AT95),(Input!$K$212*(1+rvanilla)^0.5)/A2stdlife)) -> 0 | AV95: =IF(A2stdlife="n/a","n/a",IF(AV$3>(A2stdlife+$E95),(Input!$K$212*(1+rvanilla)^0.5)-SUM($K95:AU95),(Input!$K$212*(1+rvanilla)^0.5)/A2stdlife)) -> 0 | AW95: =IF(A2stdlife="n/a","n/a",IF(AW$3>(A2stdlife+$E95),(Input!$K$212*(1+rvanilla)^0.5)-SUM($K95:AV95),(Input!$K$212*(1+rvanilla)^0.5)/A2stdlife)) -> 0 | AX95: =IF(A2stdlife="n/a","n/a",IF(AX$3>(A2stdlife+$E95),(Input!$K$212*(1+rvanilla)^0.5)-SUM($K95:AW95),(Input!$K$212*(1+rvanilla)^0.5)/A2stdlife)) -> 0 | AY95: =IF(A2stdlife="n/a","n/a",IF(AY$3>(A2stdlife+$E95),(Input!$K$212*(1+rvanilla)^0.5)-SUM($K95:AX95),(Input!$K$212*(1+rvanilla)^0.5)/A2stdlife)) -> 0 | AZ95: =IF(A2stdlife="n/a","n/a",IF(AZ$3>(A2stdlife+$E95),(Input!$K$212*(1+rvanilla)^0.5)-SUM($K95:AY95),(Input!$K$212*(1+rvanilla)^0.5)/A2stdlife)) -> 0 | BA95: =IF(A2stdlife="n/a","n/a",IF(BA$3>(A2stdlife+$E95),(Input!$K$212*(1+rvanilla)^0.5)-SUM($K95:AZ95),(Input!$K$212*(1+rvanilla)^0.5)/A2stdlife)) -> 0 | BB95: =IF(A2stdlife="n/a","n/a",IF(BB$3>(A2stdlife+$E95),(Input!$K$212*(1+rvanilla)^0.5)-SUM($K95:BA95),(Input!$K$212*(1+rvanilla)^0.5)/A2stdlife)) -> 0 | BC95: =IF(A2stdlife="n/a","n/a",IF(BC$3>(A2stdlife+$E95),(Input!$K$212*(1+rvanilla)^0.5)-SUM($K95:BB95),(Input!$K$212*(1+rvanilla)^0.5)/A2stdlife)) -> 0 | BD95: =IF(A2stdlife="n/a","n/a",IF(BD$3>(A2stdlife+$E95),(Input!$K$212*(1+rvanilla)^0.5)-SUM($K95:BC95),(Input!$K$212*(1+rvanilla)^0.5)/A2stdlife)) -> 0 | BE95: =IF(A2stdlife="n/a","n/a",IF(BE$3>(A2stdlife+$E95),(Input!$K$212*(1+rvanilla)^0.5)-SUM($K95:BD95),(Input!$K$212*(1+rvanilla)^0.5)/A2stdlife)) -> 0 | BF95: =IF(A2stdlife="n/a","n/a",IF(BF$3>(A2stdlife+$E95),(Input!$K$212*(1+rvanilla)^0.5)-SUM($K95:BE95),(Input!$K$212*(1+rvanilla)^0.5)/A2stdlife)) -> 0 | BG95: =IF(A2stdlife="n/a","n/a",IF(BG$3>(A2stdlife+$E95),(Input!$K$212*(1+rvanilla)^0.5)-SUM($K95:BF95),(Input!$K$212*(1+rvanilla)^0.5)/A2stdlife)) -> 0 | BH95: =IF(A2stdlife="n/a","n/a",IF(BH$3>(A2stdlife+$E95),(Input!$K$212*(1+rvanilla)^0.5)-SUM($K95:BG95),(Input!$K$212*(1+rvanilla)^0.5)/A2stdlife)) -> 0 | BI95: =IF(A2stdlife="n/a","n/a",IF(BI$3>(A2stdlife+$E95),(Input!$K$212*(1+rvanilla)^0.5)-SUM($K95:BH95),(Input!$K$212*(1+rvanilla)^0.5)/A2stdlife)) -> 0
E96: 6 | M96: =IF(A2stdlife="n/a","n/a",IF(M$3>(A2stdlife+$E96),(Input!$L$212*(1+rvanilla)^0.5)-SUM($L96:L96),(Input!$L$212*(1+rvanilla)^0.5)/A2stdlife)) -> 0 | N96: =IF(A2stdlife="n/a","n/a",IF(N$3>(A2stdlife+$E96),(Input!$L$212*(1+rvanilla)^0.5)-SUM($L96:M96),(Input!$L$212*(1+rvanilla)^0.5)/A2stdlife)) -> 0 | O96: =IF(A2stdlife="n/a","n/a",IF(O$3>(A2stdlife+$E96),(Input!$L$212*(1+rvanilla)^0.5)-SUM($L96:N96),(Input!$L$212*(1+rvanilla)^0.5)/A2stdlife)) -> 0 | P96: =IF(A2stdlife="n/a","n/a",IF(P$3>(A2stdlife+$E96),(Input!$L$212*(1+rvanilla)^0.5)-SUM($L96:O96),(Input!$L$212*(1+rvanilla)^0.5)/A2stdlife)) -> 0 | Q96: =IF(A2stdlife="n/a","n/a",IF(Q$3>(A2stdlife+$E96),(Input!$L$212*(1+rvanilla)^0.5)-SUM($L96:P96),(Input!$L$212*(1+rvanilla)^0.5)/A2stdlife)) -> 0 | R96: =IF(A2stdlife="n/a","n/a",IF(R$3>(A2stdlife+$E96),(Input!$L$212*(1+rvanilla)^0.5)-SUM($L96:Q96),(Input!$L$212*(1+rvanilla)^0.5)/A2stdlife)) -> 0 | S96: =IF(A2stdlife="n/a","n/a",IF(S$3>(A2stdlife+$E96),(Input!$L$212*(1+rvanilla)^0.5)-SUM($L96:R96),(Input!$L$212*(1+rvanilla)^0.5)/A2stdlife)) -> 0 | T96: =IF(A2stdlife="n/a","n/a",IF(T$3>(A2stdlife+$E96),(Input!$L$212*(1+rvanilla)^0.5)-SUM($L96:S96),(Input!$L$212*(1+rvanilla)^0.5)/A2stdlife)) -> 0 | U96: =IF(A2stdlife="n/a","n/a",IF(U$3>(A2stdlife+$E96),(Input!$L$212*(1+rvanilla)^0.5)-SUM($L96:T96),(Input!$L$212*(1+rvanilla)^0.5)/A2stdlife)) -> 0 | V96: =IF(A2stdlife="n/a","n/a",IF(V$3>(A2stdlife+$E96),(Input!$L$212*(1+rvanilla)^0.5)-SUM($L96:U96),(Input!$L$212*(1+rvanilla)^0.5)/A2stdlife)) -> 0 | W96: =IF(A2stdlife="n/a","n/a",IF(W$3>(A2stdlife+$E96),(Input!$L$212*(1+rvanilla)^0.5)-SUM($L96:V96),(Input!$L$212*(1+rvanilla)^0.5)/A2stdlife)) -> 0 | X96: =IF(A2stdlife="n/a","n/a",IF(X$3>(A2stdlife+$E96),(Input!$L$212*(1+rvanilla)^0.5)-SUM($L96:W96),(Input!$L$212*(1+rvanilla)^0.5)/A2stdlife)) -> 0 | Y96: =IF(A2stdlife="n/a","n/a",IF(Y$3>(A2stdlife+$E96),(Input!$L$212*(1+rvanilla)^0.5)-SUM($L96:X96),(Input!$L$212*(1+rvanilla)^0.5)/A2stdlife)) -> 0 | Z96: =IF(A2stdlife="n/a","n/a",IF(Z$3>(A2stdlife+$E96),(Input!$L$212*(1+rvanilla)^0.5)-SUM($L96:Y96),(Input!$L$212*(1+rvanilla)^0.5)/A2stdlife)) -> 0 | AA96: =IF(A2stdlife="n/a","n/a",IF(AA$3>(A2stdlife+$E96),(Input!$L$212*(1+rvanilla)^0.5)-SUM($L96:Z96),(Input!$L$212*(1+rvanilla)^0.5)/A2stdlife)) -> 0 | AB96: =IF(A2stdlife="n/a","n/a",IF(AB$3>(A2stdlife+$E96),(Input!$L$212*(1+rvanilla)^0.5)-SUM($L96:AA96),(Input!$L$212*(1+rvanilla)^0.5)/A2stdlife)) -> 0 | AC96: =IF(A2stdlife="n/a","n/a",IF(AC$3>(A2stdlife+$E96),(Input!$L$212*(1+rvanilla)^0.5)-SUM($L96:AB96),(Input!$L$212*(1+rvanilla)^0.5)/A2stdlife)) -> 0 | AD96: =IF(A2stdlife="n/a","n/a",IF(AD$3>(A2stdlife+$E96),(Input!$L$212*(1+rvanilla)^0.5)-SUM($L96:AC96),(Input!$L$212*(1+rvanilla)^0.5)/A2stdlife)) -> 0 | AE96: =IF(A2stdlife="n/a","n/a",IF(AE$3>(A2stdlife+$E96),(Input!$L$212*(1+rvanilla)^0.5)-SUM($L96:AD96),(Input!$L$212*(1+rvanilla)^0.5)/A2stdlife)) -> 0 | AF96: =IF(A2stdlife="n/a","n/a",IF(AF$3>(A2stdlife+$E96),(Input!$L$212*(1+rvanilla)^0.5)-SUM($L96:AE96),(Input!$L$212*(1+rvanilla)^0.5)/A2stdlife)) -> 0 | AG96: =IF(A2stdlife="n/a","n/a",IF(AG$3>(A2stdlife+$E96),(Input!$L$212*(1+rvanilla)^0.5)-SUM($L96:AF96),(Input!$L$212*(1+rvanilla)^0.5)/A2stdlife)) -> 0 | AH96: =IF(A2stdlife="n/a","n/a",IF(AH$3>(A2stdlife+$E96),(Input!$L$212*(1+rvanilla)^0.5)-SUM($L96:AG96),(Input!$L$212*(1+rvanilla)^0.5)/A2stdlife)) -> 0 | AI96: =IF(A2stdlife="n/a","n/a",IF(AI$3>(A2stdlife+$E96),(Input!$L$212*(1+rvanilla)^0.5)-SUM($L96:AH96),(Input!$L$212*(1+rvanilla)^0.5)/A2stdlife)) -> 0 | AJ96: =IF(A2stdlife="n/a","n/a",IF(AJ$3>(A2stdlife+$E96),(Input!$L$212*(1+rvanilla)^0.5)-SUM($L96:AI96),(Input!$L$212*(1+rvanilla)^0.5)/A2stdlife)) -> 0 | AK96: =IF(A2stdlife="n/a","n/a",IF(AK$3>(A2stdlife+$E96),(Input!$L$212*(1+rvanilla)^0.5)-SUM($L96:AJ96),(Input!$L$212*(1+rvanilla)^0.5)/A2stdlife)) -> 0 | AL96: =IF(A2stdlife="n/a","n/a",IF(AL$3>(A2stdlife+$E96),(Input!$L$212*(1+rvanilla)^0.5)-SUM($L96:AK96),(Input!$L$212*(1+rvanilla)^0.5)/A2stdlife)) -> 0 | AM96: =IF(A2stdlife="n/a","n/a",IF(AM$3>(A2stdlife+$E96),(Input!$L$212*(1+rvanilla)^0.5)-SUM($L96:AL96),(Input!$L$212*(1+rvanilla)^0.5)/A2stdlife)) -> 0 | AN96: =IF(A2stdlife="n/a","n/a",IF(AN$3>(A2stdlife+$E96),(Input!$L$212*(1+rvanilla)^0.5)-SUM($L96:AM96),(Input!$L$212*(1+rvanilla)^0.5)/A2stdlife)) -> 0 | AO96: =IF(A2stdlife="n/a","n/a",IF(AO$3>(A2stdlife+$E96),(Input!$L$212*(1+rvanilla)^0.5)-SUM($L96:AN96),(Input!$L$212*(1+rvanilla)^0.5)/A2stdlife)) -> 0 | AP96: =IF(A2stdlife="n/a","n/a",IF(AP$3>(A2stdlife+$E96),(Input!$L$212*(1+rvanilla)^0.5)-SUM($L96:AO96),(Input!$L$212*(1+rvanilla)^0.5)/A2stdlife)) -> 0 | AQ96: =IF(A2stdlife="n/a","n/a",IF(AQ$3>(A2stdlife+$E96),(Input!$L$212*(1+rvanilla)^0.5)-SUM($L96:AP96),(Input!$L$212*(1+rvanilla)^0.5)/A2stdlife)) -> 0 | AR96: =IF(A2stdlife="n/a","n/a",IF(AR$3>(A2stdlife+$E96),(Input!$L$212*(1+rvanilla)^0.5)-SUM($L96:AQ96),(Input!$L$212*(1+rvanilla)^0.5)/A2stdlife)) -> 0 | AS96: =IF(A2stdlife="n/a","n/a",IF(AS$3>(A2stdlife+$E96),(Input!$L$212*(1+rvanilla)^0.5)-SUM($L96:AR96),(Input!$L$212*(1+rvanilla)^0.5)/A2stdlife)) -> 0 | AT96: =IF(A2stdlife="n/a","n/a",IF(AT$3>(A2stdlife+$E96),(Input!$L$212*(1+rvanilla)^0.5)-SUM($L96:AS96),(Input!$L$212*(1+rvanilla)^0.5)/A2stdlife)) -> 0 | AU96: =IF(A2stdlife="n/a","n/a",IF(AU$3>(A2stdlife+$E96),(Input!$L$212*(1+rvanilla)^0.5)-SUM($L96:AT96),(Input!$L$212*(1+rvanilla)^0.5)/A2stdlife)) -> 0 | AV96: =IF(A2stdlife="n/a","n/a",IF(AV$3>(A2stdlife+$E96),(Input!$L$212*(1+rvanilla)^0.5)-SUM($L96:AU96),(Input!$L$212*(1+rvanilla)^0.5)/A2stdlife)) -> 0 | AW96: =IF(A2stdlife="n/a","n/a",IF(AW$3>(A2stdlife+$E96),(Input!$L$212*(1+rvanilla)^0.5)-SUM($L96:AV96),(Input!$L$212*(1+rvanilla)^0.5)/A2stdlife)) -> 0 | AX96: =IF(A2stdlife="n/a","n/a",IF(AX$3>(A2stdlife+$E96),(Input!$L$212*(1+rvanilla)^0.5)-SUM($L96:AW96),(Input!$L$212*(1+rvanilla)^0.5)/A2stdlife)) -> 0 | AY96: =IF(A2stdlife="n/a","n/a",IF(AY$3>(A2stdlife+$E96),(Input!$L$212*(1+rvanilla)^0.5)-SUM($L96:AX96),(Input!$L$212*(1+rvanilla)^0.5)/A2stdlife)) -> 0 | AZ96: =IF(A2stdlife="n/a","n/a",IF(AZ$3>(A2stdlife+$E96),(Input!$L$212*(1+rvanilla)^0.5)-SUM($L96:AY96),(Input!$L$212*(1+rvanilla)^0.5)/A2stdlife)) -> 0 | BA96: =IF(A2stdlife="n/a","n/a",IF(BA$3>(A2stdlife+$E96),(Input!$L$212*(1+rvanilla)^0.5)-SUM($L96:AZ96),(Input!$L$212*(1+rvanilla)^0.5)/A2stdlife)) -> 0 | BB96: =IF(A2stdlife="n/a","n/a",IF(BB$3>(A2stdlife+$E96),(Input!$L$212*(1+rvanilla)^0.5)-SUM($L96:BA96),(Input!$L$212*(1+rvanilla)^0.5)/A2stdlife)) -> 0 | BC96: =IF(A2stdlife="n/a","n/a",IF(BC$3>(A2stdlife+$E96),(Input!$L$212*(1+rvanilla)^0.5)-SUM($L96:BB96),(Input!$L$212*(1+rvanilla)^0.5)/A2stdlife)) -> 0 | BD96: =IF(A2stdlife="n/a","n/a",IF(BD$3>(A2stdlife+$E96),(Input!$L$212*(1+rvanilla)^0.5)-SUM($L96:BC96),(Input!$L$212*(1+rvanilla)^0.5)/A2stdlife)) -> 0 | BE96: =IF(A2stdlife="n/a","n/a",IF(BE$3>(A2stdlife+$E96),(Input!$L$212*(1+rvanilla)^0.5)-SUM($L96:BD96),(Input!$L$212*(1+rvanilla)^0.5)/A2stdlife)) -> 0 | BF96: =IF(A2stdlife="n/a","n/a",IF(BF$3>(A2stdlife+$E96),(Input!$L$212*(1+rvanilla)^0.5)-SUM($L96:BE96),(Input!$L$212*(1+rvanilla)^0.5)/A2stdlife)) -> 0 | BG96: =IF(A2stdlife="n/a","n/a",IF(BG$3>(A2stdlife+$E96),(Input!$L$212*(1+rvanilla)^0.5)-SUM($L96:BF96),(Input!$L$212*(1+rvanilla)^0.5)/A2stdlife)) -> 0 | BH96: =IF(A2stdlife="n/a","n/a",IF(BH$3>(A2stdlife+$E96),(Input!$L$212*(1+rvanilla)^0.5)-SUM($L96:BG96),(Input!$L$212*(1+rvanilla)^0.5)/A2stdlife)) -> 0 | BI96: =IF(A2stdlife="n/a","n/a",IF(BI$3>(A2stdlife+$E96),(Input!$L$212*(1+rvanilla)^0.5)-SUM($L96:BH96),(Input!$L$212*(1+rvanilla)^0.5)/A2stdlife)) -> 0
E97: 7 | N97: =IF(A2stdlife="n/a","n/a",IF(N$3>(A2stdlife+$E97),(Input!$M$212*(1+rvanilla)^0.5)-SUM($M97:M97),(Input!$M$212*(1+rvanilla)^0.5)/A2stdlife)) -> 0 | O97: =IF(A2stdlife="n/a","n/a",IF(O$3>(A2stdlife+$E97),(Input!$M$212*(1+rvanilla)^0.5)-SUM($M97:N97),(Input!$M$212*(1+rvanilla)^0.5)/A2stdlife)) -> 0 | P97: =IF(A2stdlife="n/a","n/a",IF(P$3>(A2stdlife+$E97),(Input!$M$212*(1+rvanilla)^0.5)-SUM($M97:O97),(Input!$M$212*(1+rvanilla)^0.5)/A2stdlife)) -> 0 | Q97: =IF(A2stdlife="n/a","n/a",IF(Q$3>(A2stdlife+$E97),(Input!$M$212*(1+rvanilla)^0.5)-SUM($M97:P97),(Input!$M$212*(1+rvanilla)^0.5)/A2stdlife)) -> 0 | R97: =IF(A2stdlife="n/a","n/a",IF(R$3>(A2stdlife+$E97),(Input!$M$212*(1+rvanilla)^0.5)-SUM($M97:Q97),(Input!$M$212*(1+rvanilla)^0.5)/A2stdlife)) -> 0 | S97: =IF(A2stdlife="n/a","n/a",IF(S$3>(A2stdlife+$E97),(Input!$M$212*(1+rvanilla)^0.5)-SUM($M97:R97),(Input!$M$212*(1+rvanilla)^0.5)/A2stdlife)) -> 0 | T97: =IF(A2stdlife="n/a","n/a",IF(T$3>(A2stdlife+$E97),(Input!$M$212*(1+rvanilla)^0.5)-SUM($M97:S97),(Input!$M$212*(1+rvanilla)^0.5)/A2stdlife)) -> 0 | U97: =IF(A2stdlife="n/a","n/a",IF(U$3>(A2stdlife+$E97),(Input!$M$212*(1+rvanilla)^0.5)-SUM($M97:T97),(Input!$M$212*(1+rvanilla)^0.5)/A2stdlife)) -> 0 | V97: =IF(A2stdlife="n/a","n/a",IF(V$3>(A2stdlife+$E97),(Input!$M$212*(1+rvanilla)^0.5)-SUM($M97:U97),(Input!$M$212*(1+rvanilla)^0.5)/A2stdlife)) -> 0 | W97: =IF(A2stdlife="n/a","n/a",IF(W$3>(A2stdlife+$E97),(Input!$M$212*(1+rvanilla)^0.5)-SUM($M97:V97),(Input!$M$212*(1+rvanilla)^0.5)/A2stdlife)) -> 0 | X97: =IF(A2stdlife="n/a","n/a",IF(X$3>(A2stdlife+$E97),(Input!$M$212*(1+rvanilla)^0.5)-SUM($M97:W97),(Input!$M$212*(1+rvanilla)^0.5)/A2stdlife)) -> 0 | Y97: =IF(A2stdlife="n/a","n/a",IF(Y$3>(A2stdlife+$E97),(Input!$M$212*(1+rvanilla)^0.5)-SUM($M97:X97),(Input!$M$212*(1+rvanilla)^0.5)/A2stdlife)) -> 0 | Z97: =IF(A2stdlife="n/a","n/a",IF(Z$3>(A2stdlife+$E97),(Input!$M$212*(1+rvanilla)^0.5)-SUM($M97:Y97),(Input!$M$212*(1+rvanilla)^0.5)/A2stdlife)) -> 0 | AA97: =IF(A2stdlife="n/a","n/a",IF(AA$3>(A2stdlife+$E97),(Input!$M$212*(1+rvanilla)^0.5)-SUM($M97:Z97),(Input!$M$212*(1+rvanilla)^0.5)/A2stdlife)) -> 0 | AB97: =IF(A2stdlife="n/a","n/a",IF(AB$3>(A2stdlife+$E97),(Input!$M$212*(1+rvanilla)^0.5)-SUM($M97:AA97),(Input!$M$212*(1+rvanilla)^0.5)/A2stdlife)) -> 0 | AC97: =IF(A2stdlife="n/a","n/a",IF(AC$3>(A2stdlife+$E97),(Input!$M$212*(1+rvanilla)^0.5)-SUM($M97:AB97),(Input!$M$212*(1+rvanilla)^0.5)/A2stdlife)) -> 0 | AD97: =IF(A2stdlife="n/a","n/a",IF(AD$3>(A2stdlife+$E97),(Input!$M$212*(1+rvanilla)^0.5)-SUM($M97:AC97),(Input!$M$212*(1+rvanilla)^0.5)/A2stdlife)) -> 0 | AE97: =IF(A2stdlife="n/a","n/a",IF(AE$3>(A2stdlife+$E97),(Input!$M$212*(1+rvanilla)^0.5)-SUM($M97:AD97),(Input!$M$212*(1+rvanilla)^0.5)/A2stdlife)) -> 0 | AF97: =IF(A2stdlife="n/a","n/a",IF(AF$3>(A2stdlife+$E97),(Input!$M$212*(1+rvanilla)^0.5)-SUM($M97:AE97),(Input!$M$212*(1+rvanilla)^0.5)/A2stdlife)) -> 0 | AG97: =IF(A2stdlife="n/a","n/a",IF(AG$3>(A2stdlife+$E97),(Input!$M$212*(1+rvanilla)^0.5)-SUM($M97:AF97),(Input!$M$212*(1+rvanilla)^0.5)/A2stdlife)) -> 0 | AH97: =IF(A2stdlife="n/a","n/a",IF(AH$3>(A2stdlife+$E97),(Input!$M$212*(1+rvanilla)^0.5)-SUM($M97:AG97),(Input!$M$212*(1+rvanilla)^0.5)/A2stdlife)) -> 0 | AI97: =IF(A2stdlife="n/a","n/a",IF(AI$3>(A2stdlife+$E97),(Input!$M$212*(1+rvanilla)^0.5)-SUM($M97:AH97),(Input!$M$212*(1+rvanilla)^0.5)/A2stdlife)) -> 0 | AJ97: =IF(A2stdlife="n/a","n/a",IF(AJ$3>(A2stdlife+$E97),(Input!$M$212*(1+rvanilla)^0.5)-SUM($M97:AI97),(Input!$M$212*(1+rvanilla)^0.5)/A2stdlife)) -> 0 | AK97: =IF(A2stdlife="n/a","n/a",IF(AK$3>(A2stdlife+$E97),(Input!$M$212*(1+rvanilla)^0.5)-SUM($M97:AJ97),(Input!$M$212*(1+rvanilla)^0.5)/A2stdlife)) -> 0 | AL97: =IF(A2stdlife="n/a","n/a",IF(AL$3>(A2stdlife+$E97),(Input!$M$212*(1+rvanilla)^0.5)-SUM($M97:AK97),(Input!$M$212*(1+rvanilla)^0.5)/A2stdlife)) -> 0 | AM97: =IF(A2stdlife="n/a","n/a",IF(AM$3>(A2stdlife+$E97),(Input!$M$212*(1+rvanilla)^0.5)-SUM($M97:AL97),(Input!$M$212*(1+rvanilla)^0.5)/A2stdlife)) -> 0 | AN97: =IF(A2stdlife="n/a","n/a",IF(AN$3>(A2stdlife+$E97),(Input!$M$212*(1+rvanilla)^0.5)-SUM($M97:AM97),(Input!$M$212*(1+rvanilla)^0.5)/A2stdlife)) -> 0 | AO97: =IF(A2stdlife="n/a","n/a",IF(AO$3>(A2stdlife+$E97),(Input!$M$212*(1+rvanilla)^0.5)-SUM($M97:AN97),(Input!$M$212*(1+rvanilla)^0.5)/A2stdlife)) -> 0 | AP97: =IF(A2stdlife="n/a","n/a",IF(AP$3>(A2stdlife+$E97),(Input!$M$212*(1+rvanilla)^0.5)-SUM($M97:AO97),(Input!$M$212*(1+rvanilla)^0.5)/A2stdlife)) -> 0 | AQ97: =IF(A2stdlife="n/a","n/a",IF(AQ$3>(A2stdlife+$E97),(Input!$M$212*(1+rvanilla)^0.5)-SUM($M97:AP97),(Input!$M$212*(1+rvanilla)^0.5)/A2stdlife)) -> 0 | AR97: =IF(A2stdlife="n/a","n/a",IF(AR$3>(A2stdlife+$E97),(Input!$M$212*(1+rvanilla)^0.5)-SUM($M97:AQ97),(Input!$M$212*(1+rvanilla)^0.5)/A2stdlife)) -> 0 | AS97: =IF(A2stdlife="n/a","n/a",IF(AS$3>(A2stdlife+$E97),(Input!$M$212*(1+rvanilla)^0.5)-SUM($M97:AR97),(Input!$M$212*(1+rvanilla)^0.5)/A2stdlife)) -> 0 | AT97: =IF(A2stdlife="n/a","n/a",IF(AT$3>(A2stdlife+$E97),(Input!$M$212*(1+rvanilla)^0.5)-SUM($M97:AS97),(Input!$M$212*(1+rvanilla)^0.5)/A2stdlife)) -> 0 | AU97: =IF(A2stdlife="n/a","n/a",IF(AU$3>(A2stdlife+$E97),(Input!$M$212*(1+rvanilla)^0.5)-SUM($M97:AT97),(Input!$M$212*(1+rvanilla)^0.5)/A2stdlife)) -> 0 | AV97: =IF(A2stdlife="n/a","n/a",IF(AV$3>(A2stdlife+$E97),(Input!$M$212*(1+rvanilla)^0.5)-SUM($M97:AU97),(Input!$M$212*(1+rvanilla)^0.5)/A2stdlife)) -> 0 | AW97: =IF(A2stdlife="n/a","n/a",IF(AW$3>(A2stdlife+$E97),(Input!$M$212*(1+rvanilla)^0.5)-SUM($M97:AV97),(Input!$M$212*(1+rvanilla)^0.5)/A2stdlife)) -> 0 | AX97: =IF(A2stdlife="n/a","n/a",IF(AX$3>(A2stdlife+$E97),(Input!$M$212*(1+rvanilla)^0.5)-SUM($M97:AW97),(Input!$M$212*(1+rvanilla)^0.5)/A2stdlife)) -> 0 | AY97: =IF(A2stdlife="n/a","n/a",IF(AY$3>(A2stdlife+$E97),(Input!$M$212*(1+rvanilla)^0.5)-SUM($M97:AX97),(Input!$M$212*(1+rvanilla)^0.5)/A2stdlife)) -> 0 | AZ97: =IF(A2stdlife="n/a","n/a",IF(AZ$3>(A2stdlife+$E97),(Input!$M$212*(1+rvanilla)^0.5)-SUM($M97:AY97),(Input!$M$212*(1+rvanilla)^0.5)/A2stdlife)) -> 0 | BA97: =IF(A2stdlife="n/a","n/a",IF(BA$3>(A2stdlife+$E97),(Input!$M$212*(1+rvanilla)^0.5)-SUM($M97:AZ97),(Input!$M$212*(1+rvanilla)^0.5)/A2stdlife)) -> 0 | BB97: =IF(A2stdlife="n/a","n/a",IF(BB$3>(A2stdlife+$E97),(Input!$M$212*(1+rvanilla)^0.5)-SUM($M97:BA97),(Input!$M$212*(1+rvanilla)^0.5)/A2stdlife)) -> 0 | BC97: =IF(A2stdlife="n/a","n/a",IF(BC$3>(A2stdlife+$E97),(Input!$M$212*(1+rvanilla)^0.5)-SUM($M97:BB97),(Input!$M$212*(1+rvanilla)^0.5)/A2stdlife)) -> 0 | BD97: =IF(A2stdlife="n/a","n/a",IF(BD$3>(A2stdlife+$E97),(Input!$M$212*(1+rvanilla)^0.5)-SUM($M97:BC97),(Input!$M$212*(1+rvanilla)^0.5)/A2stdlife)) -> 0 | BE97: =IF(A2stdlife="n/a","n/a",IF(BE$3>(A2stdlife+$E97),(Input!$M$212*(1+rvanilla)^0.5)-SUM($M97:BD97),(Input!$M$212*(1+rvanilla)^0.5)/A2stdlife)) -> 0 | BF97: =IF(A2stdlife="n/a","n/a",IF(BF$3>(A2stdlife+$E97),(Input!$M$212*(1+rvanilla)^0.5)-SUM($M97:BE97),(Input!$M$212*(1+rvanilla)^0.5)/A2stdlife)) -> 0 | BG97: =IF(A2stdlife="n/a","n/a",IF(BG$3>(A2stdlife+$E97),(Input!$M$212*(1+rvanilla)^0.5)-SUM($M97:BF97),(Input!$M$212*(1+rvanilla)^0.5)/A2stdlife)) -> 0 | BH97: =IF(A2stdlife="n/a","n/a",IF(BH$3>(A2stdlife+$E97),(Input!$M$212*(1+rvanilla)^0.5)-SUM($M97:BG97),(Input!$M$212*(1+rvanilla)^0.5)/A2stdlife)) -> 0 | BI97: =IF(A2stdlife="n/a","n/a",IF(BI$3>(A2stdlife+$E97),(Input!$M$212*(1+rvanilla)^0.5)-SUM($M97:BH97),(Input!$M$212*(1+rvanilla)^0.5)/A2stdlife)) -> 0
E98: 8 | O98: =IF(A2stdlife="n/a","n/a",IF(O$3>(A2stdlife+$E98),(Input!$N$212*(1+rvanilla)^0.5)-SUM($N98:N98),(Input!$N$212*(1+rvanilla)^0.5)/A2stdlife)) -> 0 | P98: =IF(A2stdlife="n/a","n/a",IF(P$3>(A2stdlife+$E98),(Input!$N$212*(1+rvanilla)^0.5)-SUM($N98:O98),(Input!$N$212*(1+rvanilla)^0.5)/A2stdlife)) -> 0 | Q98: =IF(A2stdlife="n/a","n/a",IF(Q$3>(A2stdlife+$E98),(Input!$N$212*(1+rvanilla)^0.5)-SUM($N98:P98),(Input!$N$212*(1+rvanilla)^0.5)/A2stdlife)) -> 0 | R98: =IF(A2stdlife="n/a","n/a",IF(R$3>(A2stdlife+$E98),(Input!$N$212*(1+rvanilla)^0.5)-SUM($N98:Q98),(Input!$N$212*(1+rvanilla)^0.5)/A2stdlife)) -> 0 | S98: =IF(A2stdlife="n/a","n/a",IF(S$3>(A2stdlife+$E98),(Input!$N$212*(1+rvanilla)^0.5)-SUM($N98:R98),(Input!$N$212*(1+rvanilla)^0.5)/A2stdlife)) -> 0 | T98: =IF(A2stdlife="n/a","n/a",IF(T$3>(A2stdlife+$E98),(Input!$N$212*(1+rvanilla)^0.5)-SUM($N98:S98),(Input!$N$212*(1+rvanilla)^0.5)/A2stdlife)) -> 0 | U98: =IF(A2stdlife="n/a","n/a",IF(U$3>(A2stdlife+$E98),(Input!$N$212*(1+rvanilla)^0.5)-SUM($N98:T98),(Input!$N$212*(1+rvanilla)^0.5)/A2stdlife)) -> 0 | V98: =IF(A2stdlife="n/a","n/a",IF(V$3>(A2stdlife+$E98),(Input!$N$212*(1+rvanilla)^0.5)-SUM($N98:U98),(Input!$N$212*(1+rvanilla)^0.5)/A2stdlife)) -> 0 | W98: =IF(A2stdlife="n/a","n/a",IF(W$3>(A2stdlife+$E98),(Input!$N$212*(1+rvanilla)^0.5)-SUM($N98:V98),(Input!$N$212*(1+rvanilla)^0.5)/A2stdlife)) -> 0 | X98: =IF(A2stdlife="n/a","n/a",IF(X$3>(A2stdlife+$E98),(Input!$N$212*(1+rvanilla)^0.5)-SUM($N98:W98),(Input!$N$212*(1+rvanilla)^0.5)/A2stdlife)) -> 0 | Y98: =IF(A2stdlife="n/a","n/a",IF(Y$3>(A2stdlife+$E98),(Input!$N$212*(1+rvanilla)^0.5)-SUM($N98:X98),(Input!$N$212*(1+rvanilla)^0.5)/A2stdlife)) -> 0 | Z98: =IF(A2stdlife="n/a","n/a",IF(Z$3>(A2stdlife+$E98),(Input!$N$212*(1+rvanilla)^0.5)-SUM($N98:Y98),(Input!$N$212*(1+rvanilla)^0.5)/A2stdlife)) -> 0 | AA98: =IF(A2stdlife="n/a","n/a",IF(AA$3>(A2stdlife+$E98),(Input!$N$212*(1+rvanilla)^0.5)-SUM($N98:Z98),(Input!$N$212*(1+rvanilla)^0.5)/A2stdlife)) -> 0 | AB98: =IF(A2stdlife="n/a","n/a",IF(AB$3>(A2stdlife+$E98),(Input!$N$212*(1+rvanilla)^0.5)-SUM($N98:AA98),(Input!$N$212*(1+rvanilla)^0.5)/A2stdlife)) -> 0 | AC98: =IF(A2stdlife="n/a","n/a",IF(AC$3>(A2stdlife+$E98),(Input!$N$212*(1+rvanilla)^0.5)-SUM($N98:AB98),(Input!$N$212*(1+rvanilla)^0.5)/A2stdlife)) -> 0 | AD98: =IF(A2stdlife="n/a","n/a",IF(AD$3>(A2stdlife+$E98),(Input!$N$212*(1+rvanilla)^0.5)-SUM($N98:AC98),(Input!$N$212*(1+rvanilla)^0.5)/A2stdlife)) -> 0 | AE98: =IF(A2stdlife="n/a","n/a",IF(AE$3>(A2stdlife+$E98),(Input!$N$212*(1+rvanilla)^0.5)-SUM($N98:AD98),(Input!$N$212*(1+rvanilla)^0.5)/A2stdlife)) -> 0 | AF98: =IF(A2stdlife="n/a","n/a",IF(AF$3>(A2stdlife+$E98),(Input!$N$212*(1+rvanilla)^0.5)-SUM($N98:AE98),(Input!$N$212*(1+rvanilla)^0.5)/A2stdlife)) -> 0 | AG98: =IF(A2stdlife="n/a","n/a",IF(AG$3>(A2stdlife+$E98),(Input!$N$212*(1+rvanilla)^0.5)-SUM($N98:AF98),(Input!$N$212*(1+rvanilla)^0.5)/A2stdlife)) -> 0 | AH98: =IF(A2stdlife="n/a","n/a",IF(AH$3>(A2stdlife+$E98),(Input!$N$212*(1+rvanilla)^0.5)-SUM($N98:AG98),(Input!$N$212*(1+rvanilla)^0.5)/A2stdlife)) -> 0 | AI98: =IF(A2stdlife="n/a","n/a",IF(AI$3>(A2stdlife+$E98),(Input!$N$212*(1+rvanilla)^0.5)-SUM($N98:AH98),(Input!$N$212*(1+rvanilla)^0.5)/A2stdlife)) -> 0 | AJ98: =IF(A2stdlife="n/a","n/a",IF(AJ$3>(A2stdlife+$E98),(Input!$N$212*(1+rvanilla)^0.5)-SUM($N98:AI98),(Input!$N$212*(1+rvanilla)^0.5)/A2stdlife)) -> 0 | AK98: =IF(A2stdlife="n/a","n/a",IF(AK$3>(A2stdlife+$E98),(Input!$N$212*(1+rvanilla)^0.5)-SUM($N98:AJ98),(Input!$N$212*(1+rvanilla)^0.5)/A2stdlife)) -> 0 | AL98: =IF(A2stdlife="n/a","n/a",IF(AL$3>(A2stdlife+$E98),(Input!$N$212*(1+rvanilla)^0.5)-SUM($N98:AK98),(Input!$N$212*(1+rvanilla)^0.5)/A2stdlife)) -> 0 | AM98: =IF(A2stdlife="n/a","n/a",IF(AM$3>(A2stdlife+$E98),(Input!$N$212*(1+rvanilla)^0.5)-SUM($N98:AL98),(Input!$N$212*(1+rvanilla)^0.5)/A2stdlife)) -> 0 | AN98: =IF(A2stdlife="n/a","n/a",IF(AN$3>(A2stdlife+$E98),(Input!$N$212*(1+rvanilla)^0.5)-SUM($N98:AM98),(Input!$N$212*(1+rvanilla)^0.5)/A2stdlife)) -> 0 | AO98: =IF(A2stdlife="n/a","n/a",IF(AO$3>(A2stdlife+$E98),(Input!$N$212*(1+rvanilla)^0.5)-SUM($N98:AN98),(Input!$N$212*(1+rvanilla)^0.5)/A2stdlife)) -> 0 | AP98: =IF(A2stdlife="n/a","n/a",IF(AP$3>(A2stdlife+$E98),(Input!$N$212*(1+rvanilla)^0.5)-SUM($N98:AO98),(Input!$N$212*(1+rvanilla)^0.5)/A2stdlife)) -> 0 | AQ98: =IF(A2stdlife="n/a","n/a",IF(AQ$3>(A2stdlife+$E98),(Input!$N$212*(1+rvanilla)^0.5)-SUM($N98:AP98),(Input!$N$212*(1+rvanilla)^0.5)/A2stdlife)) -> 0 | AR98: =IF(A2stdlife="n/a","n/a",IF(AR$3>(A2stdlife+$E98),(Input!$N$212*(1+rvanilla)^0.5)-SUM($N98:AQ98),(Input!$N$212*(1+rvanilla)^0.5)/A2stdlife)) -> 0 | AS98: =IF(A2stdlife="n/a","n/a",IF(AS$3>(A2stdlife+$E98),(Input!$N$212*(1+rvanilla)^0.5)-SUM($N98:AR98),(Input!$N$212*(1+rvanilla)^0.5)/A2stdlife)) -> 0 | AT98: =IF(A2stdlife="n/a","n/a",IF(AT$3>(A2stdlife+$E98),(Input!$N$212*(1+rvanilla)^0.5)-SUM($N98:AS98),(Input!$N$212*(1+rvanilla)^0.5)/A2stdlife)) -> 0 | AU98: =IF(A2stdlife="n/a","n/a",IF(AU$3>(A2stdlife+$E98),(Input!$N$212*(1+rvanilla)^0.5)-SUM($N98:AT98),(Input!$N$212*(1+rvanilla)^0.5)/A2stdlife)) -> 0 | AV98: =IF(A2stdlife="n/a","n/a",IF(AV$3>(A2stdlife+$E98),(Input!$N$212*(1+rvanilla)^0.5)-SUM($N98:AU98),(Input!$N$212*(1+rvanilla)^0.5)/A2stdlife)) -> 0 | AW98: =IF(A2stdlife="n/a","n/a",IF(AW$3>(A2stdlife+$E98),(Input!$N$212*(1+rvanilla)^0.5)-SUM($N98:AV98),(Input!$N$212*(1+rvanilla)^0.5)/A2stdlife)) -> 0 | AX98: =IF(A2stdlife="n/a","n/a",IF(AX$3>(A2stdlife+$E98),(Input!$N$212*(1+rvanilla)^0.5)-SUM($N98:AW98),(Input!$N$212*(1+rvanilla)^0.5)/A2stdlife)) -> 0 | AY98: =IF(A2stdlife="n/a","n/a",IF(AY$3>(A2stdlife+$E98),(Input!$N$212*(1+rvanilla)^0.5)-SUM($N98:AX98),(Input!$N$212*(1+rvanilla)^0.5)/A2stdlife)) -> 0 | AZ98: =IF(A2stdlife="n/a","n/a",IF(AZ$3>(A2stdlife+$E98),(Input!$N$212*(1+rvanilla)^0.5)-SUM($N98:AY98),(Input!$N$212*(1+rvanilla)^0.5)/A2stdlife)) -> 0 | BA98: =IF(A2stdlife="n/a","n/a",IF(BA$3>(A2stdlife+$E98),(Input!$N$212*(1+rvanilla)^0.5)-SUM($N98:AZ98),(Input!$N$212*(1+rvanilla)^0.5)/A2stdlife)) -> 0 | BB98: =IF(A2stdlife="n/a","n/a",IF(BB$3>(A2stdlife+$E98),(Input!$N$212*(1+rvanilla)^0.5)-SUM($N98:BA98),(Input!$N$212*(1+rvanilla)^0.5)/A2stdlife)) -> 0 | BC98: =IF(A2stdlife="n/a","n/a",IF(BC$3>(A2stdlife+$E98),(Input!$N$212*(1+rvanilla)^0.5)-SUM($N98:BB98),(Input!$N$212*(1+rvanilla)^0.5)/A2stdlife)) -> 0 | BD98: =IF(A2stdlife="n/a","n/a",IF(BD$3>(A2stdlife+$E98),(Input!$N$212*(1+rvanilla)^0.5)-SUM($N98:BC98),(Input!$N$212*(1+rvanilla)^0.5)/A2stdlife)) -> 0 | BE98: =IF(A2stdlife="n/a","n/a",IF(BE$3>(A2stdlife+$E98),(Input!$N$212*(1+rvanilla)^0.5)-SUM($N98:BD98),(Input!$N$212*(1+rvanilla)^0.5)/A2stdlife)) -> 0 | BF98: =IF(A2stdlife="n/a","n/a",IF(BF$3>(A2stdlife+$E98),(Input!$N$212*(1+rvanilla)^0.5)-SUM($N98:BE98),(Input!$N$212*(1+rvanilla)^0.5)/A2stdlife)) -> 0 | BG98: =IF(A2stdlife="n/a","n/a",IF(BG$3>(A2stdlife+$E98),(Input!$N$212*(1+rvanilla)^0.5)-SUM($N98:BF98),(Input!$N$212*(1+rvanilla)^0.5)/A2stdlife)) -> 0 | BH98: =IF(A2stdlife="n/a","n/a",IF(BH$3>(A2stdlife+$E98),(Input!$N$212*(1+rvanilla)^0.5)-SUM($N98:BG98),(Input!$N$212*(1+rvanilla)^0.5)/A2stdlife)) -> 0 | BI98: =IF(A2stdlife="n/a","n/a",IF(BI$3>(A2stdlife+$E98),(Input!$N$212*(1+rvanilla)^0.5)-SUM($N98:BH98),(Input!$N$212*(1+rvanilla)^0.5)/A2stdlife)) -> 0
E99: 9 | P99: =IF(A2stdlife="n/a","n/a",IF(P$3>(A2stdlife+$E99),(Input!$O$212*(1+rvanilla)^0.5)-SUM($O99:O99),(Input!$O$212*(1+rvanilla)^0.5)/A2stdlife)) -> 0 | Q99: =IF(A2stdlife="n/a","n/a",IF(Q$3>(A2stdlife+$E99),(Input!$O$212*(1+rvanilla)^0.5)-SUM($O99:P99),(Input!$O$212*(1+rvanilla)^0.5)/A2stdlife)) -> 0 | R99: =IF(A2stdlife="n/a","n/a",IF(R$3>(A2stdlife+$E99),(Input!$O$212*(1+rvanilla)^0.5)-SUM($O99:Q99),(Input!$O$212*(1+rvanilla)^0.5)/A2stdlife)) -> 0 | S99: =IF(A2stdlife="n/a","n/a",IF(S$3>(A2stdlife+$E99),(Input!$O$212*(1+rvanilla)^0.5)-SUM($O99:R99),(Input!$O$212*(1+rvanilla)^0.5)/A2stdlife)) -> 0 | T99: =IF(A2stdlife="n/a","n/a",IF(T$3>(A2stdlife+$E99),(Input!$O$212*(1+rvanilla)^0.5)-SUM($O99:S99),(Input!$O$212*(1+rvanilla)^0.5)/A2stdlife)) -> 0 | U99: =IF(A2stdlife="n/a","n/a",IF(U$3>(A2stdlife+$E99),(Input!$O$212*(1+rvanilla)^0.5)-SUM($O99:T99),(Input!$O$212*(1+rvanilla)^0.5)/A2stdlife)) -> 0 | V99: =IF(A2stdlife="n/a","n/a",IF(V$3>(A2stdlife+$E99),(Input!$O$212*(1+rvanilla)^0.5)-SUM($O99:U99),(Input!$O$212*(1+rvanilla)^0.5)/A2stdlife)) -> 0 | W99: =IF(A2stdlife="n/a","n/a",IF(W$3>(A2stdlife+$E99),(Input!$O$212*(1+rvanilla)^0.5)-SUM($O99:V99),(Input!$O$212*(1+rvanilla)^0.5)/A2stdlife)) -> 0 | X99: =IF(A2stdlife="n/a","n/a",IF(X$3>(A2stdlife+$E99),(Input!$O$212*(1+rvanilla)^0.5)-SUM($O99:W99),(Input!$O$212*(1+rvanilla)^0.5)/A2stdlife)) -> 0 | Y99: =IF(A2stdlife="n/a","n/a",IF(Y$3>(A2stdlife+$E99),(Input!$O$212*(1+rvanilla)^0.5)-SUM($O99:X99),(Input!$O$212*(1+rvanilla)^0.5)/A2stdlife)) -> 0 | Z99: =IF(A2stdlife="n/a","n/a",IF(Z$3>(A2stdlife+$E99),(Input!$O$212*(1+rvanilla)^0.5)-SUM($O99:Y99),(Input!$O$212*(1+rvanilla)^0.5)/A2stdlife)) -> 0 | AA99: =IF(A2stdlife="n/a","n/a",IF(AA$3>(A2stdlife+$E99),(Input!$O$212*(1+rvanilla)^0.5)-SUM($O99:Z99),(Input!$O$212*(1+rvanilla)^0.5)/A2stdlife)) -> 0 | AB99: =IF(A2stdlife="n/a","n/a",IF(AB$3>(A2stdlife+$E99),(Input!$O$212*(1+rvanilla)^0.5)-SUM($O99:AA99),(Input!$O$212*(1+rvanilla)^0.5)/A2stdlife)) -> 0 | AC99: =IF(A2stdlife="n/a","n/a",IF(AC$3>(A2stdlife+$E99),(Input!$O$212*(1+rvanilla)^0.5)-SUM($O99:AB99),(Input!$O$212*(1+rvanilla)^0.5)/A2stdlife)) -> 0 | AD99: =IF(A2stdlife="n/a","n/a",IF(AD$3>(A2stdlife+$E99),(Input!$O$212*(1+rvanilla)^0.5)-SUM($O99:AC99),(Input!$O$212*(1+rvanilla)^0.5)/A2stdlife)) -> 0 | AE99: =IF(A2stdlife="n/a","n/a",IF(AE$3>(A2stdlife+$E99),(Input!$O$212*(1+rvanilla)^0.5)-SUM($O99:AD99),(Input!$O$212*(1+rvanilla)^0.5)/A2stdlife)) -> 0 | AF99: =IF(A2stdlife="n/a","n/a",IF(AF$3>(A2stdlife+$E99),(Input!$O$212*(1+rvanilla)^0.5)-SUM($O99:AE99),(Input!$O$212*(1+rvanilla)^0.5)/A2stdlife)) -> 0 | AG99: =IF(A2stdlife="n/a","n/a",IF(AG$3>(A2stdlife+$E99),(Input!$O$212*(1+rvanilla)^0.5)-SUM($O99:AF99),(Input!$O$212*(1+rvanilla)^0.5)/A2stdlife)) -> 0 | AH99: =IF(A2stdlife="n/a","n/a",IF(AH$3>(A2stdlife+$E99),(Input!$O$212*(1+rvanilla)^0.5)-SUM($O99:AG99),(Input!$O$212*(1+rvanilla)^0.5)/A2stdlife)) -> 0 | AI99: =IF(A2stdlife="n/a","n/a",IF(AI$3>(A2stdlife+$E99),(Input!$O$212*(1+rvanilla)^0.5)-SUM($O99:AH99),(Input!$O$212*(1+rvanilla)^0.5)/A2stdlife)) -> 0 | AJ99: =IF(A2stdlife="n/a","n/a",IF(AJ$3>(A2stdlife+$E99),(Input!$O$212*(1+rvanilla)^0.5)-SUM($O99:AI99),(Input!$O$212*(1+rvanilla)^0.5)/A2stdlife)) -> 0 | AK99: =IF(A2stdlife="n/a","n/a",IF(AK$3>(A2stdlife+$E99),(Input!$O$212*(1+rvanilla)^0.5)-SUM($O99:AJ99),(Input!$O$212*(1+rvanilla)^0.5)/A2stdlife)) -> 0 | AL99: =IF(A2stdlife="n/a","n/a",IF(AL$3>(A2stdlife+$E99),(Input!$O$212*(1+rvanilla)^0.5)-SUM($O99:AK99),(Input!$O$212*(1+rvanilla)^0.5)/A2stdlife)) -> 0 | AM99: =IF(A2stdlife="n/a","n/a",IF(AM$3>(A2stdlife+$E99),(Input!$O$212*(1+rvanilla)^0.5)-SUM($O99:AL99),(Input!$O$212*(1+rvanilla)^0.5)/A2stdlife)) -> 0 | AN99: =IF(A2stdlife="n/a","n/a",IF(AN$3>(A2stdlife+$E99),(Input!$O$212*(1+rvanilla)^0.5)-SUM($O99:AM99),(Input!$O$212*(1+rvanilla)^0.5)/A2stdlife)) -> 0 | AO99: =IF(A2stdlife="n/a","n/a",IF(AO$3>(A2stdlife+$E99),(Input!$O$212*(1+rvanilla)^0.5)-SUM($O99:AN99),(Input!$O$212*(1+rvanilla)^0.5)/A2stdlife)) -> 0 | AP99: =IF(A2stdlife="n/a","n/a",IF(AP$3>(A2stdlife+$E99),(Input!$O$212*(1+rvanilla)^0.5)-SUM($O99:AO99),(Input!$O$212*(1+rvanilla)^0.5)/A2stdlife)) -> 0 | AQ99: =IF(A2stdlife="n/a","n/a",IF(AQ$3>(A2stdlife+$E99),(Input!$O$212*(1+rvanilla)^0.5)-SUM($O99:AP99),(Input!$O$212*(1+rvanilla)^0.5)/A2stdlife)) -> 0 | AR99: =IF(A2stdlife="n/a","n/a",IF(AR$3>(A2stdlife+$E99),(Input!$O$212*(1+rvanilla)^0.5)-SUM($O99:AQ99),(Input!$O$212*(1+rvanilla)^0.5)/A2stdlife)) -> 0 | AS99: =IF(A2stdlife="n/a","n/a",IF(AS$3>(A2stdlife+$E99),(Input!$O$212*(1+rvanilla)^0.5)-SUM($O99:AR99),(Input!$O$212*(1+rvanilla)^0.5)/A2stdlife)) -> 0 | AT99: =IF(A2stdlife="n/a","n/a",IF(AT$3>(A2stdlife+$E99),(Input!$O$212*(1+rvanilla)^0.5)-SUM($O99:AS99),(Input!$O$212*(1+rvanilla)^0.5)/A2stdlife)) -> 0 | AU99: =IF(A2stdlife="n/a","n/a",IF(AU$3>(A2stdlife+$E99),(Input!$O$212*(1+rvanilla)^0.5)-SUM($O99:AT99),(Input!$O$212*(1+rvanilla)^0.5)/A2stdlife)) -> 0 | AV99: =IF(A2stdlife="n/a","n/a",IF(AV$3>(A2stdlife+$E99),(Input!$O$212*(1+rvanilla)^0.5)-SUM($O99:AU99),(Input!$O$212*(1+rvanilla)^0.5)/A2stdlife)) -> 0 | AW99: =IF(A2stdlife="n/a","n/a",IF(AW$3>(A2stdlife+$E99),(Input!$O$212*(1+rvanilla)^0.5)-SUM($O99:AV99),(Input!$O$212*(1+rvanilla)^0.5)/A2stdlife)) -> 0 | AX99: =IF(A2stdlife="n/a","n/a",IF(AX$3>(A2stdlife+$E99),(Input!$O$212*(1+rvanilla)^0.5)-SUM($O99:AW99),(Input!$O$212*(1+rvanilla)^0.5)/A2stdlife)) -> 0 | AY99: =IF(A2stdlife="n/a","n/a",IF(AY$3>(A2stdlife+$E99),(Input!$O$212*(1+rvanilla)^0.5)-SUM($O99:AX99),(Input!$O$212*(1+rvanilla)^0.5)/A2stdlife)) -> 0 | AZ99: =IF(A2stdlife="n/a","n/a",IF(AZ$3>(A2stdlife+$E99),(Input!$O$212*(1+rvanilla)^0.5)-SUM($O99:AY99),(Input!$O$212*(1+rvanilla)^0.5)/A2stdlife)) -> 0 | BA99: =IF(A2stdlife="n/a","n/a",IF(BA$3>(A2stdlife+$E99),(Input!$O$212*(1+rvanilla)^0.5)-SUM($O99:AZ99),(Input!$O$212*(1+rvanilla)^0.5)/A2stdlife)) -> 0 | BB99: =IF(A2stdlife="n/a","n/a",IF(BB$3>(A2stdlife+$E99),(Input!$O$212*(1+rvanilla)^0.5)-SUM($O99:BA99),(Input!$O$212*(1+rvanilla)^0.5)/A2stdlife)) -> 0 | BC99: =IF(A2stdlife="n/a","n/a",IF(BC$3>(A2stdlife+$E99),(Input!$O$212*(1+rvanilla)^0.5)-SUM($O99:BB99),(Input!$O$212*(1+rvanilla)^0.5)/A2stdlife)) -> 0 | BD99: =IF(A2stdlife="n/a","n/a",IF(BD$3>(A2stdlife+$E99),(Input!$O$212*(1+rvanilla)^0.5)-SUM($O99:BC99),(Input!$O$212*(1+rvanilla)^0.5)/A2stdlife)) -> 0 | BE99: =IF(A2stdlife="n/a","n/a",IF(BE$3>(A2stdlife+$E99),(Input!$O$212*(1+rvanilla)^0.5)-SUM($O99:BD99),(Input!$O$212*(1+rvanilla)^0.5)/A2stdlife)) -> 0 | BF99: =IF(A2stdlife="n/a","n/a",IF(BF$3>(A2stdlife+$E99),(Input!$O$212*(1+rvanilla)^0.5)-SUM($O99:BE99),(Input!$O$212*(1+rvanilla)^0.5)/A2stdlife)) -> 0 | BG99: =IF(A2stdlife="n/a","n/a",IF(BG$3>(A2stdlife+$E99),(Input!$O$212*(1+rvanilla)^0.5)-SUM($O99:BF99),(Input!$O$212*(1+rvanilla)^0.5)/A2stdlife)) -> 0 | BH99: =IF(A2stdlife="n/a","n/a",IF(BH$3>(A2stdlife+$E99),(Input!$O$212*(1+rvanilla)^0.5)-SUM($O99:BG99),(Input!$O$212*(1+rvanilla)^0.5)/A2stdlife)) -> 0 | BI99: =IF(A2stdlife="n/a","n/a",IF(BI$3>(A2stdlife+$E99),(Input!$O$212*(1+rvanilla)^0.5)-SUM($O99:BH99),(Input!$O$212*(1+rvanilla)^0.5)/A2stdlife)) -> 0
E100: 10 | Q100: =IF(A2stdlife="n/a","n/a",IF(Q$3>(A2stdlife+$E100),(Input!$P$212*(1+rvanilla)^0.5)-SUM($P100:P100),(Input!$P$212*(1+rvanilla)^0.5)/A2stdlife)) -> 0 | R100: =IF(A2stdlife="n/a","n/a",IF(R$3>(A2stdlife+$E100),(Input!$P$212*(1+rvanilla)^0.5)-SUM($P100:Q100),(Input!$P$212*(1+rvanilla)^0.5)/A2stdlife)) -> 0 | S100: =IF(A2stdlife="n/a","n/a",IF(S$3>(A2stdlife+$E100),(Input!$P$212*(1+rvanilla)^0.5)-SUM($P100:R100),(Input!$P$212*(1+rvanilla)^0.5)/A2stdlife)) -> 0 | T100: =IF(A2stdlife="n/a","n/a",IF(T$3>(A2stdlife+$E100),(Input!$P$212*(1+rvanilla)^0.5)-SUM($P100:S100),(Input!$P$212*(1+rvanilla)^0.5)/A2stdlife)) -> 0 | U100: =IF(A2stdlife="n/a","n/a",IF(U$3>(A2stdlife+$E100),(Input!$P$212*(1+rvanilla)^0.5)-SUM($P100:T100),(Input!$P$212*(1+rvanilla)^0.5)/A2stdlife)) -> 0 | V100: =IF(A2stdlife="n/a","n/a",IF(V$3>(A2stdlife+$E100),(Input!$P$212*(1+rvanilla)^0.5)-SUM($P100:U100),(Input!$P$212*(1+rvanilla)^0.5)/A2stdlife)) -> 0 | W100: =IF(A2stdlife="n/a","n/a",IF(W$3>(A2stdlife+$E100),(Input!$P$212*(1+rvanilla)^0.5)-SUM($P100:V100),(Input!$P$212*(1+rvanilla)^0.5)/A2stdlife)) -> 0 | X100: =IF(A2stdlife="n/a","n/a",IF(X$3>(A2stdlife+$E100),(Input!$P$212*(1+rvanilla)^0.5)-SUM($P100:W100),(Input!$P$212*(1+rvanilla)^0.5)/A2stdlife)) -> 0 | Y100: =IF(A2stdlife="n/a","n/a",IF(Y$3>(A2stdlife+$E100),(Input!$P$212*(1+rvanilla)^0.5)-SUM($P100:X100),(Input!$P$212*(1+rvanilla)^0.5)/A2stdlife)) -> 0 | Z100: =IF(A2stdlife="n/a","n/a",IF(Z$3>(A2stdlife+$E100),(Input!$P$212*(1+rvanilla)^0.5)-SUM($P100:Y100),(Input!$P$212*(1+rvanilla)^0.5)/A2stdlife)) -> 0 | AA100: =IF(A2stdlife="n/a","n/a",IF(AA$3>(A2stdlife+$E100),(Input!$P$212*(1+rvanilla)^0.5)-SUM($P100:Z100),(Input!$P$212*(1+rvanilla)^0.5)/A2stdlife)) -> 0 | AB100: =IF(A2stdlife="n/a","n/a",IF(AB$3>(A2stdlife+$E100),(Input!$P$212*(1+rvanilla)^0.5)-SUM($P100:AA100),(Input!$P$212*(1+rvanilla)^0.5)/A2stdlife)) -> 0 | AC100: =IF(A2stdlife="n/a","n/a",IF(AC$3>(A2stdlife+$E100),(Input!$P$212*(1+rvanilla)^0.5)-SUM($P100:AB100),(Input!$P$212*(1+rvanilla)^0.5)/A2stdlife)) -> 0 | AD100: =IF(A2stdlife="n/a","n/a",IF(AD$3>(A2stdlife+$E100),(Input!$P$212*(1+rvanilla)^0.5)-SUM($P100:AC100),(Input!$P$212*(1+rvanilla)^0.5)/A2stdlife)) -> 0 | AE100: =IF(A2stdlife="n/a","n/a",IF(AE$3>(A2stdlife+$E100),(Input!$P$212*(1+rvanilla)^0.5)-SUM($P100:AD100),(Input!$P$212*(1+rvanilla)^0.5)/A2stdlife)) -> 0 | AF100: =IF(A2stdlife="n/a","n/a",IF(AF$3>(A2stdlife+$E100),(Input!$P$212*(1+rvanilla)^0.5)-SUM($P100:AE100),(Input!$P$212*(1+rvanilla)^0.5)/A2stdlife)) -> 0 | AG100: =IF(A2stdlife="n/a","n/a",IF(AG$3>(A2stdlife+$E100),(Input!$P$212*(1+rvanilla)^0.5)-SUM($P100:AF100),(Input!$P$212*(1+rvanilla)^0.5)/A2stdlife)) -> 0 | AH100: =IF(A2stdlife="n/a","n/a",IF(AH$3>(A2stdlife+$E100),(Input!$P$212*(1+rvanilla)^0.5)-SUM($P100:AG100),(Input!$P$212*(1+rvanilla)^0.5)/A2stdlife)) -> 0 | AI100: =IF(A2stdlife="n/a","n/a",IF(AI$3>(A2stdlife+$E100),(Input!$P$212*(1+rvanilla)^0.5)-SUM($P100:AH100),(Input!$P$212*(1+rvanilla)^0.5)/A2stdlife)) -> 0 | AJ100: =IF(A2stdlife="n/a","n/a",IF(AJ$3>(A2stdlife+$E100),(Input!$P$212*(1+rvanilla)^0.5)-SUM($P100:AI100),(Input!$P$212*(1+rvanilla)^0.5)/A2stdlife)) -> 0 | AK100: =IF(A2stdlife="n/a","n/a",IF(AK$3>(A2stdlife+$E100),(Input!$P$212*(1+rvanilla)^0.5)-SUM($P100:AJ100),(Input!$P$212*(1+rvanilla)^0.5)/A2stdlife)) -> 0 | AL100: =IF(A2stdlife="n/a","n/a",IF(AL$3>(A2stdlife+$E100),(Input!$P$212*(1+rvanilla)^0.5)-SUM($P100:AK100),(Input!$P$212*(1+rvanilla)^0.5)/A2stdlife)) -> 0 | AM100: =IF(A2stdlife="n/a","n/a",IF(AM$3>(A2stdlife+$E100),(Input!$P$212*(1+rvanilla)^0.5)-SUM($P100:AL100),(Input!$P$212*(1+rvanilla)^0.5)/A2stdlife)) -> 0 | AN100: =IF(A2stdlife="n/a","n/a",IF(AN$3>(A2stdlife+$E100),(Input!$P$212*(1+rvanilla)^0.5)-SUM($P100:AM100),(Input!$P$212*(1+rvanilla)^0.5)/A2stdlife)) -> 0 | AO100: =IF(A2stdlife="n/a","n/a",IF(AO$3>(A2stdlife+$E100),(Input!$P$212*(1+rvanilla)^0.5)-SUM($P100:AN100),(Input!$P$212*(1+rvanilla)^0.5)/A2stdlife)) -> 0 | AP100: =IF(A2stdlife="n/a","n/a",IF(AP$3>(A2stdlife+$E100),(Input!$P$212*(1+rvanilla)^0.5)-SUM($P100:AO100),(Input!$P$212*(1+rvanilla)^0.5)/A2stdlife)) -> 0 | AQ100: =IF(A2stdlife="n/a","n/a",IF(AQ$3>(A2stdlife+$E100),(Input!$P$212*(1+rvanilla)^0.5)-SUM($P100:AP100),(Input!$P$212*(1+rvanilla)^0.5)/A2stdlife)) -> 0 | AR100: =IF(A2stdlife="n/a","n/a",IF(AR$3>(A2stdlife+$E100),(Input!$P$212*(1+rvanilla)^0.5)-SUM($P100:AQ100),(Input!$P$212*(1+rvanilla)^0.5)/A2stdlife)) -> 0 | AS100: =IF(A2stdlife="n/a","n/a",IF(AS$3>(A2stdlife+$E100),(Input!$P$212*(1+rvanilla)^0.5)-SUM($P100:AR100),(Input!$P$212*(1+rvanilla)^0.5)/A2stdlife)) -> 0 | AT100: =IF(A2stdlife="n/a","n/a",IF(AT$3>(A2stdlife+$E100),(Input!$P$212*(1+rvanilla)^0.5)-SUM($P100:AS100),(Input!$P$212*(1+rvanilla)^0.5)/A2stdlife)) -> 0 | AU100: =IF(A2stdlife="n/a","n/a",IF(AU$3>(A2stdlife+$E100),(Input!$P$212*(1+rvanilla)^0.5)-SUM($P100:AT100),(Input!$P$212*(1+rvanilla)^0.5)/A2stdlife)) -> 0 | AV100: =IF(A2stdlife="n/a","n/a",IF(AV$3>(A2stdlife+$E100),(Input!$P$212*(1+rvanilla)^0.5)-SUM($P100:AU100),(Input!$P$212*(1+rvanilla)^0.5)/A2stdlife)) -> 0 | AW100: =IF(A2stdlife="n/a","n/a",IF(AW$3>(A2stdlife+$E100),(Input!$P$212*(1+rvanilla)^0.5)-SUM($P100:AV100),(Input!$P$212*(1+rvanilla)^0.5)/A2stdlife)) -> 0 | AX100: =IF(A2stdlife="n/a","n/a",IF(AX$3>(A2stdlife+$E100),(Input!$P$212*(1+rvanilla)^0.5)-SUM($P100:AW100),(Input!$P$212*(1+rvanilla)^0.5)/A2stdlife)) -> 0 | AY100: =IF(A2stdlife="n/a","n/a",IF(AY$3>(A2stdlife+$E100),(Input!$P$212*(1+rvanilla)^0.5)-SUM($P100:AX100),(Input!$P$212*(1+rvanilla)^0.5)/A2stdlife)) -> 0 | AZ100: =IF(A2stdlife="n/a","n/a",IF(AZ$3>(A2stdlife+$E100),(Input!$P$212*(1+rvanilla)^0.5)-SUM($P100:AY100),(Input!$P$212*(1+rvanilla)^0.5)/A2stdlife)) -> 0 | BA100: =IF(A2stdlife="n/a","n/a",IF(BA$3>(A2stdlife+$E100),(Input!$P$212*(1+rvanilla)^0.5)-SUM($P100:AZ100),(Input!$P$212*(1+rvanilla)^0.5)/A2stdlife)) -> 0 | BB100: =IF(A2stdlife="n/a","n/a",IF(BB$3>(A2stdlife+$E100),(Input!$P$212*(1+rvanilla)^0.5)-SUM($P100:BA100),(Input!$P$212*(1+rvanilla)^0.5)/A2stdlife)) -> 0 | BC100: =IF(A2stdlife="n/a","n/a",IF(BC$3>(A2stdlife+$E100),(Input!$P$212*(1+rvanilla)^0.5)-SUM($P100:BB100),(Input!$P$212*(1+rvanilla)^0.5)/A2stdlife)) -> 0 | BD100: =IF(A2stdlife="n/a","n/a",IF(BD$3>(A2stdlife+$E100),(Input!$P$212*(1+rvanilla)^0.5)-SUM($P100:BC100),(Input!$P$212*(1+rvanilla)^0.5)/A2stdlife)) -> 0 | BE100: =IF(A2stdlife="n/a","n/a",IF(BE$3>(A2stdlife+$E100),(Input!$P$212*(1+rvanilla)^0.5)-SUM($P100:BD100),(Input!$P$212*(1+rvanilla)^0.5)/A2stdlife)) -> 0 | BF100: =IF(A2stdlife="n/a","n/a",IF(BF$3>(A2stdlife+$E100),(Input!$P$212*(1+rvanilla)^0.5)-SUM($P100:BE100),(Input!$P$212*(1+rvanilla)^0.5)/A2stdlife)) -> 0 | BG100: =IF(A2stdlife="n/a","n/a",IF(BG$3>(A2stdlife+$E100),(Input!$P$212*(1+rvanilla)^0.5)-SUM($P100:BF100),(Input!$P$212*(1+rvanilla)^0.5)/A2stdlife)) -> 0 | BH100: =IF(A2stdlife="n/a","n/a",IF(BH$3>(A2stdlife+$E100),(Input!$P$212*(1+rvanilla)^0.5)-SUM($P100:BG100),(Input!$P$212*(1+rvanilla)^0.5)/A2stdlife)) -> 0 | BI100: =IF(A2stdlife="n/a","n/a",IF(BI$3>(A2stdlife+$E100),(Input!$P$212*(1+rvanilla)^0.5)-SUM($P100:BH100),(Input!$P$212*(1+rvanilla)^0.5)/A2stdlife)) -> 0
C101: =Asset2 -> Switchgear | G101: =SUM(G89:G100) -> 565.0759182 | H101: =SUM(H89:H100) -> 0.6845049724 | I101: 1.458291437 | J101: 2.205163143 | K101: 2.205163143 | L101: 2.205163143 | M101: 2.205163143 | N101: 2.205163143 | O101: 2.205163143 | P101: 2.205163143 | Q101: 2.205163143 | R101: 2.205163143 | S101: 2.205163143 | T101: 2.205163143 | U101: 2.205163143 | V101: 2.205163143 | W101: 2.205163143 | X101: 2.205163143 | Y101: 2.205163143 | Z101: 2.205163143 | AA101: 2.205163143 | AB101: 2.205163143 | AC101: 2.205163143 | AD101: 2.205163143 | AE101: 2.205163143 | AF101: 2.205163143 | AG101: 2.205163143 | AH101: 2.205163143 | AI101: 2.205163143 | AJ101: 2.205163143 | AK101: 2.205163143 | AL101: 2.205163143 | AM101: 2.205163143 | AN101: 2.205163143 | AO101: 2.205163143 | AP101: 2.205163143 | AQ101: 2.205163143 | AR101: 2.205163143 | AS101: 2.205163143 | AT101: 2.205163143 | AU101: 2.205163143 | AV101: 2.205163143 | AW101: 2.205163143 | AX101: 2.205163143 | AY101: 2.205163143 | AZ101: 2.205163143 | BA101: 1.520658171 | BB101: 0.7468717059 | BC101: -2.842170943e-14 | BD101: 0 | BE101: 0 | BF101: 0 | BG101: 0 | BH101: 0 | BI101: 0
B102: =C114 -> Transformers | D102: Initial Asset Base | G102: =IF(G$3>A3remlife,A3acvalue-SUM($F102:F102),IF(A3remlife="N/A","n/a",A3acvalue/A3remlife)) -> 249.0360169 | H102: =IF(H$3>A3remlife,A3acvalue-SUM($F102:G102),IF(A3remlife="N/A","n/a",A3acvalue/A3remlife)) -> 0 | I102: =IF(I$3>A3remlife,A3acvalue-SUM($F102:H102),IF(A3remlife="N/A","n/a",A3acvalue/A3remlife)) -> 0 | J102: =IF(J$3>A3remlife,A3acvalue-SUM($F102:I102),IF(A3remlife="N/A","n/a",A3acvalue/A3remlife)) -> 0 | K102: =IF(K$3>A3remlife,A3acvalue-SUM($F102:J102),IF(A3remlife="N/A","n/a",A3acvalue/A3remlife)) -> 0 | L102: =IF(L$3>A3remlife,A3acvalue-SUM($F102:K102),IF(A3remlife="N/A","n/a",A3acvalue/A3remlife)) -> 0 | M102: =IF(M$3>A3remlife,A3acvalue-SUM($F102:L102),IF(A3remlife="N/A","n/a",A3acvalue/A3remlife)) -> 0 | N102: =IF(N$3>A3remlife,A3acvalue-SUM($F102:M102),IF(A3remlife="N/A","n/a",A3acvalue/A3remlife)) -> 0 | O102: =IF(O$3>A3remlife,A3acvalue-SUM($F102:N102),IF(A3remlife="N/A","n/a",A3acvalue/A3remlife)) -> 0 | P102: =IF(P$3>A3remlife,A3acvalue-SUM($F102:O102),IF(A3remlife="N/A","n/a",A3acvalue/A3remlife)) -> 0 | Q102: =IF(Q$3>A3remlife,A3acvalue-SUM($F102:P102),IF(A3remlife="N/A","n/a",A3acvalue/A3remlife)) -> 0 | R102: =IF(R$3>A3remlife,A3acvalue-SUM($F102:Q102),IF(A3remlife="N/A","n/a",A3acvalue/A3remlife)) -> 0 | S102: =IF(S$3>A3remlife,A3acvalue-SUM($F102:R102),IF(A3remlife="N/A","n/a",A3acvalue/A3remlife)) -> 0 | T102: =IF(T$3>A3remlife,A3acvalue-SUM($F102:S102),IF(A3remlife="N/A","n/a",A3acvalue/A3remlife)) -> 0 | U102: =IF(U$3>A3remlife,A3acvalue-SUM($F102:T102),IF(A3remlife="N/A","n/a",A3acvalue/A3remlife)) -> 0 | V102: =IF(V$3>A3remlife,A3acvalue-SUM($F102:U102),IF(A3remlife="N/A","n/a",A3acvalue/A3remlife)) -> 0 | W102: =IF(W$3>A3remlife,A3acvalue-SUM($F102:V102),IF(A3remlife="N/A","n/a",A3acvalue/A3remlife)) -> 0 | X102: =IF(X$3>A3remlife,A3acvalue-SUM($F102:W102),IF(A3remlife="N/A","n/a",A3acvalue/A3remlife)) -> 0 | Y102: =IF(Y$3>A3remlife,A3acvalue-SUM($F102:X102),IF(A3remlife="N/A","n/a",A3acvalue/A3remlife)) -> 0 | Z102: =IF(Z$3>A3remlife,A3acvalue-SUM($F102:Y102),IF(A3remlife="N/A","n/a",A3acvalue/A3remlife)) -> 0 | AA102: =IF(AA$3>A3remlife,A3acvalue-SUM($F102:Z102),IF(A3remlife="N/A","n/a",A3acvalue/A3remlife)) -> 0 | AB102: =IF(AB$3>A3remlife,A3acvalue-SUM($F102:AA102),IF(A3remlife="N/A","n/a",A3acvalue/A3remlife)) -> 0 | AC102: =IF(AC$3>A3remlife,A3acvalue-SUM($F102:AB102),IF(A3remlife="N/A","n/a",A3acvalue/A3remlife)) -> 0 | AD102: =IF(AD$3>A3remlife,A3acvalue-SUM($F102:AC102),IF(A3remlife="N/A","n/a",A3acvalue/A3remlife)) -> 0 | AE102: =IF(AE$3>A3remlife,A3acvalue-SUM($F102:AD102),IF(A3remlife="N/A","n/a",A3acvalue/A3remlife)) -> 0 | AF102: =IF(AF$3>A3remlife,A3acvalue-SUM($F102:AE102),IF(A3remlife="N/A","n/a",A3acvalue/A3remlife)) -> 0 | AG102: =IF(AG$3>A3remlife,A3acvalue-SUM($F102:AF102),IF(A3remlife="N/A","n/a",A3acvalue/A3remlife)) -> 0 | AH102: =IF(AH$3>A3remlife,A3acvalue-SUM($F102:AG102),IF(A3remlife="N/A","n/a",A3acvalue/A3remlife)) -> 0 | AI102: =IF(AI$3>A3remlife,A3acvalue-SUM($F102:AH102),IF(A3remlife="N/A","n/a",A3acvalue/A3remlife)) -> 0 | AJ102: =IF(AJ$3>A3remlife,A3acvalue-SUM($F102:AI102),IF(A3remlife="N/A","n/a",A3acvalue/A3remlife)) -> 0 | AK102: =IF(AK$3>A3remlife,A3acvalue-SUM($F102:AJ102),IF(A3remlife="N/A","n/a",A3acvalue/A3remlife)) -> 0 | AL102: =IF(AL$3>A3remlife,A3acvalue-SUM($F102:AK102),IF(A3remlife="N/A","n/a",A3acvalue/A3remlife)) -> 0 | AM102: =IF(AM$3>A3remlife,A3acvalue-SUM($F102:AL102),IF(A3remlife="N/A","n/a",A3acvalue/A3remlife)) -> 0 | AN102: =IF(AN$3>A3remlife,A3acvalue-SUM($F102:AM102),IF(A3remlife="N/A","n/a",A3acvalue/A3remlife)) -> 0 | AO102: =IF(AO$3>A3remlife,A3acvalue-SUM($F102:AN102),IF(A3remlife="N/A","n/a",A3acvalue/A3remlife)) -> 0 | AP102: =IF(AP$3>A3remlife,A3acvalue-SUM($F102:AO102),IF(A3remlife="N/A","n/a",A3acvalue/A3remlife)) -> 0 | AQ102: =IF(AQ$3>A3remlife,A3acvalue-SUM($F102:AP102),IF(A3remlife="N/A","n/a",A3acvalue/A3remlife)) -> 0 | AR102: =IF(AR$3>A3remlife,A3acvalue-SUM($F102:AQ102),IF(A3remlife="N/A","n/a",A3acvalue/A3remlife)) -> 0 | AS102: =IF(AS$3>A3remlife,A3acvalue-SUM($F102:AR102),IF(A3remlife="N/A","n/a",A3acvalue/A3remlife)) -> 0 | AT102: =IF(AT$3>A3remlife,A3acvalue-SUM($F102:AS102),IF(A3remlife="N/A","n/a",A3acvalue/A3remlife)) -> 0 | AU102: =IF(AU$3>A3remlife,A3acvalue-SUM($F102:AT102),IF(A3remlife="N/A","n/a",A3acvalue/A3remlife)) -> 0 | AV102: =IF(AV$3>A3remlife,A3acvalue-SUM($F102:AU102),IF(A3remlife="N/A","n/a",A3acvalue/A3remlife)) -> 0 | AW102: =IF(AW$3>A3remlife,A3acvalue-SUM($F102:AV102),IF(A3remlife="N/A","n/a",A3acvalue/A3remlife)) -> 0 | AX102: =IF(AX$3>A3remlife,A3acvalue-SUM($F102:AW102),IF(A3remlife="N/A","n/a",A3acvalue/A3remlife)) -> 0 | AY102: =IF(AY$3>A3remlife,A3acvalue-SUM($F102:AX102),IF(A3remlife="N/A","n/a",A3acvalue/A3remlife)) -> 0 | AZ102: =IF(AZ$3>A3remlife,A3acvalue-SUM($F102:AY102),IF(A3remlife="N/A","n/a",A3acvalue/A3remlife)) -> 0 | BA102: =IF(BA$3>A3remlife,A3acvalue-SUM($F102:AZ102),IF(A3remlife="N/A","n/a",A3acvalue/A3remlife)) -> 0 | BB102: =IF(BB$3>A3remlife,A3acvalue-SUM($F102:BA102),IF(A3remlife="N/A","n/a",A3acvalue/A3remlife)) -> 0 | BC102: =IF(BC$3>A3remlife,A3acvalue-SUM($F102:BB102),IF(A3remlife="N/A","n/a",A3acvalue/A3remlife)) -> 0 | BD102: =IF(BD$3>A3remlife,A3acvalue-SUM($F102:BC102),IF(A3remlife="N/A","n/a",A3acvalue/A3remlife)) -> 0 | BE102: =IF(BE$3>A3remlife,A3acvalue-SUM($F102:BD102),IF(A3remlife="N/A","n/a",A3acvalue/A3remlife)) -> 0 | BF102: =IF(BF$3>A3remlife,A3acvalue-SUM($F102:BE102),IF(A3remlife="N/A","n/a",A3acvalue/A3remlife)) -> 0 | BG102: =IF(BG$3>A3remlife,A3acvalue-SUM($F102:BF102),IF(A3remlife="N/A","n/a",A3acvalue/A3remlife)) -> 0 | BH102: =IF(BH$3>A3remlife,A3acvalue-SUM($F102:BG102),IF(A3remlife="N/A","n/a",A3acvalue/A3remlife)) -> 0 | BI102: =IF(BI$3>A3remlife,A3acvalue-SUM($F102:BH102),IF(A3remlife="N/A","n/a",A3acvalue/A3remlife)) -> 0
D103: Capex in year | E103: 0
E104: 1 | H104: =IF(A3stdlife="n/a","n/a",IF(H$3>(A3stdlife+$E104),(Input!$G$213*(1+rvanilla)^0.5)-SUM($G104:G104),(Input!$G$213*(1+rvanilla)^0.5)/A3stdlife)) -> 0.3589640792 | I104: =IF(A3stdlife="n/a","n/a",IF(I$3>(A3stdlife+$E104),(Input!$G$213*(1+rvanilla)^0.5)-SUM($G104:H104),(Input!$G$213*(1+rvanilla)^0.5)/A3stdlife)) -> 0.3589640792 | J104: =IF(A3stdlife="n/a","n/a",IF(J$3>(A3stdlife+$E104),(Input!$G$213*(1+rvanilla)^0.5)-SUM($G104:I104),(Input!$G$213*(1+rvanilla)^0.5)/A3stdlife)) -> 0.3589640792 | K104: =IF(A3stdlife="n/a","n/a",IF(K$3>(A3stdlife+$E104),(Input!$G$213*(1+rvanilla)^0.5)-SUM($G104:J104),(Input!$G$213*(1+rvanilla)^0.5)/A3stdlife)) -> 0.3589640792 | L104: =IF(A3stdlife="n/a","n/a",IF(L$3>(A3stdlife+$E104),(Input!$G$213*(1+rvanilla)^0.5)-SUM($G104:K104),(Input!$G$213*(1+rvanilla)^0.5)/A3stdlife)) -> 0.3589640792 | M104: =IF(A3stdlife="n/a","n/a",IF(M$3>(A3stdlife+$E104),(Input!$G$213*(1+rvanilla)^0.5)-SUM($G104:L104),(Input!$G$213*(1+rvanilla)^0.5)/A3stdlife)) -> 0.3589640792 | N104: =IF(A3stdlife="n/a","n/a",IF(N$3>(A3stdlife+$E104),(Input!$G$213*(1+rvanilla)^0.5)-SUM($G104:M104),(Input!$G$213*(1+rvanilla)^0.5)/A3stdlife)) -> 0.3589640792 | O104: =IF(A3stdlife="n/a","n/a",IF(O$3>(A3stdlife+$E104),(Input!$G$213*(1+rvanilla)^0.5)-SUM($G104:N104),(Input!$G$213*(1+rvanilla)^0.5)/A3stdlife)) -> 0.3589640792 | P104: =IF(A3stdlife="n/a","n/a",IF(P$3>(A3stdlife+$E104),(Input!$G$213*(1+rvanilla)^0.5)-SUM($G104:O104),(Input!$G$213*(1+rvanilla)^0.5)/A3stdlife)) -> 0.3589640792 | Q104: =IF(A3stdlife="n/a","n/a",IF(Q$3>(A3stdlife+$E104),(Input!$G$213*(1+rvanilla)^0.5)-SUM($G104:P104),(Input!$G$213*(1+rvanilla)^0.5)/A3stdlife)) -> 0.3589640792 | R104: =IF(A3stdlife="n/a","n/a",IF(R$3>(A3stdlife+$E104),(Input!$G$213*(1+rvanilla)^0.5)-SUM($G104:Q104),(Input!$G$213*(1+rvanilla)^0.5)/A3stdlife)) -> 0.3589640792 | S104: =IF(A3stdlife="n/a","n/a",IF(S$3>(A3stdlife+$E104),(Input!$G$213*(1+rvanilla)^0.5)-SUM($G104:R104),(Input!$G$213*(1+rvanilla)^0.5)/A3stdlife)) -> 0.3589640792 | T104: =IF(A3stdlife="n/a","n/a",IF(T$3>(A3stdlife+$E104),(Input!$G$213*(1+rvanilla)^0.5)-SUM($G104:S104),(Input!$G$213*(1+rvanilla)^0.5)/A3stdlife)) -> 0.3589640792 | U104: =IF(A3stdlife="n/a","n/a",IF(U$3>(A3stdlife+$E104),(Input!$G$213*(1+rvanilla)^0.5)-SUM($G104:T104),(Input!$G$213*(1+rvanilla)^0.5)/A3stdlife)) -> 0.3589640792 | V104: =IF(A3stdlife="n/a","n/a",IF(V$3>(A3stdlife+$E104),(Input!$G$213*(1+rvanilla)^0.5)-SUM($G104:U104),(Input!$G$213*(1+rvanilla)^0.5)/A3stdlife)) -> 0.3589640792 | W104: =IF(A3stdlife="n/a","n/a",IF(W$3>(A3stdlife+$E104),(Input!$G$213*(1+rvanilla)^0.5)-SUM($G104:V104),(Input!$G$213*(1+rvanilla)^0.5)/A3stdlife)) -> 0.3589640792 | X104: =IF(A3stdlife="n/a","n/a",IF(X$3>(A3stdlife+$E104),(Input!$G$213*(1+rvanilla)^0.5)-SUM($G104:W104),(Input!$G$213*(1+rvanilla)^0.5)/A3stdlife)) -> 0.3589640792 | Y104: =IF(A3stdlife="n/a","n/a",IF(Y$3>(A3stdlife+$E104),(Input!$G$213*(1+rvanilla)^0.5)-SUM($G104:X104),(Input!$G$213*(1+rvanilla)^0.5)/A3stdlife)) -> 0.3589640792 | Z104: =IF(A3stdlife="n/a","n/a",IF(Z$3>(A3stdlife+$E104),(Input!$G$213*(1+rvanilla)^0.5)-SUM($G104:Y104),(Input!$G$213*(1+rvanilla)^0.5)/A3stdlife)) -> 0.3589640792 | AA104: =IF(A3stdlife="n/a","n/a",IF(AA$3>(A3stdlife+$E104),(Input!$G$213*(1+rvanilla)^0.5)-SUM($G104:Z104),(Input!$G$213*(1+rvanilla)^0.5)/A3stdlife)) -> 0.3589640792 | AB104: =IF(A3stdlife="n/a","n/a",IF(AB$3>(A3stdlife+$E104),(Input!$G$213*(1+rvanilla)^0.5)-SUM($G104:AA104),(Input!$G$213*(1+rvanilla)^0.5)/A3stdlife)) -> 0.3589640792 | AC104: =IF(A3stdlife="n/a","n/a",IF(AC$3>(A3stdlife+$E104),(Input!$G$213*(1+rvanilla)^0.5)-SUM($G104:AB104),(Input!$G$213*(1+rvanilla)^0.5)/A3stdlife)) -> 0.3589640792 | AD104: =IF(A3stdlife="n/a","n/a",IF(AD$3>(A3stdlife+$E104),(Input!$G$213*(1+rvanilla)^0.5)-SUM($G104:AC104),(Input!$G$213*(1+rvanilla)^0.5)/A3stdlife)) -> 0.3589640792 | AE104: =IF(A3stdlife="n/a","n/a",IF(AE$3>(A3stdlife+$E104),(Input!$G$213*(1+rvanilla)^0.5)-SUM($G104:AD104),(Input!$G$213*(1+rvanilla)^0.5)/A3stdlife)) -> 0.3589640792 | AF104: =IF(A3stdlife="n/a","n/a",IF(AF$3>(A3stdlife+$E104),(Input!$G$213*(1+rvanilla)^0.5)-SUM($G104:AE104),(Input!$G$213*(1+rvanilla)^0.5)/A3stdlife)) -> 0.3589640792 | AG104: =IF(A3stdlife="n/a","n/a",IF(AG$3>(A3stdlife+$E104),(Input!$G$213*(1+rvanilla)^0.5)-SUM($G104:AF104),(Input!$G$213*(1+rvanilla)^0.5)/A3stdlife)) -> 0.3589640792 | AH104: =IF(A3stdlife="n/a","n/a",IF(AH$3>(A3stdlife+$E104),(Input!$G$213*(1+rvanilla)^0.5)-SUM($G104:AG104),(Input!$G$213*(1+rvanilla)^0.5)/A3stdlife)) -> 0.3589640792 | AI104: =IF(A3stdlife="n/a","n/a",IF(AI$3>(A3stdlife+$E104),(Input!$G$213*(1+rvanilla)^0.5)-SUM($G104:AH104),(Input!$G$213*(1+rvanilla)^0.5)/A3stdlife)) -> 0.3589640792 | AJ104: =IF(A3stdlife="n/a","n/a",IF(AJ$3>(A3stdlife+$E104),(Input!$G$213*(1+rvanilla)^0.5)-SUM($G104:AI104),(Input!$G$213*(1+rvanilla)^0.5)/A3stdlife)) -> 0.3589640792 | AK104: =IF(A3stdlife="n/a","n/a",IF(AK$3>(A3stdlife+$E104),(Input!$G$213*(1+rvanilla)^0.5)-SUM($G104:AJ104),(Input!$G$213*(1+rvanilla)^0.5)/A3stdlife)) -> 0.3589640792 | AL104: =IF(A3stdlife="n/a","n/a",IF(AL$3>(A3stdlife+$E104),(Input!$G$213*(1+rvanilla)^0.5)-SUM($G104:AK104),(Input!$G$213*(1+rvanilla)^0.5)/A3stdlife)) -> 0.3589640792 | AM104: =IF(A3stdlife="n/a","n/a",IF(AM$3>(A3stdlife+$E104),(Input!$G$213*(1+rvanilla)^0.5)-SUM($G104:AL104),(Input!$G$213*(1+rvanilla)^0.5)/A3stdlife)) -> 0.3589640792 | AN104: =IF(A3stdlife="n/a","n/a",IF(AN$3>(A3stdlife+$E104),(Input!$G$213*(1+rvanilla)^0.5)-SUM($G104:AM104),(Input!$G$213*(1+rvanilla)^0.5)/A3stdlife)) -> 0.3589640792 | AO104: =IF(A3stdlife="n/a","n/a",IF(AO$3>(A3stdlife+$E104),(Input!$G$213*(1+rvanilla)^0.5)-SUM($G104:AN104),(Input!$G$213*(1+rvanilla)^0.5)/A3stdlife)) -> 0.3589640792 | AP104: =IF(A3stdlife="n/a","n/a",IF(AP$3>(A3stdlife+$E104),(Input!$G$213*(1+rvanilla)^0.5)-SUM($G104:AO104),(Input!$G$213*(1+rvanilla)^0.5)/A3stdlife)) -> 0.3589640792 | AQ104: =IF(A3stdlife="n/a","n/a",IF(AQ$3>(A3stdlife+$E104),(Input!$G$213*(1+rvanilla)^0.5)-SUM($G104:AP104),(Input!$G$213*(1+rvanilla)^0.5)/A3stdlife)) -> 0.3589640792 | AR104: =IF(A3stdlife="n/a","n/a",IF(AR$3>(A3stdlife+$E104),(Input!$G$213*(1+rvanilla)^0.5)-SUM($G104:AQ104),(Input!$G$213*(1+rvanilla)^0.5)/A3stdlife)) -> 0.3589640792 | AS104: =IF(A3stdlife="n/a","n/a",IF(AS$3>(A3stdlife+$E104),(Input!$G$213*(1+rvanilla)^0.5)-SUM($G104:AR104),(Input!$G$213*(1+rvanilla)^0.5)/A3stdlife)) -> 0.3589640792 | AT104: =IF(A3stdlife="n/a","n/a",IF(AT$3>(A3stdlife+$E104),(Input!$G$213*(1+rvanilla)^0.5)-SUM($G104:AS104),(Input!$G$213*(1+rvanilla)^0.5)/A3stdlife)) -> 0.3589640792 | AU104: =IF(A3stdlife="n/a","n/a",IF(AU$3>(A3stdlife+$E104),(Input!$G$213*(1+rvanilla)^0.5)-SUM($G104:AT104),(Input!$G$213*(1+rvanilla)^0.5)/A3stdlife)) -> 0.3589640792 | AV104: =IF(A3stdlife="n/a","n/a",IF(AV$3>(A3stdlife+$E104),(Input!$G$213*(1+rvanilla)^0.5)-SUM($G104:AU104),(Input!$G$213*(1+rvanilla)^0.5)/A3stdlife)) -> 0.3589640792 | AW104: =IF(A3stdlife="n/a","n/a",IF(AW$3>(A3stdlife+$E104),(Input!$G$213*(1+rvanilla)^0.5)-SUM($G104:AV104),(Input!$G$213*(1+rvanilla)^0.5)/A3stdlife)) -> 0.3589640792 | AX104: =IF(A3stdlife="n/a","n/a",IF(AX$3>(A3stdlife+$E104),(Input!$G$213*(1+rvanilla)^0.5)-SUM($G104:AW104),(Input!$G$213*(1+rvanilla)^0.5)/A3stdlife)) -> 0.3589640792 | AY104: =IF(A3stdlife="n/a","n/a",IF(AY$3>(A3stdlife+$E104),(Input!$G$213*(1+rvanilla)^0.5)-SUM($G104:AX104),(Input!$G$213*(1+rvanilla)^0.5)/A3stdlife)) -> 0.3589640792 | AZ104: =IF(A3stdlife="n/a","n/a",IF(AZ$3>(A3stdlife+$E104),(Input!$G$213*(1+rvanilla)^0.5)-SUM($G104:AY104),(Input!$G$213*(1+rvanilla)^0.5)/A3stdlife)) -> 0.3589640792 | BA104: =IF(A3stdlife="n/a","n/a",IF(BA$3>(A3stdlife+$E104),(Input!$G$213*(1+rvanilla)^0.5)-SUM($G104:AZ104),(Input!$G$213*(1+rvanilla)^0.5)/A3stdlife)) -> -7.105427358e-15 | BB104: =IF(A3stdlife="n/a","n/a",IF(BB$3>(A3stdlife+$E104),(Input!$G$213*(1+rvanilla)^0.5)-SUM($G104:BA104),(Input!$G$213*(1+rvanilla)^0.5)/A3stdlife)) -> 0 | BC104: =IF(A3stdlife="n/a","n/a",IF(BC$3>(A3stdlife+$E104),(Input!$G$213*(1+rvanilla)^0.5)-SUM($G104:BB104),(Input!$G$213*(1+rvanilla)^0.5)/A3stdlife)) -> 0 | BD104: =IF(A3stdlife="n/a","n/a",IF(BD$3>(A3stdlife+$E104),(Input!$G$213*(1+rvanilla)^0.5)-SUM($G104:BC104),(Input!$G$213*(1+rvanilla)^0.5)/A3stdlife)) -> 0 | BE104: =IF(A3stdlife="n/a","n/a",IF(BE$3>(A3stdlife+$E104),(Input!$G$213*(1+rvanilla)^0.5)-SUM($G104:BD104),(Input!$G$213*(1+rvanilla)^0.5)/A3stdlife)) -> 0 | BF104: =IF(A3stdlife="n/a","n/a",IF(BF$3>(A3stdlife+$E104),(Input!$G$213*(1+rvanilla)^0.5)-SUM($G104:BE104),(Input!$G$213*(1+rvanilla)^0.5)/A3stdlife)) -> 0 | BG104: =IF(A3stdlife="n/a","n/a",IF(BG$3>(A3stdlife+$E104),(Input!$G$213*(1+rvanilla)^0.5)-SUM($G104:BF104),(Input!$G$213*(1+rvanilla)^0.5)/A3stdlife)) -> 0 | BH104: =IF(A3stdlife="n/a","n/a",IF(BH$3>(A3stdlife+$E104),(Input!$G$213*(1+rvanilla)^0.5)-SUM($G104:BG104),(Input!$G$213*(1+rvanilla)^0.5)/A3stdlife)) -> 0 | BI104: =IF(A3stdlife="n/a","n/a",IF(BI$3>(A3stdlife+$E104),(Input!$G$213*(1+rvanilla)^0.5)-SUM($G104:BH104),(Input!$G$213*(1+rvanilla)^0.5)/A3stdlife)) -> 0
E105: 2 | I105: =IF(A3stdlife="n/a","n/a",IF(I$3>(A3stdlife+$E105),(Input!$H$213*(1+rvanilla)^0.5)-SUM($H105:H105),(Input!$H$213*(1+rvanilla)^0.5)/A3stdlife)) -> 0.4330156401 | J105: =IF(A3stdlife="n/a","n/a",IF(J$3>(A3stdlife+$E105),(Input!$H$213*(1+rvanilla)^0.5)-SUM($H105:I105),(Input!$H$213*(1+rvanilla)^0.5)/A3stdlife)) -> 0.4330156401 | K105: =IF(A3stdlife="n/a","n/a",IF(K$3>(A3stdlife+$E105),(Input!$H$213*(1+rvanilla)^0.5)-SUM($H105:J105),(Input!$H$213*(1+rvanilla)^0.5)/A3stdlife)) -> 0.4330156401 | L105: =IF(A3stdlife="n/a","n/a",IF(L$3>(A3stdlife+$E105),(Input!$H$213*(1+rvanilla)^0.5)-SUM($H105:K105),(Input!$H$213*(1+rvanilla)^0.5)/A3stdlife)) -> 0.4330156401 | M105: =IF(A3stdlife="n/a","n/a",IF(M$3>(A3stdlife+$E105),(Input!$H$213*(1+rvanilla)^0.5)-SUM($H105:L105),(Input!$H$213*(1+rvanilla)^0.5)/A3stdlife)) -> 0.4330156401 | N105: =IF(A3stdlife="n/a","n/a",IF(N$3>(A3stdlife+$E105),(Input!$H$213*(1+rvanilla)^0.5)-SUM($H105:M105),(Input!$H$213*(1+rvanilla)^0.5)/A3stdlife)) -> 0.4330156401 | O105: =IF(A3stdlife="n/a","n/a",IF(O$3>(A3stdlife+$E105),(Input!$H$213*(1+rvanilla)^0.5)-SUM($H105:N105),(Input!$H$213*(1+rvanilla)^0.5)/A3stdlife)) -> 0.4330156401 | P105: =IF(A3stdlife="n/a","n/a",IF(P$3>(A3stdlife+$E105),(Input!$H$213*(1+rvanilla)^0.5)-SUM($H105:O105),(Input!$H$213*(1+rvanilla)^0.5)/A3stdlife)) -> 0.4330156401 | Q105: =IF(A3stdlife="n/a","n/a",IF(Q$3>(A3stdlife+$E105),(Input!$H$213*(1+rvanilla)^0.5)-SUM($H105:P105),(Input!$H$213*(1+rvanilla)^0.5)/A3stdlife)) -> 0.4330156401 | R105: =IF(A3stdlife="n/a","n/a",IF(R$3>(A3stdlife+$E105),(Input!$H$213*(1+rvanilla)^0.5)-SUM($H105:Q105),(Input!$H$213*(1+rvanilla)^0.5)/A3stdlife)) -> 0.4330156401 | S105: =IF(A3stdlife="n/a","n/a",IF(S$3>(A3stdlife+$E105),(Input!$H$213*(1+rvanilla)^0.5)-SUM($H105:R105),(Input!$H$213*(1+rvanilla)^0.5)/A3stdlife)) -> 0.4330156401 | T105: =IF(A3stdlife="n/a","n/a",IF(T$3>(A3stdlife+$E105),(Input!$H$213*(1+rvanilla)^0.5)-SUM($H105:S105),(Input!$H$213*(1+rvanilla)^0.5)/A3stdlife)) -> 0.4330156401 | U105: =IF(A3stdlife="n/a","n/a",IF(U$3>(A3stdlife+$E105),(Input!$H$213*(1+rvanilla)^0.5)-SUM($H105:T105),(Input!$H$213*(1+rvanilla)^0.5)/A3stdlife)) -> 0.4330156401 | V105: =IF(A3stdlife="n/a","n/a",IF(V$3>(A3stdlife+$E105),(Input!$H$213*(1+rvanilla)^0.5)-SUM($H105:U105),(Input!$H$213*(1+rvanilla)^0.5)/A3stdlife)) -> 0.4330156401 | W105: =IF(A3stdlife="n/a","n/a",IF(W$3>(A3stdlife+$E105),(Input!$H$213*(1+rvanilla)^0.5)-SUM($H105:V105),(Input!$H$213*(1+rvanilla)^0.5)/A3stdlife)) -> 0.4330156401 | X105: =IF(A3stdlife="n/a","n/a",IF(X$3>(A3stdlife+$E105),(Input!$H$213*(1+rvanilla)^0.5)-SUM($H105:W105),(Input!$H$213*(1+rvanilla)^0.5)/A3stdlife)) -> 0.4330156401 | Y105: =IF(A3stdlife="n/a","n/a",IF(Y$3>(A3stdlife+$E105),(Input!$H$213*(1+rvanilla)^0.5)-SUM($H105:X105),(Input!$H$213*(1+rvanilla)^0.5)/A3stdlife)) -> 0.4330156401 | Z105: =IF(A3stdlife="n/a","n/a",IF(Z$3>(A3stdlife+$E105),(Input!$H$213*(1+rvanilla)^0.5)-SUM($H105:Y105),(Input!$H$213*(1+rvanilla)^0.5)/A3stdlife)) -> 0.4330156401 | AA105: =IF(A3stdlife="n/a","n/a",IF(AA$3>(A3stdlife+$E105),(Input!$H$213*(1+rvanilla)^0.5)-SUM($H105:Z105),(Input!$H$213*(1+rvanilla)^0.5)/A3stdlife)) -> 0.4330156401 | AB105: =IF(A3stdlife="n/a","n/a",IF(AB$3>(A3stdlife+$E105),(Input!$H$213*(1+rvanilla)^0.5)-SUM($H105:AA105),(Input!$H$213*(1+rvanilla)^0.5)/A3stdlife)) -> 0.4330156401 | AC105: =IF(A3stdlife="n/a","n/a",IF(AC$3>(A3stdlife+$E105),(Input!$H$213*(1+rvanilla)^0.5)-SUM($H105:AB105),(Input!$H$213*(1+rvanilla)^0.5)/A3stdlife)) -> 0.4330156401 | AD105: =IF(A3stdlife="n/a","n/a",IF(AD$3>(A3stdlife+$E105),(Input!$H$213*(1+rvanilla)^0.5)-SUM($H105:AC105),(Input!$H$213*(1+rvanilla)^0.5)/A3stdlife)) -> 0.4330156401 | AE105: =IF(A3stdlife="n/a","n/a",IF(AE$3>(A3stdlife+$E105),(Input!$H$213*(1+rvanilla)^0.5)-SUM($H105:AD105),(Input!$H$213*(1+rvanilla)^0.5)/A3stdlife)) -> 0.4330156401 | AF105: =IF(A3stdlife="n/a","n/a",IF(AF$3>(A3stdlife+$E105),(Input!$H$213*(1+rvanilla)^0.5)-SUM($H105:AE105),(Input!$H$213*(1+rvanilla)^0.5)/A3stdlife)) -> 0.4330156401 | AG105: =IF(A3stdlife="n/a","n/a",IF(AG$3>(A3stdlife+$E105),(Input!$H$213*(1+rvanilla)^0.5)-SUM($H105:AF105),(Input!$H$213*(1+rvanilla)^0.5)/A3stdlife)) -> 0.4330156401 | AH105: =IF(A3stdlife="n/a","n/a",IF(AH$3>(A3stdlife+$E105),(Input!$H$213*(1+rvanilla)^0.5)-SUM($H105:AG105),(Input!$H$213*(1+rvanilla)^0.5)/A3stdlife)) -> 0.4330156401 | AI105: =IF(A3stdlife="n/a","n/a",IF(AI$3>(A3stdlife+$E105),(Input!$H$213*(1+rvanilla)^0.5)-SUM($H105:AH105),(Input!$H$213*(1+rvanilla)^0.5)/A3stdlife)) -> 0.4330156401 | AJ105: =IF(A3stdlife="n/a","n/a",IF(AJ$3>(A3stdlife+$E105),(Input!$H$213*(1+rvanilla)^0.5)-SUM($H105:AI105),(Input!$H$213*(1+rvanilla)^0.5)/A3stdlife)) -> 0.4330156401 | AK105: =IF(A3stdlife="n/a","n/a",IF(AK$3>(A3stdlife+$E105),(Input!$H$213*(1+rvanilla)^0.5)-SUM($H105:AJ105),(Input!$H$213*(1+rvanilla)^0.5)/A3stdlife)) -> 0.4330156401 | AL105: =IF(A3stdlife="n/a","n/a",IF(AL$3>(A3stdlife+$E105),(Input!$H$213*(1+rvanilla)^0.5)-SUM($H105:AK105),(Input!$H$213*(1+rvanilla)^0.5)/A3stdlife)) -> 0.4330156401 | AM105: =IF(A3stdlife="n/a","n/a",IF(AM$3>(A3stdlife+$E105),(Input!$H$213*(1+rvanilla)^0.5)-SUM($H105:AL105),(Input!$H$213*(1+rvanilla)^0.5)/A3stdlife)) -> 0.4330156401 | AN105: =IF(A3stdlife="n/a","n/a",IF(AN$3>(A3stdlife+$E105),(Input!$H$213*(1+rvanilla)^0.5)-SUM($H105:AM105),(Input!$H$213*(1+rvanilla)^0.5)/A3stdlife)) -> 0.4330156401 | AO105: =IF(A3stdlife="n/a","n/a",IF(AO$3>(A3stdlife+$E105),(Input!$H$213*(1+rvanilla)^0.5)-SUM($H105:AN105),(Input!$H$213*(1+rvanilla)^0.5)/A3stdlife)) -> 0.4330156401 | AP105: =IF(A3stdlife="n/a","n/a",IF(AP$3>(A3stdlife+$E105),(Input!$H$213*(1+rvanilla)^0.5)-SUM($H105:AO105),(Input!$H$213*(1+rvanilla)^0.5)/A3stdlife)) -> 0.4330156401 | AQ105: =IF(A3stdlife="n/a","n/a",IF(AQ$3>(A3stdlife+$E105),(Input!$H$213*(1+rvanilla)^0.5)-SUM($H105:AP105),(Input!$H$213*(1+rvanilla)^0.5)/A3stdlife)) -> 0.4330156401 | AR105: =IF(A3stdlife="n/a","n/a",IF(AR$3>(A3stdlife+$E105),(Input!$H$213*(1+rvanilla)^0.5)-SUM($H105:AQ105),(Input!$H$213*(1+rvanilla)^0.5)/A3stdlife)) -> 0.4330156401 | AS105: =IF(A3stdlife="n/a","n/a",IF(AS$3>(A3stdlife+$E105),(Input!$H$213*(1+rvanilla)^0.5)-SUM($H105:AR105),(Input!$H$213*(1+rvanilla)^0.5)/A3stdlife)) -> 0.4330156401 | AT105: =IF(A3stdlife="n/a","n/a",IF(AT$3>(A3stdlife+$E105),(Input!$H$213*(1+rvanilla)^0.5)-SUM($H105:AS105),(Input!$H$213*(1+rvanilla)^0.5)/A3stdlife)) -> 0.4330156401 | AU105: =IF(A3stdlife="n/a","n/a",IF(AU$3>(A3stdlife+$E105),(Input!$H$213*(1+rvanilla)^0.5)-SUM($H105:AT105),(Input!$H$213*(1+rvanilla)^0.5)/A3stdlife)) -> 0.4330156401 | AV105: =IF(A3stdlife="n/a","n/a",IF(AV$3>(A3stdlife+$E105),(Input!$H$213*(1+rvanilla)^0.5)-SUM($H105:AU105),(Input!$H$213*(1+rvanilla)^0.5)/A3stdlife)) -> 0.4330156401 | AW105: =IF(A3stdlife="n/a","n/a",IF(AW$3>(A3stdlife+$E105),(Input!$H$213*(1+rvanilla)^0.5)-SUM($H105:AV105),(Input!$H$213*(1+rvanilla)^0.5)/A3stdlife)) -> 0.4330156401 | AX105: =IF(A3stdlife="n/a","n/a",IF(AX$3>(A3stdlife+$E105),(Input!$H$213*(1+rvanilla)^0.5)-SUM($H105:AW105),(Input!$H$213*(1+rvanilla)^0.5)/A3stdlife)) -> 0.4330156401 | AY105: =IF(A3stdlife="n/a","n/a",IF(AY$3>(A3stdlife+$E105),(Input!$H$213*(1+rvanilla)^0.5)-SUM($H105:AX105),(Input!$H$213*(1+rvanilla)^0.5)/A3stdlife)) -> 0.4330156401 | AZ105: =IF(A3stdlife="n/a","n/a",IF(AZ$3>(A3stdlife+$E105),(Input!$H$213*(1+rvanilla)^0.5)-SUM($H105:AY105),(Input!$H$213*(1+rvanilla)^0.5)/A3stdlife)) -> 0.4330156401 | BA105: =IF(A3stdlife="n/a","n/a",IF(BA$3>(A3stdlife+$E105),(Input!$H$213*(1+rvanilla)^0.5)-SUM($H105:AZ105),(Input!$H$213*(1+rvanilla)^0.5)/A3stdlife)) -> 0.4330156401 | BB105: =IF(A3stdlife="n/a","n/a",IF(BB$3>(A3stdlife+$E105),(Input!$H$213*(1+rvanilla)^0.5)-SUM($H105:BA105),(Input!$H$213*(1+rvanilla)^0.5)/A3stdlife)) -> 1.065814104e-14 | BC105: =IF(A3stdlife="n/a","n/a",IF(BC$3>(A3stdlife+$E105),(Input!$H$213*(1+rvanilla)^0.5)-SUM($H105:BB105),(Input!$H$213*(1+rvanilla)^0.5)/A3stdlife)) -> 0 | BD105: =IF(A3stdlife="n/a","n/a",IF(BD$3>(A3stdlife+$E105),(Input!$H$213*(1+rvanilla)^0.5)-SUM($H105:BC105),(Input!$H$213*(1+rvanilla)^0.5)/A3stdlife)) -> 0 | BE105: =IF(A3stdlife="n/a","n/a",IF(BE$3>(A3stdlife+$E105),(Input!$H$213*(1+rvanilla)^0.5)-SUM($H105:BD105),(Input!$H$213*(1+rvanilla)^0.5)/A3stdlife)) -> 0 | BF105: =IF(A3stdlife="n/a","n/a",IF(BF$3>(A3stdlife+$E105),(Input!$H$213*(1+rvanilla)^0.5)-SUM($H105:BE105),(Input!$H$213*(1+rvanilla)^0.5)/A3stdlife)) -> 0 | BG105: =IF(A3stdlife="n/a","n/a",IF(BG$3>(A3stdlife+$E105),(Input!$H$213*(1+rvanilla)^0.5)-SUM($H105:BF105),(Input!$H$213*(1+rvanilla)^0.5)/A3stdlife)) -> 0 | BH105: =IF(A3stdlife="n/a","n/a",IF(BH$3>(A3stdlife+$E105),(Input!$H$213*(1+rvanilla)^0.5)-SUM($H105:BG105),(Input!$H$213*(1+rvanilla)^0.5)/A3stdlife)) -> 0 | BI105: =IF(A3stdlife="n/a","n/a",IF(BI$3>(A3stdlife+$E105),(Input!$H$213*(1+rvanilla)^0.5)-SUM($H105:BH105),(Input!$H$213*(1+rvanilla)^0.5)/A3stdlife)) -> 0
E106: 3 | J106: =IF(A3stdlife="n/a","n/a",IF(J$3>(A3stdlife+$E106),(Input!$I$213*(1+rvanilla)^0.5)-SUM($I106:I106),(Input!$I$213*(1+rvanilla)^0.5)/A3stdlife)) -> 0.6843545036 | K106: =IF(A3stdlife="n/a","n/a",IF(K$3>(A3stdlife+$E106),(Input!$I$213*(1+rvanilla)^0.5)-SUM($I106:J106),(Input!$I$213*(1+rvanilla)^0.5)/A3stdlife)) -> 0.6843545036 | L106: =IF(A3stdlife="n/a","n/a",IF(L$3>(A3stdlife+$E106),(Input!$I$213*(1+rvanilla)^0.5)-SUM($I106:K106),(Input!$I$213*(1+rvanilla)^0.5)/A3stdlife)) -> 0.6843545036 | M106: =IF(A3stdlife="n/a","n/a",IF(M$3>(A3stdlife+$E106),(Input!$I$213*(1+rvanilla)^0.5)-SUM($I106:L106),(Input!$I$213*(1+rvanilla)^0.5)/A3stdlife)) -> 0.6843545036 | N106: =IF(A3stdlife="n/a","n/a",IF(N$3>(A3stdlife+$E106),(Input!$I$213*(1+rvanilla)^0.5)-SUM($I106:M106),(Input!$I$213*(1+rvanilla)^0.5)/A3stdlife)) -> 0.6843545036 | O106: =IF(A3stdlife="n/a","n/a",IF(O$3>(A3stdlife+$E106),(Input!$I$213*(1+rvanilla)^0.5)-SUM($I106:N106),(Input!$I$213*(1+rvanilla)^0.5)/A3stdlife)) -> 0.6843545036 | P106: =IF(A3stdlife="n/a","n/a",IF(P$3>(A3stdlife+$E106),(Input!$I$213*(1+rvanilla)^0.5)-SUM($I106:O106),(Input!$I$213*(1+rvanilla)^0.5)/A3stdlife)) -> 0.6843545036 | Q106: =IF(A3stdlife="n/a","n/a",IF(Q$3>(A3stdlife+$E106),(Input!$I$213*(1+rvanilla)^0.5)-SUM($I106:P106),(Input!$I$213*(1+rvanilla)^0.5)/A3stdlife)) -> 0.6843545036 | R106: =IF(A3stdlife="n/a","n/a",IF(R$3>(A3stdlife+$E106),(Input!$I$213*(1+rvanilla)^0.5)-SUM($I106:Q106),(Input!$I$213*(1+rvanilla)^0.5)/A3stdlife)) -> 0.6843545036 | S106: =IF(A3stdlife="n/a","n/a",IF(S$3>(A3stdlife+$E106),(Input!$I$213*(1+rvanilla)^0.5)-SUM($I106:R106),(Input!$I$213*(1+rvanilla)^0.5)/A3stdlife)) -> 0.6843545036 | T106: =IF(A3stdlife="n/a","n/a",IF(T$3>(A3stdlife+$E106),(Input!$I$213*(1+rvanilla)^0.5)-SUM($I106:S106),(Input!$I$213*(1+rvanilla)^0.5)/A3stdlife)) -> 0.6843545036 | U106: =IF(A3stdlife="n/a","n/a",IF(U$3>(A3stdlife+$E106),(Input!$I$213*(1+rvanilla)^0.5)-SUM($I106:T106),(Input!$I$213*(1+rvanilla)^0.5)/A3stdlife)) -> 0.6843545036 | V106: =IF(A3stdlife="n/a","n/a",IF(V$3>(A3stdlife+$E106),(Input!$I$213*(1+rvanilla)^0.5)-SUM($I106:U106),(Input!$I$213*(1+rvanilla)^0.5)/A3stdlife)) -> 0.6843545036 | W106: =IF(A3stdlife="n/a","n/a",IF(W$3>(A3stdlife+$E106),(Input!$I$213*(1+rvanilla)^0.5)-SUM($I106:V106),(Input!$I$213*(1+rvanilla)^0.5)/A3stdlife)) -> 0.6843545036 | X106: =IF(A3stdlife="n/a","n/a",IF(X$3>(A3stdlife+$E106),(Input!$I$213*(1+rvanilla)^0.5)-SUM($I106:W106),(Input!$I$213*(1+rvanilla)^0.5)/A3stdlife)) -> 0.6843545036 | Y106: =IF(A3stdlife="n/a","n/a",IF(Y$3>(A3stdlife+$E106),(Input!$I$213*(1+rvanilla)^0.5)-SUM($I106:X106),(Input!$I$213*(1+rvanilla)^0.5)/A3stdlife)) -> 0.6843545036 | Z106: =IF(A3stdlife="n/a","n/a",IF(Z$3>(A3stdlife+$E106),(Input!$I$213*(1+rvanilla)^0.5)-SUM($I106:Y106),(Input!$I$213*(1+rvanilla)^0.5)/A3stdlife)) -> 0.6843545036 | AA106: =IF(A3stdlife="n/a","n/a",IF(AA$3>(A3stdlife+$E106),(Input!$I$213*(1+rvanilla)^0.5)-SUM($I106:Z106),(Input!$I$213*(1+rvanilla)^0.5)/A3stdlife)) -> 0.6843545036 | AB106: =IF(A3stdlife="n/a","n/a",IF(AB$3>(A3stdlife+$E106),(Input!$I$213*(1+rvanilla)^0.5)-SUM($I106:AA106),(Input!$I$213*(1+rvanilla)^0.5)/A3stdlife)) -> 0.6843545036 | AC106: =IF(A3stdlife="n/a","n/a",IF(AC$3>(A3stdlife+$E106),(Input!$I$213*(1+rvanilla)^0.5)-SUM($I106:AB106),(Input!$I$213*(1+rvanilla)^0.5)/A3stdlife)) -> 0.6843545036 | AD106: =IF(A3stdlife="n/a","n/a",IF(AD$3>(A3stdlife+$E106),(Input!$I$213*(1+rvanilla)^0.5)-SUM($I106:AC106),(Input!$I$213*(1+rvanilla)^0.5)/A3stdlife)) -> 0.6843545036 | AE106: =IF(A3stdlife="n/a","n/a",IF(AE$3>(A3stdlife+$E106),(Input!$I$213*(1+rvanilla)^0.5)-SUM($I106:AD106),(Input!$I$213*(1+rvanilla)^0.5)/A3stdlife)) -> 0.6843545036 | AF106: =IF(A3stdlife="n/a","n/a",IF(AF$3>(A3stdlife+$E106),(Input!$I$213*(1+rvanilla)^0.5)-SUM($I106:AE106),(Input!$I$213*(1+rvanilla)^0.5)/A3stdlife)) -> 0.6843545036 | AG106: =IF(A3stdlife="n/a","n/a",IF(AG$3>(A3stdlife+$E106),(Input!$I$213*(1+rvanilla)^0.5)-SUM($I106:AF106),(Input!$I$213*(1+rvanilla)^0.5)/A3stdlife)) -> 0.6843545036 | AH106: =IF(A3stdlife="n/a","n/a",IF(AH$3>(A3stdlife+$E106),(Input!$I$213*(1+rvanilla)^0.5)-SUM($I106:AG106),(Input!$I$213*(1+rvanilla)^0.5)/A3stdlife)) -> 0.6843545036 | AI106: =IF(A3stdlife="n/a","n/a",IF(AI$3>(A3stdlife+$E106),(Input!$I$213*(1+rvanilla)^0.5)-SUM($I106:AH106),(Input!$I$213*(1+rvanilla)^0.5)/A3stdlife)) -> 0.6843545036 | AJ106: =IF(A3stdlife="n/a","n/a",IF(AJ$3>(A3stdlife+$E106),(Input!$I$213*(1+rvanilla)^0.5)-SUM($I106:AI106),(Input!$I$213*(1+rvanilla)^0.5)/A3stdlife)) -> 0.6843545036 | AK106: =IF(A3stdlife="n/a","n/a",IF(AK$3>(A3stdlife+$E106),(Input!$I$213*(1+rvanilla)^0.5)-SUM($I106:AJ106),(Input!$I$213*(1+rvanilla)^0.5)/A3stdlife)) -> 0.6843545036 | AL106: =IF(A3stdlife="n/a","n/a",IF(AL$3>(A3stdlife+$E106),(Input!$I$213*(1+rvanilla)^0.5)-SUM($I106:AK106),(Input!$I$213*(1+rvanilla)^0.5)/A3stdlife)) -> 0.6843545036 | AM106: =IF(A3stdlife="n/a","n/a",IF(AM$3>(A3stdlife+$E106),(Input!$I$213*(1+rvanilla)^0.5)-SUM($I106:AL106),(Input!$I$213*(1+rvanilla)^0.5)/A3stdlife)) -> 0.6843545036 | AN106: =IF(A3stdlife="n/a","n/a",IF(AN$3>(A3stdlife+$E106),(Input!$I$213*(1+rvanilla)^0.5)-SUM($I106:AM106),(Input!$I$213*(1+rvanilla)^0.5)/A3stdlife)) -> 0.6843545036 | AO106: =IF(A3stdlife="n/a","n/a",IF(AO$3>(A3stdlife+$E106),(Input!$I$213*(1+rvanilla)^0.5)-SUM($I106:AN106),(Input!$I$213*(1+rvanilla)^0.5)/A3stdlife)) -> 0.6843545036 | AP106: =IF(A3stdlife="n/a","n/a",IF(AP$3>(A3stdlife+$E106),(Input!$I$213*(1+rvanilla)^0.5)-SUM($I106:AO106),(Input!$I$213*(1+rvanilla)^0.5)/A3stdlife)) -> 0.6843545036 | AQ106: =IF(A3stdlife="n/a","n/a",IF(AQ$3>(A3stdlife+$E106),(Input!$I$213*(1+rvanilla)^0.5)-SUM($I106:AP106),(Input!$I$213*(1+rvanilla)^0.5)/A3stdlife)) -> 0.6843545036 | AR106: =IF(A3stdlife="n/a","n/a",IF(AR$3>(A3stdlife+$E106),(Input!$I$213*(1+rvanilla)^0.5)-SUM($I106:AQ106),(Input!$I$213*(1+rvanilla)^0.5)/A3stdlife)) -> 0.6843545036 | AS106: =IF(A3stdlife="n/a","n/a",IF(AS$3>(A3stdlife+$E106),(Input!$I$213*(1+rvanilla)^0.5)-SUM($I106:AR106),(Input!$I$213*(1+rvanilla)^0.5)/A3stdlife)) -> 0.6843545036 | AT106: =IF(A3stdlife="n/a","n/a",IF(AT$3>(A3stdlife+$E106),(Input!$I$213*(1+rvanilla)^0.5)-SUM($I106:AS106),(Input!$I$213*(1+rvanilla)^0.5)/A3stdlife)) -> 0.6843545036 | AU106: =IF(A3stdlife="n/a","n/a",IF(AU$3>(A3stdlife+$E106),(Input!$I$213*(1+rvanilla)^0.5)-SUM($I106:AT106),(Input!$I$213*(1+rvanilla)^0.5)/A3stdlife)) -> 0.6843545036 | AV106: =IF(A3stdlife="n/a","n/a",IF(AV$3>(A3stdlife+$E106),(Input!$I$213*(1+rvanilla)^0.5)-SUM($I106:AU106),(Input!$I$213*(1+rvanilla)^0.5)/A3stdlife)) -> 0.6843545036 | AW106: =IF(A3stdlife="n/a","n/a",IF(AW$3>(A3stdlife+$E106),(Input!$I$213*(1+rvanilla)^0.5)-SUM($I106:AV106),(Input!$I$213*(1+rvanilla)^0.5)/A3stdlife)) -> 0.6843545036 | AX106: =IF(A3stdlife="n/a","n/a",IF(AX$3>(A3stdlife+$E106),(Input!$I$213*(1+rvanilla)^0.5)-SUM($I106:AW106),(Input!$I$213*(1+rvanilla)^0.5)/A3stdlife)) -> 0.6843545036 | AY106: =IF(A3stdlife="n/a","n/a",IF(AY$3>(A3stdlife+$E106),(Input!$I$213*(1+rvanilla)^0.5)-SUM($I106:AX106),(Input!$I$213*(1+rvanilla)^0.5)/A3stdlife)) -> 0.6843545036 | AZ106: =IF(A3stdlife="n/a","n/a",IF(AZ$3>(A3stdlife+$E106),(Input!$I$213*(1+rvanilla)^0.5)-SUM($I106:AY106),(Input!$I$213*(1+rvanilla)^0.5)/A3stdlife)) -> 0.6843545036 | BA106: =IF(A3stdlife="n/a","n/a",IF(BA$3>(A3stdlife+$E106),(Input!$I$213*(1+rvanilla)^0.5)-SUM($I106:AZ106),(Input!$I$213*(1+rvanilla)^0.5)/A3stdlife)) -> 0.6843545036 | BB106: =IF(A3stdlife="n/a","n/a",IF(BB$3>(A3stdlife+$E106),(Input!$I$213*(1+rvanilla)^0.5)-SUM($I106:BA106),(Input!$I$213*(1+rvanilla)^0.5)/A3stdlife)) -> 0.6843545036 | BC106: =IF(A3stdlife="n/a","n/a",IF(BC$3>(A3stdlife+$E106),(Input!$I$213*(1+rvanilla)^0.5)-SUM($I106:BB106),(Input!$I$213*(1+rvanilla)^0.5)/A3stdlife)) -> 2.131628207e-14 | BD106: =IF(A3stdlife="n/a","n/a",IF(BD$3>(A3stdlife+$E106),(Input!$I$213*(1+rvanilla)^0.5)-SUM($I106:BC106),(Input!$I$213*(1+rvanilla)^0.5)/A3stdlife)) -> 0 | BE106: =IF(A3stdlife="n/a","n/a",IF(BE$3>(A3stdlife+$E106),(Input!$I$213*(1+rvanilla)^0.5)-SUM($I106:BD106),(Input!$I$213*(1+rvanilla)^0.5)/A3stdlife)) -> 0 | BF106: =IF(A3stdlife="n/a","n/a",IF(BF$3>(A3stdlife+$E106),(Input!$I$213*(1+rvanilla)^0.5)-SUM($I106:BE106),(Input!$I$213*(1+rvanilla)^0.5)/A3stdlife)) -> 0 | BG106: =IF(A3stdlife="n/a","n/a",IF(BG$3>(A3stdlife+$E106),(Input!$I$213*(1+rvanilla)^0.5)-SUM($I106:BF106),(Input!$I$213*(1+rvanilla)^0.5)/A3stdlife)) -> 0 | BH106: =IF(A3stdlife="n/a","n/a",IF(BH$3>(A3stdlife+$E106),(Input!$I$213*(1+rvanilla)^0.5)-SUM($I106:BG106),(Input!$I$213*(1+rvanilla)^0.5)/A3stdlife)) -> 0 | BI106: =IF(A3stdlife="n/a","n/a",IF(BI$3>(A3stdlife+$E106),(Input!$I$213*(1+rvanilla)^0.5)-SUM($I106:BH106),(Input!$I$213*(1+rvanilla)^0.5)/A3stdlife)) -> 0
E107: 4 | K107: =IF(A3stdlife="n/a","n/a",IF(K$3>(A3stdlife+$E107),(Input!$J$213*(1+rvanilla)^0.5)-SUM($J107:J107),(Input!$J$213*(1+rvanilla)^0.5)/A3stdlife)) -> 0 | L107: =IF(A3stdlife="n/a","n/a",IF(L$3>(A3stdlife+$E107),(Input!$J$213*(1+rvanilla)^0.5)-SUM($J107:K107),(Input!$J$213*(1+rvanilla)^0.5)/A3stdlife)) -> 0 | M107: =IF(A3stdlife="n/a","n/a",IF(M$3>(A3stdlife+$E107),(Input!$J$213*(1+rvanilla)^0.5)-SUM($J107:L107),(Input!$J$213*(1+rvanilla)^0.5)/A3stdlife)) -> 0 | N107: =IF(A3stdlife="n/a","n/a",IF(N$3>(A3stdlife+$E107),(Input!$J$213*(1+rvanilla)^0.5)-SUM($J107:M107),(Input!$J$213*(1+rvanilla)^0.5)/A3stdlife)) -> 0 | O107: =IF(A3stdlife="n/a","n/a",IF(O$3>(A3stdlife+$E107),(Input!$J$213*(1+rvanilla)^0.5)-SUM($J107:N107),(Input!$J$213*(1+rvanilla)^0.5)/A3stdlife)) -> 0 | P107: =IF(A3stdlife="n/a","n/a",IF(P$3>(A3stdlife+$E107),(Input!$J$213*(1+rvanilla)^0.5)-SUM($J107:O107),(Input!$J$213*(1+rvanilla)^0.5)/A3stdlife)) -> 0 | Q107: =IF(A3stdlife="n/a","n/a",IF(Q$3>(A3stdlife+$E107),(Input!$J$213*(1+rvanilla)^0.5)-SUM($J107:P107),(Input!$J$213*(1+rvanilla)^0.5)/A3stdlife)) -> 0 | R107: =IF(A3stdlife="n/a","n/a",IF(R$3>(A3stdlife+$E107),(Input!$J$213*(1+rvanilla)^0.5)-SUM($J107:Q107),(Input!$J$213*(1+rvanilla)^0.5)/A3stdlife)) -> 0 | S107: =IF(A3stdlife="n/a","n/a",IF(S$3>(A3stdlife+$E107),(Input!$J$213*(1+rvanilla)^0.5)-SUM($J107:R107),(Input!$J$213*(1+rvanilla)^0.5)/A3stdlife)) -> 0 | T107: =IF(A3stdlife="n/a","n/a",IF(T$3>(A3stdlife+$E107),(Input!$J$213*(1+rvanilla)^0.5)-SUM($J107:S107),(Input!$J$213*(1+rvanilla)^0.5)/A3stdlife)) -> 0 | U107: =IF(A3stdlife="n/a","n/a",IF(U$3>(A3stdlife+$E107),(Input!$J$213*(1+rvanilla)^0.5)-SUM($J107:T107),(Input!$J$213*(1+rvanilla)^0.5)/A3stdlife)) -> 0 | V107: =IF(A3stdlife="n/a","n/a",IF(V$3>(A3stdlife+$E107),(Input!$J$213*(1+rvanilla)^0.5)-SUM($J107:U107),(Input!$J$213*(1+rvanilla)^0.5)/A3stdlife)) -> 0 | W107: =IF(A3stdlife="n/a","n/a",IF(W$3>(A3stdlife+$E107),(Input!$J$213*(1+rvanilla)^0.5)-SUM($J107:V107),(Input!$J$213*(1+rvanilla)^0.5)/A3stdlife)) -> 0 | X107: =IF(A3stdlife="n/a","n/a",IF(X$3>(A3stdlife+$E107),(Input!$J$213*(1+rvanilla)^0.5)-SUM($J107:W107),(Input!$J$213*(1+rvanilla)^0.5)/A3stdlife)) -> 0 | Y107: =IF(A3stdlife="n/a","n/a",IF(Y$3>(A3stdlife+$E107),(Input!$J$213*(1+rvanilla)^0.5)-SUM($J107:X107),(Input!$J$213*(1+rvanilla)^0.5)/A3stdlife)) -> 0 | Z107: =IF(A3stdlife="n/a","n/a",IF(Z$3>(A3stdlife+$E107),(Input!$J$213*(1+rvanilla)^0.5)-SUM($J107:Y107),(Input!$J$213*(1+rvanilla)^0.5)/A3stdlife)) -> 0 | AA107: =IF(A3stdlife="n/a","n/a",IF(AA$3>(A3stdlife+$E107),(Input!$J$213*(1+rvanilla)^0.5)-SUM($J107:Z107),(Input!$J$213*(1+rvanilla)^0.5)/A3stdlife)) -> 0 | AB107: =IF(A3stdlife="n/a","n/a",IF(AB$3>(A3stdlife+$E107),(Input!$J$213*(1+rvanilla)^0.5)-SUM($J107:AA107),(Input!$J$213*(1+rvanilla)^0.5)/A3stdlife)) -> 0 | AC107: =IF(A3stdlife="n/a","n/a",IF(AC$3>(A3stdlife+$E107),(Input!$J$213*(1+rvanilla)^0.5)-SUM($J107:AB107),(Input!$J$213*(1+rvanilla)^0.5)/A3stdlife)) -> 0 | AD107: =IF(A3stdlife="n/a","n/a",IF(AD$3>(A3stdlife+$E107),(Input!$J$213*(1+rvanilla)^0.5)-SUM($J107:AC107),(Input!$J$213*(1+rvanilla)^0.5)/A3stdlife)) -> 0 | AE107: =IF(A3stdlife="n/a","n/a",IF(AE$3>(A3stdlife+$E107),(Input!$J$213*(1+rvanilla)^0.5)-SUM($J107:AD107),(Input!$J$213*(1+rvanilla)^0.5)/A3stdlife)) -> 0 | AF107: =IF(A3stdlife="n/a","n/a",IF(AF$3>(A3stdlife+$E107),(Input!$J$213*(1+rvanilla)^0.5)-SUM($J107:AE107),(Input!$J$213*(1+rvanilla)^0.5)/A3stdlife)) -> 0 | AG107: =IF(A3stdlife="n/a","n/a",IF(AG$3>(A3stdlife+$E107),(Input!$J$213*(1+rvanilla)^0.5)-SUM($J107:AF107),(Input!$J$213*(1+rvanilla)^0.5)/A3stdlife)) -> 0 | AH107: =IF(A3stdlife="n/a","n/a",IF(AH$3>(A3stdlife+$E107),(Input!$J$213*(1+rvanilla)^0.5)-SUM($J107:AG107),(Input!$J$213*(1+rvanilla)^0.5)/A3stdlife)) -> 0 | AI107: =IF(A3stdlife="n/a","n/a",IF(AI$3>(A3stdlife+$E107),(Input!$J$213*(1+rvanilla)^0.5)-SUM($J107:AH107),(Input!$J$213*(1+rvanilla)^0.5)/A3stdlife)) -> 0 | AJ107: =IF(A3stdlife="n/a","n/a",IF(AJ$3>(A3stdlife+$E107),(Input!$J$213*(1+rvanilla)^0.5)-SUM($J107:AI107),(Input!$J$213*(1+rvanilla)^0.5)/A3stdlife)) -> 0 | AK107: =IF(A3stdlife="n/a","n/a",IF(AK$3>(A3stdlife+$E107),(Input!$J$213*(1+rvanilla)^0.5)-SUM($J107:AJ107),(Input!$J$213*(1+rvanilla)^0.5)/A3stdlife)) -> 0 | AL107: =IF(A3stdlife="n/a","n/a",IF(AL$3>(A3stdlife+$E107),(Input!$J$213*(1+rvanilla)^0.5)-SUM($J107:AK107),(Input!$J$213*(1+rvanilla)^0.5)/A3stdlife)) -> 0 | AM107: =IF(A3stdlife="n/a","n/a",IF(AM$3>(A3stdlife+$E107),(Input!$J$213*(1+rvanilla)^0.5)-SUM($J107:AL107),(Input!$J$213*(1+rvanilla)^0.5)/A3stdlife)) -> 0 | AN107: =IF(A3stdlife="n/a","n/a",IF(AN$3>(A3stdlife+$E107),(Input!$J$213*(1+rvanilla)^0.5)-SUM($J107:AM107),(Input!$J$213*(1+rvanilla)^0.5)/A3stdlife)) -> 0 | AO107: =IF(A3stdlife="n/a","n/a",IF(AO$3>(A3stdlife+$E107),(Input!$J$213*(1+rvanilla)^0.5)-SUM($J107:AN107),(Input!$J$213*(1+rvanilla)^0.5)/A3stdlife)) -> 0 | AP107: =IF(A3stdlife="n/a","n/a",IF(AP$3>(A3stdlife+$E107),(Input!$J$213*(1+rvanilla)^0.5)-SUM($J107:AO107),(Input!$J$213*(1+rvanilla)^0.5)/A3stdlife)) -> 0 | AQ107: =IF(A3stdlife="n/a","n/a",IF(AQ$3>(A3stdlife+$E107),(Input!$J$213*(1+rvanilla)^0.5)-SUM($J107:AP107),(Input!$J$213*(1+rvanilla)^0.5)/A3stdlife)) -> 0 | AR107: =IF(A3stdlife="n/a","n/a",IF(AR$3>(A3stdlife+$E107),(Input!$J$213*(1+rvanilla)^0.5)-SUM($J107:AQ107),(Input!$J$213*(1+rvanilla)^0.5)/A3stdlife)) -> 0 | AS107: =IF(A3stdlife="n/a","n/a",IF(AS$3>(A3stdlife+$E107),(Input!$J$213*(1+rvanilla)^0.5)-SUM($J107:AR107),(Input!$J$213*(1+rvanilla)^0.5)/A3stdlife)) -> 0 | AT107: =IF(A3stdlife="n/a","n/a",IF(AT$3>(A3stdlife+$E107),(Input!$J$213*(1+rvanilla)^0.5)-SUM($J107:AS107),(Input!$J$213*(1+rvanilla)^0.5)/A3stdlife)) -> 0 | AU107: =IF(A3stdlife="n/a","n/a",IF(AU$3>(A3stdlife+$E107),(Input!$J$213*(1+rvanilla)^0.5)-SUM($J107:AT107),(Input!$J$213*(1+rvanilla)^0.5)/A3stdlife)) -> 0 | AV107: =IF(A3stdlife="n/a","n/a",IF(AV$3>(A3stdlife+$E107),(Input!$J$213*(1+rvanilla)^0.5)-SUM($J107:AU107),(Input!$J$213*(1+rvanilla)^0.5)/A3stdlife)) -> 0 | AW107: =IF(A3stdlife="n/a","n/a",IF(AW$3>(A3stdlife+$E107),(Input!$J$213*(1+rvanilla)^0.5)-SUM($J107:AV107),(Input!$J$213*(1+rvanilla)^0.5)/A3stdlife)) -> 0 | AX107: =IF(A3stdlife="n/a","n/a",IF(AX$3>(A3stdlife+$E107),(Input!$J$213*(1+rvanilla)^0.5)-SUM($J107:AW107),(Input!$J$213*(1+rvanilla)^0.5)/A3stdlife)) -> 0 | AY107: =IF(A3stdlife="n/a","n/a",IF(AY$3>(A3stdlife+$E107),(Input!$J$213*(1+rvanilla)^0.5)-SUM($J107:AX107),(Input!$J$213*(1+rvanilla)^0.5)/A3stdlife)) -> 0 | AZ107: =IF(A3stdlife="n/a","n/a",IF(AZ$3>(A3stdlife+$E107),(Input!$J$213*(1+rvanilla)^0.5)-SUM($J107:AY107),(Input!$J$213*(1+rvanilla)^0.5)/A3stdlife)) -> 0 | BA107: =IF(A3stdlife="n/a","n/a",IF(BA$3>(A3stdlife+$E107),(Input!$J$213*(1+rvanilla)^0.5)-SUM($J107:AZ107),(Input!$J$213*(1+rvanilla)^0.5)/A3stdlife)) -> 0 | BB107: =IF(A3stdlife="n/a","n/a",IF(BB$3>(A3stdlife+$E107),(Input!$J$213*(1+rvanilla)^0.5)-SUM($J107:BA107),(Input!$J$213*(1+rvanilla)^0.5)/A3stdlife)) -> 0 | BC107: =IF(A3stdlife="n/a","n/a",IF(BC$3>(A3stdlife+$E107),(Input!$J$213*(1+rvanilla)^0.5)-SUM($J107:BB107),(Input!$J$213*(1+rvanilla)^0.5)/A3stdlife)) -> 0 | BD107: =IF(A3stdlife="n/a","n/a",IF(BD$3>(A3stdlife+$E107),(Input!$J$213*(1+rvanilla)^0.5)-SUM($J107:BC107),(Input!$J$213*(1+rvanilla)^0.5)/A3stdlife)) -> 0 | BE107: =IF(A3stdlife="n/a","n/a",IF(BE$3>(A3stdlife+$E107),(Input!$J$213*(1+rvanilla)^0.5)-SUM($J107:BD107),(Input!$J$213*(1+rvanilla)^0.5)/A3stdlife)) -> 0 | BF107: =IF(A3stdlife="n/a","n/a",IF(BF$3>(A3stdlife+$E107),(Input!$J$213*(1+rvanilla)^0.5)-SUM($J107:BE107),(Input!$J$213*(1+rvanilla)^0.5)/A3stdlife)) -> 0 | BG107: =IF(A3stdlife="n/a","n/a",IF(BG$3>(A3stdlife+$E107),(Input!$J$213*(1+rvanilla)^0.5)-SUM($J107:BF107),(Input!$J$213*(1+rvanilla)^0.5)/A3stdlife)) -> 0 | BH107: =IF(A3stdlife="n/a","n/a",IF(BH$3>(A3stdlife+$E107),(Input!$J$213*(1+rvanilla)^0.5)-SUM($J107:BG107),(Input!$J$213*(1+rvanilla)^0.5)/A3stdlife)) -> 0 | BI107: =IF(A3stdlife="n/a","n/a",IF(BI$3>(A3stdlife+$E107),(Input!$J$213*(1+rvanilla)^0.5)-SUM($J107:BH107),(Input!$J$213*(1+rvanilla)^0.5)/A3stdlife)) -> 0
E108: 5 | L108: =IF(A3stdlife="n/a","n/a",IF(L$3>(A3stdlife+$E108),(Input!$K$213*(1+rvanilla)^0.5)-SUM($K108:K108),(Input!$K$213*(1+rvanilla)^0.5)/A3stdlife)) -> 0 | M108: =IF(A3stdlife="n/a","n/a",IF(M$3>(A3stdlife+$E108),(Input!$K$213*(1+rvanilla)^0.5)-SUM($K108:L108),(Input!$K$213*(1+rvanilla)^0.5)/A3stdlife)) -> 0 | N108: =IF(A3stdlife="n/a","n/a",IF(N$3>(A3stdlife+$E108),(Input!$K$213*(1+rvanilla)^0.5)-SUM($K108:M108),(Input!$K$213*(1+rvanilla)^0.5)/A3stdlife)) -> 0 | O108: =IF(A3stdlife="n/a","n/a",IF(O$3>(A3stdlife+$E108),(Input!$K$213*(1+rvanilla)^0.5)-SUM($K108:N108),(Input!$K$213*(1+rvanilla)^0.5)/A3stdlife)) -> 0 | P108: =IF(A3stdlife="n/a","n/a",IF(P$3>(A3stdlife+$E108),(Input!$K$213*(1+rvanilla)^0.5)-SUM($K108:O108),(Input!$K$213*(1+rvanilla)^0.5)/A3stdlife)) -> 0 | Q108: =IF(A3stdlife="n/a","n/a",IF(Q$3>(A3stdlife+$E108),(Input!$K$213*(1+rvanilla)^0.5)-SUM($K108:P108),(Input!$K$213*(1+rvanilla)^0.5)/A3stdlife)) -> 0 | R108: =IF(A3stdlife="n/a","n/a",IF(R$3>(A3stdlife+$E108),(Input!$K$213*(1+rvanilla)^0.5)-SUM($K108:Q108),(Input!$K$213*(1+rvanilla)^0.5)/A3stdlife)) -> 0 | S108: =IF(A3stdlife="n/a","n/a",IF(S$3>(A3stdlife+$E108),(Input!$K$213*(1+rvanilla)^0.5)-SUM($K108:R108),(Input!$K$213*(1+rvanilla)^0.5)/A3stdlife)) -> 0 | T108: =IF(A3stdlife="n/a","n/a",IF(T$3>(A3stdlife+$E108),(Input!$K$213*(1+rvanilla)^0.5)-SUM($K108:S108),(Input!$K$213*(1+rvanilla)^0.5)/A3stdlife)) -> 0 | U108: =IF(A3stdlife="n/a","n/a",IF(U$3>(A3stdlife+$E108),(Input!$K$213*(1+rvanilla)^0.5)-SUM($K108:T108),(Input!$K$213*(1+rvanilla)^0.5)/A3stdlife)) -> 0 | V108: =IF(A3stdlife="n/a","n/a",IF(V$3>(A3stdlife+$E108),(Input!$K$213*(1+rvanilla)^0.5)-SUM($K108:U108),(Input!$K$213*(1+rvanilla)^0.5)/A3stdlife)) -> 0 | W108: =IF(A3stdlife="n/a","n/a",IF(W$3>(A3stdlife+$E108),(Input!$K$213*(1+rvanilla)^0.5)-SUM($K108:V108),(Input!$K$213*(1+rvanilla)^0.5)/A3stdlife)) -> 0 | X108: =IF(A3stdlife="n/a","n/a",IF(X$3>(A3stdlife+$E108),(Input!$K$213*(1+rvanilla)^0.5)-SUM($K108:W108),(Input!$K$213*(1+rvanilla)^0.5)/A3stdlife)) -> 0 | Y108: =IF(A3stdlife="n/a","n/a",IF(Y$3>(A3stdlife+$E108),(Input!$K$213*(1+rvanilla)^0.5)-SUM($K108:X108),(Input!$K$213*(1+rvanilla)^0.5)/A3stdlife)) -> 0 | Z108: =IF(A3stdlife="n/a","n/a",IF(Z$3>(A3stdlife+$E108),(Input!$K$213*(1+rvanilla)^0.5)-SUM($K108:Y108),(Input!$K$213*(1+rvanilla)^0.5)/A3stdlife)) -> 0 | AA108: =IF(A3stdlife="n/a","n/a",IF(AA$3>(A3stdlife+$E108),(Input!$K$213*(1+rvanilla)^0.5)-SUM($K108:Z108),(Input!$K$213*(1+rvanilla)^0.5)/A3stdlife)) -> 0 | AB108: =IF(A3stdlife="n/a","n/a",IF(AB$3>(A3stdlife+$E108),(Input!$K$213*(1+rvanilla)^0.5)-SUM($K108:AA108),(Input!$K$213*(1+rvanilla)^0.5)/A3stdlife)) -> 0 | AC108: =IF(A3stdlife="n/a","n/a",IF(AC$3>(A3stdlife+$E108),(Input!$K$213*(1+rvanilla)^0.5)-SUM($K108:AB108),(Input!$K$213*(1+rvanilla)^0.5)/A3stdlife)) -> 0 | AD108: =IF(A3stdlife="n/a","n/a",IF(AD$3>(A3stdlife+$E108),(Input!$K$213*(1+rvanilla)^0.5)-SUM($K108:AC108),(Input!$K$213*(1+rvanilla)^0.5)/A3stdlife)) -> 0 | AE108: =IF(A3stdlife="n/a","n/a",IF(AE$3>(A3stdlife+$E108),(Input!$K$213*(1+rvanilla)^0.5)-SUM($K108:AD108),(Input!$K$213*(1+rvanilla)^0.5)/A3stdlife)) -> 0 | AF108: =IF(A3stdlife="n/a","n/a",IF(AF$3>(A3stdlife+$E108),(Input!$K$213*(1+rvanilla)^0.5)-SUM($K108:AE108),(Input!$K$213*(1+rvanilla)^0.5)/A3stdlife)) -> 0 | AG108: =IF(A3stdlife="n/a","n/a",IF(AG$3>(A3stdlife+$E108),(Input!$K$213*(1+rvanilla)^0.5)-SUM($K108:AF108),(Input!$K$213*(1+rvanilla)^0.5)/A3stdlife)) -> 0 | AH108: =IF(A3stdlife="n/a","n/a",IF(AH$3>(A3stdlife+$E108),(Input!$K$213*(1+rvanilla)^0.5)-SUM($K108:AG108),(Input!$K$213*(1+rvanilla)^0.5)/A3stdlife)) -> 0 | AI108: =IF(A3stdlife="n/a","n/a",IF(AI$3>(A3stdlife+$E108),(Input!$K$213*(1+rvanilla)^0.5)-SUM($K108:AH108),(Input!$K$213*(1+rvanilla)^0.5)/A3stdlife)) -> 0 | AJ108: =IF(A3stdlife="n/a","n/a",IF(AJ$3>(A3stdlife+$E108),(Input!$K$213*(1+rvanilla)^0.5)-SUM($K108:AI108),(Input!$K$213*(1+rvanilla)^0.5)/A3stdlife)) -> 0 | AK108: =IF(A3stdlife="n/a","n/a",IF(AK$3>(A3stdlife+$E108),(Input!$K$213*(1+rvanilla)^0.5)-SUM($K108:AJ108),(Input!$K$213*(1+rvanilla)^0.5)/A3stdlife)) -> 0 | AL108: =IF(A3stdlife="n/a","n/a",IF(AL$3>(A3stdlife+$E108),(Input!$K$213*(1+rvanilla)^0.5)-SUM($K108:AK108),(Input!$K$213*(1+rvanilla)^0.5)/A3stdlife)) -> 0 | AM108: =IF(A3stdlife="n/a","n/a",IF(AM$3>(A3stdlife+$E108),(Input!$K$213*(1+rvanilla)^0.5)-SUM($K108:AL108),(Input!$K$213*(1+rvanilla)^0.5)/A3stdlife)) -> 0 | AN108: =IF(A3stdlife="n/a","n/a",IF(AN$3>(A3stdlife+$E108),(Input!$K$213*(1+rvanilla)^0.5)-SUM($K108:AM108),(Input!$K$213*(1+rvanilla)^0.5)/A3stdlife)) -> 0 | AO108: =IF(A3stdlife="n/a","n/a",IF(AO$3>(A3stdlife+$E108),(Input!$K$213*(1+rvanilla)^0.5)-SUM($K108:AN108),(Input!$K$213*(1+rvanilla)^0.5)/A3stdlife)) -> 0 | AP108: =IF(A3stdlife="n/a","n/a",IF(AP$3>(A3stdlife+$E108),(Input!$K$213*(1+rvanilla)^0.5)-SUM($K108:AO108),(Input!$K$213*(1+rvanilla)^0.5)/A3stdlife)) -> 0 | AQ108: =IF(A3stdlife="n/a","n/a",IF(AQ$3>(A3stdlife+$E108),(Input!$K$213*(1+rvanilla)^0.5)-SUM($K108:AP108),(Input!$K$213*(1+rvanilla)^0.5)/A3stdlife)) -> 0 | AR108: =IF(A3stdlife="n/a","n/a",IF(AR$3>(A3stdlife+$E108),(Input!$K$213*(1+rvanilla)^0.5)-SUM($K108:AQ108),(Input!$K$213*(1+rvanilla)^0.5)/A3stdlife)) -> 0 | AS108: =IF(A3stdlife="n/a","n/a",IF(AS$3>(A3stdlife+$E108),(Input!$K$213*(1+rvanilla)^0.5)-SUM($K108:AR108),(Input!$K$213*(1+rvanilla)^0.5)/A3stdlife)) -> 0 | AT108: =IF(A3stdlife="n/a","n/a",IF(AT$3>(A3stdlife+$E108),(Input!$K$213*(1+rvanilla)^0.5)-SUM($K108:AS108),(Input!$K$213*(1+rvanilla)^0.5)/A3stdlife)) -> 0 | AU108: =IF(A3stdlife="n/a","n/a",IF(AU$3>(A3stdlife+$E108),(Input!$K$213*(1+rvanilla)^0.5)-SUM($K108:AT108),(Input!$K$213*(1+rvanilla)^0.5)/A3stdlife)) -> 0 | AV108: =IF(A3stdlife="n/a","n/a",IF(AV$3>(A3stdlife+$E108),(Input!$K$213*(1+rvanilla)^0.5)-SUM($K108:AU108),(Input!$K$213*(1+rvanilla)^0.5)/A3stdlife)) -> 0 | AW108: =IF(A3stdlife="n/a","n/a",IF(AW$3>(A3stdlife+$E108),(Input!$K$213*(1+rvanilla)^0.5)-SUM($K108:AV108),(Input!$K$213*(1+rvanilla)^0.5)/A3stdlife)) -> 0 | AX108: =IF(A3stdlife="n/a","n/a",IF(AX$3>(A3stdlife+$E108),(Input!$K$213*(1+rvanilla)^0.5)-SUM($K108:AW108),(Input!$K$213*(1+rvanilla)^0.5)/A3stdlife)) -> 0 | AY108: =IF(A3stdlife="n/a","n/a",IF(AY$3>(A3stdlife+$E108),(Input!$K$213*(1+rvanilla)^0.5)-SUM($K108:AX108),(Input!$K$213*(1+rvanilla)^0.5)/A3stdlife)) -> 0 | AZ108: =IF(A3stdlife="n/a","n/a",IF(AZ$3>(A3stdlife+$E108),(Input!$K$213*(1+rvanilla)^0.5)-SUM($K108:AY108),(Input!$K$213*(1+rvanilla)^0.5)/A3stdlife)) -> 0 | BA108: =IF(A3stdlife="n/a","n/a",IF(BA$3>(A3stdlife+$E108),(Input!$K$213*(1+rvanilla)^0.5)-SUM($K108:AZ108),(Input!$K$213*(1+rvanilla)^0.5)/A3stdlife)) -> 0 | BB108: =IF(A3stdlife="n/a","n/a",IF(BB$3>(A3stdlife+$E108),(Input!$K$213*(1+rvanilla)^0.5)-SUM($K108:BA108),(Input!$K$213*(1+rvanilla)^0.5)/A3stdlife)) -> 0 | BC108: =IF(A3stdlife="n/a","n/a",IF(BC$3>(A3stdlife+$E108),(Input!$K$213*(1+rvanilla)^0.5)-SUM($K108:BB108),(Input!$K$213*(1+rvanilla)^0.5)/A3stdlife)) -> 0 | BD108: =IF(A3stdlife="n/a","n/a",IF(BD$3>(A3stdlife+$E108),(Input!$K$213*(1+rvanilla)^0.5)-SUM($K108:BC108),(Input!$K$213*(1+rvanilla)^0.5)/A3stdlife)) -> 0 | BE108: =IF(A3stdlife="n/a","n/a",IF(BE$3>(A3stdlife+$E108),(Input!$K$213*(1+rvanilla)^0.5)-SUM($K108:BD108),(Input!$K$213*(1+rvanilla)^0.5)/A3stdlife)) -> 0 | BF108: =IF(A3stdlife="n/a","n/a",IF(BF$3>(A3stdlife+$E108),(Input!$K$213*(1+rvanilla)^0.5)-SUM($K108:BE108),(Input!$K$213*(1+rvanilla)^0.5)/A3stdlife)) -> 0 | BG108: =IF(A3stdlife="n/a","n/a",IF(BG$3>(A3stdlife+$E108),(Input!$K$213*(1+rvanilla)^0.5)-SUM($K108:BF108),(Input!$K$213*(1+rvanilla)^0.5)/A3stdlife)) -> 0 | BH108: =IF(A3stdlife="n/a","n/a",IF(BH$3>(A3stdlife+$E108),(Input!$K$213*(1+rvanilla)^0.5)-SUM($K108:BG108),(Input!$K$213*(1+rvanilla)^0.5)/A3stdlife)) -> 0 | BI108: =IF(A3stdlife="n/a","n/a",IF(BI$3>(A3stdlife+$E108),(Input!$K$213*(1+rvanilla)^0.5)-SUM($K108:BH108),(Input!$K$213*(1+rvanilla)^0.5)/A3stdlife)) -> 0
E109: 6 | M109: =IF(A3stdlife="n/a","n/a",IF(M$3>(A3stdlife+$E109),(Input!$L$213*(1+rvanilla)^0.5)-SUM($L109:L109),(Input!$L$213*(1+rvanilla)^0.5)/A3stdlife)) -> 0 | N109: =IF(A3stdlife="n/a","n/a",IF(N$3>(A3stdlife+$E109),(Input!$L$213*(1+rvanilla)^0.5)-SUM($L109:M109),(Input!$L$213*(1+rvanilla)^0.5)/A3stdlife)) -> 0 | O109: =IF(A3stdlife="n/a","n/a",IF(O$3>(A3stdlife+$E109),(Input!$L$213*(1+rvanilla)^0.5)-SUM($L109:N109),(Input!$L$213*(1+rvanilla)^0.5)/A3stdlife)) -> 0 | P109: =IF(A3stdlife="n/a","n/a",IF(P$3>(A3stdlife+$E109),(Input!$L$213*(1+rvanilla)^0.5)-SUM($L109:O109),(Input!$L$213*(1+rvanilla)^0.5)/A3stdlife)) -> 0 | Q109: =IF(A3stdlife="n/a","n/a",IF(Q$3>(A3stdlife+$E109),(Input!$L$213*(1+rvanilla)^0.5)-SUM($L109:P109),(Input!$L$213*(1+rvanilla)^0.5)/A3stdlife)) -> 0 | R109: =IF(A3stdlife="n/a","n/a",IF(R$3>(A3stdlife+$E109),(Input!$L$213*(1+rvanilla)^0.5)-SUM($L109:Q109),(Input!$L$213*(1+rvanilla)^0.5)/A3stdlife)) -> 0 | S109: =IF(A3stdlife="n/a","n/a",IF(S$3>(A3stdlife+$E109),(Input!$L$213*(1+rvanilla)^0.5)-SUM($L109:R109),(Input!$L$213*(1+rvanilla)^0.5)/A3stdlife)) -> 0 | T109: =IF(A3stdlife="n/a","n/a",IF(T$3>(A3stdlife+$E109),(Input!$L$213*(1+rvanilla)^0.5)-SUM($L109:S109),(Input!$L$213*(1+rvanilla)^0.5)/A3stdlife)) -> 0 | U109: =IF(A3stdlife="n/a","n/a",IF(U$3>(A3stdlife+$E109),(Input!$L$213*(1+rvanilla)^0.5)-SUM($L109:T109),(Input!$L$213*(1+rvanilla)^0.5)/A3stdlife)) -> 0 | V109: =IF(A3stdlife="n/a","n/a",IF(V$3>(A3stdlife+$E109),(Input!$L$213*(1+rvanilla)^0.5)-SUM($L109:U109),(Input!$L$213*(1+rvanilla)^0.5)/A3stdlife)) -> 0 | W109: =IF(A3stdlife="n/a","n/a",IF(W$3>(A3stdlife+$E109),(Input!$L$213*(1+rvanilla)^0.5)-SUM($L109:V109),(Input!$L$213*(1+rvanilla)^0.5)/A3stdlife)) -> 0 | X109: =IF(A3stdlife="n/a","n/a",IF(X$3>(A3stdlife+$E109),(Input!$L$213*(1+rvanilla)^0.5)-SUM($L109:W109),(Input!$L$213*(1+rvanilla)^0.5)/A3stdlife)) -> 0 | Y109: =IF(A3stdlife="n/a","n/a",IF(Y$3>(A3stdlife+$E109),(Input!$L$213*(1+rvanilla)^0.5)-SUM($L109:X109),(Input!$L$213*(1+rvanilla)^0.5)/A3stdlife)) -> 0 | Z109: =IF(A3stdlife="n/a","n/a",IF(Z$3>(A3stdlife+$E109),(Input!$L$213*(1+rvanilla)^0.5)-SUM($L109:Y109),(Input!$L$213*(1+rvanilla)^0.5)/A3stdlife)) -> 0 | AA109: =IF(A3stdlife="n/a","n/a",IF(AA$3>(A3stdlife+$E109),(Input!$L$213*(1+rvanilla)^0.5)-SUM($L109:Z109),(Input!$L$213*(1+rvanilla)^0.5)/A3stdlife)) -> 0 | AB109: =IF(A3stdlife="n/a","n/a",IF(AB$3>(A3stdlife+$E109),(Input!$L$213*(1+rvanilla)^0.5)-SUM($L109:AA109),(Input!$L$213*(1+rvanilla)^0.5)/A3stdlife)) -> 0 | AC109: =IF(A3stdlife="n/a","n/a",IF(AC$3>(A3stdlife+$E109),(Input!$L$213*(1+rvanilla)^0.5)-SUM($L109:AB109),(Input!$L$213*(1+rvanilla)^0.5)/A3stdlife)) -> 0 | AD109: =IF(A3stdlife="n/a","n/a",IF(AD$3>(A3stdlife+$E109),(Input!$L$213*(1+rvanilla)^0.5)-SUM($L109:AC109),(Input!$L$213*(1+rvanilla)^0.5)/A3stdlife)) -> 0 | AE109: =IF(A3stdlife="n/a","n/a",IF(AE$3>(A3stdlife+$E109),(Input!$L$213*(1+rvanilla)^0.5)-SUM($L109:AD109),(Input!$L$213*(1+rvanilla)^0.5)/A3stdlife)) -> 0 | AF109: =IF(A3stdlife="n/a","n/a",IF(AF$3>(A3stdlife+$E109),(Input!$L$213*(1+rvanilla)^0.5)-SUM($L109:AE109),(Input!$L$213*(1+rvanilla)^0.5)/A3stdlife)) -> 0 | AG109: =IF(A3stdlife="n/a","n/a",IF(AG$3>(A3stdlife+$E109),(Input!$L$213*(1+rvanilla)^0.5)-SUM($L109:AF109),(Input!$L$213*(1+rvanilla)^0.5)/A3stdlife)) -> 0 | AH109: =IF(A3stdlife="n/a","n/a",IF(AH$3>(A3stdlife+$E109),(Input!$L$213*(1+rvanilla)^0.5)-SUM($L109:AG109),(Input!$L$213*(1+rvanilla)^0.5)/A3stdlife)) -> 0 | AI109: =IF(A3stdlife="n/a","n/a",IF(AI$3>(A3stdlife+$E109),(Input!$L$213*(1+rvanilla)^0.5)-SUM($L109:AH109),(Input!$L$213*(1+rvanilla)^0.5)/A3stdlife)) -> 0 | AJ109: =IF(A3stdlife="n/a","n/a",IF(AJ$3>(A3stdlife+$E109),(Input!$L$213*(1+rvanilla)^0.5)-SUM($L109:AI109),(Input!$L$213*(1+rvanilla)^0.5)/A3stdlife)) -> 0 | AK109: =IF(A3stdlife="n/a","n/a",IF(AK$3>(A3stdlife+$E109),(Input!$L$213*(1+rvanilla)^0.5)-SUM($L109:AJ109),(Input!$L$213*(1+rvanilla)^0.5)/A3stdlife)) -> 0 | AL109: =IF(A3stdlife="n/a","n/a",IF(AL$3>(A3stdlife+$E109),(Input!$L$213*(1+rvanilla)^0.5)-SUM($L109:AK109),(Input!$L$213*(1+rvanilla)^0.5)/A3stdlife)) -> 0 | AM109: =IF(A3stdlife="n/a","n/a",IF(AM$3>(A3stdlife+$E109),(Input!$L$213*(1+rvanilla)^0.5)-SUM($L109:AL109),(Input!$L$213*(1+rvanilla)^0.5)/A3stdlife)) -> 0 | AN109: =IF(A3stdlife="n/a","n/a",IF(AN$3>(A3stdlife+$E109),(Input!$L$213*(1+rvanilla)^0.5)-SUM($L109:AM109),(Input!$L$213*(1+rvanilla)^0.5)/A3stdlife)) -> 0 | AO109: =IF(A3stdlife="n/a","n/a",IF(AO$3>(A3stdlife+$E109),(Input!$L$213*(1+rvanilla)^0.5)-SUM($L109:AN109),(Input!$L$213*(1+rvanilla)^0.5)/A3stdlife)) -> 0 | AP109: =IF(A3stdlife="n/a","n/a",IF(AP$3>(A3stdlife+$E109),(Input!$L$213*(1+rvanilla)^0.5)-SUM($L109:AO109),(Input!$L$213*(1+rvanilla)^0.5)/A3stdlife)) -> 0 | AQ109: =IF(A3stdlife="n/a","n/a",IF(AQ$3>(A3stdlife+$E109),(Input!$L$213*(1+rvanilla)^0.5)-SUM($L109:AP109),(Input!$L$213*(1+rvanilla)^0.5)/A3stdlife)) -> 0 | AR109: =IF(A3stdlife="n/a","n/a",IF(AR$3>(A3stdlife+$E109),(Input!$L$213*(1+rvanilla)^0.5)-SUM($L109:AQ109),(Input!$L$213*(1+rvanilla)^0.5)/A3stdlife)) -> 0 | AS109: =IF(A3stdlife="n/a","n/a",IF(AS$3>(A3stdlife+$E109),(Input!$L$213*(1+rvanilla)^0.5)-SUM($L109:AR109),(Input!$L$213*(1+rvanilla)^0.5)/A3stdlife)) -> 0 | AT109: =IF(A3stdlife="n/a","n/a",IF(AT$3>(A3stdlife+$E109),(Input!$L$213*(1+rvanilla)^0.5)-SUM($L109:AS109),(Input!$L$213*(1+rvanilla)^0.5)/A3stdlife)) -> 0 | AU109: =IF(A3stdlife="n/a","n/a",IF(AU$3>(A3stdlife+$E109),(Input!$L$213*(1+rvanilla)^0.5)-SUM($L109:AT109),(Input!$L$213*(1+rvanilla)^0.5)/A3stdlife)) -> 0 | AV109: =IF(A3stdlife="n/a","n/a",IF(AV$3>(A3stdlife+$E109),(Input!$L$213*(1+rvanilla)^0.5)-SUM($L109:AU109),(Input!$L$213*(1+rvanilla)^0.5)/A3stdlife)) -> 0 | AW109: =IF(A3stdlife="n/a","n/a",IF(AW$3>(A3stdlife+$E109),(Input!$L$213*(1+rvanilla)^0.5)-SUM($L109:AV109),(Input!$L$213*(1+rvanilla)^0.5)/A3stdlife)) -> 0 | AX109: =IF(A3stdlife="n/a","n/a",IF(AX$3>(A3stdlife+$E109),(Input!$L$213*(1+rvanilla)^0.5)-SUM($L109:AW109),(Input!$L$213*(1+rvanilla)^0.5)/A3stdlife)) -> 0 | AY109: =IF(A3stdlife="n/a","n/a",IF(AY$3>(A3stdlife+$E109),(Input!$L$213*(1+rvanilla)^0.5)-SUM($L109:AX109),(Input!$L$213*(1+rvanilla)^0.5)/A3stdlife)) -> 0 | AZ109: =IF(A3stdlife="n/a","n/a",IF(AZ$3>(A3stdlife+$E109),(Input!$L$213*(1+rvanilla)^0.5)-SUM($L109:AY109),(Input!$L$213*(1+rvanilla)^0.5)/A3stdlife)) -> 0 | BA109: =IF(A3stdlife="n/a","n/a",IF(BA$3>(A3stdlife+$E109),(Input!$L$213*(1+rvanilla)^0.5)-SUM($L109:AZ109),(Input!$L$213*(1+rvanilla)^0.5)/A3stdlife)) -> 0 | BB109: =IF(A3stdlife="n/a","n/a",IF(BB$3>(A3stdlife+$E109),(Input!$L$213*(1+rvanilla)^0.5)-SUM($L109:BA109),(Input!$L$213*(1+rvanilla)^0.5)/A3stdlife)) -> 0 | BC109: =IF(A3stdlife="n/a","n/a",IF(BC$3>(A3stdlife+$E109),(Input!$L$213*(1+rvanilla)^0.5)-SUM($L109:BB109),(Input!$L$213*(1+rvanilla)^0.5)/A3stdlife)) -> 0 | BD109: =IF(A3stdlife="n/a","n/a",IF(BD$3>(A3stdlife+$E109),(Input!$L$213*(1+rvanilla)^0.5)-SUM($L109:BC109),(Input!$L$213*(1+rvanilla)^0.5)/A3stdlife)) -> 0 | BE109: =IF(A3stdlife="n/a","n/a",IF(BE$3>(A3stdlife+$E109),(Input!$L$213*(1+rvanilla)^0.5)-SUM($L109:BD109),(Input!$L$213*(1+rvanilla)^0.5)/A3stdlife)) -> 0 | BF109: =IF(A3stdlife="n/a","n/a",IF(BF$3>(A3stdlife+$E109),(Input!$L$213*(1+rvanilla)^0.5)-SUM($L109:BE109),(Input!$L$213*(1+rvanilla)^0.5)/A3stdlife)) -> 0 | BG109: =IF(A3stdlife="n/a","n/a",IF(BG$3>(A3stdlife+$E109),(Input!$L$213*(1+rvanilla)^0.5)-SUM($L109:BF109),(Input!$L$213*(1+rvanilla)^0.5)/A3stdlife)) -> 0 | BH109: =IF(A3stdlife="n/a","n/a",IF(BH$3>(A3stdlife+$E109),(Input!$L$213*(1+rvanilla)^0.5)-SUM($L109:BG109),(Input!$L$213*(1+rvanilla)^0.5)/A3stdlife)) -> 0 | BI109: =IF(A3stdlife="n/a","n/a",IF(BI$3>(A3stdlife+$E109),(Input!$L$213*(1+rvanilla)^0.5)-SUM($L109:BH109),(Input!$L$213*(1+rvanilla)^0.5)/A3stdlife)) -> 0
E110: 7 | N110: =IF(A3stdlife="n/a","n/a",IF(N$3>(A3stdlife+$E110),(Input!$M$213*(1+rvanilla)^0.5)-SUM($M110:M110),(Input!$M$213*(1+rvanilla)^0.5)/A3stdlife)) -> 0 | O110: =IF(A3stdlife="n/a","n/a",IF(O$3>(A3stdlife+$E110),(Input!$M$213*(1+rvanilla)^0.5)-SUM($M110:N110),(Input!$M$213*(1+rvanilla)^0.5)/A3stdlife)) -> 0 | P110: =IF(A3stdlife="n/a","n/a",IF(P$3>(A3stdlife+$E110),(Input!$M$213*(1+rvanilla)^0.5)-SUM($M110:O110),(Input!$M$213*(1+rvanilla)^0.5)/A3stdlife)) -> 0 | Q110: =IF(A3stdlife="n/a","n/a",IF(Q$3>(A3stdlife+$E110),(Input!$M$213*(1+rvanilla)^0.5)-SUM($M110:P110),(Input!$M$213*(1+rvanilla)^0.5)/A3stdlife)) -> 0 | R110: =IF(A3stdlife="n/a","n/a",IF(R$3>(A3stdlife+$E110),(Input!$M$213*(1+rvanilla)^0.5)-SUM($M110:Q110),(Input!$M$213*(1+rvanilla)^0.5)/A3stdlife)) -> 0 | S110: =IF(A3stdlife="n/a","n/a",IF(S$3>(A3stdlife+$E110),(Input!$M$213*(1+rvanilla)^0.5)-SUM($M110:R110),(Input!$M$213*(1+rvanilla)^0.5)/A3stdlife)) -> 0 | T110: =IF(A3stdlife="n/a","n/a",IF(T$3>(A3stdlife+$E110),(Input!$M$213*(1+rvanilla)^0.5)-SUM($M110:S110),(Input!$M$213*(1+rvanilla)^0.5)/A3stdlife)) -> 0 | U110: =IF(A3stdlife="n/a","n/a",IF(U$3>(A3stdlife+$E110),(Input!$M$213*(1+rvanilla)^0.5)-SUM($M110:T110),(Input!$M$213*(1+rvanilla)^0.5)/A3stdlife)) -> 0 | V110: =IF(A3stdlife="n/a","n/a",IF(V$3>(A3stdlife+$E110),(Input!$M$213*(1+rvanilla)^0.5)-SUM($M110:U110),(Input!$M$213*(1+rvanilla)^0.5)/A3stdlife)) -> 0 | W110: =IF(A3stdlife="n/a","n/a",IF(W$3>(A3stdlife+$E110),(Input!$M$213*(1+rvanilla)^0.5)-SUM($M110:V110),(Input!$M$213*(1+rvanilla)^0.5)/A3stdlife)) -> 0 | X110: =IF(A3stdlife="n/a","n/a",IF(X$3>(A3stdlife+$E110),(Input!$M$213*(1+rvanilla)^0.5)-SUM($M110:W110),(Input!$M$213*(1+rvanilla)^0.5)/A3stdlife)) -> 0 | Y110: =IF(A3stdlife="n/a","n/a",IF(Y$3>(A3stdlife+$E110),(Input!$M$213*(1+rvanilla)^0.5)-SUM($M110:X110),(Input!$M$213*(1+rvanilla)^0.5)/A3stdlife)) -> 0 | Z110: =IF(A3stdlife="n/a","n/a",IF(Z$3>(A3stdlife+$E110),(Input!$M$213*(1+rvanilla)^0.5)-SUM($M110:Y110),(Input!$M$213*(1+rvanilla)^0.5)/A3stdlife)) -> 0 | AA110: =IF(A3stdlife="n/a","n/a",IF(AA$3>(A3stdlife+$E110),(Input!$M$213*(1+rvanilla)^0.5)-SUM($M110:Z110),(Input!$M$213*(1+rvanilla)^0.5)/A3stdlife)) -> 0 | AB110: =IF(A3stdlife="n/a","n/a",IF(AB$3>(A3stdlife+$E110),(Input!$M$213*(1+rvanilla)^0.5)-SUM($M110:AA110),(Input!$M$213*(1+rvanilla)^0.5)/A3stdlife)) -> 0 | AC110: =IF(A3stdlife="n/a","n/a",IF(AC$3>(A3stdlife+$E110),(Input!$M$213*(1+rvanilla)^0.5)-SUM($M110:AB110),(Input!$M$213*(1+rvanilla)^0.5)/A3stdlife)) -> 0 | AD110: =IF(A3stdlife="n/a","n/a",IF(AD$3>(A3stdlife+$E110),(Input!$M$213*(1+rvanilla)^0.5)-SUM($M110:AC110),(Input!$M$213*(1+rvanilla)^0.5)/A3stdlife)) -> 0 | AE110: =IF(A3stdlife="n/a","n/a",IF(AE$3>(A3stdlife+$E110),(Input!$M$213*(1+rvanilla)^0.5)-SUM($M110:AD110),(Input!$M$213*(1+rvanilla)^0.5)/A3stdlife)) -> 0 | AF110: =IF(A3stdlife="n/a","n/a",IF(AF$3>(A3stdlife+$E110),(Input!$M$213*(1+rvanilla)^0.5)-SUM($M110:AE110),(Input!$M$213*(1+rvanilla)^0.5)/A3stdlife)) -> 0 | AG110: =IF(A3stdlife="n/a","n/a",IF(AG$3>(A3stdlife+$E110),(Input!$M$213*(1+rvanilla)^0.5)-SUM($M110:AF110),(Input!$M$213*(1+rvanilla)^0.5)/A3stdlife)) -> 0 | AH110: =IF(A3stdlife="n/a","n/a",IF(AH$3>(A3stdlife+$E110),(Input!$M$213*(1+rvanilla)^0.5)-SUM($M110:AG110),(Input!$M$213*(1+rvanilla)^0.5)/A3stdlife)) -> 0 | AI110: =IF(A3stdlife="n/a","n/a",IF(AI$3>(A3stdlife+$E110),(Input!$M$213*(1+rvanilla)^0.5)-SUM($M110:AH110),(Input!$M$213*(1+rvanilla)^0.5)/A3stdlife)) -> 0 | AJ110: =IF(A3stdlife="n/a","n/a",IF(AJ$3>(A3stdlife+$E110),(Input!$M$213*(1+rvanilla)^0.5)-SUM($M110:AI110),(Input!$M$213*(1+rvanilla)^0.5)/A3stdlife)) -> 0 | AK110: =IF(A3stdlife="n/a","n/a",IF(AK$3>(A3stdlife+$E110),(Input!$M$213*(1+rvanilla)^0.5)-SUM($M110:AJ110),(Input!$M$213*(1+rvanilla)^0.5)/A3stdlife)) -> 0 | AL110: =IF(A3stdlife="n/a","n/a",IF(AL$3>(A3stdlife+$E110),(Input!$M$213*(1+rvanilla)^0.5)-SUM($M110:AK110),(Input!$M$213*(1+rvanilla)^0.5)/A3stdlife)) -> 0 | AM110: =IF(A3stdlife="n/a","n/a",IF(AM$3>(A3stdlife+$E110),(Input!$M$213*(1+rvanilla)^0.5)-SUM($M110:AL110),(Input!$M$213*(1+rvanilla)^0.5)/A3stdlife)) -> 0 | AN110: =IF(A3stdlife="n/a","n/a",IF(AN$3>(A3stdlife+$E110),(Input!$M$213*(1+rvanilla)^0.5)-SUM($M110:AM110),(Input!$M$213*(1+rvanilla)^0.5)/A3stdlife)) -> 0 | AO110: =IF(A3stdlife="n/a","n/a",IF(AO$3>(A3stdlife+$E110),(Input!$M$213*(1+rvanilla)^0.5)-SUM($M110:AN110),(Input!$M$213*(1+rvanilla)^0.5)/A3stdlife)) -> 0 | AP110: =IF(A3stdlife="n/a","n/a",IF(AP$3>(A3stdlife+$E110),(Input!$M$213*(1+rvanilla)^0.5)-SUM($M110:AO110),(Input!$M$213*(1+rvanilla)^0.5)/A3stdlife)) -> 0 | AQ110: =IF(A3stdlife="n/a","n/a",IF(AQ$3>(A3stdlife+$E110),(Input!$M$213*(1+rvanilla)^0.5)-SUM($M110:AP110),(Input!$M$213*(1+rvanilla)^0.5)/A3stdlife)) -> 0 | AR110: =IF(A3stdlife="n/a","n/a",IF(AR$3>(A3stdlife+$E110),(Input!$M$213*(1+rvanilla)^0.5)-SUM($M110:AQ110),(Input!$M$213*(1+rvanilla)^0.5)/A3stdlife)) -> 0 | AS110: =IF(A3stdlife="n/a","n/a",IF(AS$3>(A3stdlife+$E110),(Input!$M$213*(1+rvanilla)^0.5)-SUM($M110:AR110),(Input!$M$213*(1+rvanilla)^0.5)/A3stdlife)) -> 0 | AT110: =IF(A3stdlife="n/a","n/a",IF(AT$3>(A3stdlife+$E110),(Input!$M$213*(1+rvanilla)^0.5)-SUM($M110:AS110),(Input!$M$213*(1+rvanilla)^0.5)/A3stdlife)) -> 0 | AU110: =IF(A3stdlife="n/a","n/a",IF(AU$3>(A3stdlife+$E110),(Input!$M$213*(1+rvanilla)^0.5)-SUM($M110:AT110),(Input!$M$213*(1+rvanilla)^0.5)/A3stdlife)) -> 0 | AV110: =IF(A3stdlife="n/a","n/a",IF(AV$3>(A3stdlife+$E110),(Input!$M$213*(1+rvanilla)^0.5)-SUM($M110:AU110),(Input!$M$213*(1+rvanilla)^0.5)/A3stdlife)) -> 0 | AW110: =IF(A3stdlife="n/a","n/a",IF(AW$3>(A3stdlife+$E110),(Input!$M$213*(1+rvanilla)^0.5)-SUM($M110:AV110),(Input!$M$213*(1+rvanilla)^0.5)/A3stdlife)) -> 0 | AX110: =IF(A3stdlife="n/a","n/a",IF(AX$3>(A3stdlife+$E110),(Input!$M$213*(1+rvanilla)^0.5)-SUM($M110:AW110),(Input!$M$213*(1+rvanilla)^0.5)/A3stdlife)) -> 0 | AY110: =IF(A3stdlife="n/a","n/a",IF(AY$3>(A3stdlife+$E110),(Input!$M$213*(1+rvanilla)^0.5)-SUM($M110:AX110),(Input!$M$213*(1+rvanilla)^0.5)/A3stdlife)) -> 0 | AZ110: =IF(A3stdlife="n/a","n/a",IF(AZ$3>(A3stdlife+$E110),(Input!$M$213*(1+rvanilla)^0.5)-SUM($M110:AY110),(Input!$M$213*(1+rvanilla)^0.5)/A3stdlife)) -> 0 | BA110: =IF(A3stdlife="n/a","n/a",IF(BA$3>(A3stdlife+$E110),(Input!$M$213*(1+rvanilla)^0.5)-SUM($M110:AZ110),(Input!$M$213*(1+rvanilla)^0.5)/A3stdlife)) -> 0 | BB110: =IF(A3stdlife="n/a","n/a",IF(BB$3>(A3stdlife+$E110),(Input!$M$213*(1+rvanilla)^0.5)-SUM($M110:BA110),(Input!$M$213*(1+rvanilla)^0.5)/A3stdlife)) -> 0 | BC110: =IF(A3stdlife="n/a","n/a",IF(BC$3>(A3stdlife+$E110),(Input!$M$213*(1+rvanilla)^0.5)-SUM($M110:BB110),(Input!$M$213*(1+rvanilla)^0.5)/A3stdlife)) -> 0 | BD110: =IF(A3stdlife="n/a","n/a",IF(BD$3>(A3stdlife+$E110),(Input!$M$213*(1+rvanilla)^0.5)-SUM($M110:BC110),(Input!$M$213*(1+rvanilla)^0.5)/A3stdlife)) -> 0 | BE110: =IF(A3stdlife="n/a","n/a",IF(BE$3>(A3stdlife+$E110),(Input!$M$213*(1+rvanilla)^0.5)-SUM($M110:BD110),(Input!$M$213*(1+rvanilla)^0.5)/A3stdlife)) -> 0 | BF110: =IF(A3stdlife="n/a","n/a",IF(BF$3>(A3stdlife+$E110),(Input!$M$213*(1+rvanilla)^0.5)-SUM($M110:BE110),(Input!$M$213*(1+rvanilla)^0.5)/A3stdlife)) -> 0 | BG110: =IF(A3stdlife="n/a","n/a",IF(BG$3>(A3stdlife+$E110),(Input!$M$213*(1+rvanilla)^0.5)-SUM($M110:BF110),(Input!$M$213*(1+rvanilla)^0.5)/A3stdlife)) -> 0 | BH110: =IF(A3stdlife="n/a","n/a",IF(BH$3>(A3stdlife+$E110),(Input!$M$213*(1+rvanilla)^0.5)-SUM($M110:BG110),(Input!$M$213*(1+rvanilla)^0.5)/A3stdlife)) -> 0 | BI110: =IF(A3stdlife="n/a","n/a",IF(BI$3>(A3stdlife+$E110),(Input!$M$213*(1+rvanilla)^0.5)-SUM($M110:BH110),(Input!$M$213*(1+rvanilla)^0.5)/A3stdlife)) -> 0
E111: 8 | O111: =IF(A3stdlife="n/a","n/a",IF(O$3>(A3stdlife+$E111),(Input!$N$213*(1+rvanilla)^0.5)-SUM($N111:N111),(Input!$N$213*(1+rvanilla)^0.5)/A3stdlife)) -> 0 | P111: =IF(A3stdlife="n/a","n/a",IF(P$3>(A3stdlife+$E111),(Input!$N$213*(1+rvanilla)^0.5)-SUM($N111:O111),(Input!$N$213*(1+rvanilla)^0.5)/A3stdlife)) -> 0 | Q111: =IF(A3stdlife="n/a","n/a",IF(Q$3>(A3stdlife+$E111),(Input!$N$213*(1+rvanilla)^0.5)-SUM($N111:P111),(Input!$N$213*(1+rvanilla)^0.5)/A3stdlife)) -> 0 | R111: =IF(A3stdlife="n/a","n/a",IF(R$3>(A3stdlife+$E111),(Input!$N$213*(1+rvanilla)^0.5)-SUM($N111:Q111),(Input!$N$213*(1+rvanilla)^0.5)/A3stdlife)) -> 0 | S111: =IF(A3stdlife="n/a","n/a",IF(S$3>(A3stdlife+$E111),(Input!$N$213*(1+rvanilla)^0.5)-SUM($N111:R111),(Input!$N$213*(1+rvanilla)^0.5)/A3stdlife)) -> 0 | T111: =IF(A3stdlife="n/a","n/a",IF(T$3>(A3stdlife+$E111),(Input!$N$213*(1+rvanilla)^0.5)-SUM($N111:S111),(Input!$N$213*(1+rvanilla)^0.5)/A3stdlife)) -> 0 | U111: =IF(A3stdlife="n/a","n/a",IF(U$3>(A3stdlife+$E111),(Input!$N$213*(1+rvanilla)^0.5)-SUM($N111:T111),(Input!$N$213*(1+rvanilla)^0.5)/A3stdlife)) -> 0 | V111: =IF(A3stdlife="n/a","n/a",IF(V$3>(A3stdlife+$E111),(Input!$N$213*(1+rvanilla)^0.5)-SUM($N111:U111),(Input!$N$213*(1+rvanilla)^0.5)/A3stdlife)) -> 0 | W111: =IF(A3stdlife="n/a","n/a",IF(W$3>(A3stdlife+$E111),(Input!$N$213*(1+rvanilla)^0.5)-SUM($N111:V111),(Input!$N$213*(1+rvanilla)^0.5)/A3stdlife)) -> 0 | X111: =IF(A3stdlife="n/a","n/a",IF(X$3>(A3stdlife+$E111),(Input!$N$213*(1+rvanilla)^0.5)-SUM($N111:W111),(Input!$N$213*(1+rvanilla)^0.5)/A3stdlife)) -> 0 | Y111: =IF(A3stdlife="n/a","n/a",IF(Y$3>(A3stdlife+$E111),(Input!$N$213*(1+rvanilla)^0.5)-SUM($N111:X111),(Input!$N$213*(1+rvanilla)^0.5)/A3stdlife)) -> 0 | Z111: =IF(A3stdlife="n/a","n/a",IF(Z$3>(A3stdlife+$E111),(Input!$N$213*(1+rvanilla)^0.5)-SUM($N111:Y111),(Input!$N$213*(1+rvanilla)^0.5)/A3stdlife)) -> 0 | AA111: =IF(A3stdlife="n/a","n/a",IF(AA$3>(A3stdlife+$E111),(Input!$N$213*(1+rvanilla)^0.5)-SUM($N111:Z111),(Input!$N$213*(1+rvanilla)^0.5)/A3stdlife)) -> 0 | AB111: =IF(A3stdlife="n/a","n/a",IF(AB$3>(A3stdlife+$E111),(Input!$N$213*(1+rvanilla)^0.5)-SUM($N111:AA111),(Input!$N$213*(1+rvanilla)^0.5)/A3stdlife)) -> 0 | AC111: =IF(A3stdlife="n/a","n/a",IF(AC$3>(A3stdlife+$E111),(Input!$N$213*(1+rvanilla)^0.5)-SUM($N111:AB111),(Input!$N$213*(1+rvanilla)^0.5)/A3stdlife)) -> 0 | AD111: =IF(A3stdlife="n/a","n/a",IF(AD$3>(A3stdlife+$E111),(Input!$N$213*(1+rvanilla)^0.5)-SUM($N111:AC111),(Input!$N$213*(1+rvanilla)^0.5)/A3stdlife)) -> 0 | AE111: =IF(A3stdlife="n/a","n/a",IF(AE$3>(A3stdlife+$E111),(Input!$N$213*(1+rvanilla)^0.5)-SUM($N111:AD111),(Input!$N$213*(1+rvanilla)^0.5)/A3stdlife)) -> 0 | AF111: =IF(A3stdlife="n/a","n/a",IF(AF$3>(A3stdlife+$E111),(Input!$N$213*(1+rvanilla)^0.5)-SUM($N111:AE111),(Input!$N$213*(1+rvanilla)^0.5)/A3stdlife)) -> 0 | AG111: =IF(A3stdlife="n/a","n/a",IF(AG$3>(A3stdlife+$E111),(Input!$N$213*(1+rvanilla)^0.5)-SUM($N111:AF111),(Input!$N$213*(1+rvanilla)^0.5)/A3stdlife)) -> 0 | AH111: =IF(A3stdlife="n/a","n/a",IF(AH$3>(A3stdlife+$E111),(Input!$N$213*(1+rvanilla)^0.5)-SUM($N111:AG111),(Input!$N$213*(1+rvanilla)^0.5)/A3stdlife)) -> 0 | AI111: =IF(A3stdlife="n/a","n/a",IF(AI$3>(A3stdlife+$E111),(Input!$N$213*(1+rvanilla)^0.5)-SUM($N111:AH111),(Input!$N$213*(1+rvanilla)^0.5)/A3stdlife)) -> 0 | AJ111: =IF(A3stdlife="n/a","n/a",IF(AJ$3>(A3stdlife+$E111),(Input!$N$213*(1+rvanilla)^0.5)-SUM($N111:AI111),(Input!$N$213*(1+rvanilla)^0.5)/A3stdlife)) -> 0 | AK111: =IF(A3stdlife="n/a","n/a",IF(AK$3>(A3stdlife+$E111),(Input!$N$213*(1+rvanilla)^0.5)-SUM($N111:AJ111),(Input!$N$213*(1+rvanilla)^0.5)/A3stdlife)) -> 0 | AL111: =IF(A3stdlife="n/a","n/a",IF(AL$3>(A3stdlife+$E111),(Input!$N$213*(1+rvanilla)^0.5)-SUM($N111:AK111),(Input!$N$213*(1+rvanilla)^0.5)/A3stdlife)) -> 0 | AM111: =IF(A3stdlife="n/a","n/a",IF(AM$3>(A3stdlife+$E111),(Input!$N$213*(1+rvanilla)^0.5)-SUM($N111:AL111),(Input!$N$213*(1+rvanilla)^0.5)/A3stdlife)) -> 0 | AN111: =IF(A3stdlife="n/a","n/a",IF(AN$3>(A3stdlife+$E111),(Input!$N$213*(1+rvanilla)^0.5)-SUM($N111:AM111),(Input!$N$213*(1+rvanilla)^0.5)/A3stdlife)) -> 0 | AO111: =IF(A3stdlife="n/a","n/a",IF(AO$3>(A3stdlife+$E111),(Input!$N$213*(1+rvanilla)^0.5)-SUM($N111:AN111),(Input!$N$213*(1+rvanilla)^0.5)/A3stdlife)) -> 0 | AP111: =IF(A3stdlife="n/a","n/a",IF(AP$3>(A3stdlife+$E111),(Input!$N$213*(1+rvanilla)^0.5)-SUM($N111:AO111),(Input!$N$213*(1+rvanilla)^0.5)/A3stdlife)) -> 0 | AQ111: =IF(A3stdlife="n/a","n/a",IF(AQ$3>(A3stdlife+$E111),(Input!$N$213*(1+rvanilla)^0.5)-SUM($N111:AP111),(Input!$N$213*(1+rvanilla)^0.5)/A3stdlife)) -> 0 | AR111: =IF(A3stdlife="n/a","n/a",IF(AR$3>(A3stdlife+$E111),(Input!$N$213*(1+rvanilla)^0.5)-SUM($N111:AQ111),(Input!$N$213*(1+rvanilla)^0.5)/A3stdlife)) -> 0 | AS111: =IF(A3stdlife="n/a","n/a",IF(AS$3>(A3stdlife+$E111),(Input!$N$213*(1+rvanilla)^0.5)-SUM($N111:AR111),(Input!$N$213*(1+rvanilla)^0.5)/A3stdlife)) -> 0 | AT111: =IF(A3stdlife="n/a","n/a",IF(AT$3>(A3stdlife+$E111),(Input!$N$213*(1+rvanilla)^0.5)-SUM($N111:AS111),(Input!$N$213*(1+rvanilla)^0.5)/A3stdlife)) -> 0 | AU111: =IF(A3stdlife="n/a","n/a",IF(AU$3>(A3stdlife+$E111),(Input!$N$213*(1+rvanilla)^0.5)-SUM($N111:AT111),(Input!$N$213*(1+rvanilla)^0.5)/A3stdlife)) -> 0 | AV111: =IF(A3stdlife="n/a","n/a",IF(AV$3>(A3stdlife+$E111),(Input!$N$213*(1+rvanilla)^0.5)-SUM($N111:AU111),(Input!$N$213*(1+rvanilla)^0.5)/A3stdlife)) -> 0 | AW111: =IF(A3stdlife="n/a","n/a",IF(AW$3>(A3stdlife+$E111),(Input!$N$213*(1+rvanilla)^0.5)-SUM($N111:AV111),(Input!$N$213*(1+rvanilla)^0.5)/A3stdlife)) -> 0 | AX111: =IF(A3stdlife="n/a","n/a",IF(AX$3>(A3stdlife+$E111),(Input!$N$213*(1+rvanilla)^0.5)-SUM($N111:AW111),(Input!$N$213*(1+rvanilla)^0.5)/A3stdlife)) -> 0 | AY111: =IF(A3stdlife="n/a","n/a",IF(AY$3>(A3stdlife+$E111),(Input!$N$213*(1+rvanilla)^0.5)-SUM($N111:AX111),(Input!$N$213*(1+rvanilla)^0.5)/A3stdlife)) -> 0 | AZ111: =IF(A3stdlife="n/a","n/a",IF(AZ$3>(A3stdlife+$E111),(Input!$N$213*(1+rvanilla)^0.5)-SUM($N111:AY111),(Input!$N$213*(1+rvanilla)^0.5)/A3stdlife)) -> 0 | BA111: =IF(A3stdlife="n/a","n/a",IF(BA$3>(A3stdlife+$E111),(Input!$N$213*(1+rvanilla)^0.5)-SUM($N111:AZ111),(Input!$N$213*(1+rvanilla)^0.5)/A3stdlife)) -> 0 | BB111: =IF(A3stdlife="n/a","n/a",IF(BB$3>(A3stdlife+$E111),(Input!$N$213*(1+rvanilla)^0.5)-SUM($N111:BA111),(Input!$N$213*(1+rvanilla)^0.5)/A3stdlife)) -> 0 | BC111: =IF(A3stdlife="n/a","n/a",IF(BC$3>(A3stdlife+$E111),(Input!$N$213*(1+rvanilla)^0.5)-SUM($N111:BB111),(Input!$N$213*(1+rvanilla)^0.5)/A3stdlife)) -> 0 | BD111: =IF(A3stdlife="n/a","n/a",IF(BD$3>(A3stdlife+$E111),(Input!$N$213*(1+rvanilla)^0.5)-SUM($N111:BC111),(Input!$N$213*(1+rvanilla)^0.5)/A3stdlife)) -> 0 | BE111: =IF(A3stdlife="n/a","n/a",IF(BE$3>(A3stdlife+$E111),(Input!$N$213*(1+rvanilla)^0.5)-SUM($N111:BD111),(Input!$N$213*(1+rvanilla)^0.5)/A3stdlife)) -> 0 | BF111: =IF(A3stdlife="n/a","n/a",IF(BF$3>(A3stdlife+$E111),(Input!$N$213*(1+rvanilla)^0.5)-SUM($N111:BE111),(Input!$N$213*(1+rvanilla)^0.5)/A3stdlife)) -> 0 | BG111: =IF(A3stdlife="n/a","n/a",IF(BG$3>(A3stdlife+$E111),(Input!$N$213*(1+rvanilla)^0.5)-SUM($N111:BF111),(Input!$N$213*(1+rvanilla)^0.5)/A3stdlife)) -> 0 | BH111: =IF(A3stdlife="n/a","n/a",IF(BH$3>(A3stdlife+$E111),(Input!$N$213*(1+rvanilla)^0.5)-SUM($N111:BG111),(Input!$N$213*(1+rvanilla)^0.5)/A3stdlife)) -> 0 | BI111: =IF(A3stdlife="n/a","n/a",IF(BI$3>(A3stdlife+$E111),(Input!$N$213*(1+rvanilla)^0.5)-SUM($N111:BH111),(Input!$N$213*(1+rvanilla)^0.5)/A3stdlife)) -> 0
